Workbook

Sheet Navigation
C3: Northwest Power System Database
E4: Existing Projects | G4: Update Log
E5: New Projects | G5: Update Log
E6: Abbreviation Key
C8: See the Power Supply webpage
C9: Questions? Email Annika Roberts at
C10: aroberts@nwcouncil.org

Sheet Projects
A1: < Back to Navigation
A2: Northwest Power and Conservation Council | H2: =" Auto documentation feature is "&IF(AutoDocOn,"ON","OFF") -> Auto documentation feature is ON | K2: Project status filters ("Status" column W):
A3: POWER PLANTS IN THE PACIFIC NORTHWEST & SYSTEM PLANNING ASSUMPTIONS | H3: TRUE
A4: ="Last update: " & TEXT(MAX(CB:CB),"m/d/yyyy") -> Last update: 1/24/2024 | EE4: Monthly capacity is derated for SOR and seasonal production (wind, solar & small hydro only)
H5: ="Next Project ID: "&lkpNextID -> Next Project ID: 2443 | DB5: Show installed capacity for all wind (Y/N, GenRes only) | DC5: Y | DD5: (Otherwise regional share at NPCC firm capacity value is shown) | EE5: Monthly capacity is derated for FOR, SOR and seasonal production (wind, solar & small hydro only)
CG6: Delete from here for web version to avoid confusion
CC7: NPCC PLANNING ASSUMPTIONS | CI7: See Worksheet GenRes Notes for GenRes exclusions and capacity and energy adjustments | CV7: GENRES FILE | ED7: SYSTEM SEASONAL CAPACITY AND ENERGY
A8: Namem | B8: NWPCCID | C8: EIAGC | D8: EIA_UI | E8: PID | F8: TECH | G8: PriFuel | H8: AltFuel | I8: RES | J8: NCap | K8: EIA_MW | L8: BPAJanMW | M8: White_Bk_120 | N8: WECC_SMW | O8: WECC_WMW | P8: EIA_SMW | Q8: EIA_WMW | R8: EIA_MinLoad | S8: EIA_PF | T8: MWa | U8: MWh_Storage | V8: CMWa | W8: CSTAT | X8: SMO | Y8: SYEAR | Z8: RDATE | AA8: LOC | AB8: COUNTY | AC8: STATE | AD8: RCODE | AE8: Basin | AF8: NERC | AG8: ONAME | AH8: OTYPE | AI8: LOAD | AJ8: REC | AK8: WindLoad | AL8: Repower | AM8: AVG_FOM | AN8: AVG_VOM | AO8: AVG_HR | AP8: PPA_EXP | AQ8: RPM_RATE | AR8: RPM_Cap | AS8: HOST | AT8: THRM_LOAD | AU8: Gas_Intercon | AV8: Elec_Intercon | AW8: QF_Status | AX8: Wnd_Turbine_Mfr | AY8: Wnd_Turbine_Hub | AZ8: Wnd_Turbine_Rotor | BA8: Wnd_Class | BB8: Solar_PV_Track | BC8: BA | BD8: 2002MWa | BE8: 2003MWa | BF8: 2004MWa | BG8: 2005MWa | BH8: 2006MWa | BI8: 2007MWa | BJ8: 2008MWa | BK8: 2009MWa | BL8: 2010MWa | BM8: 2011MWa | BN8: 2012MWa | BO8: 2013MWa | BP8: 2014MWa | BQ8: 2015MWa | BR8: 2016MWa | BS8: 2017MWa | BT8: 2018MWa | BU8: 2019MWa | BV8: 2020MWa | BW8: 2021MWa | BX8: 2022MWa | BY8: NOTES | BZ8: Latitude | CA8: Longitude | CB8: LastUpdate | CC8: DefCFW | CD8: DefCFS | CE8: DefAvail | CF8: DefMWa | CG8: HYSIM | CH8: GenRes | CI8: GRExclNote | CJ8: GRAnno | CK8: GNode | CL8: TDP | CM8: AveHR | CN8: RCapGR | CO8: RCapNote | CP8: PkValue | CQ8: UncomIPP | CR8: REng | CS8: REngNote | CT8: MustRun | CU8: SP1 | CV8: SourceName | CW8: PrimaryNode | CX8: SourceDType | CY8: SourcePType | CZ8: Capacity | DA8: OnLine Date | DB8: Retire Date | DC8: Avg Ht Rate | DD8: Fuel Type | DE8: FOR | DF8: Mean Repair Time | DG8: Stoch Outage | DH8: Maint Sched Ptr | DI8: Cost Set | DJ8: Finance Ptr | DK8: Dev Sched Ptr | DL8: Oper Life | DM8: GenVsTemp Ptr | DN8: Emissions Ptr | DO8: Must Run Level | DP8: OffPeakOnly | DQ8: InProdCost | DR8: Track Production | DS8: Track Avail | DT8: Option Lead | DU8: Constr Lead | DV8: Option Shelf Life | DW8: Annotation | DX8: XPos | DY8: YPos | DZ8: SourceKey | EB8: Project | EC8: Sep (MW) | ED8: Oct (MW) | EE8: Nov (MW) | EF8: Dec (MW) | EG8: Jan (MW) | EH8: Feb (MW) | EI8: Mar (MW) | EJ8: Apr (MW) | EK8: May (MW) | EL8: Jun (MW) | EM8: Jul (MW) | EN8: Aug (MW) | EO8: Sep (MW-mo) | EP8: Oct (MW-mo) | EQ8: Nov (MW-mo) | ER8: Dec (MW-mo) | ES8: Jan (MW-mo) | ET8: Feb (MW-mo) | EU8: Mar (MW-mo) | EV8: Apr (MW-mo) | EW8: May (MW-mo) | EX8: Jun (MW-mo) | EY8: Jul (MW-mo) | EZ8: Aug (MW-mo)
A9: Project Name | B9: NWPCC ID | C9: EIA (ORIS) Plant Code | D9: EIA Generator Unit ID | E9: FERC Project ID | F9: Technology | G9: Primary Fuel | H9: Alternate Fuel | I9: Resource Type | J9: Nameplate Capacity (MW) | K9: EIA Nameplate Capacity (MW) | L9: White Book Jan 1-hr Cap (MW) | M9: 2018 White Book Jan 120-hr Cap (MW) | N9: WECC Summer Capacity (MW) | O9: WECC Winter Capacity (MW) | P9: EIA Summer Capacity (MW) | Q9: EIA Winter Capacity (MW) | R9: EIA Minimum Load (MW) | S9: EIA Power Factor (%) | T9: Average Energy (MWa) | U9: Energy Storage MWh | V9: Firm Hydro Energy (MWa) | W9: Status | X9: Service Month | Y9: Initial Service Year | Z9: Retirement/Idled Year | AA9: Site | AB9: County | AC9: State | AD9: Power Act Region (Y/N) | AE9: Basin | AF9: NERC Reliability Region | AG9: Owner | AH9: Owner Type | AI9: Electrical Load | AJ9: Renewable Energy Credits *IN PROGRESS* | AK9: Wind Load | AL9: Upgrades/Repowering *IN PROGRESS* | AM9: 5-yr average Fixed O&M 2015-2019 ($/kw-yr) | AN9: 5-yr average Variable O&M 2015-2019 ($/MWh) | AO9: 5-yr average Heat Rate | AP9: PPA/QF Expiration Date | AQ9: 2021 Plan RPM % Rate Based to Region | AR9: 2021 Plan RPM % Capability Available to Region | AS9: Thermal Host (Cogeneration) | AT9: Thermal Load (Cogeneration | AU9: Gas Pipeline Interconnection | AV9: Main Grid Interconnection | AW9: PURPA Qualifying Facility | AX9: Wind Turbine Manufacturer and Model | AY9: Wind Turbine Hub Height (feet) | AZ9: Wind Turbine Rotor Diameter (meters) | BA9: Wind Quality Class | BB9: Solar PV Tracking | BC9: Balancing Authority | BD9: 2002 Energy (MWa) | BE9: 2003 Energy (MWa) | BF9: 2004 Energy (MWa) | BG9: 2005 Energy (MWa) | BH9: 2006 Energy (MWa) | BI9: 2007 Energy (MWa) | BJ9: 2008 Energy (MWa) | BK9: 2009 Energy (Mwa) | BL9: 2010 Energy (Mwa) | BM9: 2011 Energy (Mwa) | BN9: 2012 Energy (Mwa) | BO9: 2013 Energy (Mwa) | BP9: 2014 Energy (Mwa) | BQ9: 2015 Energy (Mwa) | BR9: 2016 Energy (Mwa) | BS9: 2017 Energy (Mwa) | BT9: 2018 Energy (Mwa) | BU9: 2019 Energy (Mwa) | BV9: 2020 Energy (Mwa) | BW9: 2021 Energy (Mwa) | BX9: 2022 Energy (Mwa) | BY9: Notes | BZ9: Latitude | CA9: Longitude | CB9: LastUpdate | CC9: Net Winter Capacity (MW) | CD9: Net Summer Capacity (MW) | CE9: Availability (%) | CF9: Capability (MWa) | CG9: Hydro Simulation Class | CH9: Include in GenRes File | CI9: GenRes Note | CJ9: GenRes Annotation | CK9: GENESYS Node | CL9: Technical Data Pointer | CM9: Average Heat Rate (Btu/kWh) | CN9: Regional Capacity (%) | CO9: Regional Capacity Derate Note | CP9: Firm Capacity Credit (%) | CQ9: Uncommitted IPP Capacity (%) | CR9: Regional Energy (%) | CS9: Regional Energy Derate Note | CT9: Must Run | CU9: SP1 | CV9: SourceName | CW9: PrimaryNode | CX9: SourceDType | CY9: SourcePType | CZ9: Capacity | DA9: OnLine Date | DB9: Retire Date | DC9: Avg Ht Rate | DD9: Fuel Type | DE9: FOR | DF9: Mean Repair Time | DG9: Stoch Outage | DH9: Maint Sched Ptr | DI9: Cost Set | DJ9: Finance Ptr | DK9: Dev Sched Ptr | DL9: Oper Life | DM9: GenVsTemp Ptr | DN9: Emissions Ptr | DO9: Must Run Level | DP9: OffPeakOnly | DQ9: InProdCost | DR9: Track Production | DS9: Track Avail | DT9: Option Lead | DU9: Constr Lead | DV9: Option Shelf Life | DW9: Annotation | DX9: XPos | DY9: YPos | DZ9: SourceKey | EB9: ProjectName | EC9: 10 | ED9: 11 | EE9: 12 | EF9: 13 | EG9: 2 | EH9: 3 | EI9: 4 | EJ9: 5 | EK9: 6 | EL9: 7 | EM9: 8 | EN9: 9 | EO9: 10 | EP9: 11 | EQ9: 12 | ER9: 13 | ES9: 2 | ET9: 3 | EU9: 4 | EV9: 5 | EW9: 6 | EX9: 7 | EY9: 8 | EZ9: 9
A10: 18th Street (Springfield ICs, Springfield Gen Farm) | B10: 1000 | F10: IC | G10: NG | I10: Natural Gas | J10: 9.5 | L10: 0 | W10: Retired | Y10: 2001 | Z10: Unknown | AA10: Springfield | AB10: Lane | AC10: OR | AD10: Y | AE10: Columbia | AF10: WECC | AG10: Springfield Utility Board | AH10: Municipal | AI10: Retired | AQ10: 0 | AR10: 0 | BC10: BPA | BY10: (5) 1.9 MW spark-ignition Jennbacher units. | CB10: 2023-03-22 | CC10: =IF(OR(I10="Wind",I10="Solar",I10="Hydro"),J10,IF(ISNUMBER(L10),L10,IF(ISNUMBER(O10), O10, IF(ISNUMBER(Q10),Q10,J10)))) -> 0 | CD10: =IF(OR(J10="Wind",J10="Solar",J10="Hydro"),J10,IF(ISNUMBER(N10),N10,IF(ISNUMBER(P10), P10, IF(ISNUMBER(L10),L10,J10)))) -> 0 | CE10: =IF(OR(ISBLANK(J10),ISBLANK(T10),J10=0),VLOOKUP(IF(G10="WAT","HY",IF(G10="LFG","LFG",F10)),Acapability,3,FALSE),T10/J10) -> 0.93 | CF10: =IF(ISNUMBER(T10),T10,AVERAGE(CC10,CD10)*CE10) -> 0 | CH10: N | CI10: Retired | CV10: =IF($CH10="Y",A10,"") ->  | CW10: =IF($CH10="Y",CK10,"") ->  | CX10: =IF(CH10="N","",VLOOKUP($CL10,ATechDat,2,FALSE)) ->  | CY10: =IF(CH10="N","",VLOOKUP($CL10,ATechDat,3,FALSE)) ->  | CZ10: =IF($CH10="N","",IF($I10<>"Wind",($CN10*$CP10*IF(ISBLANK($L10),IF(ISBLANK($O10),$J10,$O10),$L10)),$J10*IF(AND($I10="Wind",SWFullWind="Y"),1,$CN10*$CP10))) ->  | DA10: =IF(CH10="N","",IF(ISBLANK(X10),"Dec",X10)&"-"&IF(ISBLANK(Y10),1980,Y10)) ->  | DB10: =IF(CH10="N","",IF(W10="Retired",Z10,"Jan-2051")) ->  | DC10: =IF(CH10="N","",CM10) ->  | DD10: =IF(CH10="N","",VLOOKUP($CL10,ATechDat,4,FALSE)) ->  | DE10: =IF(CH10="N","",VLOOKUP($CL10,ATechDat,5,FALSE)) ->  | DF10: =IF(CH10="N","",VLOOKUP($CL10,ATechDat,6,FALSE)) ->  | DG10: =IF(CH10="N","",VLOOKUP($CL10,ATechDat,7,FALSE)) ->  | DH10: =IF(CH10="N","",VLOOKUP($CL10,ATechDat,8,FALSE)) ->  | DI10: =IF(CH10="N","",VLOOKUP($CL10,ATechDat,9,FALSE)) ->  | DJ10: =IF(CH10="N","",VLOOKUP($CL10,ATechDat,10,FALSE)) ->  | DK10: =IF(CH10="N","",VLOOKUP($CL10,ATechDat,11,FALSE)) ->  | DL10: =IF(CH10="N","",VLOOKUP($CL10,ATechDat,12,FALSE)) ->  | DM10: =IF(CH10="N","",VLOOKUP($CL10,ATechDat,13,FALSE)) ->  | DN10: =IF(CH10="N","",VLOOKUP($CL10,ATechDat,14,FALSE)) ->  | DO10: =IF(CH10="N","",VLOOKUP($CL10,ATechDat,15,FALSE)) ->  | DP10: =IF(CH10="N","",VLOOKUP($CL10,ATechDat,16,FALSE)) ->  | DQ10: =IF(CH10="N","",VLOOKUP($CL10,ATechDat,17,FALSE)) ->  | DR10: =IF(CH10="N","",VLOOKUP($CL10,ATechDat,18,FALSE)) ->  | DS10: =IF(CH10="N","",VLOOKUP($CL10,ATechDat,19,FALSE)) ->  | DT10: =IF(CH10="N","",VLOOKUP($CL10,ATechDat,20,FALSE)) ->  | DU10: =IF(CH10="N","",VLOOKUP($CL10,ATechDat,21,FALSE)) ->  | DV10: =IF(CH10="N","",VLOOKUP($CL10,ATechDat,22,FALSE)) ->  | DW10: =IF(ISBLANK(CJ10),"",CJ10) ->  | DZ10: =IF(CH10="N","",CV10) ->  | EB10: =CV10 ->  | EC10: =IF($CH10="N","",IF(OR($I10<>"Wind",$I10<>"Solar",$I10<>"Hydro"),($CN10*$CP10*IF(ISBLANK($L10),IF(ISBLANK($O10),$J10,$O10),$L10))*VLOOKUP($DH10,ASeasDist,EC$9,FALSE)*VLOOKUP($DM10,ASeasDist,EC$9),$J10*$CN10*$CP10)) ->  | EO10: =IF($CH10="N","",IF(OR($I10<>"Wind",$I10<>"Solar",$I10<>"Hydro"),$CR10*IF(ISBLANK($L10),IF(ISBLANK($O10),$J10,$O10),$L10),$J10)*(1-$DE10)*VLOOKUP($DH10,ASeasDist,EO$9,FALSE)*VLOOKUP($DM10,ASeasDist,EO$9)) -> 
A11: 45-Mile Hydroelectric Project | B11: 2095 | C11: 58455 | D11: 0001,0002,0003 | E11: P-13817 | F11: HY | G11: WAT | I11: Hydro | J11: 3 | K11: 3 | P11: 3 | Q11: 3 | W11: Operating | X11: May | Y11: 2015 | AA11: Haystack Reservoir, North Unit Irrigation District | AB11: Jefferson | AC11: OR | AD11: Y | AE11: Columbia | AF11: WECC | AG11: Apple, Inc. | AH11: Independent | AI11: Self-gen for Prineville data center | AQ11: 1 | AR11: 0 | AW11: SPP | BC11: PACW | BQ11: 0.63 | BR11: 0.836986 | BS11: 0.7 | BT11: 0.9 | BU11: 0.6 | BV11: 0.559 | BW11: 0.48 | BX11: 0.463 | BY11: (3) 1 MW in-pipe generating turbines. | BZ11: 44.528056 | CA11: -121.152778 | CB11: 2017-10-16T14:44:31 | CC11: 3 | CD11: 3 | CE11: 0.427 | CF11: 1.281 | CH11: N | CI11: Self-gen (Apple, Inc.)
A12: Adams Solar Center | B12: 2159 | C12: 61496 | D12: ADAMS | F12: PV | G12: SOL | I12: Solar | J12: 10 | K12: 10 | P12: 10 | W12: Operating | X12: Jun | Y12: 2018 | AA12: Madras | AB12: Jefferson | AC12: OR | AD12: Y | AE12: Columbia | AF12: WECC | AG12: GCL New Energy Holdings | AH12: Independent | AI12: PacifiCorp (20yr QF PPA) | AJ12: PacifiCorp (bunded RECs) | AP12: 2038 | AQ12: 1 | AR12: 1 | AW12: SPP | BB12: Single-axis | BC12: PACE | BT12: 1.4 | BU12: 2.4 | BV12: 2.67 | BW12: 2.5 | BX12: 2.6 | BY12: Crystalline silicone. 13.1MWdc. Single-axis tracker. RECs to PAC | BZ12: 44.677103 | CA12: -121.122461 | CB12: 2019-11-22T12:14:50 | CC12: 10 | CD12: 10 | CE12: 0.254 | CF12: 2.54 | CH12: Y | CJ12: 100% PNW PPA | CK12: PNW East | CL12: PV | CN12: 1 | CP12: 0.75 | CR12: 1 | CT12: Y | CV12: Adams Solar Center | CW12: PNW East | CX12: Thr | CY12: PV | CZ12: 7.5 | DA12: Jun-2018 | DB12: Jan-2051 | DC12: 0 | DD12: Solar | DE12: 0 | DF12: 0 | DG12: FALSE | DH12: Cf PV | DI12: SolarPV | DJ12: Default | DK12: Default | DL12: 30 | DM12: Flat | DN12: 0 | DO12: 1 | DP12: FALSE | DQ12: TRUE | DR12: FALSE | DS12: FALSE | DT12: 0 | DU12: 0 | DV12: 0 | DW12: 100% PNW PPA | DZ12: Adams Solar Center | EB12: Adams Solar Center | EC12: 2.217714167 | ED12: 1.440439609 | EE12: 0.6661440682 | EF12: 0.5506791273 | EG12: 0.6325204404 | EH12: 1.068692068 | EI12: 1.709244687 | EJ12: 2.026482772 | EK12: 2.643862546 | EL12: 2.902138463 | EM12: 2.994598044 | EN12: 2.681513497 | EO12: 2.956952222 | EP12: 1.920586145 | EQ12: 0.8881920909 | ER12: 0.7342388364 | ES12: 0.8433605872 | ET12: 1.424922757 | EU12: 2.278992916 | EV12: 2.70197703 | EW12: 3.525150061 | EX12: 3.86951795 | EY12: 3.992797392 | EZ12: 3.57535133
A13: Adams-Nielson Solar Farm | B13: 2272 | C13: 61933 | D13: ADAMS | E13: 12 | F13: PV | G13: SOL | I13: Solar | J13: 20 | K13: 20 | W13: Operating | X13: Dec | Y13: 2018 | AA13: Lind, WA | AB13: Adams | AC13: WA | AD13: Y | AE13: Columbia | AF13: WECC | AG13: Strata Solar | AH13: Independent | AI13: Avista | AQ13: 1 | AR13: 1 | BB13: Dual-axis | BC13: Avista | BT13: 0.1 | BU13: 4.9 | BV13: 5.18 | BW13: 4.96 | BX13: 3.985 | BY13: Thin-film. 28MWdc. Dual-axis tracking. Project is Avista's winning bid for its new Solar Select program for commercial customers. Project commercially operating as of December 5, 2018. | BZ13: 46.983415 | CA13: -118.61464 | CB13: 2023-11-08T15:19:28 | CC13: 20 | CD13: 20 | CE13: 0.254 | CF13: 5.08 | CH13: Y | CJ13: 100% PNW PPA | CK13: PNW East | CL13: PV | CN13: 1 | CP13: 0.75 | CR13: 1 | CT13: Y | CV13: Adams-Nielson Solar Farm | CW13: PNW East | CX13: Thr | CY13: PV | CZ13: 15 | DA13: Dec-2018 | DB13: Jan-2051 | DC13: 0 | DD13: Solar | DE13: 0 | DF13: 0 | DG13: FALSE | DH13: Cf PV | DI13: SolarPV | DJ13: Default | DK13: Default | DL13: 30 | DM13: Flat | DN13: 0 | DO13: 1 | DP13: FALSE | DQ13: TRUE | DR13: FALSE | DS13: FALSE | DT13: 0 | DU13: 0 | DV13: 0 | DW13: 100% PNW PPA | DZ13: Adams-Nielson Solar Farm | EB13: Adams-Nielson Solar Farm | EC13: 4.435428333 | ED13: 2.880879218 | EE13: 1.332288136 | EF13: 1.101358255 | EG13: 1.265040881 | EH13: 2.137384135 | EI13: 3.418489374 | EJ13: 4.052965544 | EK13: 5.287725091 | EL13: 5.804276925 | EM13: 5.989196088 | EN13: 5.363026994 | EO13: 5.913904444 | EP13: 3.84117229 | EQ13: 1.776384182 | ER13: 1.468477673 | ES13: 1.686721174 | ET13: 2.849845514 | EU13: 4.557985833 | EV13: 5.403954059 | EW13: 7.050300122 | EX13: 7.7390359 | EY13: 7.985594784 | EZ13: 7.150702659
A14: Afton Generating Co. 1 | B14: 1002 | F14: STCG | G14: WW | I14: Biomass | J14: 7.5 | W14: Retired | Y14: 1983 | Z14: 2005 | AA14: Afton | AB14: Lincoln | AC14: WY | AD14: Y | AE14: Unknown | AF14: WECC | AG14: Afton Energy, Inc. | AH14: Independent | AI14: Retired | AQ14: 0 | AR14: 0 | BG14: n/a | BH14: n/a | BY14: Dismantled 2005. | CB14: 2005-10-25 | CC14: 7.5 | CD14: 7.5 | CE14: 0.8 | CF14: 6 | CH14: N | CI14: Retired
A15: Agate Bay Solar (OR Solar 2) | B15: 2160 | C15: 61200 | D15: ORSR2 | F15: PV | G15: SOL | I15: Solar | J15: 10 | K15: 10 | P15: 10 | W15: Operating | X15: Oct | Y15: 2020 | AA15: Eagle Point | AB15: Jackson | AC15: OR | AD15: Y | AF15: WECC | AG15: Origis Energy | AH15: Independent | AI15: PacifiCorp (20yr QF PPA) | AP15: 2040 | AQ15: 1 | AR15: 1 | AW15: SPP | BV15: 0.2 | BW15: 2.24 | BX15: 2.543 | BZ15: 42.52 | CA15: -122.82001 | CB15: 2021-01-05T16:27:50 | CC15: 10 | CD15: 10 | CE15: 0.254 | CF15: 2.54 | CH15: Y | CI15: PAC PURPA PPA | CJ15: 100% PNW PPA | CK15: PNW West | CL15: PV | CN15: 1 | CP15: 0.75 | CR15: 1 | CT15: Y | CV15: Agate Bay Solar (OR Solar 2) | CW15: PNW West | CX15: Thr | CY15: PV | CZ15: 7.5 | DA15: Oct-2020 | DB15: Jan-2051 | DC15: 0 | DD15: Solar | DE15: 0 | DF15: 0 | DG15: FALSE | DH15: Cf PV | DI15: SolarPV | DJ15: Default | DK15: Default | DL15: 30 | DM15: Flat | DN15: 0 | DO15: 1 | DP15: FALSE | DQ15: TRUE | DR15: FALSE | DS15: FALSE | DT15: 0 | DU15: 0 | DV15: 0 | DW15: 100% PNW PPA | DZ15: Agate Bay Solar (OR Solar 2) | EB15: Agate Bay Solar (OR Solar 2) | EC15: 2.217714167 | ED15: 1.440439609 | EE15: 0.6661440682 | EF15: 0.5506791273 | EG15: 0.6325204404 | EH15: 1.068692068 | EI15: 1.709244687 | EJ15: 2.026482772 | EK15: 2.643862546 | EL15: 2.902138463 | EM15: 2.994598044 | EN15: 2.681513497 | EO15: 2.956952222 | EP15: 1.920586145 | EQ15: 0.8881920909 | ER15: 0.7342388364 | ES15: 0.8433605872 | ET15: 1.424922757 | EU15: 2.278992916 | EV15: 2.70197703 | EW15: 3.525150061 | EX15: 3.86951795 | EY15: 3.992797392 | EZ15: 3.57535133
A16: Airport Solar Project | B16: 2297 | C16: 62560 | D16: APS | F16: PV | G16: SOL | I16: Solar | J16: 47.3 | W16: Operating | X16: Dec | Y16: 2019 | AA16: Lake County airport | AB16: Lake | AC16: OR | AD16: Y | AE16: Klamath | AF16: WECC | AG16: D.E. Shaw Renewable | AH16: Independent | AI16: Portland General Electric | AQ16: 1 | AR16: 1 | BC16: PACW | BU16: 0.1 | BV16: 11.61 | BW16: 11.67 | BX16: 13.309 | BZ16: 42.170176 | CA16: -120.4023 | CB16: 2020-10-23T19:50:50 | CC16: 47.3 | CD16: 47.3 | CE16: 0.254 | CF16: 12.0142 | CH16: Y | CV16: Airport Solar Project | CW16: 0 | CZ16: 0 | DA16: Dec-2019 | DB16: Jan-2051 | DC16: 0 | DZ16: Airport Solar Project | EB16: Airport Solar Project
A17: Albeni Falls 1- 3 | B17: 1003 | C17: 851 | D17: 1,2,3 | E17: FCRPS | F17: Storage | G17: WAT | I17: Hydro | J17: 42.6 | K17: 42 | M17: 21.8 | N17: 42.6 | O17: 42.6 | P17: 42 | Q17: 42 | T17: 31 | V17: 30 | W17: Operating | X17: May | Y17: 1955 | AA17: Pend Oreille R. | AB17: Bonner | AC17: ID | AD17: Y | AE17: Columbia | AF17: WECC | AG17: USCE | AH17: Federal | AI17: BPA | AQ17: 1 | AR17: 1 | BC17: BPA | BD17: 22.6 | BE17: 24 | BF17: 29.8 | BG17: 13.2890411 | BH17: 14.42808219 | BI17: 24.8 | BJ17: 11.62 | BK17: 23.55 | BL17: 23.3 | BM17: 20.06 | BN17: 22 | BO17: 26.31 | BP17: 18.33 | BQ17: 20.64 | BR17: 23 | BS17: 17.6 | BT17: 19.1 | BU17: 20.9 | BV17: 19.11 | BW17: 22.05 | BX17: 17.659 | BY17: Critical energy from PNUCC 2005 NRF | BZ17: 48.18 | CA17: -116.997 | CB17: 2020-03-29T21:24:44 | CC17: 42.6 | CD17: 42.6 | CE17: 0.7276995305 | CF17: 31 | CG17: Regulated | CH17: N | CI17: Reg hydro
A18: Alden Bailey (Wauna Peaking/Loki) | B18: 1004 | C18: 56223 | D18: LOKI | F18: GT | G18: NG | I18: Natural Gas | J18: 10.9 | K18: 10.9 | L18: 11 | N18: 8.9 | O18: 11 | P18: 9.8 | Q18: 11 | R18: 0 | S18: 0.8 | W18: Idle | X18: Dec | Y18: 2001 | Z18: 2017 | AA18: Wauna | AB18: Clatskanie | AC18: OR | AD18: Y | AE18: Columbia | AF18: WECC | AG18: Clatskanie PUD | AH18: PUD | AI18: Clatskanie | AQ18: 0 | AR18: 0 | AU18: Williams Northwest | BC18: BPA | BJ18: 0 | BK18: 0.1 | BL18: 0.1 | BM18: 0.06 | BN18: 0 | BO18: 0 | BP18: 0.02 | BQ18: 0.04 | BR18: 0 | BS18: 0 | BT18: 0 | BU18: 0 | BV18: 0 | BY18: (1) GE10 GT unit. | BZ18: 46.155595 | CA18: -123.407887 | CB18: 2020-07-15T14:33:10 | CC18: 11 | CD18: 8.9 | CE18: 0.91 | CF18: 9.0545 | CH18: Y | CK18: PNW West | CL18: NGGT_PNWW | CM18: 12600 | CN18: 1 | CP18: 1 | CR18: 1 | CV18: Alden Bailey (Wauna Peaking/Loki) | CW18: PNW West | CX18: Thr | CY18: GT | CZ18: 11 | DA18: Dec-2001 | DB18: Jan-2051 | DC18: 12600 | DD18: PNW W. gas | DE18: 0.051 | DF18: 88 | DG18: FALSE | DH18: MR 14d Winter Pk_Hydro | DI18: SCCT - PNW W. | DJ18: Default | DK18: Default | DL18: 30 | DM18: CMS GT PNWW | DN18: 0 | DO18: 0 | DP18: FALSE | DQ18: TRUE | DR18: FALSE | DS18: FALSE | DT18: 0 | DU18: 0 | DV18: 0 | DZ18: Alden Bailey (Wauna Peaking/Loki) | EB18: Alden Bailey (Wauna Peaking/Loki) | EC18: 10.35242671 | ED18: 10.60703563 | EE18: 10.84452518 | EF18: 10.98678753 | EG18: 11 | EH18: 10.90166758 | EI18: 9.729550185 | EJ18: 8.568933504 | EK18: 8.424503822 | EL18: 8.298402781 | EM18: 10.21836379 | EN18: 10.20121397 | EO18: 9.824452944 | EP18: 10.06607681 | EQ18: 10.29145439 | ER18: 10.42646137 | ES18: 10.439 | ET18: 10.34568253 | EU18: 9.233343126 | EV18: 8.131917895 | EW18: 7.994854127 | EX18: 7.875184239 | EY18: 9.697227238 | EZ18: 9.680952055
A19: Alder 1 & 2 | B19: 1005 | C19: 3913 | D19: 11,12 | E19: 1862B | F19: Storage w/Div | G19: WAT | I19: Hydro | J19: 50 | K19: 50 | M19: 39.1 | N19: 50 | O19: 42 | P19: 50.4 | Q19: 42 | T19: 27 | V19: 21 | W19: Operating | X19: Dec | Y19: 1945 | AA19: Nisqually R. | AB19: Pierce | AC19: WA | AD19: Y | AE19: Puget Sound & Coastal | AF19: WECC | AG19: City of Tacoma | AH19: Municipal | AI19: City of Tacoma | AQ19: 1 | AR19: 1 | BC19: Tacoma | BD19: 24.3 | BE19: 19.8 | BF19: 9.5 | BG19: 10.5510274 | BH19: 26.00239726 | BI19: 23 | BJ19: 9.38 | BK19: 2.86 | BL19: 25.9 | BM19: 29.45 | BN19: 31.3 | BO19: 25.35 | BP19: 28.26 | BQ19: 21.83 | BR19: 28.7 | BS19: 26.5 | BT19: 23.6 | BU19: 16.3 | BV19: 24.17 | BW19: 23.77 | BX19: 25.973 | BY19: License granted March 1997; expires February 2037. 01/016 Critical energy from PNUCC 2005 NRF. Certified Low-impact. | BZ19: 46.801 | CA19: -122.308 | CB19: 2020-03-25T10:45:30 | CC19: 50 | CD19: 50 | CE19: 0.54 | CF19: 27 | CG19: Regulated | CH19: N | CI19: Reg hydro
A20: Alkali Solar | B20: 2338 | C20: 63795 | D20: 2 | F20: PV | G20: SOL | I20: Solar | J20: 10 | K20: 10 | P20: 10 | Q20: 10 | W20: Operating | X20: Jun | Y20: 2020 | AA20: Lake Cty | AB20: Lake | AC20: OR | AD20: Y | AE20: Columbia | AF20: WECC | AG20: Evans Dixon/US Solar Fund | AH20: Independent | AI20: PURPA QF w/ PGE | AW20: SPP | BV20: 1.78 | BW20: 2.9 | BX20: 2.849 | BZ20: 43.31942 | CA20: -121.0035 | CB20: 2020-10-26 | CC20: 10 | CD20: 10 | CE20: 0.254 | CF20: 2.54 | CZ20: 0 | DA20: Jun-2020 | DB20: Jan-2051 | DC20: 0 | EC20: =IF($CH20="N","",IF(OR($I20<>"Wind",$I20<>"Solar",$I20<>"Hydro"),($CN20*$CP20*IF(ISBLANK($L20),IF(ISBLANK($O20),$J20,$O20),$L20))*VLOOKUP($DH20,ASeasDist,EC$9,FALSE)*VLOOKUP($DM20,ASeasDist,EC$9),$J20*$CN20*$CP20)) ->  | EO20: =IF($CH20="N","",IF(OR($I20<>"Wind",$I20<>"Solar",$I20<>"Hydro"),$CR20*IF(ISBLANK($L20),IF(ISBLANK($O20),$J20,$O20),$L20),$J20)*(1-$DE20)*VLOOKUP($DH20,ASeasDist,EO$9,FALSE)*VLOOKUP($DM20,ASeasDist,EO$9)) -> 
A21: Amalgamated Sugar (TASCO) (Nampa) 1 - 3 | B21: 1006 | C21: 54690 | D21: 2250,500,6500 | F21: STCG | G21: NG | H21: COL | I21: Natural Gas | J21: 8.2 | K21: 8.23 | L21: 0.2 | N21: 0 | O21: 0 | P21: 8.2 | Q21: 8.2 | R21: 4 | S21: 0.9 | W21: Operating | X21: Oct | Y21: 1948 | AA21: Nampa | AB21: Canyon | AC21: ID | AD21: Y | AE21: Columbia | AF21: WECC | AG21: The Amalgamated Sugar Co. | AH21: Independent | AI21: Self gen; surplus power to Idaho Power Co. (QF) | AM21: 13.74 | AN21: 9.42 | AQ21: 1 | AR21: 0.5 | AS21: The Amalgamated Sugar Company | AT21: Food processing | BC21: IPC | BJ21: 5.14 | BK21: 4.83 | BL21: 4.7 | BM21: 4.33 | BN21: 4.7 | BO21: 5.93 | BP21: 4.56 | BQ21: 5.675 | BR21: 6.1 | BS21: 5.7 | BT21: 3.6 | BU21: 4.2 | BV21: 5.97 | BW21: 5.58 | BX21: 4.775 | BY21: (3) STG @ 2.3, 0.5 & 6.5 MW. Proposed NG-fired repowering under study (Nov 2009). | BZ21: 43.605063 | CA21: -116.573758 | CB21: 2020-07-15T14:39:28 | CC21: 0.2 | CD21: 0 | CE21: 0.8 | CF21: 0.08 | CH21: Y | CK21: PNW East | CL21: NGSTCG_SID | CM21: 6000 | CN21: 1 | CP21: 1 | CR21: 1 | CT21: Y | CV21: Amalgamated Sugar (TASCO) (Nampa) 1 - 3 | CW21: PNW East | CX21: Thr | CY21: STCG | CZ21: 0.2 | DA21: Oct-1948 | DB21: Jan-2051 | DC21: 6000 | DD21: ID gas | DE21: 0.07 | DF21: 56 | DG21: FALSE | DH21: MR 28d Flat | DI21: Cogen1 | DJ21: Default | DK21: Default | DL21: 30 | DM21: Flat | DN21: 0 | DO21: 1 | DP21: FALSE | DQ21: TRUE | DR21: FALSE | DS21: FALSE | DT21: 0 | DU21: 0 | DV21: 0 | DZ21: Amalgamated Sugar (TASCO) (Nampa) 1 - 3 | EB21: Amalgamated Sugar (TASCO) (Nampa) 1 - 3 | EC21: 0.1808219178 | ED21: 0.1808219178 | EE21: 0.1808219178 | EF21: 0.1808219178 | EG21: 0.1808219178 | EH21: 0.1808219178 | EI21: 0.1808219178 | EJ21: 0.1808219178 | EK21: 0.1808219178 | EL21: 0.1808219178 | EM21: 0.1808219178 | EN21: 0.1808219178 | EO21: 0.1681643836 | EP21: 0.1681643836 | EQ21: 0.1681643836 | ER21: 0.1681643836 | ES21: 0.1681643836 | ET21: 0.1681643836 | EU21: 0.1681643836 | EV21: 0.1681643836 | EW21: 0.1681643836 | EX21: 0.1681643836 | EY21: 0.1681643836 | EZ21: 0.1681643836
A22: Amalgamated Sugar (TASCO) (Nyassa) 1 - 3 | B22: 1007 | C22: 54612 | D22: 1,2,3 | F22: STCG | G22: COL | I22: Coal | J22: 14 | P22: 9.8 | Q22: 9.8 | W22: Retired | X22: Sep | Y22: 1942 | Z22: 2005 | AA22: Nyassa | AB22: Malheur | AC22: OR | AD22: Y | AE22: Columbia | AF22: WECC | AG22: The Amalgamated Sugar Co. | AH22: Independent | AI22: Retired | AQ22: 0 | AR22: 0 | AS22: The Amalgamated Sugar Company | AT22: Food processing | BY22: Units 1, 2 and 3 are 12, 1.5 MW and 5.5 MW respectively. | CB22: 2008-10-06 | CC22: 9.8 | CD22: 9.8 | CE22: 0.8 | CF22: 7.84 | CH22: N | CI22: Retired | CK22: PNW East | CL22: NGSTCG_SID
A23: Amalgamated Sugar (TASCO) (Paul) | B23: 1008 | F23: STCG | G23: NG | H23: COL | I23: Natural Gas | J23: 5.06 | W23: Operating | Y23: 1952 | AA23: Paul | AB23: Minidoka | AC23: ID | AD23: Y | AE23: Columbia | AF23: WECC | AG23: The Amalgamated Sugar Co. | AH23: Independent | AI23: Self gen; surplus power to Idaho Power Co. (QF) | AQ23: 1 | AR23: 0.5 | AS23: The Amalgamated Sugar Company | AT23: Food processing | BH23: 0 | CB23: 2020-03-26T09:53:06 | CC23: 5.06 | CD23: 5.06 | CE23: 0.8 | CF23: 4.048 | CH23: N | CI23: Idle | CK23: PNW East
A24: Amalgamated Sugar (TASCO) (Twin Falls) 1-3 | B24: 1009 | C24: 10504 | D24: 1500,2500,4000 | F24: STCG | G24: COL | H24: NG | I24: Coal | J24: 10.2 | K24: 10.2 | L24: 0.1 | N24: 0 | O24: 0 | P24: 8.5 | Q24: 8.5 | R24: 0.8 | S24: 0.8 | W24: Operating | X24: Dec | Y24: 1948 | AA24: Twin Falls | AB24: Twin Falls | AC24: ID | AD24: Y | AE24: Columbia | AF24: WECC | AG24: The Amalgamated Sugar Co. | AH24: Independent | AI24: Self gen; surplus power to Idaho Power Co. (QF) | AM24: 13.74 | AN24: 9.42 | AQ24: 1 | AR24: 0.5 | AS24: The Amalgamated Sugar Company | AT24: Food processing | AW24: cogen | BC24: IPC | BJ24: 5.35 | BK24: 4.81 | BL24: 5.7 | BM24: 5.55 | BN24: 5.8 | BO24: 5.62 | BP24: 5.25 | BQ24: 5.25 | BR24: 5.9 | BS24: 6.2 | BT24: 5.4 | BU24: 6 | BV24: 5.14 | BW24: 4.31 | BX24: 3.796 | BY24: (3) STG @ 1.5, 2.5 & 4 MW. 4 MW unit reported to operate. | BZ24: 42.53061 | CA24: -114.429584 | CB24: 2020-07-15T16:14:33 | CC24: 0.1 | CD24: 0 | CE24: 0.8 | CF24: 0.04 | CH24: Y | CK24: PNW East | CL24: CLSTCG_SID | CM24: 6000 | CN24: 1 | CP24: 1 | CR24: 1 | CT24: Y | CV24: Amalgamated Sugar (TASCO) (Twin Falls) 1-3 | CW24: PNW East | CX24: Thr | CY24: Coal | CZ24: 0.1 | DA24: Dec-1948 | DB24: Jan-2051 | DC24: 6000 | DD24: ID coal | DE24: 0.07 | DF24: 56 | DG24: TRUE | DH24: MR 28d Flat | DI24: Col1 | DJ24: Default | DK24: Default | DL24: 30 | DM24: Flat | DN24: 0 | DO24: 1 | DP24: FALSE | DQ24: TRUE | DR24: FALSE | DS24: FALSE | DT24: 0 | DU24: 0 | DV24: 0 | DZ24: Amalgamated Sugar (TASCO) (Twin Falls) 1-3 | EB24: Amalgamated Sugar (TASCO) (Twin Falls) 1-3 | EC24: 0.0904109589 | ED24: 0.0904109589 | EE24: 0.0904109589 | EF24: 0.0904109589 | EG24: 0.0904109589 | EH24: 0.0904109589 | EI24: 0.0904109589 | EJ24: 0.0904109589 | EK24: 0.0904109589 | EL24: 0.0904109589 | EM24: 0.0904109589 | EN24: 0.0904109589 | EO24: 0.08408219178 | EP24: 0.08408219178 | EQ24: 0.08408219178 | ER24: 0.08408219178 | ES24: 0.08408219178 | ET24: 0.08408219178 | EU24: 0.08408219178 | EV24: 0.08408219178 | EW24: 0.08408219178 | EX24: 0.08408219178 | EY24: 0.08408219178 | EZ24: 0.08408219178
A25: American Falls 1 - 3 | B25: 1010 | C25: 809 | D25: 1,2,3 | E25: 2736 | F25: Storage w/Div | G25: WAT | I25: Hydro | J25: 92.3 | K25: 92.4 | M25: 36.3 | N25: 82 | O25: 0 | P25: 110.4 | Q25: 60.9 | W25: Operating | X25: Mar | Y25: 1978 | AA25: Snake R. | AB25: Power | AC25: ID | AD25: Y | AE25: Columbia | AF25: WECC | AG25: Idaho Power Co. | AH25: IOU | AI25: Idaho Power Co. | AQ25: 1 | AR25: 1 | BC25: IPC | BD25: 24 | BE25: 23.6 | BF25: 22.8 | BG25: 25.77283105 | BH25: 39.97442922 | BI25: 30 | BJ25: 30.23 | BK25: 43.93 | BL25: 36.4 | BM25: 66.9 | BN25: 40.2 | BO25: 27.83 | BP25: 30.16 | BQ25: 33.59 | BR25: 27.8 | BS25: 55.1 | BT25: 55.9 | BU25: 43.7 | BV25: 44.66 | BW25: 28.71 | BX25: 23.826 | BY25: License granted March 1975; expires February 2025. | BZ25: 42.779 | CA25: -112.875 | CB25: 2020-04-13T10:13:03 | CC25: 92.3 | CD25: 82 | CE25: 0.427 | CF25: 37.21305 | CG25: Independent | CH25: N | CI25: Accounted for in HydInd file
A26: American Falls Solar | B26: 2101 | C26: 60011 | D26: IPAF | F26: PV | G26: SOL | I26: Solar | J26: 20 | K26: 20 | P26: 20 | Q26: 20 | T26: 5.08 | W26: Operating | X26: Jan | Y26: 2017 | AA26: American Falls | AB26: Power | AC26: ID | AD26: Y | AE26: Columbia | AF26: WECC | AG26: First Wind | AH26: Independent | AI26: Idaho Power Co. (20 yr ESA) | AP26: 2036 | AQ26: 1 | AR26: 1 | AW26: SPP | BB26: Single-axis | BC26: IPC | BS26: 3.9 | BT26: 4.9 | BU26: 5 | BV26: 5.22 | BW26: 5.18 | BX26: 4.657 | BY26: Crystalline silicone. 26MWdc. Azimuth 180, tilt angle 60. Project expected to use (10) 2.0 MW ac SMA inverters and (85,880) JA 305w DC panels and utilize a single axis tracking system (from ESA IPUC filing). RECs to be split 50/50 between IPC and developer. Expected CF 25.4% AC. | BZ26: 42.826959 | CA26: -112.743943 | CB26: 2017-11-07T10:56:02 | CC26: 20 | CD26: 20 | CE26: 0.254 | CF26: 5.08 | CH26: Y | CJ26: 100% PNW PPA | CK26: PNW East | CL26: PV | CN26: 1 | CP26: 0.75 | CR26: 1 | CT26: Y | CV26: American Falls Solar | CW26: PNW East | CX26: Thr | CY26: PV | CZ26: 15 | DA26: Jan-2017 | DB26: Jan-2051 | DC26: 0 | DD26: Solar | DE26: 0 | DF26: 0 | DG26: FALSE | DH26: Cf PV | DI26: SolarPV | DJ26: Default | DK26: Default | DL26: 30 | DM26: Flat | DN26: 0 | DO26: 1 | DP26: FALSE | DQ26: TRUE | DR26: FALSE | DS26: FALSE | DT26: 0 | DU26: 0 | DV26: 0 | DW26: 100% PNW PPA | DZ26: American Falls Solar | EB26: American Falls Solar | EC26: 4.435428333 | ED26: 2.880879218 | EE26: 1.332288136 | EF26: 1.101358255 | EG26: 1.265040881 | EH26: 2.137384135 | EI26: 3.418489374 | EJ26: 4.052965544 | EK26: 5.287725091 | EL26: 5.804276925 | EM26: 5.989196088 | EN26: 5.363026994 | EO26: 5.913904444 | EP26: 3.84117229 | EQ26: 1.776384182 | ER26: 1.468477673 | ES26: 1.686721174 | ET26: 2.849845514 | EU26: 4.557985833 | EV26: 5.403954059 | EW26: 7.050300122 | EX26: 7.7390359 | EY26: 7.985594784 | EZ26: 7.150702659
A27: American Falls Solar II | B27: 2102 | C27: 60012 | D27: IPAF2 | F27: PV | G27: SOL | I27: Solar | J27: 20 | K27: 20 | P27: 20 | Q27: 20 | T27: 5.08 | W27: Operating | X27: Jan | Y27: 2017 | AA27: American Falls | AB27: Power | AC27: ID | AD27: Y | AE27: Columbia | AF27: WECC | AG27: First Wind | AH27: Independent | AI27: Idaho Power Co. (20 yr ESA) | AP27: 2036 | AQ27: 1 | AR27: 1 | AW27: SPP | BB27: Single-axis | BC27: IPC | BS27: 4 | BT27: 5 | BU27: 5 | BV27: 5.31 | BW27: 5.34 | BX27: 4.917 | BY27: Crystalline silicone. 26MWdc. Azimuth 180, tilt angle 60. Project expected to use (10) 2.0 MW ac SMA inverters and (85,880) JA 305w DC panels and utilize a single axis tracking system (from ESA IPUC filing). RECs to be split 50/50 between IPC and developer. Expected CF 25.4% AC. | BZ27: 42.826959 | CA27: -112.743943 | CB27: 2017-11-07T10:56:07 | CC27: 20 | CD27: 20 | CE27: 0.254 | CF27: 5.08 | CH27: Y | CJ27: 100% PNW PPA | CK27: PNW East | CL27: PV | CN27: 1 | CP27: 0.75 | CR27: 1 | CT27: Y | CV27: American Falls Solar II | CW27: PNW East | CX27: Thr | CY27: PV | CZ27: 15 | DA27: Jan-2017 | DB27: Jan-2051 | DC27: 0 | DD27: Solar | DE27: 0 | DF27: 0 | DG27: FALSE | DH27: Cf PV | DI27: SolarPV | DJ27: Default | DK27: Default | DL27: 30 | DM27: Flat | DN27: 0 | DO27: 1 | DP27: FALSE | DQ27: TRUE | DR27: FALSE | DS27: FALSE | DT27: 0 | DU27: 0 | DV27: 0 | DW27: 100% PNW PPA | DZ27: American Falls Solar II | EB27: American Falls Solar II | EC27: 4.435428333 | ED27: 2.880879218 | EE27: 1.332288136 | EF27: 1.101358255 | EG27: 1.265040881 | EH27: 2.137384135 | EI27: 3.418489374 | EJ27: 4.052965544 | EK27: 5.287725091 | EL27: 5.804276925 | EM27: 5.989196088 | EN27: 5.363026994 | EO27: 5.913904444 | EP27: 3.84117229 | EQ27: 1.776384182 | ER27: 1.468477673 | ES27: 1.686721174 | ET27: 2.849845514 | EU27: 4.557985833 | EV27: 5.403954059 | EW27: 7.050300122 | EX27: 7.7390359 | EY27: 7.985594784 | EZ27: 7.150702659
A28: Amy Ranch | B28: 1011 | E28: 8700 | F28: Conduit | G28: WAT | I28: Hydro | J28: 0.65 | M28: 0.65 | N28: 0.7 | O28: 0.7 | T28: 0.42 | W28: Operating | Y28: 1986 | AA28: Deep Cr. | AB28: Butte | AC28: ID | AD28: Y | AE28: Columbia | AF28: WECC | AG28: A.J. Amy | AH28: Independent | AI28: PacifiCorp (QF) | AQ28: 1 | AR28: 1 | BY28: Exemption granted October 1985. | CB28: 2020-03-22T20:35:18 | CC28: 0.65 | CD28: 0.7 | CE28: 0.6461538462 | CF28: 0.42 | CH28: Y | CI28: Not accounted for in HydInd file | CK28: PNW East | CL28: HY_Irr | CM28: n/a | CN28: 1 | CP28: 1 | CR28: 1 | CT28: Y | CV28: Amy Ranch | CW28: PNW East | CX28: Thr | CY28: Hyd | CZ28: 0.7 | DA28: Dec-1986 | DB28: Jan-2051 | DC28: n/a | DD28: Water | DE28: 0 | DF28: 24 | DG28: FALSE | DH28: Cf HY Irr | DI28: Zero | DJ28: Expense | DK28: Default | DL28: 50 | DM28: Flat | DN28: 0 | DO28: 0 | DP28: FALSE | DQ28: TRUE | DR28: FALSE | DS28: FALSE | DT28: 0 | DU28: 0 | DV28: 0 | DZ28: Amy Ranch | EB28: Amy Ranch | EC28: 0.7 | ED28: 0 | EE28: 0 | EF28: 0 | EG28: 0 | EH28: 0 | EI28: 0 | EJ28: 0.7 | EK28: 0.7 | EL28: 0.7 | EM28: 0.7 | EN28: 0.7 | EO28: 0.7 | EP28: 0 | EQ28: 0 | ER28: 0 | ES28: 0 | ET28: 0 | EU28: 0 | EV28: 0.7 | EW28: 0.7 | EX28: 0.7 | EY28: 0.7 | EZ28: 0.7
A29: Anderson Ranch 1 - 2 | B29: 1012 | C29: 6395 | D29: 1,2 | E29: FCRPS | F29: Storage | G29: WAT | I29: Hydro | J29: 40 | K29: 40 | M29: 4.31 | N29: 34 | O29: 6.4 | P29: 40 | Q29: 40 | T29: 16 | V29: 16 | W29: Operating | X29: Dec | Y29: 1950 | AA29: Boise R. | AB29: Elmore | AC29: ID | AD29: Y | AE29: Columbia | AF29: WECC | AG29: USBR | AH29: Federal | AI29: BPA | AL29: Units rewound. | AQ29: 1 | AR29: 1 | BC29: IPC | BD29: 10.4 | BE29: 9.5 | BF29: 12.2 | BG29: 3.95 | BH29: 8.436073059 | BI29: 13.9 | BJ29: 3.99 | BK29: 14.05 | BL29: 13.9 | BM29: 15.97 | BN29: 21.1 | BO29: 12.89 | BP29: 9.85 | BQ29: 13.96 | BR29: 16.6 | BS29: 18.6 | BT29: 16.7 | BU29: 14.4 | BV29: 10.86 | BW29: 11.36 | BX29: 6.876 | BY29: Critical energy from PNUCC 2005 NRF | BZ29: 43.357 | CA29: -115.451 | CB29: 2020-03-29T21:57:30 | CC29: 40 | CD29: 34 | CE29: 0.4 | CF29: 16 | CG29: Independent | CH29: N | CI29: Accounted for in HydInd file
A30: Apex Solar | B30: 2411 | C30: 64189 | F30: PV | G30: SOL | I30: Solar | J30: 80 | W30: Operating | X30: Aug | Y30: 2023 | AB30: Beaverhead | AC30: MT | AF30: WECC
A31: Arlington Microgrid and Clean Energy Center | B31: 2391 | C31: 64446 | D31: AMGB | F31: PV | G31: SOL | I31: Solar + Storage | J31: 0.5 | P31: 1 | W31: Operating | X31: Oct | Y31: 2021 | AA31: Arlington, WA | AB31: Snohomish | AC31: WA | AD31: Y | AE31: Columbia | AF31: WECC | AG31: Snohomish Cty PUD | AH31: PUD | BC31: BPA | BW31: 0.06 | BX31: 0.059 | BY31: 1 MW/1.4 MWh Li-Ion Battery Energy Storage System (with MESA* compliant battery, management system) and 500 kW AC solar array with Smart Inverters | CB31: 2022-02-17T15:29:09 | CC31: 0.5 | CD31: 1 | CE31: 0.254 | CF31: 0.1905 | CZ31: 0 | DA31: Oct-2021 | DB31: Jan-2051 | DC31: 0 | EC31: =IF($CH31="N","",IF(OR($I31<>"Wind",$I31<>"Solar",$I31<>"Hydro"),($CN31*$CP31*IF(ISBLANK($L31),IF(ISBLANK($O31),$J31,$O31),$L31))*VLOOKUP($DH31,ASeasDist,EC$9,FALSE)*VLOOKUP($DM31,ASeasDist,EC$9),$J31*$CN31*$CP31)) ->  | EO31: =IF($CH31="N","",IF(OR($I31<>"Wind",$I31<>"Solar",$I31<>"Hydro"),$CR31*IF(ISBLANK($L31),IF(ISBLANK($O31),$J31,$O31),$L31),$J31)*(1-$DE31)*VLOOKUP($DH31,ASeasDist,EO$9,FALSE)*VLOOKUP($DM31,ASeasDist,EO$9)) -> 
A32: Arrowrock 1 - 2 | B32: 1688 | C32: 56997 | D32: 1,2 | E32: 4656 | F32: Storage | G32: WAT | I32: Hydro | J32: 18 | K32: 15 | M32: 2.3 | N32: 16 | O32: 16 | P32: 16 | Q32: 16 | T32: 9.2 | W32: Operating | X32: April | Y32: 2010 | AA32: Boise R. | AB32: Ada | AC32: ID | AD32: Y | AE32: Columbia | AF32: WECC | AG32: Boise-Kuna Irrigation District | AH32: Independent | AI32: Clatskanie PUD (Apr 2010 - Dec 2015) | AP32: 2015 | AQ32: 1 | AR32: 1 | BC32: IPC | BL32: 8.9 | BM32: 9.69 | BN32: 8.7 | BO32: 5.59 | BP32: 8.29 | BQ32: 7.46 | BR32: 7.6 | BS32: 9.2 | BT32: 8.8 | BU32: 6.8 | BV32: 7.69 | BW32: 4.36 | BX32: 6.092 | BY32: Powerhouse w/(2) 9 MW units at existing dam. | BZ32: 43.595556 | CA32: -115.922222 | CB32: 2020-03-21T21:10:58 | CC32: 18 | CD32: 16 | CE32: 0.5111111111 | CF32: 9.2 | CH32: Y | CI32: Not accounted for in HydInd file | CK32: PNW East | CL32: HY_East | CM32: n/a | CN32: 1 | CP32: 1 | CR32: 1 | CV32: Arrowrock 1 - 2 | CW32: PNW East | CX32: Thr | CY32: Hyd | CZ32: 16 | DA32: April-2010 | DB32: Jan-2051 | DC32: n/a | DD32: Water | DE32: 0 | DF32: 24 | DG32: FALSE | DH32: Cf HY East | DI32: Zero | DJ32: Expense | DK32: Default | DL32: 50 | DM32: Flat | DN32: 0 | DO32: 0 | DP32: FALSE | DQ32: TRUE | DR32: FALSE | DS32: FALSE | DT32: 0 | DU32: 0 | DV32: 0 | DZ32: Arrowrock 1 - 2 | EB32: Arrowrock 1 - 2 | EC32: 5.228324383 | ED32: 6.86444313 | EE32: 6.104150624 | EF32: 7.754274479 | EG32: 8.92176468 | EH32: 6.885743751 | EI32: 8.013510103 | EJ32: 8.657226538 | EK32: 11.37023252 | EL32: 10.56781162 | EM32: 10.5863507 | EN32: 9.564888309 | EO32: 5.228324383 | EP32: 6.86444313 | EQ32: 6.104150624 | ER32: 7.754274479 | ES32: 8.92176468 | ET32: 6.885743751 | EU32: 8.013510103 | EV32: 8.657226538 | EW32: 11.37023252 | EX32: 10.56781162 | EY32: 10.5863507 | EZ32: 9.564888309
A33: Ashton 1 - 3 | B33: 1013 | C33: 825 | D33: 1,2,3 | E33: 2381B | F33: ROR | G33: WAT | I33: Hydro | J33: 6.7 | K33: 6.7 | M33: 7.5 | N33: 7.2 | O33: 7.2 | P33: 7.1 | Q33: 7.1 | T33: 4.75 | W33: Operating | X33: Aug | Y33: 1917 | AA33: Henrys Fk. | AB33: Fremont | AC33: ID | AD33: Y | AE33: Columbia | AF33: WECC | AG33: PacifiCorp | AH33: IOU | AI33: PacifiCorp | AQ33: 1 | AR33: 1 | BC33: PACE | BD33: 3.5 | BE33: 3.3 | BF33: 1.2 | BG33: 1.263584475 | BH33: 1.430593607 | BI33: 1.1 | BJ33: 1.08 | BK33: 3.85 | BL33: 2.6 | BM33: 2.06 | BN33: 0.2 | BO33: 3.94 | BP33: 3.75 | BQ33: 3.42 | BR33: 3.3 | BS33: 4.2 | BT33: 4.3 | BU33: 4.5 | BV33: 4.06 | BW33: 3.41 | BX33: 3.191 | BY33: Original License granted January 1938; expired December 1987. New license gtd. 08/01/87 Exp. 12/31/27. Unit 1 rated 2.85MW, Unit 2 and 3 are both rated 2.5 MW. Reconstruction to repair and improve completed in 2012. | BZ33: 44.2234 | CA33: -111.4755 | CB33: 2020-04-09T22:15:08 | CC33: 6.7 | CD33: 7.2 | CE33: 0.7089552239 | CF33: 4.75 | CH33: Y | CI33: Not accounted for in HydInd file | CK33: PNW East | CL33: HY_East | CM33: n/a | CN33: 1 | CP33: 1 | CR33: 1 | CV33: Ashton 1 - 3 | CW33: PNW East | CX33: Thr | CY33: Hyd | CZ33: 7.2 | DA33: Aug-1917 | DB33: Jan-2051 | DC33: n/a | DD33: Water | DE33: 0 | DF33: 24 | DG33: FALSE | DH33: Cf HY East | DI33: Zero | DJ33: Expense | DK33: Default | DL33: 50 | DM33: Flat | DN33: 0 | DO33: 0 | DP33: FALSE | DQ33: TRUE | DR33: FALSE | DS33: FALSE | DT33: 0 | DU33: 0 | DV33: 0 | DZ33: Ashton 1 - 3 | EB33: Ashton 1 - 3 | EC33: 2.352745972 | ED33: 3.088999408 | EE33: 2.746867781 | EF33: 3.489423516 | EG33: 4.014794106 | EH33: 3.098584688 | EI33: 3.606079547 | EJ33: 3.895751942 | EK33: 5.116604635 | EL33: 4.755515231 | EM33: 4.763857815 | EN33: 4.304199739 | EO33: 2.352745972 | EP33: 3.088999408 | EQ33: 2.746867781 | ER33: 3.489423516 | ES33: 4.014794106 | ET33: 3.098584688 | EU33: 3.606079547 | EV33: 3.895751942 | EW33: 5.116604635 | EX33: 4.755515231 | EY33: 4.763857815 | EZ33: 4.304199739
A34: Atlanta Power Station (Kirby) | B34: 1014 | C34: 6700 | E34: 11541 | F34: ROR R w/Div | G34: WAT | I34: Hydro | J34: 0.15 | N34: 0.2 | O34: 0.2 | T34: 0.15 | W34: Operating | Y34: 1910 | AA34: Boise R, M Fk | AB34: Elmore | AC34: ID | AD34: Y | AE34: Columbia | AF34: WECC | AG34: Atlanta Power Co. Inc. | AH34: Independent | AI34: Atlanta Power Co. | AQ34: 1 | AR34: 1 | BY34: License granted May 2002; expires April 2032. | CB34: 2015-03-27T16:07:45 | CC34: 0.15 | CD34: 0.2 | CE34: 1 | CF34: 0.15 | CH34: N | CI34: <0.5 MW
A35: Baker City Solar Center | B35: 2265 | C35: 61854 | D35: BAKER | F35: PV | G35: SOL | I35: Solar | J35: 15 | W35: Operating | X35: Dec | Y35: 2019 | AA35: Baker City, OR | AB35: Baker | AC35: OR | AD35: Y | AE35: Columbia | AF35: WECC | AG35: Enerparc Solar Development | AH35: Independent | AI35: Idaho Power (20 year PPA) | AP35: 2039 | AQ35: 1 | AR35: 1 | AW35: SPP | BC35: IPC | BV35: 3.52 | BW35: 3.7 | BX35: 3.722 | BZ35: 44.70242 | CA35: -117.76348 | CB35: 2020-01-13T15:13:34 | CC35: 15 | CD35: 15 | CE35: 0.254 | CF35: 3.81 | CH35: Y | CK35: PNW East | CL35: PV | CN35: 1 | CP35: 0.75 | CR35: 1 | CT35: Y | CV35: Baker City Solar Center | CW35: PNW East | CX35: Thr | CY35: PV | CZ35: 11.25 | DA35: Dec-2019 | DB35: Jan-2051 | DC35: 0 | DD35: Solar | DE35: 0 | DF35: 0 | DG35: FALSE | DH35: Cf PV | DI35: SolarPV | DJ35: Default | DK35: Default | DL35: 30 | DM35: Flat | DN35: 0 | DO35: 1 | DP35: FALSE | DQ35: TRUE | DR35: FALSE | DS35: FALSE | DT35: 0 | DU35: 0 | DV35: 0 | DZ35: Baker City Solar Center | EB35: Baker City Solar Center | EC35: 3.32657125 | ED35: 2.160659413 | EE35: 0.9992161023 | EF35: 0.826018691 | EG35: 0.9487806606 | EH35: 1.603038102 | EI35: 2.563867031 | EJ35: 3.039724158 | EK35: 3.965793818 | EL35: 4.353207694 | EM35: 4.491897066 | EN35: 4.022270246 | EO35: 4.435428333 | EP35: 2.880879218 | EQ35: 1.332288136 | ER35: 1.101358255 | ES35: 1.265040881 | ET35: 2.137384135 | EU35: 3.418489374 | EV35: 4.052965544 | EW35: 5.287725091 | EX35: 5.804276925 | EY35: 5.989196088 | EZ35: 5.363026994
A36: Baker River (Lower) Unit 3 | B36: 1332 | C36: 3855 | D36: 3 | E36: 2150A | F36: Storage w/Div | G36: WAT | I36: Hydro | J36: 80.8 | K36: 80.8 | M36: 63.5 | N36: 86.7 | O36: 86.7 | P36: 80.8 | Q36: 80.8 | T36: 43 | V36: 36 | W36: Operating | Y36: 1925 | AA36: Baker R. | AB36: Skagit | AC36: WA | AD36: Y | AE36: Puget Sound & Coastal | AF36: WECC | AG36: Puget Sound Energy | AH36: IOU | AI36: Puget Sound Energy | AJ36: PSE (bundled RECs) from efficiency upgrades | AQ36: 1 | AR36: 1 | BC36: PSE | BD36: 45.8 | BE36: 44.5 | BF36: 40.5 | BG36: 31.07009132 | BH36: 38.14440639 | BI36: 49.3 | BJ36: 36.19 | BK36: 39.37 | BL36: 41.8 | BM36: 37.99 | BN36: 39.9 | BO36: 40.25 | BP36: 49.04 | BQ36: 35.23 | BR36: 41 | BS36: 35.7 | BT36: 44 | BU36: 30.1 | BV36: 43.8 | BW36: 42.97 | BX36: 36.244 | BY36: Original license granted May 1956. New 50-yr licence granted Oct 2008. Critical energy from PNUCC 2005 NRF | BZ36: 48.544 | CA36: -121.741 | CB36: 2020-03-20T22:33:36 | CC36: 80.8 | CD36: 86.7 | CE36: 0.5321782178 | CF36: 43 | CG36: Regulated | CH36: N | CI36: Reg hydro
A37: Baker River (Lower) Unit 4 | B37: 1989 | C37: 3855 | D37: 4 | F37: Storage w/Div | G37: WAT | I37: Hydro | J37: 30.4 | K37: 30.4 | P37: 30.4 | Q37: 30.4 | W37: Operating | X37: Dec | Y37: 2014 | AA37: Baker R. | AB37: Skagit | AC37: WA | AD37: Y | AE37: Puget Sound & Coastal | AF37: WECC | AG37: Puget Sound Energy | AH37: IOU | AI37: Puget Sound Energy | AJ37: PSE (bundled RECs) from efficiency upgrades | AQ37: 1 | AR37: 1 | BC37: PSE | BY37: Construction of new powerhouse begain December 2010. | BZ37: 48.544 | CA37: -121.741 | CB37: 2020-03-19T12:15:16 | CC37: 30.4 | CD37: 30.4 | CE37: 0.427 | CF37: 12.9808 | CG37: Regulated | CH37: N | CI37: Reg hydro
A38: Baker River (Upper) 1 & 2 | B38: 1599 | C38: 3861 | D38: 1,2 | E38: 2150B | F38: Storage | G38: WAT | I38: Hydro | J38: 104.8 | K38: 104.8 | M38: 83.3 | N38: 111.4 | O38: 111.4 | P38: 105 | Q38: 105 | T38: 42 | V38: 35 | W38: Operating | X38: Jan | Y38: 1959 | AA38: Baker R. | AB38: Whatcom | AC38: WA | AD38: Y | AE38: Puget Sound & Coastal | AF38: WECC | AG38: Puget Sound Energy | AH38: IOU | AI38: Puget Sound Energy | AJ38: PSE (bundled RECs) from efficiency upgrades | AQ38: 1 | AR38: 1 | BC38: PSE | BD38: 40.3 | BE38: 37.9 | BF38: 40.8 | BG38: 33.70136986 | BH38: 38.64760274 | BI38: 45.3 | BJ38: 35.75 | BK38: 38.51 | BL38: 41.2 | BM38: 34.4 | BN38: 39.9 | BO38: 40.7 | BP38: 38.82 | BQ38: 31.82 | BR38: 42.1 | BS38: 40.6 | BT38: 38.1 | BU38: 30 | BV38: 41.33 | BW38: 42.32 | BX38: 30.604 | BY38: Original license granted May 1956. New 50-yr licence granted Oct 2008. Critical energy from PNUCC 2005 NRF | BZ38: 48.65 | CA38: -121.69 | CB38: 2020-03-20T22:44:48 | CC38: 104.8 | CD38: 111.4 | CE38: 0.4007633588 | CF38: 42 | CG38: Regulated | CH38: N | CI38: Reg hydro
A39: Baldock Solar Highway Project | B39: 2087 | C39: 57882 | D39: BSH1 | F39: PV | G39: SOL | I39: Solar | J39: 1.5 | K39: 1.7 | N39: 1.7 | O39: 1.7 | P39: 1.7 | Q39: 1.7 | T39: 0.2 | W39: Operating | X39: Jan | Y39: 2012 | AA39: Wilsonville (NB off I-5) | AB39: Clackamas | AC39: OR | AD39: Y | AE39: Columbia | AF39: WECC | AG39: Bank of America financed and owns project; PGE operates and maintains | AH39: Independent | AI39: Portland General Electric | AP39: n/a | AQ39: 1 | AR39: 1 | BB39: Fixed tilt | BC39: PGE | BN39: 0.2 | BO39: 0.22 | BP39: 0.24 | BQ39: 0.226 | BR39: 0.2 | BS39: 0.2 | BT39: 0.2 | BU39: 0.2 | BV39: 0.21 | BW39: 0.22 | BX39: 0.202 | BY39: Crystalline silicone. 1.7MWdc, Azimuth angle 180, tilt 21. 6,994 panel array on ~7 acres; solar highway project | BZ39: 45.269 | CA39: -122.771 | CB39: 2017-10-16T15:03:47 | CC39: 1.5 | CD39: 1.7 | CE39: 0.1333333333 | CF39: 0.2 | CH39: Y | CK39: PNW West | CL39: PV | CN39: 1 | CP39: 0.75 | CR39: 1 | CT39: Y | CV39: Baldock Solar Highway Project | CW39: PNW West | CX39: Thr | CY39: PV | CZ39: 1.275 | DA39: Jan-2012 | DB39: Jan-2051 | DC39: 0 | DD39: Solar | DE39: 0 | DF39: 0 | DG39: FALSE | DH39: Cf PV | DI39: SolarPV | DJ39: Default | DK39: Default | DL39: 30 | DM39: Flat | DN39: 0 | DO39: 1 | DP39: FALSE | DQ39: TRUE | DR39: FALSE | DS39: FALSE | DT39: 0 | DU39: 0 | DV39: 0 | DZ39: Baldock Solar Highway Project | EB39: Baldock Solar Highway Project | EC39: 0.3770114083 | ED39: 0.2448747335 | EE39: 0.1132444916 | EF39: 0.09361545164 | EG39: 0.1075284749 | EH39: 0.1816776515 | EI39: 0.2905715968 | EJ39: 0.3445020713 | EK39: 0.4494566327 | EL39: 0.4933635387 | EM39: 0.5090816675 | EN39: 0.4558572945 | EO39: 0.5026818778 | EP39: 0.3264996447 | EQ39: 0.1509926555 | ER39: 0.1248206022 | ES39: 0.1433712998 | ET39: 0.2422368687 | EU39: 0.3874287958 | EV39: 0.459336095 | EW39: 0.5992755103 | EX39: 0.6578180515 | EY39: 0.6787755566 | EZ39: 0.607809726
A40: Ballston Solar | B40: 2276 | C40: 62170 | D40: BSPV1 | F40: PV | G40: SOL | I40: Solar | J40: 2.2 | K40: 2.2 | P40: 2.2 | Q40: 2.2 | W40: Operating | X40: Dec | Y40: 2018 | AA40: McMinnville, OR | AB40: Yamhill | AC40: OR | AD40: Y | AE40: Columbia | AF40: WECC | AG40: BNRG Renewables | AH40: Independent | AI40: Portland General Electric (20yr QF) | AP40: 2038 | AQ40: 1 | AR40: 1 | AW40: SPP | BB40: Fixed tilt | BC40: PGE | BT40: 0 | BU40: 0.4 | BV40: 0.42 | BW40: 0.43 | BX40: 0.42 | BY40: Crystalline silicone. 2.9MWdc, azimuth angle 180, tilt 20. | BZ40: 45.07688889 | CA40: -123.3947222 | CB40: 2019-11-22T12:15:40 | CC40: 2.2 | CD40: 2.2 | CE40: 0.254 | CF40: 0.5588 | CH40: Y | CJ40: 100% PNW PPA | CK40: PNW West | CL40: PV | CN40: 1 | CP40: 0.75 | CR40: 1 | CT40: Y | CV40: Ballston Solar | CW40: PNW West | CX40: Thr | CY40: PV | CZ40: 1.65 | DA40: Dec-2018 | DB40: Jan-2051 | DC40: 0 | DD40: Solar | DE40: 0 | DF40: 0 | DG40: FALSE | DH40: Cf PV | DI40: SolarPV | DJ40: Default | DK40: Default | DL40: 30 | DM40: Flat | DN40: 0 | DO40: 1 | DP40: FALSE | DQ40: TRUE | DR40: FALSE | DS40: FALSE | DT40: 0 | DU40: 0 | DV40: 0 | DW40: 100% PNW PPA | DZ40: Ballston Solar | EB40: Ballston Solar | EC40: 0.4878971167 | ED40: 0.316896714 | EE40: 0.146551695 | EF40: 0.121149408 | EG40: 0.1391544969 | EH40: 0.2351122549 | EI40: 0.3760338312 | EJ40: 0.4458262099 | EK40: 0.58164976 | EL40: 0.6384704618 | EM40: 0.6588115697 | EN40: 0.5899329694 | EO40: 0.6505294889 | EP40: 0.4225289519 | EQ40: 0.19540226 | ER40: 0.161532544 | ES40: 0.1855393292 | ET40: 0.3134830065 | EU40: 0.5013784416 | EV40: 0.5944349465 | EW40: 0.7755330134 | EX40: 0.8512939491 | EY40: 0.8784154262 | EZ40: 0.7865772925
A41: Bannock County LFG to Energy 1 | B41: 2092 | C41: 59529 | D41: GEN1 | F41: IC | G41: LFG | I41: Biomass | J41: 1.6 | K41: 1.6 | M41: 3.2 | P41: 1.4 | Q41: 1.4 | W41: Operating | X41: Apr | Y41: 2014 | AA41: Fort Hall Mine Landfill | AB41: Bannock | AC41: ID | AD41: Y | AE41: Columbia | AF41: WECC | AG41: Bannock County | AH41: Independent | AI41: Idaho Power (Apr 2014 - Apr 2034) | AP41: 2034 | AQ41: 1 | AR41: 1 | AW41: SPP | BC41: IPC | BP41: 0.55 | BQ41: 0.98 | BR41: 1.2 | BS41: 1.3 | BT41: 1.2 | BU41: 1 | BV41: 1.32 | BW41: 1.39 | BX41: 1.374 | BY41: (1) 1.6 MW Caterpillar V-20; second unit expected to be constructed within five years. $4.5MM project. | BZ41: 42.782 | CA41: -112.375 | CB41: 2020-03-23T13:30:49 | CC41: 1.4 | CD41: 1.4 | CE41: 0.75 | CF41: 1.05 | CH41: Y | CK41: PNW East | CL41: BGIC | CM41: 11700 | CN41: 1 | CP41: 1 | CR41: 1 | CT41: Y | CV41: Bannock County LFG to Energy 1 | CW41: PNW East | CX41: Thr | CY41: IC | CZ41: 1.6 | DA41: Apr-2014 | DB41: Jan-2051 | DC41: 11700 | DD41: Zero-cost Biofuel | DE41: 0.047 | DF41: 56 | DG41: FALSE | DH41: MR 7d Flat | DI41: Landfill | DJ41: Default | DK41: Default | DL41: 20 | DM41: Flat | DN41: 0 | DO41: 1 | DP41: FALSE | DQ41: TRUE | DR41: FALSE | DS41: FALSE | DT41: 0 | DU41: 0 | DV41: 0 | DZ41: Bannock County LFG to Energy 1 | EB41: Bannock County LFG to Energy 1 | EC41: =IF($CH41="N","",IF(OR($I41<>"Wind",$I41<>"Solar",$I41<>"Hydro"),($CN41*$CP41*IF(ISBLANK($L41),IF(ISBLANK($O41),$J41,$O41),$L41))*VLOOKUP($DH41,ASeasDist,EC$9,FALSE)*VLOOKUP($DM41,ASeasDist,EC$9),$J41*$CN41*$CP41)) -> 1.538630137 | ED41: 1.538630137 | EE41: 1.538630137 | EF41: 1.538630137 | EG41: 1.538630137 | EH41: 1.538630137 | EI41: 1.538630137 | EJ41: 1.538630137 | EK41: 1.538630137 | EL41: 1.538630137 | EM41: 1.538630137 | EN41: 1.538630137 | EO41: =IF($CH41="N","",IF(OR($I41<>"Wind",$I41<>"Solar",$I41<>"Hydro"),$CR41*IF(ISBLANK($L41),IF(ISBLANK($O41),$J41,$O41),$L41),$J41)*(1-$DE41)*VLOOKUP($DH41,ASeasDist,EO$9,FALSE)*VLOOKUP($DM41,ASeasDist,EO$9)) -> 1.466314521 | EP41: 1.466314521 | EQ41: 1.466314521 | ER41: 1.466314521 | ES41: 1.466314521 | ET41: 1.466314521 | EU41: 1.466314521 | EV41: 1.466314521 | EW41: 1.466314521 | EX41: 1.466314521 | EY41: 1.466314521 | EZ41: 1.466314521
A42: Bannock County LFG to Energy 2 | B42: 2295 | C42: 59529 | D42: GEN2 | F42: IC | G42: LFG | I42: Biomass | J42: 1.6 | K42: 1.6 | P42: 1.4 | Q42: 1.4 | W42: Operating | X42: May | Y42: 2019 | AA42: Fort Hall Mine Landfill | AB42: Bannock | AC42: ID | AD42: Y | AE42: Columbia | AF42: WECC | AG42: Bannock County | AH42: Independent | AI42: Idaho Power (Apr 2014 - Apr 2034) | AP42: 2034 | AQ42: 1 | AR42: 1 | AW42: SPP | BC42: IPC | BY42: (1) 1.6 MW unit, second phase | BZ42: 42.787778 | CA42: -112.3656 | CB42: 2019-09-09T09:43:04 | CC42: 1.4 | CD42: 1.4 | CE42: 0.75 | CF42: 1.05 | CH42: Y | CK42: PNW East | CL42: BGIC | CM42: 11700 | CN42: 1 | CP42: 1 | CR42: 1 | CT42: Y | CV42: Bannock County LFG to Energy 2 | CW42: PNW East | CX42: Thr | CY42: IC | CZ42: 1.6 | DA42: May-2019 | DB42: Jan-2051 | DC42: 11700 | DD42: Zero-cost Biofuel | DE42: 0.047 | DF42: 56 | DG42: FALSE | DH42: MR 7d Flat | DI42: Landfill | DJ42: Default | DK42: Default | DL42: 20 | DM42: Flat | DN42: 0 | DO42: 1 | DP42: FALSE | DQ42: TRUE | DR42: FALSE | DS42: FALSE | DT42: 0 | DU42: 0 | DV42: 0 | DZ42: Bannock County LFG to Energy 2 | EB42: Bannock County LFG to Energy 2 | EC42: 1.538630137 | ED42: 1.538630137 | EE42: 1.538630137 | EF42: 1.538630137 | EG42: 1.538630137 | EH42: 1.538630137 | EI42: 1.538630137 | EJ42: 1.538630137 | EK42: 1.538630137 | EL42: 1.538630137 | EM42: 1.538630137 | EN42: 1.538630137 | EO42: 1.466314521 | EP42: 1.466314521 | EQ42: 1.466314521 | ER42: 1.466314521 | ES42: 1.466314521 | ET42: 1.466314521 | EU42: 1.466314521 | EV42: 1.466314521 | EW42: 1.466314521 | EX42: 1.466314521 | EY42: 1.466314521 | EZ42: 1.466314521
A43: Barber Dam | B43: 1017 | C43: 10735 | D43: GEN1 | E43: 4881 | F43: ROR | G43: WAT | I43: Hydro | J43: 4.1 | K43: 4.1 | L43: 2.7 | M43: 2.73 | N43: 4 | O43: 4 | P43: 4 | Q43: 4 | T43: 2 | V43: 2 | W43: Operating | X43: Aug | Y43: 1990 | AA43: Boise R. | AB43: Ada | AC43: ID | AD43: Y | AE43: Columbia | AF43: WECC | AG43: Ada Co. & Fulcrum Inc. | AH43: Independent | AI43: Idaho Power Co. (QF thru Apr 2024) | AP43: 2024 | AQ43: 1 | AR43: 1 | BC43: IPC | BJ43: 1.27 | BK43: 1.33 | BL43: 1.3 | BM43: 1.61 | BN43: 1.7 | BO43: 1.02 | BP43: 1.18 | BQ43: 1.075 | BR43: 1.4 | BS43: 1.5 | BT43: 1.4 | BU43: 1.5 | BV43: 0.53 | BW43: 0.46 | BX43: 0.446 | BY43: License granted December 1983; expires November 2023. Critical energy from PNUCC 2005 NRF | BZ43: 43.561001 | CA43: -116.121269 | CB43: 2020-03-22T20:35:50 | CC43: =IF(OR(I43="Wind",I43="Solar",I43="Hydro"),J43,IF(ISNUMBER(L43),L43,IF(ISNUMBER(O43), O43, IF(ISNUMBER(Q43),Q43,J43)))) -> 4.1 | CD43: =IF(OR(J43="Wind",J43="Solar",J43="Hydro"),J43,IF(ISNUMBER(N43),N43,IF(ISNUMBER(P43), P43, IF(ISNUMBER(L43),L43,J43)))) -> 4 | CE43: 0.487804878 | CF43: =IF(ISNUMBER(T43),T43,AVERAGE(CC43,CD43)*CE43) -> 2 | CH43: Y | CI43: Not accounted for in HydInd file | CK43: PNW East | CL43: HY_East | CM43: n/a | CN43: 1 | CP43: 1 | CR43: 1 | CT43: Y | CV43: Barber Dam | CW43: PNW East | CX43: Thr | CY43: Hyd | CZ43: 2.7 | DA43: Aug-1990 | DB43: Jan-2051 | DC43: n/a | DD43: Water | DE43: 0 | DF43: 24 | DG43: FALSE | DH43: Cf HY East | DI43: Zero | DJ43: Expense | DK43: Default | DL43: 50 | DM43: Flat | DN43: 0 | DO43: 0 | DP43: FALSE | DQ43: TRUE | DR43: FALSE | DS43: FALSE | DT43: 0 | DU43: 0 | DV43: 0 | DZ43: Barber Dam | EB43: Barber Dam | EC43: 0.8822797396 | ED43: 1.158374778 | EE43: 1.030075418 | EF43: 1.308533818 | EG43: 1.50554779 | EH43: 1.161969258 | EI43: 1.35227983 | EJ43: 1.460906978 | EK43: 1.918726738 | EL43: 1.783318212 | EM43: 1.786446681 | EN43: 1.614074902 | EO43: 0.8822797396 | EP43: 1.158374778 | EQ43: 1.030075418 | ER43: 1.308533818 | ES43: 1.50554779 | ET43: 1.161969258 | EU43: 1.35227983 | EV43: 1.460906978 | EW43: 1.918726738 | EX43: 1.783318212 | EY43: 1.786446681 | EZ43: 1.614074902
A44: Barney Creek | B44: 1018 | E44: 7754 | F44: Diversion | G44: WAT | I44: Hydro | J44: 0.07 | L44: 0 | M44: 0.02 | N44: 0.1 | O44: 0.1 | T44: 0.04 | W44: Operating | Y44: 1986 | AA44: Barney Cr. | AB44: Park | AC44: MT | AD44: N | AE44: Missouri | AF44: WECC | AG44: T.K. & J.L. Budde | AH44: Independent | AI44: NorthWestern (QF thru Nov 2019) | AP44: 2019 | AQ44: 0.31 | AR44: 0.31 | BY44: Exemption granted April 1984. | CB44: 2020-03-22T20:39:21 | CC44: 0.07 | CD44: 0.1 | CE44: 0.5714285714 | CF44: 0.04 | CH44: N | CI44: <0.5 MW
A45: Basin Creek 1 - 9 | B45: 1019 | C45: 55866 | D45: 1,2,3,4,5,6,7,8,9 | F45: IC | G45: NG | I45: Natural Gas | J45: 54.9 | K45: 54.9 | L45: 50 | M45: 50 | N45: 51.75 | O45: 51.75 | P45: 54 | Q45: 54 | R45: 18 | S45: 0.8 | W45: Operating | X45: Jun | Y45: 2006 | AA45: Butte | AB45: Silver Bow | AC45: MT | AD45: Y | AE45: Unknown | AF45: WECC | AG45: Basin Creek Power | AH45: Independent | AI45: NorthWestern (PPA to July 2026) | AM45: 16.43 | AN45: 12 | AO45: 9575 | AP45: 2026 | AQ45: 0.31 | AR45: 0.31 | AU45: Northwestern Energy LLC | BC45: NorthWestern | BJ45: 5.61 | BK45: 7.55 | BL45: 2.1 | BM45: 1.18 | BN45: 2.7 | BO45: 3.87 | BP45: 4.7 | BQ45: 7.168 | BR45: 10.5 | BS45: 12.4 | BT45: 14.8 | BU45: 17.8 | BV45: 6.51 | BW45: 13.68 | BX45: 16.088 | BY45: (9) 6 MW Caterpillar reciprocating engines. | BZ45: 45.93 | CA45: -112.524 | CB45: 2020-07-15T16:16:42 | CC45: 50 | CD45: 51.75 | CE45: 0.93 | CF45: 47.31375 | CH45: Y | CK45: PNW East | CL45: NGIC_PNWE | CM45: 9210 | CN45: 0.31 | CO45: NorthWestern | CP45: 1 | CR45: 0.31 | CS45: NorthWestern | CV45: Basin Creek 1 - 9 | CW45: PNW East | CX45: Thr | CY45: IC | CZ45: 15.5 | DA45: Jun-2006 | DB45: Jan-2051 | DC45: 9210 | DD45: PNW E. gas | DE45: 0.047 | DF45: 56 | DG45: FALSE | DH45: MR 7d Winter Pk_Hydro | DI45: NG Recip Peaking E | DJ45: Default | DK45: Default | DL45: 30 | DM45: Flat | DN45: 0 | DO45: 0 | DP45: FALSE | DQ45: TRUE | DR45: FALSE | DS45: FALSE | DT45: 0 | DU45: 0 | DV45: 0 | DZ45: Basin Creek 1 - 9 | EB45: Basin Creek 1 - 9 | EC45: 15.5 | ED45: 15.5 | EE45: 15.5 | EF45: 15.5 | EG45: 15.5 | EH45: 15.5 | EI45: 14.48082192 | EJ45: 13.46164384 | EK45: 13.46164384 | EL45: 13.46164384 | EM45: 15.5 | EN45: 15.5 | EO45: 14.7715 | EP45: 14.7715 | EQ45: 14.7715 | ER45: 14.7715 | ES45: 14.7715 | ET45: 14.7715 | EU45: 13.80022329 | EV45: 12.82894658 | EW45: 12.82894658 | EX45: 12.82894658 | EY45: 14.7715 | EZ45: 14.7715
A46: Bear Creek Solar Center | B46: 2161 | C46: 61281 | D46: BCRSC | F46: PV | G46: SOL | I46: Solar | J46: 10 | K46: 10 | P46: 10 | Q46: 10 | W46: Operating | X46: Sep | Y46: 2018 | AA46: Bend | AB46: Deschutes | AC46: OR | AD46: Y | AE46: Columbia | AF46: WECC | AG46: GCL New Energy Holdings | AH46: Independent | AI46: PacifiCorp (20yr PURPA); RECs to PAC | AJ46: PacifiCorp (bunded RECs) | AP46: 2038 | AQ46: 1 | AR46: 1 | AW46: SPP | BB46: Single-axis | BC46: PACW | BT46: 0.7 | BU46: 2.6 | BV46: 2.69 | BW46: 2.65 | BX46: 2.721 | BY46: Crystalline silicone. 13.1MWdc. Azimuth angle 180. (39,976) Tina Solar modules, (5) inverters, NEXTracker single-axis | BZ46: 44.060814 | CA46: -121.237203 | CB46: 2019-07-09T13:47:59 | CC46: 10 | CD46: 10 | CE46: 0.254 | CF46: 2.54 | CH46: Y | CI46: 100% PNW PPA | CK46: PNW East | CL46: PV | CN46: 1 | CP46: 0.75 | CR46: 1 | CT46: Y | CV46: Bear Creek Solar Center | CW46: PNW East | CX46: Thr | CY46: PV | CZ46: 7.5 | DA46: Sep-2018 | DB46: Jan-2051 | DC46: 0 | DD46: Solar | DE46: 0 | DF46: 0 | DG46: FALSE | DH46: Cf PV | DI46: SolarPV | DJ46: Default | DK46: Default | DL46: 30 | DM46: Flat | DN46: 0 | DO46: 1 | DP46: FALSE | DQ46: TRUE | DR46: FALSE | DS46: FALSE | DT46: 0 | DU46: 0 | DV46: 0 | DZ46: Bear Creek Solar Center | EB46: Bear Creek Solar Center | EC46: 2.217714167 | ED46: 1.440439609 | EE46: 0.6661440682 | EF46: 0.5506791273 | EG46: 0.6325204404 | EH46: 1.068692068 | EI46: 1.709244687 | EJ46: 2.026482772 | EK46: 2.643862546 | EL46: 2.902138463 | EM46: 2.994598044 | EN46: 2.681513497 | EO46: 2.956952222 | EP46: 1.920586145 | EQ46: 0.8881920909 | ER46: 0.7342388364 | ES46: 0.8433605872 | ET46: 1.424922757 | EU46: 2.278992916 | EV46: 2.70197703 | EW46: 3.525150061 | EX46: 3.86951795 | EY46: 3.992797392 | EZ46: 3.57535133
A47: Beaver 1 - 7 | B47: 1020 | C47: 8073 | D47: 1,2,3,4,5,6,7 | F47: CC | G47: NG | H47: FO | I47: Natural Gas | J47: 586.2 | K47: 586.2 | L47: 521 | M47: 529 | N47: 473.03 | O47: 504.2 | P47: 461 | Q47: 517 | R47: 40 | S47: 0.9 | W47: Operating | X47: Aug | Y47: 1974 | AA47: Clatskanie | AB47: Columbia | AC47: OR | AD47: Y | AE47: Columbia | AF47: WECC | AG47: Portland General Electric | AH47: IOU | AI47: Portland General Electric | AM47: 15.98 | AN47: 12.94 | AO47: 11555 | AQ47: 1 | AR47: 1 | AU47: Williams Northwest | BC47: PGE | BD47: 62.2 | BE47: 35 | BF47: 43 | BG47: 19.05993151 | BH47: 40.60445205 | BI47: 41.6 | BJ47: 16.57 | BK47: 51.39 | BL47: 17.9 | BM47: 5.36 | BN47: 2.9 | BO47: 31.7 | BP47: 23.53 | BQ47: 35.75 | BR47: 52.2 | BS47: 42.2 | BT47: 56.6 | BU47: 57.1 | BV47: 43.02 | BW47: 96.08 | BX47: 99.656 | BY47: (6) 68.9 MW (baseload)/75.9 (peak) GE 7B GT units + one 176.4 MW STG. | BZ47: 46.174 | CA47: -123.178 | CB47: 2020-07-15T16:19:52 | CC47: 521 | CD47: 473.03 | CE47: 0.89 | CF47: 442.34335 | CH47: Y | CK47: PNW West | CL47: NGCC_PNWW | CM47: 9260 | CN47: 1 | CP47: 1 | CR47: 1 | CV47: Beaver 1 - 7 | CW47: PNW West | CX47: Thr | CY47: CCCT | CZ47: 521 | DA47: Aug-1974 | DB47: Jan-2051 | DC47: 9260 | DD47: PNW W. gas | DE47: 0.059 | DF47: 32 | DG47: TRUE | DH47: MR 21d Winter Pk_Hydro | DI47: CCCT - PNW W. | DJ47: Default | DK47: Default | DL47: 30 | DM47: CMS GT PNWW | DN47: 0 | DO47: 0 | DP47: FALSE | DQ47: TRUE | DR47: FALSE | DS47: FALSE | DT47: 0 | DU47: 0 | DV47: 0 | DZ47: Beaver 1 - 7 | EB47: Beaver 1 - 7 | EC47: 490.328574 | ED47: 502.3877785 | EE47: 513.636147 | EF47: 520.3742095 | EG47: 521 | EH47: 516.3426189 | EI47: 444.0186018 | EJ47: 372.6116853 | EK47: 366.331302 | EL47: 360.8479216 | EM47: 483.9788669 | EN47: 483.1665888 | EO47: 461.3991881 | EP47: 472.7468996 | EQ47: 483.3316143 | ER47: 489.6721311 | ES47: 490.261 | ET47: 485.8784044 | EU47: 417.8215043 | EV47: 350.6275958 | EW47: 344.7177551 | EX47: 339.5578942 | EY47: 455.4241137 | EZ47: 454.6597601
A48: Beaver 8 | B48: 1021 | C48: 8073 | D48: 8 | F48: GT | G48: NG | I48: Natural Gas | J48: 24.5 | K48: 24.5 | L48: 24 | N48: 24 | O48: 24 | P48: 24 | Q48: 24 | R48: 17 | S48: 0.9 | W48: Operating | X48: Sep | Y48: 1999 | AA48: Clatskanie | AB48: Columbia | AC48: OR | AD48: Y | AE48: Columbia | AF48: WECC | AG48: Portland General Electric | AH48: IOU | AI48: Portland General Electric | AM48: 8.1 | AN48: 31.79 | AO48: 15686.8 | AQ48: 1 | AR48: 1 | AU48: Williams Northwest | BC48: PGE | BY48: (1) Alstom GT10B. | BZ48: 46.174 | CA48: -123.178 | CB48: 2020-07-15T16:20:47 | CC48: 24 | CD48: 24 | CE48: 0.91 | CF48: 21.84 | CH48: Y | CK48: PNW West | CL48: NGGT_PNWW | CM48: 11500 | CN48: 1 | CP48: 1 | CR48: 1 | CV48: Beaver 8 | CW48: PNW West | CX48: Thr | CY48: GT | CZ48: 24 | DA48: Sep-1999 | DB48: Jan-2051 | DC48: 11500 | DD48: PNW W. gas | DE48: 0.051 | DF48: 88 | DG48: FALSE | DH48: MR 14d Winter Pk_Hydro | DI48: SCCT - PNW W. | DJ48: Default | DK48: Default | DL48: 30 | DM48: CMS GT PNWW | DN48: 0 | DO48: 0 | DP48: FALSE | DQ48: TRUE | DR48: FALSE | DS48: FALSE | DT48: 0 | DU48: 0 | DV48: 0 | DZ48: Beaver 8 | EB48: Beaver 8 | EC48: 22.58711281 | ED48: 23.14262319 | EE48: 23.6607822 | EF48: 23.9711728 | EG48: 24 | EH48: 23.78545653 | EI48: 21.2281095 | EJ48: 18.69585492 | EK48: 18.38073561 | EL48: 18.10560607 | EM48: 22.29461191 | EN48: 22.25719411 | EO48: 21.43517006 | EP48: 21.96234941 | EQ48: 22.45408231 | ER48: 22.74864298 | ES48: 22.776 | ET48: 22.57239825 | EU48: 20.14547591 | EV48: 17.74236632 | EW48: 17.4433181 | EX48: 17.18222016 | EY48: 21.1575867 | EZ48: 21.12207721
A49: Bell Mountain | B49: 1978 | F49: Conduit | G49: WAT | I49: Hydro | J49: 0.29 | L49: 0.1 | M49: 0.1 | N49: 0.3 | O49: 0.3 | T49: 0.125859589 | W49: Operating | X49: Dec | Y49: 2009 | AA49: Bell Mt Cr. & Mahogany Cr. | AB49: Butte/Lemhi | AC49: ID | AD49: Y | AE49: Columbia | AF49: WECC | AG49: Bell Mountain Power | AH49: Independent | AI49: PacifiCorp (QF) | AQ49: 1 | AR49: 1 | BC49: PACE | BY49: Canal, penstock and Pelton wheel. | CB49: 2020-03-22T20:39:39 | CC49: 0.29 | CD49: 0.3 | CE49: 0.4339985829 | CF49: 0.125859589 | CH49: N | CI49: < 0.5 MW
A50: Bellevue Solar | B50: 2009 | C50: 57372 | D50: INV-1 | F50: PV | G50: SOL | I50: Solar | J50: 1.4 | K50: 1.6 | N50: 1.6 | O50: 1.6 | P50: 1.6 | Q50: 1.6 | W50: Operating | X50: Oct | Y50: 2011 | AA50: Yamhill, OR | AB50: Yamhill | AC50: OR | AD50: Y | AE50: Columbia | AF50: WECC | AG50: enXco | AH50: Independent | AI50: Portland General Electric (25yr PPA, signed in 2010) | AP50: 2031 | AQ50: 1 | AR50: 1 | BB50: Fixed tilt | BC50: PGE | BM50: 0.01 | BN50: 0.2 | BO50: 0.21 | BP50: 0.19 | BQ50: 0.215 | BR50: 0.2 | BS50: 0.2 | BT50: 0.2 | BU50: 0.2 | BV50: 0.16 | BW50: 0 | BY50: Crystalline silicone. 1.7MWdc. Azimuth angle 97, tilt 43. 8,316 Nanosolar, Ground-mount thin-film PV | BZ50: 45.112421 | CA50: -123.234399 | CB50: 2017-10-16T15:14:57 | CC50: 1.4 | CD50: 1.6 | CE50: 0.254 | CF50: 0.381 | CH50: Y | CK50: PNW West | CL50: PV | CN50: 1 | CP50: 0.75 | CR50: 1 | CT50: Y | CV50: Bellevue Solar | CW50: PNW West | CX50: Thr | CY50: PV | CZ50: 1.2 | DA50: Oct-2011 | DB50: Jan-2051 | DC50: 0 | DD50: Solar | DE50: 0 | DF50: 0 | DG50: FALSE | DH50: Cf PV | DI50: SolarPV | DJ50: Default | DK50: Default | DL50: 30 | DM50: Flat | DN50: 0 | DO50: 1 | DP50: FALSE | DQ50: TRUE | DR50: FALSE | DS50: FALSE | DT50: 0 | DU50: 0 | DV50: 0 | DZ50: Bellevue Solar | EB50: Bellevue Solar | EC50: 0.3548342667 | ED50: 0.2304703374 | EE50: 0.1065830509 | EF50: 0.08810866037 | EG50: 0.1012032705 | EH50: 0.1709907308 | EI50: 0.27347915 | EJ50: 0.3242372435 | EK50: 0.4230180073 | EL50: 0.464342154 | EM50: 0.479135687 | EN50: 0.4290421596 | EO50: 0.4731123555 | EP50: 0.3072937832 | EQ50: 0.1421107345 | ER50: 0.1174782138 | ES50: 0.134937694 | ET50: 0.2279876411 | EU50: 0.3646388666 | EV50: 0.4323163247 | EW50: 0.5640240097 | EX50: 0.619122872 | EY50: 0.6388475827 | EZ50: 0.5720562127
A51: Bend Power 1 - 3 | B51: 1022 | C51: 6484 | D51: 1,2,3 | E51: None | F51: ROR | G51: WAT | I51: Hydro | J51: 1.11 | K51: 1.1 | M51: 0.32 | N51: 1 | O51: 1 | P51: 1 | Q51: 1 | W51: Operating | Y51: 1913 | AA51: Deschutes R. | AB51: Deschutes | AC51: OR | AD51: Y | AE51: Columbia | AF51: WECC | AG51: PacifiCorp | AH51: IOU | AI51: PacifiCorp | AQ51: 1 | AR51: 1 | BC51: PACW | BD51: 0.4 | BE51: 0.3 | BF51: 0.1 | BG51: 0.07385844749 | BH51: 0.07659817352 | BI51: 0.1 | BJ51: 0.09 | BK51: 0.36 | BL51: 0.3 | BM51: 0.24 | BN51: 0.4 | BO51: 0.22 | BP51: 0.29 | BQ51: 0.273 | BR51: 0.2 | BS51: 0.3 | BT51: 0.2 | BU51: 0.2 | BV51: 0.04 | BW51: 0.07 | BX51: 0.002 | BY51: PAC minor | BZ51: 44.062326 | CA51: -121.313331 | CB51: 2020-03-21T21:11:26 | CC51: 1.11 | CD51: 1 | CE51: 0.427 | CF51: 0.450485 | CH51: Y | CI51: Not accounted for in HydInd file | CK51: PNW East | CL51: HY_East | CM51: n/a | CN51: 1 | CP51: 1 | CR51: 1 | CV51: Bend Power 1 - 3 | CW51: PNW East | CX51: Thr | CY51: Hyd | CZ51: 1 | DA51: Dec-1913 | DB51: Jan-2051 | DC51: n/a | DD51: Water | DE51: 0 | DF51: 24 | DG51: FALSE | DH51: Cf HY East | DI51: Zero | DJ51: Expense | DK51: Default | DL51: 50 | DM51: Flat | DN51: 0 | DO51: 0 | DP51: FALSE | DQ51: TRUE | DR51: FALSE | DS51: FALSE | DT51: 0 | DU51: 0 | DV51: 0 | DZ51: Bend Power 1 - 3 | EB51: Bend Power 1 - 3 | EC51: =IF($CH51="N","",IF(OR($I51<>"Wind",$I51<>"Solar",$I51<>"Hydro"),($CN51*$CP51*IF(ISBLANK($L51),IF(ISBLANK($O51),$J51,$O51),$L51))*VLOOKUP($DH51,ASeasDist,EC$9,FALSE)*VLOOKUP($DM51,ASeasDist,EC$9),$J51*$CN51*$CP51)) -> 0.3267702739 | ED51: 0.4290276956 | EE51: 0.381509414 | EF51: 0.4846421549 | EG51: 0.5576102925 | EH51: 0.4303589845 | EI51: 0.5008443815 | EJ51: 0.5410766587 | EK51: 0.7106395327 | EL51: 0.6604882265 | EM51: 0.6616469188 | EN51: 0.5978055193 | EO51: =IF($CH51="N","",IF(OR($I51<>"Wind",$I51<>"Solar",$I51<>"Hydro"),$CR51*IF(ISBLANK($L51),IF(ISBLANK($O51),$J51,$O51),$L51),$J51)*(1-$DE51)*VLOOKUP($DH51,ASeasDist,EO$9,FALSE)*VLOOKUP($DM51,ASeasDist,EO$9)) -> 0.3267702739 | EP51: 0.4290276956 | EQ51: 0.381509414 | ER51: 0.4846421549 | ES51: 0.5576102925 | ET51: 0.4303589845 | EU51: 0.5008443815 | EV51: 0.5410766587 | EW51: 0.7106395327 | EX51: 0.6604882265 | EY51: 0.6616469188 | EZ51: 0.5978055193
A52: Bennett Creek | B52: 1692 | C52: 56637 | D52: 1 | F52: WT | G52: WND | I52: Wind | J52: 21 | K52: 21 | P52: 21 | Q52: 21 | W52: Operating | X52: Dec | Y52: 2008 | AA52: Mountain Home | AB52: Elmore | AC52: ID | AD52: Y | AE52: Columbia | AF52: WECC | AG52: Exelon (John Deere Renewables) | AH52: Independent | AI52: Idaho Power Co. (QF Dec 2008 - Dec 2028) | AK52: PNW IOU | AP52: 2028 | AQ52: 1 | AR52: 1 | AV52: MtnHome Junction/Upper Salmon 138 kV | AW52: SPP | AX52: (10) Suzlon S88-2100 | AY52: 80 | AZ52: 88 | BA52: 2 | BC52: IPC | BJ52: 0.59 | BK52: 4.7 | BL52: 3.4 | BM52: 5.16 | BN52: 5.5 | BO52: 4.84 | BP52: 5.1 | BQ52: 3.95 | BR52: 5.1 | BS52: 4.4 | BT52: 5 | BU52: 4.5 | BV52: 4.29 | BW52: 4.71 | BX52: 3.753 | BY52: (10) Suzlon S88-2.1 MW WTG. Design wind speed 14.5mph. | BZ52: 43.04664 | CA52: -115.48548 | CB52: 2021-01-07T11:20:05 | CC52: 21 | CD52: 21 | CE52: 0.32 | CF52: 6.72 | CH52: Y | CJ52: 100% PNW PPA | CK52: PNW East | CL52: WN_SID | CM52: n/a | CN52: 1 | CP52: 0.05 | CR52: 1 | CT52: Y | CV52: Bennett Creek | CW52: PNW East | CX52: Thr | CY52: Wind | CZ52: 21 | DA52: Dec-2008 | DB52: Jan-2051 | DC52: n/a | DD52: Wind | DE52: 0 | DF52: 0 | DG52: FALSE | DH52: Cf WN IDS | DI52: WindB1 | DJ52: Default | DK52: Default | DL52: 20 | DM52: Flat | DN52: 0 | DO52: 1 | DP52: FALSE | DQ52: TRUE | DR52: FALSE | DS52: FALSE | DT52: 0 | DU52: 0 | DV52: 0 | DW52: 100% PNW PPA | DZ52: Bennett Creek | EB52: Bennett Creek | EC52: 0.21168 | ED52: 0.21756 | EE52: 0.46746 | EF52: 0.42042 | EG52: 0.34986 | EH52: 0.40866 | EI52: 0.31458 | EJ52: 0.3087 | EK52: 0.27636 | EL52: 0.20874 | EM52: 0.16464 | EN52: 0.17934 | EO52: 4.2336 | EP52: 4.3512 | EQ52: 9.3492 | ER52: 8.4084 | ES52: 6.9972 | ET52: 8.1732 | EU52: 6.2916 | EV52: 6.174 | EW52: 5.5272 | EX52: 4.1748 | EY52: 3.2928 | EZ52: 3.5868
A53: Bennett Mountain | B53: 1023 | C53: 55733 | D53: 1 | F53: GT | G53: NG | I53: Natural Gas | J53: 172.8 | K53: 172.8 | L53: 180 | M53: 178 | N53: 161 | O53: 178 | P53: 164 | Q53: 196.9 | R53: 120.9 | S53: 0.9 | W53: Operating | X53: Apr | Y53: 2005 | AA53: Mountain Home | AB53: Elmore | AC53: ID | AD53: Y | AE53: Columbia | AF53: WECC | AG53: Idaho Power Co. | AH53: IOU | AI53: Idaho Power Co. | AM53: 2.88 | AN53: 4.39 | AO53: 10915.8 | AQ53: 1 | AR53: 1 | AU53: Williams Northwest | BC53: IPC | BJ53: 5.61 | BK53: 11.27 | BL53: 4.8 | BM53: 5.53 | BN53: 6.1 | BO53: 9.15 | BP53: 8.05 | BQ53: 18.02 | BR53: 11.8 | BS53: 9.9 | BT53: 17 | BU53: 36.3 | BV53: 35.4 | BW53: 40.45 | BX53: 26.913 | BY53: (1) 162 MW Siemens-Westinghouse 501FD3 GT unit. Primarily for peaking - for use in meeting short-duration demands for electricity during summer peak. | BZ53: 43.118 | CA53: -115.686 | CB53: 2020-07-15T16:23:13 | CC53: 180 | CD53: 161 | CE53: 0.91 | CF53: 155.155 | CH53: Y | CK53: PNW East | CL53: NGGT_PNWE | CM53: 10600 | CN53: 1 | CP53: 1 | CR53: 1 | CV53: Bennett Mountain | CW53: PNW East | CX53: Thr | CY53: GT | CZ53: 180 | DA53: Apr-2005 | DB53: Jan-2051 | DC53: 10600 | DD53: PNW W. gas | DE53: 0.051 | DF53: 88 | DG53: FALSE | DH53: MR 14d Winter Pk_Hydro | DI53: SCCT - PNW W. | DJ53: Default | DK53: Default | DL53: 30 | DM53: CMS GT PNWE | DN53: 0 | DO53: 0 | DP53: FALSE | DQ53: TRUE | DR53: FALSE | DS53: FALSE | DT53: 0 | DU53: 0 | DV53: 0 | DZ53: Bennett Mountain | EB53: Bennett Mountain | EC53: 166.0127256 | ED53: 171.5651098 | EE53: 176.4855033 | EF53: 179.7837711 | EG53: 180 | EH53: 177.5250715 | EI53: 157.084692 | EJ53: 137.6072882 | EK53: 134.4776733 | EL53: 131.8630033 | EM53: 161.3697794 | EN53: 161.8740952 | EO53: 157.5460766 | EP53: 162.8152892 | EQ53: 167.4847427 | ER53: 170.6147988 | ES53: 170.82 | ET53: 168.4712929 | EU53: 149.0733727 | EV53: 130.5893165 | EW53: 127.6193119 | EX53: 125.1379902 | EY53: 153.1399207 | EZ53: 153.6185164
A54: Benson Creek Wind (Huntington Wind) | B54: 2080 | C54: 59491 | D54: BCW | F54: WT | G54: WND | I54: Wind | J54: 10 | K54: 10 | P54: 10 | Q54: 10 | W54: Operating | X54: Mar | Y54: 2017 | AA54: Huntington | AB54: Baker | AC54: OR | AD54: Y | AE54: Columbia | AF54: WECC | AG54: Oregon International Holdings (99%), D.E. Shaw Renewable (1%) | AH54: Independent | AI54: Idaho Power (20yr PPA - 2036) | AK54: PNW IOU | AP54: 2036 | AQ54: 1 | AR54: 1 | AW54: SPP | AX54: (5) GE 2.0-116 | AY54: 80 | AZ54: 116 | BA54: 3 | BC54: IPC | BS54: 2.7 | BT54: 3.5 | BU54: 3.2 | BV54: 3.22 | BW54: 3.8 | BX54: 3.263 | BY54: Per PPA, all RECs go to owner of wind farm. Design wind speed 14.7mph. | BZ54: 44.366944 | CA54: -117.343889 | CB54: 2017-11-07T11:43:27 | CC54: 10 | CD54: 10 | CE54: 0.32 | CF54: 3.2 | CH54: Y | CJ54: 100% PNW PPA | CK54: PNW East | CL54: WN_SID | CN54: 1 | CP54: 0.05 | CR54: 1 | CT54: Y | CV54: Benson Creek Wind (Huntington Wind) | CW54: PNW East | CX54: Thr | CY54: Wind | CZ54: 10 | DA54: Mar-2017 | DB54: Jan-2051 | DC54: 0 | DD54: Wind | DE54: 0 | DF54: 0 | DG54: FALSE | DH54: Cf WN IDS | DI54: WindB1 | DJ54: Default | DK54: Default | DL54: 20 | DM54: Flat | DN54: 0 | DO54: 1 | DP54: FALSE | DQ54: TRUE | DR54: FALSE | DS54: FALSE | DT54: 0 | DU54: 0 | DV54: 0 | DW54: 100% PNW PPA | DZ54: Benson Creek Wind (Huntington Wind) | EB54: Benson Creek Wind (Huntington Wind) | EC54: 0.1008 | ED54: 0.1036 | EE54: 0.2226 | EF54: 0.2002 | EG54: 0.1666 | EH54: 0.1946 | EI54: 0.1498 | EJ54: 0.147 | EK54: 0.1316 | EL54: 0.0994 | EM54: 0.0784 | EN54: 0.0854 | EO54: 2.016 | EP54: 2.072 | EQ54: 4.452 | ER54: 4.004 | ES54: 3.332 | ET54: 3.892 | EU54: 2.996 | EV54: 2.94 | EW54: 2.632 | EX54: 1.988 | EY54: 1.568 | EZ54: 1.708
A55: Bethel 1 | B55: 1024 | F55: GT | G55: FO | I55: Petroleum | J55: 56.7 | W55: Retired | Y55: 1973 | Z55: 1998 | AA55: Salem | AB55: Marion | AC55: OR | AD55: Y | AE55: Columbia | AF55: WECC | AG55: Portland General Electric | AH55: IOU | AI55: Retired | AQ55: 0 | AR55: 0 | BG55: n/a | BH55: n/a | CB55: 2001-01-19 | CC55: 56.7 | CD55: 56.7 | CE55: 0.91 | CF55: 51.597 | CH55: N | CI55: Retired
A56: Bethel 2 | B56: 1025 | F56: GT | G56: FO | I56: Petroleum | J56: 56.7 | W56: Retired | Y56: 1973 | Z56: 1998 | AA56: Salem | AB56: Marion | AC56: OR | AD56: Y | AE56: Columbia | AF56: WECC | AG56: Portland General Electric | AH56: IOU | AI56: Retired | AQ56: 0 | AR56: 0 | BG56: n/a | BH56: n/a | CB56: 2001-01-19 | CC56: 56.7 | CD56: 56.7 | CE56: 0.91 | CF56: 51.597 | CH56: N | CI56: Retired
A57: Bettencourt B6 Dairy (Cargill) | B57: 1937 | C57: 57343 | D57: 1,2 | F57: BGICCG | G57: AW | I57: Biomass | J57: 2.25 | K57: 2.2 | M57: 2.1 | N57: 2.2 | O57: 2.2 | P57: 2.2 | Q57: 2.2 | W57: Operating | X57: Jun | Y57: 2009 | AA57: Jerome | AB57: Gooding | AC57: ID | AD57: Y | AE57: Columbia | AF57: WECC | AG57: Cargill Environmental Finance | AH57: Independent | AI57: Idaho Power (QF Dec 2009 - Dec 2019) | AP57: 2019 | AQ57: 1 | AR57: 1 | AS57: Internal thermal load | AT57: Waste digester | AW57: SPP | BC57: IPC | BL57: 0.2 | BM57: 0.22 | BN57: 1.1 | BO57: 1.04 | BP57: 1.08 | BQ57: 0.93 | BR57: 1 | BS57: 1.4 | BT57: 1.2 | BU57: 1.6 | BV57: 1.36 | BW57: 0.81 | BX57: 0.525 | BZ57: 42.717204 | CA57: -114.616717 | CB57: 2020-03-23T13:34:37 | CC57: 2.2 | CD57: 2.2 | CE57: 0.75 | CF57: 1.65 | CH57: Y | CK57: PNW East | CL57: BGIC | CM57: 10250 | CN57: 1 | CP57: 1 | CR57: 1 | CT57: Y | CV57: Bettencourt B6 Dairy (Cargill) | CW57: PNW East | CX57: Thr | CY57: IC | CZ57: 2.2 | DA57: Jun-2009 | DB57: Jan-2051 | DC57: 10250 | DD57: Zero-cost Biofuel | DE57: 0.047 | DF57: 56 | DG57: FALSE | DH57: MR 7d Flat | DI57: Landfill | DJ57: Default | DK57: Default | DL57: 20 | DM57: Flat | DN57: 0 | DO57: 1 | DP57: FALSE | DQ57: TRUE | DR57: FALSE | DS57: FALSE | DT57: 0 | DU57: 0 | DV57: 0 | DZ57: Bettencourt B6 Dairy (Cargill) | EB57: Bettencourt B6 Dairy (Cargill) | EC57: 2.115616438 | ED57: 2.115616438 | EE57: 2.115616438 | EF57: 2.115616438 | EG57: 2.115616438 | EH57: 2.115616438 | EI57: 2.115616438 | EJ57: 2.115616438 | EK57: 2.115616438 | EL57: 2.115616438 | EM57: 2.115616438 | EN57: 2.115616438 | EO57: 2.016182466 | EP57: 2.016182466 | EQ57: 2.016182466 | ER57: 2.016182466 | ES57: 2.016182466 | ET57: 2.016182466 | EU57: 2.016182466 | EV57: 2.016182466 | EW57: 2.016182466 | EX57: 2.016182466 | EY57: 2.016182466 | EZ57: 2.016182466
A58: Bettencourt Dry Creek Biofactory (Cargill) | B58: 1678 | C58: 57344 | D58: GS1,GS2,GS3 | F58: BGICCG | G58: AW | I58: Biomass | J58: 2.25 | K58: 2.4 | L58: 2.3 | N58: 2.4 | O58: 2.4 | P58: 2.4 | Q58: 2.4 | W58: Operating | X58: Sep | Y58: 2008 | AA58: Twin Falls | AB58: Wendell | AC58: ID | AD58: Y | AE58: Columbia | AF58: WECC | AG58: Cargill Environmental Finance | AH58: Independent | AI58: Idaho Power (QF Jan 2010 - Jan 2020) | AP58: 2020 | AQ58: 1 | AR58: 1 | AS58: Internal thermal load | AT58: Waste digester | AW58: SPP | BC58: IPC | BL58: 1.4 | BM58: 1.1 | BN58: 0.6 | BO58: 1.35 | BP58: 1.54 | BQ58: 1.21 | BR58: 1.2 | BS58: 1.2 | BT58: 1.2 | BV58: 1.24 | BY58: Anaerobic digestor and (3) Guascor SFGLD 560 750 kW nameplate reciprocating engines. QF contract converted to firm Apr 2010. | BZ58: 42.788344 | CA58: -114.635735 | CB58: 2017-10-17T14:36:38 | CC58: 2.3 | CD58: 2.4 | CE58: 0.75 | CF58: 1.7625 | CH58: Y | CK58: PNW East | CL58: BGIC | CM58: 10250 | CN58: 1 | CP58: 1 | CR58: 1 | CT58: Y | CV58: Bettencourt Dry Creek Biofactory (Cargill) | CW58: PNW East | CX58: Thr | CY58: IC | CZ58: 2.3 | DA58: Sep-2008 | DB58: Jan-2051 | DC58: 10250 | DD58: Zero-cost Biofuel | DE58: 0.047 | DF58: 56 | DG58: FALSE | DH58: MR 7d Flat | DI58: Landfill | DJ58: Default | DK58: Default | DL58: 20 | DM58: Flat | DN58: 0 | DO58: 1 | DP58: FALSE | DQ58: TRUE | DR58: FALSE | DS58: FALSE | DT58: 0 | DU58: 0 | DV58: 0 | DZ58: Bettencourt Dry Creek Biofactory (Cargill) | EB58: Bettencourt Dry Creek Biofactory (Cargill) | EC58: 2.211780822 | ED58: 2.211780822 | EE58: 2.211780822 | EF58: 2.211780822 | EG58: 2.211780822 | EH58: 2.211780822 | EI58: 2.211780822 | EJ58: 2.211780822 | EK58: 2.211780822 | EL58: 2.211780822 | EM58: 2.211780822 | EN58: 2.211780822 | EO58: 2.107827123 | EP58: 2.107827123 | EQ58: 2.107827123 | ER58: 2.107827123 | ES58: 2.107827123 | ET58: 2.107827123 | EU58: 2.107827123 | EV58: 2.107827123 | EW58: 2.107827123 | EX58: 2.107827123 | EY58: 2.107827123 | EZ58: 2.107827123
A59: Big Cliff | B59: 1026 | C59: 3074 | D59: 1 | E59: FCRPS | F59: Storage w/Div | G59: WAT | I59: Hydro | J59: 18 | K59: 18 | M59: 3.86 | N59: 21 | O59: 21 | P59: 21 | Q59: 21 | T59: 11 | V59: 11 | W59: Operating | Y59: 1954 | AA59: N. Fk. Santiam R. | AB59: Linn | AC59: OR | AD59: Y | AE59: Columbia | AF59: WECC | AG59: USCE | AH59: Federal | AI59: BPA | AQ59: 1 | AR59: 1 | BC59: BPA | BD59: 10.8 | BE59: 11.3 | BF59: 9.9 | BG59: 2.95696347 | BH59: 5.192009132 | BI59: 9.3 | BJ59: 5.89 | BK59: -0.02 | BL59: 4.1 | BM59: 8.9 | BN59: 8.2 | BO59: 7.31 | BP59: 8.22 | BQ59: 6.27 | BR59: 7.9 | BS59: 10.6 | BT59: 9.9 | BU59: 8 | BV59: 6.53 | BW59: 9.14 | BX59: 10.078 | BY59: Critical energy from PNUCC 2005 NRF | BZ59: 44.7506775 | CA59: -122.28313 | CB59: 2020-03-29T21:40:02 | CC59: 18 | CD59: 21 | CE59: 0.6111111111 | CF59: 11 | CG59: Independent | CH59: N | CI59: Accounted for in HydInd file
A60: Big Fork 1 - 3 | B60: 1027 | C60: 6459 | D60: 1,2,3 | E60: 2652 | F60: Diversion | G60: WAT | I60: Hydro | J60: 4.1 | K60: 4.1 | M60: 2.4 | N60: 4.15 | O60: 4.15 | P60: 4.6 | Q60: 4.6 | T60: 16 | W60: Operating | Y60: 1910 | AA60: Swan R. | AB60: Flathead | AC60: MT | AD60: Y | AE60: Columbia | AF60: WECC | AG60: PacifiCorp | AH60: IOU | AI60: PacifiCorp | AQ60: 1 | AR60: 1 | BC60: PACE | BD60: 2.2 | BE60: 3 | BF60: 1.2 | BG60: 1.231164384 | BH60: 1.187100457 | BI60: 0.9 | BJ60: 0.93 | BK60: 3.31 | BL60: 3.7 | BM60: 3.96 | BN60: 3.8 | BO60: 3.44 | BP60: 3.57 | BQ60: 3.02 | BR60: 3.4 | BS60: 2.4 | BT60: 3 | BU60: 3.1 | BV60: 3.09 | BW60: 3.24 | BX60: 3.007 | BY60: Units 1 & 2 1.7 MW, Unit 3 0.7 MW. PAC minor. Original license granted September 1976; expired August 2002. | BZ60: 48.0592 | CA60: -114.0708 | CB60: 2020-03-21T21:11:51 | CC60: 4.1 | CD60: 4.15 | CE60: 3.902439024 | CF60: 16 | CH60: Y | CI60: Not accounted for in HydInd file | CV60: Big Fork 1 - 3 | CW60: 0 | CZ60: 0 | DA60: Dec-1910 | DB60: Jan-2051 | DC60: 0 | DZ60: Big Fork 1 - 3 | EB60: Big Fork 1 - 3
A61: Big Hanaford (Transalta Centralia 30-70) | B61: 1028 | C61: 3845 | D61: 30,40,50,60,70 | F61: CC | G61: NG | I61: Natural Gas | J61: 322 | K61: 322 | L61: 248 | N61: 244 | O61: 256 | P61: 256 | Q61: 268 | W61: Retired | X61: Aug | Y61: 2002 | Z61: 2014 | AA61: Big Hanaford Valley | AB61: Lewis | AC61: WA | AD61: Y | AE61: Puget Sound & Coastal | AF61: WECC | AG61: TransAlta | AH61: Independent | AI61: Retired | AQ61: 0 | AR61: 0 | AU61: Williams Northwest | BC61: BPA | BD61: 25.9 | BE61: 44.7 | BF61: 22.8 | BG61: 29.2 | BH61: 67 | BI61: 40.4 | BJ61: 35.64 | BK61: 43.23 | BL61: 31.1 | BM61: 0 | BN61: 0 | BY61: (4) GE LM6000 units in 4x1 CC configuration. aka TransAlta Centralia 30, 40, 50, 60, 70. TransAlta confirmed w/ BPA that plant is no longer in service; and no longer interconnected to the transmission grid. | BZ61: 46.75 | CA61: -122.863 | CB61: 2020-03-25T22:09:23 | CC61: 248 | CD61: 244 | CE61: 0.89 | CF61: 218.94 | CH61: N | CI61: Retired? | CJ61: 100% Uncommitted IPP | CK61: PNW West | CL61: NGCC_PNWW | CM61: 7200 | CN61: 1 | CP61: 1 | CQ61: 1 | CR61: 1 | DW61: 100% Uncommitted IPP | EC61: =IF($CH61="N","",IF(OR($I61<>"Wind",$I61<>"Solar",$I61<>"Hydro"),($CN61*$CP61*IF(ISBLANK($L61),IF(ISBLANK($O61),$J61,$O61),$L61))*VLOOKUP($DH61,ASeasDist,EC$9,FALSE)*VLOOKUP($DM61,ASeasDist,EC$9),$J61*$CN61*$CP61)) ->  | EO61: =IF($CH61="N","",IF(OR($I61<>"Wind",$I61<>"Solar",$I61<>"Hydro"),$CR61*IF(ISBLANK($L61),IF(ISBLANK($O61),$J61,$O61),$L61),$J61)*(1-$DE61)*VLOOKUP($DH61,ASeasDist,EO$9,FALSE)*VLOOKUP($DM61,ASeasDist,EO$9)) -> 
A62: Big Horn I | B62: 1029 | C62: 56361 | D62: 1 | F62: WT | G62: WND | I62: Wind | J62: 199.5 | K62: 199 | N62: 67 | O62: 67 | P62: 199 | Q62: 199 | W62: Operating | X62: Oct | Y62: 2006 | AA62: Bickleton | AB62: Klickitat | AC62: WA | AD62: Y | AE62: Columbia | AF62: WECC | AG62: Iberdrola Renewables | AH62: Independent | AI62: M-S-R Public Power Agency (Modesto, Santa Clara, Redding) (Oct 2006 - Oct 2031) | AK62: CA Public | AP62: 2031 | AQ62: 0 | AR62: 0 | AX62: (133) GE 1.5 SLE | AY62: 80 | AZ62: 77 | BA62: 2 | BC62: BPA | BG62: n/a | BH62: 8.911187215 | BI62: 62.8 | BJ62: 65.83 | BK62: 58.5 | BL62: 55.32 | BM62: 64.65 | BN62: 59.3 | BO62: 57.47 | BP62: 59.05 | BQ62: 49.3 | BR62: 57.4 | BS62: 53.4 | BT62: 58.3 | BU62: 51 | BV62: 68.55 | BW62: 63.58 | BX62: 53.177 | BY62: (133) GE 1.5 MW WTG. Design wind speed 12.5 mph. | BZ62: 45.89842 | CA62: -120.288483 | CB62: 2017-10-17T12:54:55 | CC62: 199.5 | CD62: 67 | CE62: 0.32 | CF62: 42.64 | CH62: Y | CJ62: 100% OOR PPA | CK62: PNW East | CL62: WN_PNWE | CM62: n/a | CN62: 0 | CP62: 0.05 | CR62: 0 | CS62: OOR PPA | CT62: Y | CV62: Big Horn I | CW62: PNW East | CX62: Thr | CY62: Wind | CZ62: 199.5 | DA62: Oct-2006 | DB62: Jan-2051 | DC62: n/a | DD62: Wind | DE62: 0 | DF62: 0 | DG62: FALSE | DH62: Cf WN PNWE | DI62: WindB1 | DJ62: Default | DK62: Default | DL62: 20 | DM62: Flat | DN62: 0 | DO62: 1 | DP62: FALSE | DQ62: TRUE | DR62: FALSE | DS62: FALSE | DT62: 0 | DU62: 0 | DV62: 0 | DW62: 100% OOR PPA | DZ62: Big Horn I | EB62: Big Horn I | EC62: 0 | ED62: 0 | EE62: 0 | EF62: 0 | EG62: 0 | EH62: 0 | EI62: 0 | EJ62: 0 | EK62: 0 | EL62: 0 | EM62: 0 | EN62: 0 | EO62: 0 | EP62: 0 | EQ62: 0 | ER62: 0 | ES62: 0 | ET62: 0 | EU62: 0 | EV62: 0 | EW62: 0 | EX62: 0 | EY62: 0 | EZ62: 0
A63: Big Horn II | B63: 1901 | C63: 57319 | D63: 1 | F63: WT | G63: WND | I63: Wind | J63: 50 | K63: 50 | P63: 50 | Q63: 50 | W63: Operating | X63: Oct | Y63: 2010 | AA63: Bickleton | AB63: Klickitat | AC63: WA | AD63: Y | AE63: Columbia | AF63: WECC | AG63: Iberdrola Renewables | AH63: Independent | AI63: M-S-R Public Power Agency (Modesto, Santa Clara, Redding) (25 yr PPA - Jan 2011 - Jan 2036) | AK63: CA Public | AP63: 2036 | AQ63: 0 | AR63: 0 | AV63: BPA Rock Creek substation | AX63: (25) Gamesa G90-2.0 | AY63: 78 | AZ63: 90 | BA63: 2 | BC63: BPA | BL63: 2.9 | BM63: 13.54 | BN63: 13.8 | BO63: 13.12 | BP63: 14.42 | BQ63: 11.85 | BR63: 14 | BS63: 13.5 | BT63: 13.6 | BU63: 12.5 | BV63: 16.53 | BW63: 14.68 | BX63: 12.61 | BY63: RECs to PG&E through EOY 2010. Design wind speed 14.7mph. | BZ63: 45.840524 | CA63: -120.326519 | CB63: 2017-10-17T12:54:42 | CC63: 50 | CE63: 0.32 | CF63: 16 | CH63: Y | CI63: Operating | CJ63: 100% OOR PPA | CK63: PNW East | CL63: WN_PNWE | CM63: n/a | CN63: 0 | CP63: 0.05 | CR63: 0 | CS63: OOR PPA | CT63: Y | CV63: Big Horn II | CW63: PNW East | CX63: Thr | CY63: Wind | CZ63: 50 | DA63: Oct-2010 | DB63: Jan-2051 | DC63: n/a | DD63: Wind | DE63: 0 | DF63: 0 | DG63: FALSE | DH63: Cf WN PNWE | DI63: WindB1 | DJ63: Default | DK63: Default | DL63: 20 | DM63: Flat | DN63: 0 | DO63: 1 | DP63: FALSE | DQ63: TRUE | DR63: FALSE | DS63: FALSE | DT63: 0 | DU63: 0 | DV63: 0 | DW63: 100% OOR PPA | DZ63: Big Horn II | EB63: Big Horn II | EC63: 0 | ED63: 0 | EE63: 0 | EF63: 0 | EG63: 0 | EH63: 0 | EI63: 0 | EJ63: 0 | EK63: 0 | EL63: 0 | EM63: 0 | EN63: 0 | EO63: 0 | EP63: 0 | EQ63: 0 | ER63: 0 | ES63: 0 | ET63: 0 | EU63: 0 | EV63: 0 | EW63: 0 | EX63: 0 | EY63: 0 | EZ63: 0
A64: Big Sheep Creek | B64: 1030 | C64: 50091 | D64: TB1,TB2 | E64: 5118 | F64: Diversion | G64: WAT | I64: Hydro | J64: 1.6 | K64: 1.6 | L64: 1.6 | M64: 1.6 | N64: 1.6 | O64: 2 | P64: 1.6 | Q64: 1 | T64: 0.51 | W64: Operating | X64: Jun | Y64: 1986 | AA64: Big Sheep Cr. | AB64: Stevens | AC64: WA | AD64: Y | AE64: Columbia | AF64: WECC | AG64: G.M. Phillips | AH64: Independent | AI64: Avista Utilities (QF thru Jun 2021) | AP64: 2021 | AQ64: 1 | AR64: 1 | AW64: SPP | BC64: BPA | BJ64: 0.36 | BK64: 0.65 | BL64: 0.9 | BM64: 0.85 | BN64: 0.9 | BO64: 0.99 | BP64: 0.89 | BQ64: 0.94 | BR64: 1.2 | BS64: 0.8 | BT64: 0.7 | BU64: 0.8 | BV64: 0.95 | BW64: 0.85 | BX64: 0.891 | BY64: Exemption granted August 1983. | BZ64: 48.947741 | CA64: -117.795376 | CB64: 2020-03-22T20:41:20 | CC64: 1.6 | CD64: =IF(OR(J64="Wind",J64="Solar",J64="Hydro"),J64,IF(ISNUMBER(N64),N64,IF(ISNUMBER(P64), P64, IF(ISNUMBER(L64),L64,J64)))) -> 1.6 | CE64: 0.31875 | CF64: 0.51 | CH64: Y | CI64: Not accounted for in HydInd file | CK64: PNW East | CL64: HY_East | CM64: n/a | CN64: 1 | CP64: 1 | CR64: 1 | CT64: Y | CV64: Big Sheep Creek | CW64: PNW East | CX64: Thr | CY64: Hyd | CZ64: 1.6 | DA64: Jun-1986 | DB64: Jan-2051 | DC64: n/a | DD64: Water | DE64: 0 | DF64: 24 | DG64: FALSE | DH64: Cf HY East | DI64: Zero | DJ64: Expense | DK64: Default | DL64: 50 | DM64: Flat | DN64: 0 | DO64: 0 | DP64: FALSE | DQ64: TRUE | DR64: FALSE | DS64: FALSE | DT64: 0 | DU64: 0 | DV64: 0 | DZ64: Big Sheep Creek | EB64: Big Sheep Creek | EC64: 0.5228324383 | ED64: 0.686444313 | EE64: 0.6104150624 | EF64: 0.7754274479 | EG64: 0.892176468 | EH64: 0.6885743751 | EI64: 0.8013510103 | EJ64: 0.8657226538 | EK64: 1.137023252 | EL64: 1.056781162 | EM64: 1.05863507 | EN64: 0.9564888309 | EO64: 0.5228324383 | EP64: 0.686444313 | EQ64: 0.6104150624 | ER64: 0.7754274479 | ES64: 0.892176468 | ET64: 0.6885743751 | EU64: 0.8013510103 | EV64: 0.8657226538 | EW64: 1.137023252 | EX64: 1.056781162 | EY64: 1.05863507 | EZ64: 0.9564888309
A65: Big Sky West Dairy Digester | B65: 1693 | C65: 57393 | D65: GEN1,GEN2 | F65: BGICCG | G65: AW | I65: Biomass | J65: 1.5 | K65: 1.6 | L65: 1.4 | M65: 1.5 | N65: 1.4 | O65: 1.4 | P65: 1.4 | Q65: 1.4 | T65: 1.1 | W65: Operating | Y65: 2009 | AA65: Gooding | AB65: Gooding | AC65: ID | AD65: Y | AE65: Columbia | AF65: WECC | AG65: Dean Foods Co./AgPower Partners | AH65: Independent | AI65: Idaho Power (QF Jan 2009 - Jan 2029) | AP65: 2029 | AQ65: 1 | AR65: 1 | AS65: Internal thermal load | AT65: Waste digester | AW65: SPP | BC65: IPC | BL65: 1.1 | BM65: 1.03 | BN65: 1 | BO65: 0.92 | BP65: 1 | BQ65: 1 | BR65: 1 | BS65: 1.1 | BT65: 1 | BU65: 1.1 | BV65: 1.12 | BW65: 1.11 | BX65: 1.062 | BY65: Gasification of cattle waste. Anaerobic digestor and (2) Guascor SFGLD 560 750 kW nameplate reciprocating engines. | BZ65: 42.846975 | CA65: -114.800487 | CB65: 2020-03-23T13:34:47 | CC65: 1.4 | CD65: 1.4 | CE65: 0.7333333333 | CF65: 1.1 | CH65: Y | CK65: PNW West | CL65: BGIC | CM65: 10250 | CN65: 1 | CP65: 1 | CR65: 1 | CT65: Y | CV65: Big Sky West Dairy Digester | CW65: PNW West | CX65: Thr | CY65: IC | CZ65: 1.4 | DA65: Dec-2009 | DB65: Jan-2051 | DC65: 10250 | DD65: Zero-cost Biofuel | DE65: 0.047 | DF65: 56 | DG65: FALSE | DH65: MR 7d Flat | DI65: Landfill | DJ65: Default | DK65: Default | DL65: 20 | DM65: Flat | DN65: 0 | DO65: 1 | DP65: FALSE | DQ65: TRUE | DR65: FALSE | DS65: FALSE | DT65: 0 | DU65: 0 | DV65: 0 | DZ65: Big Sky West Dairy Digester | EB65: Big Sky West Dairy Digester | EC65: 1.34630137 | ED65: 1.34630137 | EE65: 1.34630137 | EF65: 1.34630137 | EG65: 1.34630137 | EH65: 1.34630137 | EI65: 1.34630137 | EJ65: 1.34630137 | EK65: 1.34630137 | EL65: 1.34630137 | EM65: 1.34630137 | EN65: 1.34630137 | EO65: 1.283025205 | EP65: 1.283025205 | EQ65: 1.283025205 | ER65: 1.283025205 | ES65: 1.283025205 | ET65: 1.283025205 | EU65: 1.283025205 | EV65: 1.283025205 | EW65: 1.283025205 | EX65: 1.283025205 | EY65: 1.283025205 | EZ65: 1.283025205
A66: Big Timber Wind Energy (Greycliff Wind) | B66: 2124 | C66: 61155 | D66: BT-MT | F66: WT | G66: WND | I66: Wind | J66: 25 | K66: 25 | P66: 25 | Q66: 25 | W66: Operating | X66: Feb | Y66: 2018 | AA66: Greycliff | AB66: Sweet Grass | AC66: MT | AD66: N | AE66: Missouri | AF66: WECC | AG66: BayWa r.e. | AH66: Independent | AI66: NorthWestern PPA (25yr PURPA) | AK66: PNW IOU | AP66: 2043 | AQ66: 1 | AR66: 1 | AW66: SPP | AX66: (14) GE 1.7-100 | AY66: 80 | AZ66: 100 | BA66: 3 | BC66: NorthWestern | BT66: 7.5 | BU66: 9 | BV66: 10.86 | BW66: 9 | BX66: 10.214 | BY66: (14) GE Energy 1.79-1.00 WTG. Design wind speed 16mph. | BZ66: 45.855428 | CA66: -109.649167 | CB66: 2018-10-22T11:07:43 | CC66: 25 | CD66: 25 | CE66: 0.32 | CF66: 8 | CH66: Y | CJ66: 100% PNW PPA | CK66: PNW East | CL66: WN_PNWE | CM66: n/a | CN66: 1 | CP66: 0.05 | CR66: 0.31 | CS66: NorthWestern | CT66: Y | CV66: Big Timber Wind Energy (Greycliff Wind) | CW66: PNW East | CX66: Thr | CY66: Wind | CZ66: 25 | DA66: Feb-2018 | DB66: Jan-2051 | DC66: n/a | DD66: Wind | DE66: 0 | DF66: 0 | DG66: FALSE | DH66: Cf WN PNWE | DI66: WindB1 | DJ66: Default | DK66: Default | DL66: 20 | DM66: Flat | DN66: 0 | DO66: 1 | DP66: FALSE | DQ66: TRUE | DR66: FALSE | DS66: FALSE | DT66: 0 | DU66: 0 | DV66: 0 | DW66: 100% PNW PPA | DZ66: Big Timber Wind Energy (Greycliff Wind) | EB66: Big Timber Wind Energy (Greycliff Wind) | EC66: 0.3525 | ED66: 0.27375 | EE66: 0.31875 | EF66: 0.36 | EG66: 0.38625 | EH66: 0.3375 | EI66: 0.40125 | EJ66: 0.40125 | EK66: 0.45375 | EL66: 0.40125 | EM66: 0.41625 | EN66: 0.40125 | EO66: 2.1855 | EP66: 1.69725 | EQ66: 1.97625 | ER66: 2.232 | ES66: 2.39475 | ET66: 2.0925 | EU66: 2.48775 | EV66: 2.48775 | EW66: 2.81325 | EX66: 2.48775 | EY66: 2.58075 | EZ66: 2.48775
A67: Big Top (Echo Wind Farm) | B67: 1980 | C67: 56968 | D67: 1 | F67: WT | G67: WND | I67: Wind | J67: 1.65 | K67: 1.7 | N67: 1.7 | O67: 1.7 | P67: 1.7 | Q67: 1.7 | W67: Operating | X67: Jul | Y67: 2009 | AA67: Echo vicinity | AB67: Morrow/Umatilla | AC67: OR | AD67: Y | AE67: Columbia | AF67: WECC | AG67: Exelon (John Deere Renwables) | AH67: Independent | AI67: PacifiCorp | AK67: PNW IOU | AQ67: 1 | AR67: 1 | AV67: PacifiCorp Irrigon Substation | AX67: (1) Vestas V82-1.65 | AY67: 80 | AZ67: 82 | BA67: 2 | BC67: PACW | BK67: 0.09 | BL67: 0.3 | BM67: 0.44 | BN67: 0.4 | BO67: 0.43 | BP67: 0.44 | BQ67: 0.394 | BR67: 0.4 | BS67: 0.3 | BT67: 0.5 | BU67: 0.4 | BV67: 0.42 | BW67: 0.45 | BX67: 0.36 | BY67: Big Top Wind Farm is a part of Echo Wind Farm (1-9). Echo Wind Farm (1-9) is powered by (10) RePower MM92 turbines and (27) Vestas V82 turbines. Echo Wind Farm has a capacity of 64.5 MW. Design wind speed 12.2mph. | BZ67: 45.724 | CA67: -119.436 | CB67: 2018-07-24T08:56:06 | CC67: 1.65 | CD67: 1.7 | CE67: 0.32 | CF67: 0.536 | CH67: Y | CJ67: 100% PNW PPA | CK67: PNW East | CL67: WN_PNWE | CM67: n/a | CN67: 1 | CP67: 0.05 | CR67: 1 | CT67: Y | CV67: Big Top (Echo Wind Farm) | CW67: PNW East | CX67: Thr | CY67: Wind | CZ67: 1.65 | DA67: Jul-2009 | DB67: Jan-2051 | DC67: n/a | DD67: Wind | DE67: 0 | DF67: 0 | DG67: FALSE | DH67: Cf WN PNWE | DI67: WindB1 | DJ67: Default | DK67: Default | DL67: 20 | DM67: Flat | DN67: 0 | DO67: 1 | DP67: FALSE | DQ67: TRUE | DR67: FALSE | DS67: FALSE | DT67: 0 | DU67: 0 | DV67: 0 | DW67: 100% PNW PPA | DZ67: Big Top (Echo Wind Farm) | EB67: Big Top (Echo Wind Farm) | EC67: 0.02397 | ED67: 0.018615 | EE67: 0.021675 | EF67: 0.02448 | EG67: 0.026265 | EH67: 0.02295 | EI67: 0.027285 | EJ67: 0.027285 | EK67: 0.030855 | EL67: 0.027285 | EM67: 0.028305 | EN67: 0.027285 | EO67: 0.4794 | EP67: 0.3723 | EQ67: 0.4335 | ER67: 0.4896 | ES67: 0.5253 | ET67: 0.459 | EU67: 0.5457 | EV67: 0.5457 | EW67: 0.6171 | EX67: 0.5457 | EY67: 0.5661 | EZ67: 0.5457
A68: Bighorn Solar | B68: 2327 | C68: 63647 | D68: PGR16 | F68: PV | G68: SOL | I68: Solar | J68: 2.2 | K68: 2.2 | W68: Operating | X68: Dec | Y68: 2020 | AA68: Salem | AB68: Marion | AC68: OR | AD68: Y | AF68: WECC | AG68: Pine Gate Renewables | AH68: Independent | AI68: PGE QF | AQ68: 1 | AR68: 1 | AW68: SPP | BV68: 0 | BW68: 0.36 | BX68: 0.386 | BY68: Per EIA, project is under construction, with est COD June 2020. | BZ68: 44.9657 | CA68: -122.95423 | CB68: 2021-05-19T12:52:22 | CC68: 2.2 | CD68: 2.2 | CE68: 0.254 | CF68: 0.5588 | CZ68: 0 | DA68: Dec-2020 | DB68: Jan-2051 | DC68: 0
A69: Biglow Canyon I | B69: 1031 | C69: 56485 | D69: 1 | F69: WT | G69: WND | I69: Wind | J69: 125.4 | K69: 125.4 | P69: 125.4 | Q69: 125.4 | T69: 41.8 | W69: Operating | X69: Dec | Y69: 2007 | AA69: Wasco | AB69: Sherman | AC69: OR | AD69: Y | AE69: Columbia | AF69: WECC | AG69: Portland General Electric | AH69: IOU | AI69: Portland General Electric | AK69: PNW IOU | AQ69: 1 | AR69: 1 | AV69: BPA John Day | AX69: (76) Vestas V82-1.65 | AY69: 79 | AZ69: 82 | BA69: 2 | BC69: BPA | BI69: 3.2 | BJ69: 43.87 | BK69: 39.25 | BL69: 35.61 | BM69: 55.51 | BN69: 126.5 | BO69: 135.94 | BP69: 130.42 | BQ69: 119.32 | BR69: 120.8 | BS69: 102.2 | BT69: 118.9 | BU69: 112.2 | BV69: 131.52 | BW69: 127.43 | BX69: 87.378 | BY69: (76) Vestas V82 1.65 MW WTG. Design wind speed 19mph. | BZ69: 45.694343 | CA69: -120.626478 | CB69: 2017-10-17T13:00:30 | CC69: 125.4 | CD69: 125.4 | CE69: 0.3333333333 | CF69: 41.8 | CH69: Y | CJ69: 100% PNW Utility Owner | CK69: PNW East | CL69: WN_PNWE | CM69: n/a | CN69: 1 | CP69: 0.05 | CR69: 1 | CT69: Y | CV69: Biglow Canyon I | CW69: PNW East | CX69: Thr | CY69: Wind | CZ69: 125.4 | DA69: Dec-2007 | DB69: Jan-2051 | DC69: n/a | DD69: Wind | DE69: 0 | DF69: 0 | DG69: FALSE | DH69: Cf WN PNWE | DI69: WindB1 | DJ69: Default | DK69: Default | DL69: 20 | DM69: Flat | DN69: 0 | DO69: 1 | DP69: FALSE | DQ69: TRUE | DR69: FALSE | DS69: FALSE | DT69: 0 | DU69: 0 | DV69: 0 | DW69: 100% PNW Utility Owner | DZ69: Biglow Canyon I | EB69: Biglow Canyon I | EC69: 1.76814 | ED69: 1.37313 | EE69: 1.59885 | EF69: 1.80576 | EG69: 1.93743 | EH69: 1.6929 | EI69: 2.01267 | EJ69: 2.01267 | EK69: 2.27601 | EL69: 2.01267 | EM69: 2.08791 | EN69: 2.01267 | EO69: 35.3628 | EP69: 27.4626 | EQ69: 31.977 | ER69: 36.1152 | ES69: 38.7486 | ET69: 33.858 | EU69: 40.2534 | EV69: 40.2534 | EW69: 45.5202 | EX69: 40.2534 | EY69: 41.7582 | EZ69: 40.2534
A70: Biglow Canyon II | B70: 1679 | C70: 56485 | D70: 2 | F70: WT | G70: WND | I70: Wind | J70: 149.5 | K70: 163.3 | P70: 163.3 | Q70: 163.3 | T70: 49.83333333 | W70: Operating | X70: Aug | Y70: 2009 | AA70: Wasco | AB70: Sherman | AC70: OR | AD70: Y | AE70: Columbia | AF70: WECC | AG70: Portland General Electric | AH70: IOU | AI70: Portland General Electric | AK70: PNW IOU | AQ70: 1 | AR70: 1 | AV70: BPA John Day | AX70: (71) Siemens SWT-2.3-93 | AY70: 80 | AZ70: 93 | BA70: 2 | BC70: BPA | BY70: (65) Siemens SWT-2.3-93 WTG. Design wind speed 19mph. | BZ70: 45.694343 | CA70: -120.626478 | CB70: 2017-10-17T13:00:33 | CC70: 149.5 | CD70: 163.3 | CE70: 0.3333333333 | CF70: 49.83333333 | CH70: Y | CJ70: 100% PNW Utility Owner | CK70: PNW East | CL70: WN_PNWE | CM70: n/a | CN70: 1 | CP70: 0.05 | CR70: 1 | CT70: Y | CV70: Biglow Canyon II | CW70: PNW East | CX70: Thr | CY70: Wind | CZ70: 149.5 | DA70: Aug-2009 | DB70: Jan-2051 | DC70: n/a | DD70: Wind | DE70: 0 | DF70: 0 | DG70: FALSE | DH70: Cf WN PNWE | DI70: WindB1 | DJ70: Default | DK70: Default | DL70: 20 | DM70: Flat | DN70: 0 | DO70: 1 | DP70: FALSE | DQ70: TRUE | DR70: FALSE | DS70: FALSE | DT70: 0 | DU70: 0 | DV70: 0 | DW70: 100% PNW Utility Owner | DZ70: Biglow Canyon II | EB70: Biglow Canyon II | EC70: 2.10795 | ED70: 1.637025 | EE70: 1.906125 | EF70: 2.1528 | EG70: 2.309775 | EH70: 2.01825 | EI70: 2.399475 | EJ70: 2.399475 | EK70: 2.713425 | EL70: 2.399475 | EM70: 2.489175 | EN70: 2.399475 | EO70: 42.159 | EP70: 32.7405 | EQ70: 38.1225 | ER70: 43.056 | ES70: 46.1955 | ET70: 40.365 | EU70: 47.9895 | EV70: 47.9895 | EW70: 54.2685 | EX70: 47.9895 | EY70: 49.7835 | EZ70: 47.9895
A71: Biglow Canyon III | B71: 1695 | C71: 56485 | D71: 3 | F71: WT | G71: WND | I71: Wind | J71: 174.8 | K71: 161 | P71: 161 | Q71: 161 | T71: 60.9 | W71: Operating | X71: Aug | Y71: 2010 | AA71: Wasco | AB71: Sherman | AC71: OR | AD71: Y | AE71: Columbia | AF71: WECC | AG71: Portland General Electric | AH71: IOU | AI71: Portland General Electric | AK71: PNW IOU | AQ71: 1 | AR71: 1 | AV71: BPA John Day | AX71: (70) Siemens SWT-2.3-93 | AY71: 80 | AZ71: 93 | BA71: 2 | BC71: BPA | BY71: (76) Siemens SWT-2.3-93 WTG. Design wind speed 19mph. | BZ71: 45.694343 | CA71: -120.626478 | CB71: 2017-10-17T13:00:36 | CC71: 174.8 | CD71: 161 | CE71: 0.3483981693 | CF71: 60.9 | CH71: Y | CJ71: 100% PNW Utility Owner | CK71: PNW East | CL71: WN_PNWE | CM71: n/a | CN71: 1 | CP71: 0.05 | CR71: 1 | CT71: Y | CV71: Biglow Canyon III | CW71: PNW East | CX71: Thr | CY71: Wind | CZ71: 174.8 | DA71: Aug-2010 | DB71: Jan-2051 | DC71: n/a | DD71: Wind | DE71: 0 | DF71: 0 | DG71: FALSE | DH71: Cf WN PNWE | DI71: WindB1 | DJ71: Default | DK71: Default | DL71: 20 | DM71: Flat | DN71: 0 | DO71: 1 | DP71: FALSE | DQ71: TRUE | DR71: FALSE | DS71: FALSE | DT71: 0 | DU71: 0 | DV71: 0 | DW71: 100% PNW Utility Owner | DZ71: Biglow Canyon III | EB71: Biglow Canyon III | EC71: =IF($CH71="N","",IF(OR($I71<>"Wind",$I71<>"Solar",$I71<>"Hydro"),($CN71*$CP71*IF(ISBLANK($L71),IF(ISBLANK($O71),$J71,$O71),$L71))*VLOOKUP($DH71,ASeasDist,EC$9,FALSE)*VLOOKUP($DM71,ASeasDist,EC$9),$J71*$CN71*$CP71)) -> 2.46468 | ED71: 1.91406 | EE71: 2.2287 | EF71: 2.51712 | EG71: 2.70066 | EH71: 2.3598 | EI71: 2.80554 | EJ71: 2.80554 | EK71: 3.17262 | EL71: 2.80554 | EM71: 2.91042 | EN71: 2.80554 | EO71: =IF($CH71="N","",IF(OR($I71<>"Wind",$I71<>"Solar",$I71<>"Hydro"),$CR71*IF(ISBLANK($L71),IF(ISBLANK($O71),$J71,$O71),$L71),$J71)*(1-$DE71)*VLOOKUP($DH71,ASeasDist,EO$9,FALSE)*VLOOKUP($DM71,ASeasDist,EO$9)) -> 49.2936 | EP71: 38.2812 | EQ71: 44.574 | ER71: 50.3424 | ES71: 54.0132 | ET71: 47.196 | EU71: 56.1108 | EV71: 56.1108 | EW71: 63.4524 | EX71: 56.1108 | EY71: 58.2084 | EZ71: 56.1108
A72: Billingsley Creek | B72: 1032 | E72: 6208 | F72: Diversion | G72: WAT | I72: Hydro | J72: 0.28 | L72: 0.2 | M72: 0.28 | T72: 0.13 | W72: Operating | Y72: 1986 | AA72: Billlingsley Cr. | AB72: Gooding | AC72: ID | AD72: Y | AE72: Columbia | AF72: WECC | AG72: Trout-Co. Inc. | AH72: Independent | AI72: Idaho Power Co. (QF thru Nov 2021) | AP72: 2021 | AQ72: 1 | AR72: 1 | BY72: Exemption granted September 1982. | CB72: 2020-03-22T20:42:07 | CC72: 0.28 | CD72: 0.2 | CE72: 0.4642857143 | CF72: 0.13 | CH72: N | CI72: <0.5 MW
A73: Biofuels Washington Renewable Energy Facility | B73: 2084 | C73: 58688 | D73: A,B,C | F73: IC | G73: LFG | I73: Biomass | J73: 4.5 | K73: 4.5 | P73: 4.5 | Q73: 4.5 | W73: Operating | X73: Dec | Y73: 2013 | AA73: Graham Landfill | AB73: Pierce | AC73: WA | AD73: Y | AE73: Columbia | AF73: WECC | AG73: BioFuels Washington, LLC | AH73: Municipal | AI73: Puget Sound Energy (RECs to be split between PSE and Benton Co. PUD) | AJ73: PSE and Benton Co. PUD | AQ73: 1 | AR73: 1 | AW73: SPP | BC73: PSE | BO73: 0.18 | BP73: 4.19 | BQ73: 3.89 | BR73: 4.2 | BS73: 4.1 | BT73: 3.9 | BU73: 3.6 | BV73: 3.56 | BX73: 3.636 | BY73: (3) 1.5 MW 3520 Caterpillar generators. DG so REC's count double. RECs split between PSE and Benton Cty PUD. | BZ73: 46.975556 | CA73: -122.290556 | CB73: 2017-10-24T09:48:24 | CC73: 4.5 | CD73: 4.5 | CE73: 0.75 | CF73: 3.375 | CH73: Y | CJ73: 100% PNW PPA | CK73: PNW West | CL73: BGIC | CM73: 11075 | CN73: 1 | CP73: 1 | CR73: 1 | CT73: Y | CV73: Biofuels Washington Renewable Energy Facility | CW73: PNW West | CX73: Thr | CY73: IC | CZ73: 4.5 | DA73: Dec-2013 | DB73: Jan-2051 | DC73: 11075 | DD73: Zero-cost Biofuel | DE73: 0.047 | DF73: 56 | DG73: FALSE | DH73: MR 7d Flat | DI73: Landfill | DJ73: Default | DK73: Default | DL73: 20 | DM73: Flat | DN73: 0 | DO73: 1 | DP73: FALSE | DQ73: TRUE | DR73: FALSE | DS73: FALSE | DT73: 0 | DU73: 0 | DV73: 0 | DW73: 100% PNW PPA | DZ73: Biofuels Washington Renewable Energy Facility | EB73: Biofuels Washington Renewable Energy Facility | EC73: 4.32739726 | ED73: 4.32739726 | EE73: 4.32739726 | EF73: 4.32739726 | EG73: 4.32739726 | EH73: 4.32739726 | EI73: 4.32739726 | EJ73: 4.32739726 | EK73: 4.32739726 | EL73: 4.32739726 | EM73: 4.32739726 | EN73: 4.32739726 | EO73: 4.124009589 | EP73: 4.124009589 | EQ73: 4.124009589 | ER73: 4.124009589 | ES73: 4.124009589 | ET73: 4.124009589 | EU73: 4.124009589 | EV73: 4.124009589 | EW73: 4.124009589 | EX73: 4.124009589 | EY73: 4.124009589 | EZ73: 4.124009589
A74: Biomass One 1 & 2 | B74: 1033 | C74: 10869 | D74: BBC,GE,GE-2 | F74: STCG | G74: WW | I74: Biomass | J74: 30 | K74: 40 | L74: 25 | M74: 25 | N74: 29 | O74: 29 | P74: 36.5 | Q74: 36.5 | W74: Operating | X74: Dec | Y74: 1985 | AA74: White City | AB74: Jackson | AC74: OR | AD74: Y | AE74: Puget Sound & Coastal | AF74: WECC | AG74: Biomass 1, L.P. | AH74: Independent | AI74: PacifiCorp (QF Dec 1985 - Dec 2011) | AP74: 2011 | AQ74: 1 | AR74: 1 | AT74: Lumber & wood products | AW74: SPP | BC74: PACW | BH74: 5.413812785 | BI74: 4.4 | BJ74: 4.31 | BK74: 14.5 | BL74: 17.3 | BM74: 13.41 | BN74: 14.6 | BO74: 19.64 | BP74: 22.28 | BQ74: 17.42 | BR74: 17.7 | BS74: 13.4 | BT74: 18.9 | BU74: 18.6 | BV74: 19.02 | BW74: 22.07 | BX74: 22.096 | BY74: Unit 1 (10 MW) operating; Unit 2 (15 MW) idle, DOE/EIA-0095(99)/2 | BZ74: 42.436 | CA74: -122.85 | CB74: 2020-04-02T15:34:49 | CC74: 25 | CD74: 29 | CE74: 0.8 | CF74: 21.6 | CH74: Y | CK74: PNW West | CL74: WWSTCG | CM74: 8000 | CN74: 1 | CP74: 1 | CR74: 1 | CT74: Y | CV74: Biomass One 1 & 2 | CW74: PNW West | CX74: Thr | CY74: STCG | CZ74: 25 | DA74: Dec-1985 | DB74: Jan-2051 | DC74: 8000 | DD74: Mill Residue | DE74: 0.07 | DF74: 56 | DG74: FALSE | DH74: MR 28d Flat | DI74: Bio1 | DJ74: Default | DK74: Default | DL74: 30 | DM74: Flat | DN74: 0 | DO74: 1 | DP74: FALSE | DQ74: TRUE | DR74: FALSE | DS74: FALSE | DT74: 0 | DU74: 0 | DV74: 0 | DZ74: Biomass One 1 & 2 | EB74: Biomass One 1 & 2 | EC74: 22.60273973 | ED74: 22.60273973 | EE74: 22.60273973 | EF74: 22.60273973 | EG74: 22.60273973 | EH74: 22.60273973 | EI74: 22.60273973 | EJ74: 22.60273973 | EK74: 22.60273973 | EL74: 22.60273973 | EM74: 22.60273973 | EN74: 22.60273973 | EO74: 21.02054795 | EP74: 21.02054795 | EQ74: 21.02054795 | ER74: 21.02054795 | ES74: 21.02054795 | ET74: 21.02054795 | EU74: 21.02054795 | EV74: 21.02054795 | EW74: 21.02054795 | EX74: 21.02054795 | EY74: 21.02054795 | EZ74: 21.02054795
A75: Biotech/Life Sciences Building Generator 836 | B75: 1993 | C75: 56932 | D75: BLS1 | F75: IC | G75: FO2 | I75: Petroleum | J75: 1 | K75: 1 | N75: 1 | O75: 1 | P75: 1 | Q75: 1 | W75: Operating | X75: May | Y75: 2009 | AA75: Pullman | AB75: Whitman | AC75: WA | AD75: Y | AE75: Columbia | AF75: WECC | AG75: State of Washington | AH75: Independent | AI75: Load-side emrg. | AQ75: 1 | AR75: 0 | BC75: Avista | BL75: 0 | BM75: 0 | BN75: 0 | BO75: 0 | BP75: 0 | BQ75: 0 | BR75: 0 | BS75: 0 | BT75: 0 | BU75: 0 | BV75: 0 | BW75: 0 | BX75: 0 | BY75: (1) 1MW FO IC unit | BZ75: 46.7331 | CA75: -117.1583 | CB75: 2017-10-17T13:03:01 | CC75: =IF(OR(I75="Wind",I75="Solar",I75="Hydro"),J75,IF(ISNUMBER(L75),L75,IF(ISNUMBER(O75), O75, IF(ISNUMBER(Q75),Q75,J75)))) -> 1 | CD75: 1 | CE75: =IF(OR(ISBLANK(J75),ISBLANK(T75),J75=0),VLOOKUP(IF(G75="WAT","HY",IF(G75="LFG","LFG",F75)),Acapability,3,FALSE),T75/J75) -> 0.93 | CF75: =IF(ISNUMBER(T75),T75,AVERAGE(CC75,CD75)*CE75) -> 0.93 | CH75: Y | CK75: PNW East | CL75: NGIC_PNWE | CM75: 10100 | CN75: 1 | CP75: 1 | CR75: 0 | CV75: =IF($CH75="Y",A75,"") -> Biotech/Life Sciences Building Generator 836 | CW75: =IF($CH75="Y",CK75,"") -> PNW East | CX75: =IF(CH75="N","",VLOOKUP($CL75,ATechDat,2,FALSE)) -> Thr | CY75: =IF(CH75="N","",VLOOKUP($CL75,ATechDat,3,FALSE)) -> IC | CZ75: =IF($CH75="N","",IF($I75<>"Wind",($CN75*$CP75*IF(ISBLANK($L75),IF(ISBLANK($O75),$J75,$O75),$L75)),$J75*IF(AND($I75="Wind",SWFullWind="Y"),1,$CN75*$CP75))) -> 1 | DA75: =IF(CH75="N","",IF(ISBLANK(X75),"Dec",X75)&"-"&IF(ISBLANK(Y75),1980,Y75)) -> May-2009 | DB75: =IF(CH75="N","",IF(W75="Retired",Z75,"Jan-2051")) -> Jan-2051 | DC75: =IF(CH75="N","",CM75) -> 10100 | DD75: =IF(CH75="N","",VLOOKUP($CL75,ATechDat,4,FALSE)) -> PNW E. gas | DE75: =IF(CH75="N","",VLOOKUP($CL75,ATechDat,5,FALSE)) -> 0.047 | DF75: =IF(CH75="N","",VLOOKUP($CL75,ATechDat,6,FALSE)) -> 56 | DG75: =IF(CH75="N","",VLOOKUP($CL75,ATechDat,7,FALSE)) -> FALSE | DH75: =IF(CH75="N","",VLOOKUP($CL75,ATechDat,8,FALSE)) -> MR 7d Winter Pk_Hydro | DI75: =IF(CH75="N","",VLOOKUP($CL75,ATechDat,9,FALSE)) -> NG Recip Peaking E | DJ75: =IF(CH75="N","",VLOOKUP($CL75,ATechDat,10,FALSE)) -> Default | DK75: =IF(CH75="N","",VLOOKUP($CL75,ATechDat,11,FALSE)) -> Default | DL75: =IF(CH75="N","",VLOOKUP($CL75,ATechDat,12,FALSE)) -> 30 | DM75: =IF(CH75="N","",VLOOKUP($CL75,ATechDat,13,FALSE)) -> Flat | DN75: =IF(CH75="N","",VLOOKUP($CL75,ATechDat,14,FALSE)) -> 0 | DO75: =IF(CH75="N","",VLOOKUP($CL75,ATechDat,15,FALSE)) -> 0 | DP75: =IF(CH75="N","",VLOOKUP($CL75,ATechDat,16,FALSE)) -> FALSE | DQ75: =IF(CH75="N","",VLOOKUP($CL75,ATechDat,17,FALSE)) -> TRUE | DR75: =IF(CH75="N","",VLOOKUP($CL75,ATechDat,18,FALSE)) -> FALSE | DS75: =IF(CH75="N","",VLOOKUP($CL75,ATechDat,19,FALSE)) -> FALSE | DT75: =IF(CH75="N","",VLOOKUP($CL75,ATechDat,20,FALSE)) -> 0 | DU75: =IF(CH75="N","",VLOOKUP($CL75,ATechDat,21,FALSE)) -> 0 | DV75: =IF(CH75="N","",VLOOKUP($CL75,ATechDat,22,FALSE)) -> 0 | DW75: =IF(ISBLANK(CJ75),"",CJ75) ->  | DZ75: =IF(CH75="N","",CV75) -> Biotech/Life Sciences Building Generator 836 | EB75: =CV75 -> Biotech/Life Sciences Building Generator 836 | EC75: 1 | ED75: 1 | EE75: 1 | EF75: 1 | EG75: 1 | EH75: 1 | EI75: 0.9342465753 | EJ75: 0.8684931507 | EK75: 0.8684931507 | EL75: 0.8684931507 | EM75: 1 | EN75: 1 | EO75: 0 | EP75: 0 | EQ75: 0 | ER75: 0 | ES75: 0 | ET75: 0 | EU75: 0 | EV75: 0 | EW75: 0 | EX75: 0 | EY75: 0 | EZ75: 0
A76: Birch Creek | B76: 1034 | C76: 10140 | D76: GEN1 | E76: 7194 | F76: Canal | G76: WAT | I76: Hydro | J76: 2.6 | K76: 2.6 | L76: 0 | M76: 0.31 | N76: 2.6 | O76: 2.6 | P76: 2.6 | Q76: 2.6 | V76: 0 | W76: Operating | X76: Apr | Y76: 1986 | AA76: Birch Cr. | AB76: Clark | AC76: ID | AD76: Y | AE76: Columbia | AF76: WECC | AG76: Birch Power Co. & T.S. Sorenson | AH76: Independent | AI76: Idaho Power Co. (QF thru Oct 2019) | AP76: 2019 | AQ76: 1 | AR76: 1 | AW76: SPP | BC76: PACE | BH76: 0.5530821918 | BI76: 0.4 | BJ76: 0.46 | BK76: 1.29 | BL76: 1.2 | BM76: 1.49 | BN76: 1.8 | BO76: 1.4 | BP76: 1.51 | BQ76: 1.4 | BR76: 1.3 | BS76: 1.1 | BT76: 1.5 | BU76: 1.5 | BV76: 1.25 | BW76: 1.41 | BX76: 1.275 | BY76: License granted May 1986; expires April 2036. Critical energy from PNUCC 2005 NRF | BZ76: 44.027444 | CA76: -112.719439 | CB76: 2020-03-22T20:42:35 | CC76: 2.6 | CD76: 2.6 | CE76: 0.427 | CF76: 1.1102 | CH76: Y | CI76: Not accounted for in HydInd file | CK76: PNW East | CL76: HY_Irr | CM76: n/a | CN76: 1 | CP76: 1 | CR76: 1 | CT76: Y | CV76: Birch Creek | CW76: PNW East | CX76: Thr | CY76: Hyd | CZ76: 0 | DA76: Apr-1986 | DB76: Jan-2051 | DC76: n/a | DD76: Water | DE76: 0 | DF76: 24 | DG76: FALSE | DH76: Cf HY Irr | DI76: Zero | DJ76: Expense | DK76: Default | DL76: 50 | DM76: Flat | DN76: 0 | DO76: 0 | DP76: FALSE | DQ76: TRUE | DR76: FALSE | DS76: FALSE | DT76: 0 | DU76: 0 | DV76: 0 | DZ76: Birch Creek | EB76: Birch Creek | EC76: 0 | ED76: 0 | EE76: 0 | EF76: 0 | EG76: 0 | EH76: 0 | EI76: 0 | EJ76: 0 | EK76: 0 | EL76: 0 | EM76: 0 | EN76: 0 | EO76: 0 | EP76: 0 | EQ76: 0 | ER76: 0 | ES76: 0 | ET76: 0 | EU76: 0 | EV76: 0 | EW76: 0 | EX76: 0 | EY76: 0 | EZ76: 0
A77: Birch Creek B | B77: 1035 | E77: 6458B | F77: Conduit | G77: WAT | I77: Hydro | J77: 0.05 | L77: 0.3 | M77: 0.04 | N77: 0.05 | O77: 0.05 | V77: 1 | W77: Operating | Y77: 1984 | AA77: Birch Cr. | AB77: Gooding | AC77: ID | AD77: Y | AE77: Columbia | AF77: WECC | AG77: E. Jensen | AH77: Independent | AI77: PacifiCorp (QF thru Mar 2021) | AP77: 2021 | AQ77: 1 | AR77: 1 | BY77: Exemption granted December 1982. Critical energy from PNUCC 2005 NRF | CB77: 2020-03-22T20:42:42 | CC77: 0.05 | CD77: 0.05 | CE77: 0.427 | CF77: 0.02135 | CH77: N | CI77: <0.5 MW
A78: Black Canyon 1 - 2 | B78: 1036 | C78: 6396 | D78: 1,2 | E78: FCRPS | F78: Storage | G78: WAT | I78: Hydro | J78: 10.2 | K78: 10.2 | M78: 3.27 | N78: 12 | O78: 6 | P78: 10.2 | Q78: 10.2 | T78: 8 | W78: Operating | Y78: 1986 | AA78: Payette R. | AB78: Gem | AC78: ID | AD78: Y | AE78: Columbia | AF78: WECC | AG78: USBR | AH78: Federal | AI78: BPA | AL78: Rewound units. | AQ78: 1 | AR78: 1 | BC78: IPC | BD78: 6.6 | BE78: 7.6 | BF78: 5 | BG78: 1.516210046 | BH78: 2.571803653 | BI78: 5.1 | BJ78: 1.51 | BK78: 7.08 | BL78: 6.5 | BM78: 7.66 | BN78: 7 | BO78: 6.35 | BP78: 7.27 | BQ78: 7.01 | BR78: 7.1 | BS78: 7.4 | BT78: 7.1 | BU78: 6.2 | BV78: 6.9 | BW78: 6.73 | BX78: 6.351 | BZ78: 43.9304438 | CA78: -116.4365228 | CB78: 2020-03-29T22:02:56 | CC78: 10.2 | CD78: 12 | CE78: 0.7843137255 | CF78: 8 | CG78: Independent | CH78: N | CI78: Accounted for in HydInd file
A79: Black Canyon No. 3 | B79: 1037 | E79: 6137 | F79: Canal | G79: WAT | I79: Hydro | J79: 0.1 | M79: 0 | N79: 0 | O79: 0 | V79: 0 | W79: Operating | Y79: 1983 | AA79: N. Gooding Main Cnl. | AB79: Gem | AC79: ID | AD79: Y | AE79: Columbia | AF79: WECC | AG79: W. & S. Brown | AH79: Independent | AI79: Idaho Power Co. (QF thru Apr 2019) | AP79: 2019 | AQ79: 1 | AR79: 1 | BY79: Exemption granted July 1982. Critical energy from PNUCC 2005 NRF | CB79: 2020-03-22T20:42:56 | CC79: 0.1 | CD79: 0 | CE79: 0.427 | CF79: 0.02135 | CH79: N | CI79: <0.5 MW
A80: Black Cap Solar II (PSEG Lake County Solar Energy Center, BC Solar) | B80: 2162 | C80: 60616 | D80: BCSLR | F80: PV | G80: SOL | I80: Solar | J80: 8 | K80: 8 | P80: 8 | Q80: 8 | W80: Operating | X80: Dec | Y80: 2016 | AA80: Lakeview | AB80: Lake | AC80: OR | AD80: Y | AE80: Klamath | AF80: WECC | AG80: PSEG (purchased from Obsidian Nov 2016) | AH80: Independent | AI80: PacifiCorp (QF thru 2036) | AP80: 2036 | AQ80: 1 | AR80: 1 | AW80: SPP | BB80: Single-axis | BC80: PACW | BS80: 2 | BT80: 2.1 | BU80: 2.1 | BV80: 2.07 | BW80: 2.04 | BX80: 2.097 | BY80: Crystalline silicone. 10.5MWdc, azimuth angle 90. | BZ80: 42.175 | CA80: -120.3598 | CB80: 2017-11-15T10:52:54 | CC80: 8 | CD80: 8 | CE80: 0.254 | CF80: 2.032 | CH80: y | CK80: PNW East | CL80: PV | CM80: n/a | CN80: 1 | CP80: 0.75 | CR80: 1 | CT80: Y | CV80: Black Cap Solar II (PSEG Lake County Solar Energy Center, BC Solar) | CW80: PNW East | CX80: Thr | CY80: PV | CZ80: 6 | DA80: Dec-2016 | DB80: Jan-2051 | DC80: n/a | DD80: Solar | DE80: 0 | DF80: 0 | DG80: FALSE | DH80: Cf PV | DI80: SolarPV | DJ80: Default | DK80: Default | DL80: 30 | DM80: Flat | DN80: 0 | DO80: 1 | DP80: FALSE | DQ80: TRUE | DR80: FALSE | DS80: FALSE | DT80: 0 | DU80: 0 | DV80: 0 | DZ80: Black Cap Solar II (PSEG Lake County Solar Energy Center, BC Solar) | EB80: Black Cap Solar II (PSEG Lake County Solar Energy Center, BC Solar) | EC80: 1.774171333 | ED80: 1.152351687 | EE80: 0.5329152546 | EF80: 0.4405433018 | EG80: 0.5060163523 | EH80: 0.8549536541 | EI80: 1.36739575 | EJ80: 1.621186218 | EK80: 2.115090036 | EL80: 2.32171077 | EM80: 2.395678435 | EN80: 2.145210798 | EO80: 2.365561778 | EP80: 1.536468916 | EQ80: 0.7105536727 | ER80: 0.5873910691 | ES80: 0.6746884698 | ET80: 1.139938206 | EU80: 1.823194333 | EV80: 2.161581624 | EW80: 2.820120049 | EX80: 3.09561436 | EY80: 3.194237913 | EZ80: 2.860281064
A81: Black Cap Solar Project | B81: 2012 | C81: 58150 | D81: 1 | F81: PV | G81: SOL | I81: Solar | J81: 2 | K81: 2 | P81: 2 | Q81: 2 | W81: Operating | X81: Oct | Y81: 2012 | AA81: Near Lakeview, OR | AB81: Lake | AC81: OR | AD81: Y | AE81: Klamath | AF81: WECC | AG81: Obsidian Finance Group/ Black Cap Solar LLC; PacifiCorp owns the project's rights and land | AH81: Independent | AI81: PacifiCorp | AJ81: PacifiCorp (bundled RECs) - 2x multiplier for solar in OR | AQ81: 1 | AR81: 1 | BB81: Single-axis | BC81: PACW | BN81: 0.1 | BO81: 0.54 | BP81: 0.49 | BQ81: 0.51 | BR81: 0.5 | BS81: 0.5 | BT81: 0.5 | BU81: 0.4 | BV81: 0.41 | BW81: 0.37 | BX81: 0.449 | BY81: Crystalline silicone. 2.6MWdc, azimuth angle 90. (8,976) PV modules mounted on single-axis trackers. | BZ81: 42.171 | CA81: -120.361 | CB81: 2017-10-17T13:07:29 | CC81: 2 | CD81: 2 | CE81: 0.254 | CF81: 0.508 | CH81: Y | CK81: PNW East | CL81: PV | CM81: n/a | CN81: 1 | CP81: 0.75 | CR81: 1 | CT81: Y | CV81: Black Cap Solar Project | CW81: PNW East | CX81: Thr | CY81: PV | CZ81: 1.5 | DA81: Oct-2012 | DB81: Jan-2051 | DC81: n/a | DD81: Solar | DE81: 0 | DF81: 0 | DG81: FALSE | DH81: Cf PV | DI81: SolarPV | DJ81: Default | DK81: Default | DL81: 30 | DM81: Flat | DN81: 0 | DO81: 1 | DP81: FALSE | DQ81: TRUE | DR81: FALSE | DS81: FALSE | DT81: 0 | DU81: 0 | DV81: 0 | DZ81: Black Cap Solar Project | EB81: Black Cap Solar Project | EC81: =IF($CH81="N","",IF(OR($I81<>"Wind",$I81<>"Solar",$I81<>"Hydro"),($CN81*$CP81*IF(ISBLANK($L81),IF(ISBLANK($O81),$J81,$O81),$L81))*VLOOKUP($DH81,ASeasDist,EC$9,FALSE)*VLOOKUP($DM81,ASeasDist,EC$9),$J81*$CN81*$CP81)) -> 0.4435428333 | ED81: 0.2880879218 | EE81: 0.1332288136 | EF81: 0.1101358255 | EG81: 0.1265040881 | EH81: 0.2137384135 | EI81: 0.3418489374 | EJ81: 0.4052965544 | EK81: 0.5287725091 | EL81: 0.5804276925 | EM81: 0.5989196088 | EN81: 0.5363026994 | EO81: =IF($CH81="N","",IF(OR($I81<>"Wind",$I81<>"Solar",$I81<>"Hydro"),$CR81*IF(ISBLANK($L81),IF(ISBLANK($O81),$J81,$O81),$L81),$J81)*(1-$DE81)*VLOOKUP($DH81,ASeasDist,EO$9,FALSE)*VLOOKUP($DM81,ASeasDist,EO$9)) -> 0.5913904444 | EP81: 0.384117229 | EQ81: 0.1776384182 | ER81: 0.1468477673 | ES81: 0.1686721174 | ET81: 0.2849845514 | EU81: 0.4557985833 | EV81: 0.5403954059 | EW81: 0.7050300122 | EX81: 0.77390359 | EY81: 0.7985594784 | EZ81: 0.7150702659
A82: Black Creek | B82: 1038 | C82: 54860 | D82: GEN1 | E82: 6221 | F82: Diversion | G82: WAT | I82: Hydro | J82: 3.7 | K82: 3.7 | L82: 3.7 | M82: 3.7 | N82: 2 | O82: 0 | P82: 3.7 | Q82: 3.7 | T82: 2 | V82: 2 | W82: Operating | X82: Feb | Y82: 1994 | AA82: Black Cr. | AB82: King | AC82: WA | AD82: Y | AE82: Puget Sound & Coastal | AF82: WECC | AG82: Black Creek Hydro, Inc. | AH82: Independent | AI82: Listed NUG per 2009 White Book | AQ82: 1 | AR82: 1 | BC82: PSE | BJ82: 0.04 | BK82: 0.71 | BL82: 1.3 | BM82: 1.49 | BN82: 1.3 | BO82: 1.47 | BP82: 1.61 | BQ82: 0.73 | BR82: 1.4 | BS82: 1.3 | BT82: 1.3 | BU82: 0.9 | BV82: 1.48 | BW82: 1.27 | BX82: 0.68 | BY82: License granted July 1988; expires June 2038. Critical energy from PNUCC 2005 NRF. Certified Low-impact. | BZ82: 47.534465 | CA82: -121.702596 | CB82: 2020-03-22T20:43:06 | CC82: 3.7 | CD82: 2 | CE82: 0.5405405405 | CF82: 2 | CH82: Y | CI82: Not accounted for in HydInd file | CK82: PNW West | CL82: HY_West | CM82: n/a | CN82: 1 | CP82: 1 | CR82: 1 | CT82: Y | CV82: Black Creek | CW82: PNW West | CX82: Thr | CY82: Hyd | CZ82: 3.7 | DA82: Feb-1994 | DB82: Jan-2051 | DC82: n/a | DD82: Water | DE82: 0 | DF82: 24 | DG82: FALSE | DH82: Cf HY West | DI82: Zero | DJ82: Expense | DK82: Default | DL82: 50 | DM82: Flat | DN82: 0 | DO82: 0 | DP82: FALSE | DQ82: TRUE | DR82: FALSE | DS82: FALSE | DT82: 0 | DU82: 0 | DV82: 0 | DZ82: Black Creek | EB82: Black Creek | EC82: 1.214994102 | ED82: 1.347381213 | EE82: 1.837020388 | EF82: 2.005013682 | EG82: 1.939692847 | EH82: 1.451998682 | EI82: 1.527670029 | EJ82: 1.562898097 | EK82: 1.731711876 | EL82: 1.739265171 | EM82: 1.647158673 | EN82: 1.702451145 | EO82: 1.214994102 | EP82: 1.347381213 | EQ82: 1.837020388 | ER82: 2.005013682 | ES82: 1.939692847 | ET82: 1.451998682 | EU82: 1.527670029 | EV82: 1.562898097 | EW82: 1.731711876 | EX82: 1.739265171 | EY82: 1.647158673 | EZ82: 1.702451145
A83: Black Eagle 1 - 3 | B83: 1039 | C83: 2181 | D83: BLA1,BLA2,BLA3 | E83: 2188E | F83: ROR | G83: WAT | I83: Hydro | J83: 20.9 | K83: 24 | N83: 21 | O83: 21 | P83: 21 | Q83: 21 | T83: 15.45 | W83: Operating | X83: Sep | Y83: 1927 | AA83: Missouri R. | AB83: Cascade | AC83: MT | AD83: N | AE83: Missouri | AF83: WECC | AG83: Northwestern Energy purchased from PPL Montana, finalized Nov. 2014. | AH83: IOU | AI83: Northwestern Energy | AL83: Unit 1 planned to come offline at end of April for turbine replacement (1.5MW upgrade) - scheduled to be back online Q1 2021. | AQ83: 0.31 | AR83: 0.31 | BC83: NorthWestern | BJ83: 14.41 | BK83: 16.28 | BL83: 16.2 | BM83: 16.79 | BN83: 13.8 | BO83: 12.56 | BP83: 13.81 | BQ83: 14.53 | BR83: 13.5 | BS83: 14.4 | BT83: 15.8 | BU83: 16.2 | BV83: 13.57 | BW83: 11.39 | BX83: 11.199 | BY83: Original License granted April 1956; expired November 1994. | BZ83: 47.52027 | CA83: -111.26248 | CB83: 2020-03-25T12:15:49 | CC83: 20.9 | CD83: 21 | CE83: 0.7392344498 | CF83: 15.45 | CH83: Y | CI83: Not accounted for in HydInd file | CJ83: 100% PNW Utility Owner | CK83: PNW East | CL83: HY_Missouri | CM83: n/a | CN83: 0.31 | CO83: NorthWestern | CP83: 1 | CR83: 0.31 | CS83: NorthWestern | CV83: Black Eagle 1 - 3 | CW83: PNW East | CX83: Thr | CY83: Hyd | CZ83: 6.51 | DA83: Sep-1927 | DB83: Jan-2051 | DC83: n/a | DD83: Water | DE83: 0 | DF83: 24 | DG83: FALSE | DH83: Cf HY Missouri | DI83: Zero | DJ83: Expense | DK83: Default | DL83: 50 | DM83: Flat | DN83: 0 | DO83: 0 | DP83: FALSE | DQ83: TRUE | DR83: FALSE | DS83: FALSE | DT83: 0 | DU83: 0 | DV83: 0 | DW83: 100% PNW Utility Owner | DZ83: Black Eagle 1 - 3 | EB83: Black Eagle 1 - 3 | EC83: 3.379686823 | ED83: 3.602130201 | EE83: 3.876103492 | EF83: 4.099840339 | EG83: 4.109681255 | EH83: 4.003156764 | EI83: 4.046527414 | EJ83: 4.387865257 | EK83: 5.103190672 | EL83: 7.01600909 | EM83: 5.106070607 | EN83: 3.629591953 | EO83: 3.379686823 | EP83: 3.602130201 | EQ83: 3.876103492 | ER83: 4.099840339 | ES83: 4.109681255 | ET83: 4.003156764 | EU83: 4.046527414 | EV83: 4.387865257 | EW83: 5.103190672 | EX83: 7.01600909 | EY83: 5.106070607 | EZ83: 3.629591953
A84: Black Eagle Solar | B84: 2226 | C84: 61336 | D84: BESMT | F84: PV | G84: SOL | I84: Solar | J84: 3 | K84: 3 | P84: 3 | Q84: 3 | T84: =6520/8760 -> 0.7442922374 | W84: Operating | X84: Sep | Y84: 2017 | AA84: Black Eagle, MT | AB84: Cascade | AC84: MT | AD84: N | AE84: Missouri | AF84: WECC | AG84: Developed by Cypress Creek Renewables, owned by Enerparc. | AH84: Independent | AI84: NorthWestern Energy (25yr PPA) | AP84: 2042 | AQ84: 0.31 | AR84: 0.31 | AW84: SPP | BB84: Single-axis | BC84: NorthWestern | BS84: 0.1 | BT84: 0.7 | BU84: 0.7 | BV84: 0.69 | BW84: 0.65 | BX84: 0.606 | BY84: Crystalline silicone. 4.1MWdc, azimuth angle 90, tilt 45. ~35 acres, 10,000-12,000 panels | BZ84: 47.547466 | CA84: -111.253974 | CB84: 2018-01-06T11:14:22 | CC84: 3 | CD84: 3 | CE84: 0.2480974125 | CF84: 0.7442922374 | CH84: Y | CI84: Northwestern PPA | CJ84: 100% PNW PPA | CK84: PNW East | CL84: PV | CN84: 0.31 | CO84: NorthWestern | CP84: 0.75 | CR84: 0.31 | CS84: NorthWestern | CT84: Y | CV84: Black Eagle Solar | CW84: PNW East | CX84: Thr | CY84: PV | CZ84: 0.6975 | DA84: Sep-2017 | DB84: Jan-2051 | DC84: 0 | DD84: Solar | DE84: 0 | DF84: 0 | DG84: FALSE | DH84: Cf PV | DI84: SolarPV | DJ84: Default | DK84: Default | DL84: 30 | DM84: Flat | DN84: 0 | DO84: 1 | DP84: FALSE | DQ84: TRUE | DR84: FALSE | DS84: FALSE | DT84: 0 | DU84: 0 | DV84: 0 | DW84: 100% PNW PPA | DZ84: Black Eagle Solar | EB84: Black Eagle Solar | EC84: 0.2062474175 | ED84: 0.1339608836 | EE84: 0.06195139834 | EF84: 0.05121315884 | EG84: 0.05882440096 | EH84: 0.09938836229 | EI84: 0.1589597559 | EJ84: 0.1884628978 | EK84: 0.2458792167 | EL84: 0.269898877 | EM84: 0.2784976181 | EN84: 0.2493807552 | EO84: 0.2749965567 | EP84: 0.1786145115 | EQ84: 0.08260186446 | ER84: 0.06828421179 | ES84: 0.07843253461 | ET84: 0.1325178164 | EU84: 0.2119463412 | EV84: 0.2512838637 | EW84: 0.3278389557 | EX84: 0.3598651694 | EY84: 0.3713301574 | EZ84: 0.3325076737
A85: Black Mesa | C85: 66569 | F85: PV | G85: SOL | I85: Solar | J85: 40 | W85: Operating | X85: Jun | Y85: 2023 | AB85: Elmore | AC85: ID
A86: Blind Canyon | B86: 1040 | C86: 54514 | D86: 1 | E86: 8375 | F86: Diversion | G86: WAT | I86: Hydro | J86: 1.3 | K86: 1.3 | L86: 0 | M86: 0 | N86: 0.62 | O86: 0 | P86: 1.3 | Q86: 1.3 | V86: 0 | W86: Operating | X86: Apr | Y86: 1992 | AA86: Blind Canyon Spr. | AB86: Gooding | AC86: ID | AD86: Y | AE86: Columbia | AF86: WECC | AG86: Blind Canyon Aquaranch, Inc. | AH86: Independent | AI86: Idaho Power Co. (QF thru Apr 2014; Dec 2014 - Dec 2034) | AP86: 2034 | AQ86: 1 | AR86: 1 | AW86: SPP | BC86: IPC | BJ86: 0.44 | BK86: 0.5 | BL86: 0.5 | BM86: 0.63 | BN86: 0.5 | BO86: 0.32 | BP86: 0.38 | BQ86: 0.45 | BR86: 0.4 | BS86: 0.5 | BT86: 0.5 | BU86: 0.2 | BV86: 0.59 | BW86: 0.51 | BX86: 0.472 | BY86: Exemption granted October 1985 Critical energy from PNUCC 2005 NRF | BZ86: 42.69984 | CA86: -114.822603 | CB86: 2020-03-22T20:43:21 | CC86: 1.3 | CD86: 0.62 | CE86: 0.427 | CF86: 0.40992 | CH86: Y | CI86: Not accounted for in HydInd file | CK86: PNW East | CL86: HY_Irr | CM86: n/a | CN86: 1 | CP86: 1 | CR86: 1 | CT86: Y | CV86: Blind Canyon | CW86: PNW East | CX86: Thr | CY86: Hyd | CZ86: 0 | DA86: Apr-1992 | DB86: Jan-2051 | DC86: n/a | DD86: Water | DE86: 0 | DF86: 24 | DG86: FALSE | DH86: Cf HY Irr | DI86: Zero | DJ86: Expense | DK86: Default | DL86: 50 | DM86: Flat | DN86: 0 | DO86: 0 | DP86: FALSE | DQ86: TRUE | DR86: FALSE | DS86: FALSE | DT86: 0 | DU86: 0 | DV86: 0 | DZ86: Blind Canyon | EB86: Blind Canyon | EC86: 0 | ED86: 0 | EE86: 0 | EF86: 0 | EG86: 0 | EH86: 0 | EI86: 0 | EJ86: 0 | EK86: 0 | EL86: 0 | EM86: 0 | EN86: 0 | EO86: 0 | EP86: 0 | EQ86: 0 | ER86: 0 | ES86: 0 | ET86: 0 | EU86: 0 | EV86: 0 | EW86: 0 | EX86: 0 | EY86: 0 | EZ86: 0
A87: Bliss 1 - 3 | B87: 1041 | C87: 810 | D87: 1,2,3 | E87: 1975 | F87: ROR | G87: WAT | I87: Hydro | J87: 75 | K87: 75 | M87: 75 | N87: 75 | O87: 75 | P87: 81.4 | Q87: 77.9 | T87: 42 | V87: 42 | W87: Operating | X87: Nov | Y87: 1949 | AA87: Snake R. | AB87: Gooding | AC87: ID | AD87: Y | AE87: Columbia | AF87: WECC | AG87: Idaho Power Co. | AH87: IOU | AI87: Idaho Power Co. | AQ87: 1 | AR87: 1 | BC87: IPC | BJ87: 36 | BK87: 44.32 | BL87: 38.4 | BM87: 58.63 | BN87: 42 | BO87: 33.31 | BP87: 34.42 | BQ87: 35.6 | BR87: 32.8 | BS87: 39.2 | BT87: 40.4 | BU87: 44.3 | BV87: 41.33 | BW87: 34.58 | BX87: 31.909 | BY87: Original license granted March 1948; expired February 1998. Relicense granted Aug 2004. Critical energy from PNUCC 2005 NRF | BZ87: 42.913 | CA87: -115.07 | CB87: 2020-03-21T21:12:28 | CC87: 75 | CD87: 75 | CE87: 0.56 | CF87: 42 | CG87: Independent | CH87: N | CI87: Accounted for in HydInd file
A88: Blue Heron Paper | B88: 1042 | F88: STCG | G88: NG | H88: FO | I88: Natural Gas | J88: 15 | W88: Retired | Z88: 2011 | AA88: Oregon City | AB88: Clackamas | AC88: OR | AD88: Y | AE88: Columbia | AF88: WECC | AG88: Blue Heron Paper Co. | AH88: Independent | AI88: Retired | AQ88: 0 | AR88: 0 | AS88: Blue Heron Paper | AT88: Groundwood, deinking, newsprint mills | AU88: Williams Northwest | BY88: Was Smurfit Stone Container Corp. | BZ88: 45.355 | CA88: -122.6128 | CB88: 2020-03-25T22:01:16 | CC88: 15 | CD88: 15 | CE88: 0.8 | CF88: 12 | CH88: N | CI88: 100% Self-gen
A89: Blue Mountain Lumber Products | B89: 1043 | F89: STCG | G89: WW | I89: Biomass | J89: 3.5 | W89: Retired | Y89: 1986 | Z89: 1996 | AA89: Long Creek | AB89: Grant | AC89: OR | AD89: Y | AE89: Columbia | AF89: WECC | AG89: Blue Mtn Forest Products | AH89: Independent | AI89: Retired | AQ89: 0 | AR89: 0 | AS89: Blue Mountain Forest Products | AT89: Lumber & wood products | BG89: n/a | BH89: n/a | BY89: Sold and to be dismantled. | CB89: 2005-02-10 | CC89: 3.5 | CD89: 3.5 | CE89: 0.8 | CF89: 2.8 | CH89: N | CI89: Retired
A90: Blundell II | B90: 2029 | C90: 299 | D90: 2 | F90: GB | G90: GST | I90: Geothermal | J90: 14.1 | K90: 12 | P90: 11 | Q90: 9 | W90: Operating | X90: Dec | Y90: 2007 | AA90: Roosevelt Hot Springs, Milford, UT | AB90: Beaver | AC90: UT | AD90: N | AF90: WECC | AG90: PacifiCorp | AH90: IOU | AI90: PacifiCorp | AJ90: PacifiCorp (bundled RECs) | AQ90: 1 | AR90: 1 | BC90: PACE | BY90: Blundell II - employs "bottoming" cycle of binary heat-recovery process to extract more energy from hot geothermal brine left over from steam seperation cycle. 26.1 MW Blundell I uses "flash" technology, operating in 1984. | BZ90: 38.486 | CA90: -112.852 | CB90: 2020-03-26T10:41:06 | CC90: 9 | CD90: 11 | CE90: 0.9 | CF90: 9 | CH90: N | CI90: PACE; Utah | CM90: 20000
A91: Bly Solar Center | B91: 2163 | C91: 62272 | F91: PV | G91: SOL | I91: Solar | J91: 8.5 | K91: 8.5 | W91: Operating | X91: Jun | Y91: 2018 | AA91: Bonanza | AB91: Klamath | AC91: OR | AD91: Y | AE91: Klamath | AF91: WECC | AG91: GCL Energy Holdings | AH91: Independent | AI91: Pacificorp (20yr QF PPA) | AJ91: PacifiCorp (bunded RECs) | AP91: 2038 | AQ91: 1 | AR91: 1 | BB91: Single-axis | BC91: PACW | BT91: 0.1 | BU91: 2.1 | BV91: 2.35 | BW91: 2.24 | BX91: 2.456 | BY91: Crystalline silicone. Single-axis tracker. 11MWdc. | BZ91: 42.379312 | CA91: -121.018481 | CB91: 2019-11-22T12:15:37 | CC91: 8.5 | CD91: 8.5 | CE91: 0.254 | CF91: 2.159 | CH91: Y | CI91: PAC PURPA PPA | CJ91: 100% PNW PPA | CK91: PNW West | CL91: PV | CN91: 1 | CP91: 0.75 | CR91: 1 | CT91: Y | CV91: Bly Solar Center | CW91: PNW West | CX91: Thr | CY91: PV | CZ91: 6.375 | DA91: Jun-2018 | DB91: Jan-2051 | DC91: 0 | DD91: Solar | DE91: 0 | DF91: 0 | DG91: FALSE | DH91: Cf PV | DI91: SolarPV | DJ91: Default | DK91: Default | DL91: 30 | DM91: Flat | DN91: 0 | DO91: 1 | DP91: FALSE | DQ91: TRUE | DR91: FALSE | DS91: FALSE | DT91: 0 | DU91: 0 | DV91: 0 | DW91: 100% PNW PPA | DZ91: Bly Solar Center | EB91: Bly Solar Center | EC91: 1.885057042 | ED91: 1.224373668 | EE91: 0.566222458 | EF91: 0.4680772582 | EG91: 0.5376423743 | EH91: 0.9083882575 | EI91: 1.452857984 | EJ91: 1.722510356 | EK91: 2.247283164 | EL91: 2.466817693 | EM91: 2.545408337 | EN91: 2.279286473 | EO91: 2.513409389 | EP91: 1.632498223 | EQ91: 0.7549632773 | ER91: 0.6241030109 | ES91: 0.7168564991 | ET91: 1.211184343 | EU91: 1.937143979 | EV91: 2.296680475 | EW91: 2.996377552 | EX91: 3.289090258 | EY91: 3.393877783 | EZ91: 3.03904863
A92: Boardman | B92: 1044 | C92: 6106 | D92: 1 | F92: ST | G92: COL | I92: Coal | J92: 601 | K92: 642.2 | L92: 580 | M92: 570 | N92: 606 | O92: 610 | P92: 585 | Q92: 585 | R92: 90 | S92: 0.95 | W92: Retired | X92: Aug | Y92: 1980 | Z92: 2020 | AA92: Boardman | AB92: Morrow | AC92: OR | AD92: Y | AE92: Columbia | AF92: WECC | AG92: PGE (90%); IPC (10%) | AH92: Coop/IOU/Independent | AI92: PGE (90%); IPC (10%) | AM92: 32.03 | AN92: 7.71 | AO92: 10616 | AP92: 2018 | AQ92: 0 | AR92: 0 | BC92: BPA (PRC share), IPC (share), PGE (share) | BD92: 430.8 | BE92: 490.9 | BF92: 403.8 | BG92: 396.3037671 | BH92: 272.6635845 | BI92: 497.2 | BJ92: 462.08 | BK92: 365.32 | BL92: 471.43 | BM92: 381.29 | BN92: 301.4 | BO92: 429.11 | BP92: 365.56 | BQ92: 272.01 | BR92: 217.2 | BS92: 198.5 | BT92: 146.7 | BU92: 293.8 | BV92: 186.34 | BY92: One 560.5 MW STG. | BZ92: 45.6964 | CA92: -119.808 | CB92: 2021-04-11T21:31:20 | CC92: 580 | CD92: 606 | CE92: 0.86 | CF92: 509.98 | CH92: N | CI92: Retired Oct 2020 | CJ92: 25% OOR PPA | CK92: PNW East | CL92: CLST_PNWE | CM92: 10840 | CN92: 0.9 | CO92: OOR PPA | CP92: 1 | CR92: 0.9 | CS92: OOR PPA | DW92: 25% OOR PPA | EC92: =IF($CH92="N","",IF(OR($I92<>"Wind",$I92<>"Solar",$I92<>"Hydro"),($CN92*$CP92*IF(ISBLANK($L92),IF(ISBLANK($O92),$J92,$O92),$L92))*VLOOKUP($DH92,ASeasDist,EC$9,FALSE)*VLOOKUP($DM92,ASeasDist,EC$9),$J92*$CN92*$CP92)) ->  | EO92: =IF($CH92="N","",IF(OR($I92<>"Wind",$I92<>"Solar",$I92<>"Hydro"),$CR92*IF(ISBLANK($L92),IF(ISBLANK($O92),$J92,$O92),$L92),$J92)*(1-$DE92)*VLOOKUP($DH92,ASeasDist,EO$9,FALSE)*VLOOKUP($DM92,ASeasDist,EO$9)) -> 
A93: Boise (Elgin) | B93: 1045 | F93: STCG | G93: WW | I93: Biomass | J93: 7.5 | T93: 7.5 | W93: Retired | Z93: 2000 | AA93: Elgin | AB93: Union | AC93: OR | AD93: Y | AE93: Columbia | AF93: WECC | AG93: Boise Cascade | AH93: Independent | AI93: Retired | AQ93: 0 | AR93: 0 | AS93: Boise Cascade Elgin | AT93: Lumber & wood products | BG93: n/a | BH93: n/a | CB93: 2005-07-20 | CC93: 7.5 | CD93: 7.5 | CE93: 1 | CF93: 7.5 | CH93: N | CI93: Retired
A94: Boise 1 & 2 (Medford) | B94: 1046 | C94: 56193 | D94: 1,2 | F94: STCG | G94: WW | I94: Biomass | J94: 8.5 | K94: 8.5 | L94: 0 | M94: 8.5 | N94: 7.5 | O94: 7.5 | P94: 7.5 | Q94: 7.5 | W94: Idle | X94: Jun | Y94: 1956 | AA94: Medford | AB94: Jackson | AC94: OR | AD94: Y | AE94: Puget Sound & Coastal | AF94: WECC | AG94: Boise Cascade | AH94: Independent | AI94: Listed NUG per 2009 White Book | AQ94: 0 | AR94: 0 | AS94: Boise Cascade - Medford Operations | AT94: Sawmill | AW94: SPP | BC94: PACW | BJ94: 0.01 | BK94: 0.26 | BO94: 0 | BP94: 0 | BY94: Per SNL, plant is mothballed. No EIA generation data for 2015. | BZ94: 42.355075 | CA94: -122.900775 | CB94: 2020-03-31T17:03:50 | CC94: 0 | CD94: 7.5 | CE94: 0.8 | CF94: 3 | CH94: N | CI94: Mothballed. | CJ94: Assume non-firm (WB = 0) | CK94: PNWW | CL94: WWST | CM94: 5000 | CN94: 1 | CP94: 1 | CR94: 1 | DW94: Assume non-firm (WB = 0)
A95: Boise City Solar (ID Solar 1) | B95: 1932 | C95: 60445 | D95: INV1 | F95: PV | G95: SOL | I95: Solar | J95: 40 | K95: 40 | P95: 40 | Q95: 40 | T95: 10.48 | W95: Operating | X95: Jun | Y95: 2016 | AA95: Kuna | AB95: Ada | AC95: ID | AD95: Y | AE95: Columbia | AF95: WECC | AG95: Entropy Solar Integrators | AH95: Independent | AI95: Idaho Power Co (20 yr ESA) | AP95: 2036 | AQ95: 1 | AR95: 1 | AW95: SPP | BB95: Single-axis | BC95: IPC | BR95: 3 | BS95: 10.1 | BT95: 11.1 | BU95: 10.7 | BV95: 10.74 | BW95: 10.78 | BX95: 10.731 | BY95: Single axis tracking system. 563 acreage lot. (174,800) Poly c-Si Jinko modules. EPC contractor Depcom. 40MWac/54.37MWdc. Azimuth angle 180, tilt angle 20. | BZ95: 43.386694 | CA95: -116.334094 | CB95: 2017-10-18T10:44:43 | CC95: 40 | CD95: 40 | CE95: 0.262 | CF95: 10.48 | CH95: Y | CK95: PNW East | CL95: PV | CN95: 1 | CP95: 0.75 | CR95: 1 | CT95: Y | CV95: Boise City Solar (ID Solar 1) | CW95: PNW East | CX95: Thr | CY95: PV | CZ95: 30 | DA95: Jun-2016 | DB95: Jan-2051 | DC95: 0 | DD95: Solar | DE95: 0 | DF95: 0 | DG95: FALSE | DH95: Cf PV | DI95: SolarPV | DJ95: Default | DK95: Default | DL95: 30 | DM95: Flat | DN95: 0 | DO95: 1 | DP95: FALSE | DQ95: TRUE | DR95: FALSE | DS95: FALSE | DT95: 0 | DU95: 0 | DV95: 0 | DZ95: Boise City Solar (ID Solar 1) | EB95: Boise City Solar (ID Solar 1) | EC95: 8.870856666 | ED95: 5.761758436 | EE95: 2.664576273 | EF95: 2.202716509 | EG95: 2.530081762 | EH95: 4.274768271 | EI95: 6.836978749 | EJ95: 8.105931089 | EK95: 10.57545018 | EL95: 11.60855385 | EM95: 11.97839218 | EN95: 10.72605399 | EO95: 11.82780889 | EP95: 7.682344581 | EQ95: 3.552768364 | ER95: 2.936955346 | ES95: 3.373442349 | ET95: 5.699691028 | EU95: 9.115971665 | EV95: 10.80790812 | EW95: 14.10060024 | EX95: 15.4780718 | EY95: 15.97118957 | EZ95: 14.30140532
A96: Boise River Diversion 1- 3 | B96: 1047 | C96: 6397 | D96: 1A,2A,3A | E96: FCRPS | F96: ROR | G96: WAT | I96: Hydro | J96: 3.4 | K96: 3.3 | M96: 0 | N96: 3.3 | O96: 3.3 | P96: 3.3 | Q96: 3.3 | T96: 2 | W96: Operating | X96: May | Y96: 1912 | AA96: Boise R. | AB96: Ada | AC96: ID | AD96: Y | AE96: Columbia | AF96: WECC | AG96: USBR | AH96: Federal | AI96: BPA | AL96: Rewound units | AQ96: 1 | AR96: 1 | BC96: IPC | BF96: 0.9 | BG96: 0.575 | BH96: 0.995890411 | BI96: 1.1 | BJ96: 0.41 | BK96: 0.85 | BL96: 1 | BM96: 1.05 | BN96: 1.3 | BO96: 0.91 | BP96: 0.8 | BQ96: 0.94 | BR96: 1 | BS96: 1.3 | BT96: 1.1 | BU96: 1 | BV96: 0.65 | BW96: 0.5 | BX96: 0.62 | BY96: (3) turbine-generators. Idled 1982. Rehabilitation underway Nov 2002; returned to service Aug 2004. | BZ96: 43.5375 | CA96: -116.09333 | CB96: 2020-03-29T22:06:25 | CC96: 3.4 | CD96: 3.3 | CE96: 0.5882352941 | CF96: 2 | CG96: Independent | CH96: N | CI96: Accounted for in HydInd file
A97: Bonanza Solar (Norwest 4) | B97: 2210 | C97: 62268 | D97: NWE4 | F97: PV | G97: SOL | I97: Solar | J97: 6 | K97: 5.6 | W97: Operating | X97: Dec | Y97: 2018 | AA97: Bonanza | AB97: Klamath | AC97: OR | AD97: Y | AE97: Klamath | AF97: WECC | AG97: New Energy Solar Ltd. | AH97: Independent | AI97: Pacificorp (20yr QF PPA) | AP97: 2038 | AQ97: 1 | AR97: 1 | AW97: SPP | BB97: Single-axis | BC97: PACW | BT97: 0 | BU97: 1.2 | BV97: 1.35 | BW97: 1.1 | BX97: 1.296 | BY97: Single-axis tracking. 6.8MWdc. | BZ97: 42.201881 | CA97: -121.355799 | CB97: 2019-02-26T09:05:09 | CC97: 6 | CD97: =IF(OR(J97="Wind",J97="Solar",J97="Hydro"),J97,IF(ISNUMBER(N97),N97,IF(ISNUMBER(P97), P97, IF(ISNUMBER(L97),L97,J97)))) -> 6 | CE97: 0.254 | CF97: 1.524 | CH97: Y | CI97: PAC PURPA PPA | CJ97: 100% PNW PPA | CK97: PNW West | CL97: PV | CN97: 1 | CP97: 0.75 | CR97: 1 | CT97: Y | CV97: Bonanza Solar (Norwest 4) | CW97: PNW West | CX97: Thr | CY97: PV | CZ97: 4.5 | DA97: Dec-2018 | DB97: Jan-2051 | DC97: 0 | DD97: Solar | DE97: 0 | DF97: 0 | DG97: FALSE | DH97: Cf PV | DI97: SolarPV | DJ97: Default | DK97: Default | DL97: 30 | DM97: Flat | DN97: 0 | DO97: 1 | DP97: FALSE | DQ97: TRUE | DR97: FALSE | DS97: FALSE | DT97: 0 | DU97: 0 | DV97: 0 | DW97: 100% PNW PPA | DZ97: Bonanza Solar (Norwest 4) | EB97: Bonanza Solar (Norwest 4) | EC97: 1.3306285 | ED97: 0.8642637653 | EE97: 0.3996864409 | EF97: 0.3304074764 | EG97: 0.3795122642 | EH97: 0.6412152406 | EI97: 1.025546812 | EJ97: 1.215889663 | EK97: 1.586317527 | EL97: 1.741283078 | EM97: 1.796758826 | EN97: 1.608908098 | EO97: 1.774171333 | EP97: 1.152351687 | EQ97: 0.5329152546 | ER97: 0.4405433018 | ES97: 0.5060163523 | ET97: 0.8549536541 | EU97: 1.36739575 | EV97: 1.621186218 | EW97: 2.115090036 | EX97: 2.32171077 | EY97: 2.395678435 | EZ97: 2.145210798
A98: Bonners Ferry 1 | B98: 1048 | F98: IC | G98: FO | I98: Petroleum | J98: 0.2 | O98: 0.2 | W98: Retired | Y98: 1930 | Z98: Unknown | AA98: Bonners Ferry | AB98: Boundary | AC98: ID | AD98: Y | AE98: Columbia | AF98: WECC | AG98: City of Bonners Ferry | AH98: Municipal | AI98: Retired | AQ98: 0 | AR98: 0 | CB98: 2008-04-14 | CC98: 0.2 | CD98: 0.2 | CE98: 0.93 | CF98: 0.186 | CH98: N | CI98: Retired
A99: Bonners Ferry 2 | B99: 1049 | F99: IC | G99: FO | I99: Petroleum | J99: 1.1 | O99: 1.1 | W99: Retired | Y99: 1930 | Z99: Unknown | AA99: Bonners Ferry | AB99: Boundary | AC99: ID | AD99: Y | AE99: Columbia | AF99: WECC | AG99: City of Bonners Ferry | AH99: Municipal | AI99: Retired | AQ99: 0 | AR99: 0 | CB99: 2008-04-14 | CC99: 1.1 | CD99: 1.1 | CE99: 0.93 | CF99: 1.023 | CH99: N | CI99: Retired
A100: Bonners Ferry 3 | B100: 1050 | F100: IC | G100: FO | I100: Petroleum | J100: 1.1 | O100: 1.1 | W100: Retired | Y100: 1973 | Z100: Unknown | AA100: Bonners Ferry | AB100: Boundary | AC100: ID | AD100: Y | AE100: Columbia | AF100: WECC | AG100: City of Bonners Ferry | AH100: Municipal | AI100: Retired | AQ100: 0 | AR100: 0 | CB100: 2008-04-14 | CC100: 1.1 | CD100: 1.1 | CE100: 0.93 | CF100: 1.023 | CH100: N | CI100: Retired
A101: Bonneville 1 - 18 | B101: 1051 | C101: 3075 | D101: 1,2,3,4,5,6,7,8,9,10,11,12,13,14,15,16,17,18 | E101: FCRPS | F101: ROR | G101: WAT | I101: Hydro | J101: 1050.4 | K101: 1135.8 | M101: 980 | N101: 1086.7 | O101: 1086.7 | P101: 1127.7 | Q101: 1127.7 | T101: 578 | V101: 402 | W101: Operating | X101: Jul | Y101: 1938 | AA101: Columbia R. | AB101: Multnomah/Skamania | AC101: OR/WA | AD101: Y | AE101: Columbia | AF101: WECC | AG101: USCE | AH101: Federal | AI101: BPA | AQ101: 1 | AR101: 1 | BC101: BPA | BD101: 534.5 | BE101: 512.8 | BF101: 534.3 | BG101: 492.166895 | BH101: 580.2909817 | BI101: 520.4 | BJ101: 515.49 | BK101: 509.8 | BL101: 460.61 | BM101: 629.14 | BN101: 633.5 | BO101: 533.28 | BP101: 556.73 | BQ101: 471.13 | BR101: 528 | BS101: 551.9 | BT101: 554.8 | BU101: 480.3 | BV101: 533.08 | BW101: 457.81 | BX101: 534.382 | BY101: Nameplate, Summer & Winter from FERC 714. Critical energy from PNUCC 2005 NRF | BZ101: 45.638 | CA101: -121.942 | CB101: 2020-03-29T22:12:39 | CC101: 1050.4 | CD101: 1086.7 | CE101: 0.5502665651 | CF101: 578 | CG101: Regulated | CH101: N | CI101: Reg hydro
A102: Bonneville Fishway F1 & F2 | B102: 1052 | C102: 3075 | D102: F1,F2 | E102: FCRPS | F102: ROR | G102: WAT | I102: Hydro | J102: 26.2 | K102: 26.2 | N102: 26.2 | O102: 26.2 | P102: 26.2 | Q102: 26.2 | T102: 21 | V102: 21 | W102: Operating | X102: Nov | Y102: 1981 | AA102: Columbia R. | AB102: Multnomah/Skamania | AC102: OR/WA | AD102: Y | AE102: Columbia | AF102: WECC | AG102: USCE | AH102: Federal | AI102: BPA | AQ102: 1 | AR102: 1 | BC102: BPA | BY102: Nameplate, Summer & Winter from FERC 714. Critical energy from PNUCC 2005 NRF | BZ102: 45.638 | CA102: -121.942 | CB102: 2017-10-17T13:24:27 | CC102: 26.2 | CD102: 26.2 | CE102: 0.8015267176 | CF102: 21 | CG102: Independent | CH102: N | CI102: Accounted for in HydInd file | EC102: =IF($CH102="N","",IF(OR($I102<>"Wind",$I102<>"Solar",$I102<>"Hydro"),($CN102*$CP102*IF(ISBLANK($L102),IF(ISBLANK($O102),$J102,$O102),$L102))*VLOOKUP($DH102,ASeasDist,EC$9,FALSE)*VLOOKUP($DM102,ASeasDist,EC$9),$J102*$CN102*$CP102)) ->  | EO102: =IF($CH102="N","",IF(OR($I102<>"Wind",$I102<>"Solar",$I102<>"Hydro"),$CR102*IF(ISBLANK($L102),IF(ISBLANK($O102),$J102,$O102),$L102),$J102)*(1-$DE102)*VLOOKUP($DH102,ASeasDist,EO$9,FALSE)*VLOOKUP($DM102,ASeasDist,EO$9)) -> 
A103: Boring Solar | B103: 2277 | C103: 62169 | D103: BSPV2 | F103: PV | G103: SOL | I103: Solar | J103: 2.2 | K103: 2.2 | P103: 2.2 | Q103: 2.2 | W103: Operating | X103: Apr | Y103: 2019 | AA103: Boring, OR | AB103: Clackamas | AC103: OR | AD103: Y | AE103: Columbia | AF103: WECC | AG103: BNRG Renewables | AH103: Independent | AI103: PGE (20yr QF) | AP103: 2039 | AQ103: 1 | AR103: 1 | AW103: SPP | BB103: Fixed tilt | BC103: PGE | BU103: 0.4 | BV103: 0.44 | BW103: 0.43 | BX103: 0.438 | BY103: Crystalline silicone. 3.4MWdc, azimuth angle 180, tilt 20. | BZ103: 45.430825 | CA103: -122.2844444 | CB103: 2019-07-09T12:58:01 | CC103: 2.2 | CD103: 2.2 | CE103: 0.254 | CF103: 0.5588 | CH103: Y | CJ103: 100% PNW PPA | CK103: PNW West | CL103: PV | CN103: 1 | CP103: 0.75 | CR103: 1 | CT103: Y | CV103: Boring Solar | CW103: PNW West | CX103: Thr | CY103: PV | CZ103: 1.65 | DA103: Apr-2019 | DB103: Jan-2051 | DC103: 0 | DD103: Solar | DE103: 0 | DF103: 0 | DG103: FALSE | DH103: Cf PV | DI103: SolarPV | DJ103: Default | DK103: Default | DL103: 30 | DM103: Flat | DN103: 0 | DO103: 1 | DP103: FALSE | DQ103: TRUE | DR103: FALSE | DS103: FALSE | DT103: 0 | DU103: 0 | DV103: 0 | DW103: 100% PNW PPA | DZ103: Boring Solar | EB103: Boring Solar | EC103: 0.4878971167 | ED103: 0.316896714 | EE103: 0.146551695 | EF103: 0.121149408 | EG103: 0.1391544969 | EH103: 0.2351122549 | EI103: 0.3760338312 | EJ103: 0.4458262099 | EK103: 0.58164976 | EL103: 0.6384704618 | EM103: 0.6588115697 | EN103: 0.5899329694 | EO103: 0.6505294889 | EP103: 0.4225289519 | EQ103: 0.19540226 | ER103: 0.161532544 | ES103: 0.1855393292 | ET103: 0.3134830065 | EU103: 0.5013784416 | EV103: 0.5944349465 | EW103: 0.7755330134 | EX103: 0.8512939491 | EY103: 0.8784154262 | EZ103: 0.7865772925
A104: Boulder Creek | B104: 1053 | E104: 7086 | F104: Diversion | G104: WAT | I104: Hydro | J104: 0.35 | L104: 0.2 | N104: 0.35 | O104: 0.35 | T104: 0.21 | W104: Operating | Y104: 1984 | AA104: Boulder Cr. | AB104: Lake | AC104: MT | AD104: Y | AE104: Columbia | AF104: WECC | AG104: Salish & Kookenai Tribes | AH104: Independent | AI104: NorthWestern QF (thru June 2022) | AP104: 2022 | AQ104: 0.31 | AR104: 0.31 | BY104: Exemption granted September 1983. | CB104: 2020-04-14T12:49:26 | CC104: 0.35 | CD104: 0.35 | CE104: 0.6 | CF104: 0.21 | CH104: N | CI104: <0.5 MW
A105: Boulder Park 1-6 | B105: 1054 | C105: 8022 | D105: 1,2,3,4,5,6 | F105: IC | G105: NG | I105: Natural Gas | J105: 24.6 | K105: 24.6 | L105: 25 | M105: 24.6 | N105: 24.6 | O105: 24.6 | P105: 24.6 | Q105: 24.6 | R105: 24.6 | S105: 0.8 | W105: Operating | X105: May | Y105: 2002 | AA105: Spokane | AB105: Spokane | AC105: WA | AD105: Y | AE105: Columbia | AF105: WECC | AG105: Avista | AH105: IOU | AI105: Avista Utilities | AM105: 15.86 | AN105: 11.08 | AO105: 9545 | AQ105: 1 | AR105: 1 | AU105: TransCanada GTN/Williams Northwest | BC105: Avista | BD105: 1 | BE105: 1.8 | BF105: 0.9 | BG105: 0.775456621 | BH105: 0.8913242009 | BI105: 1.6 | BJ105: 1.35 | BK105: 3.17 | BL105: 1.2 | BM105: 1.04 | BN105: 0.6 | BO105: 2.96 | BP105: 1.69 | BQ105: 2.56 | BR105: 2.1 | BS105: 3 | BT105: 5.5 | BU105: 7.6 | BV105: 5.5 | BW105: 7.96 | BX105: 9.264 | BY105: (6) 4.1 MW Wartsila units. | BZ105: 47.69641 | CA105: -117.147488 | CB105: 2020-07-15T16:26:00 | CC105: 25 | CD105: 24.6 | CE105: 0.93 | CF105: 23.064 | CH105: Y | CK105: PNW East | CL105: NGIC_PNWE | CM105: 9400 | CN105: 1 | CP105: 1 | CR105: 1 | CV105: Boulder Park 1-6 | CW105: PNW East | CX105: Thr | CY105: IC | CZ105: 25 | DA105: May-2002 | DB105: Jan-2051 | DC105: 9400 | DD105: PNW E. gas | DE105: 0.047 | DF105: 56 | DG105: FALSE | DH105: MR 7d Winter Pk_Hydro | DI105: NG Recip Peaking E | DJ105: Default | DK105: Default | DL105: 30 | DM105: Flat | DN105: 0 | DO105: 0 | DP105: FALSE | DQ105: TRUE | DR105: FALSE | DS105: FALSE | DT105: 0 | DU105: 0 | DV105: 0 | DZ105: Boulder Park 1-6 | EB105: Boulder Park 1-6 | EC105: 25 | ED105: 25 | EE105: 25 | EF105: 25 | EG105: 25 | EH105: 25 | EI105: 23.35616438 | EJ105: 21.71232877 | EK105: 21.71232877 | EL105: 21.71232877 | EM105: 25 | EN105: 25 | EO105: 23.825 | EP105: 23.825 | EQ105: 23.825 | ER105: 23.825 | ES105: 23.825 | ET105: 23.825 | EU105: 22.25842466 | EV105: 20.69184932 | EW105: 20.69184932 | EX105: 20.69184932 | EY105: 23.825 | EZ105: 23.825
A106: Boundary 1 - 6 | B106: 1055 | C106: 6433 | D106: 51,52,53,54,55,56 | E106: 2144 | F106: Storage | G106: WAT | I106: Hydro | J106: 1039.8 | K106: 1118.6 | M106: 717 | N106: 1039.8 | O106: 1039.8 | P106: 1103.8 | Q106: 1103.8 | T106: 454 | V106: 303 | W106: Operating | X106: Aug | Y106: 1967 | AA106: Pend Oreille R. | AB106: Pend Oreille | AC106: WA | AD106: Y | AE106: Columbia | AF106: WECC | AG106: City of Seattle | AH106: Municipal | AI106: City of Seattle | AQ106: 1 | AR106: 1 | BC106: SCE | BD106: 451.5 | BE106: 407.5 | BF106: 398.1 | BG106: 394.2994292 | BH106: 492.286758 | BI106: 413.8 | BJ106: 441.21 | BK106: 409.5 | BL106: 358.27 | BM106: 512.7 | BN106: 433.3 | BO106: 394.89 | BP106: 484.41 | BQ106: 395.66 | BR106: 443.4 | BS106: 436.2 | BT106: 457.1 | BU106: 376.8 | BV106: 407.54 | BW106: 365.86 | BX106: 423.084 | BY106: License granted April 1982; expires October 2011. Critical energy from PNUCC 2005 NRF. FERC approved 42-yr license (Mar 2013). | BZ106: 48.992 | CA106: -117.348 | CB106: 2020-03-20T21:47:31 | CC106: 1039.8 | CD106: 1039.8 | CE106: 0.4366224274 | CF106: 454 | CG106: Regulated | CH106: N | CI106: Reg hydro
A107: Boundary GT | B107: 1056 | F107: GT | G107: FO | I107: Petroleum | J107: 0.75 | L107: 1 | M107: 1 | W107: Operating | AA107: Boundary Dam | AB107: Pend Oreille | AC107: WA | AD107: Y | AE107: Columbia | AF107: WECC | AG107: City of Seattle | AH107: Municipal | AI107: City of Seattle | AQ107: 1 | AR107: 1 | CB107: 2020-03-23T12:34:26 | CC107: 1 | CD107: 1 | CE107: 0.91 | CF107: 0.91 | CH107: Y | CK107: PNW East | CL107: FOIC | CM107: 13000 | CN107: 1 | CP107: 1 | CR107: 0 | CS107: Emergency service | CV107: Boundary GT | CW107: PNW East | CX107: Thr | CY107: IC | CZ107: 1 | DA107: Dec-1980 | DB107: Jan-2051 | DC107: 13000 | DD107: No. 2 FO | DE107: 0.047 | DF107: 56 | DG107: FALSE | DH107: MR 7d Flat | DI107: FO Peaking | DJ107: Default | DK107: Default | DL107: 20 | DM107: Flat | DN107: 0 | DO107: 0 | DP107: FALSE | DQ107: TRUE | DR107: FALSE | DS107: FALSE | DT107: 0 | DU107: 0 | DV107: 0 | DZ107: Boundary GT | EB107: Boundary GT | EC107: 0.9616438356 | ED107: 0.9616438356 | EE107: 0.9616438356 | EF107: 0.9616438356 | EG107: 0.9616438356 | EH107: 0.9616438356 | EI107: 0.9616438356 | EJ107: 0.9616438356 | EK107: 0.9616438356 | EL107: 0.9616438356 | EM107: 0.9616438356 | EN107: 0.9616438356 | EO107: 0 | EP107: 0 | EQ107: 0 | ER107: 0 | ES107: 0 | ET107: 0 | EU107: 0 | EV107: 0 | EW107: 0 | EX107: 0 | EY107: 0 | EZ107: 0
A108: Box Canyon | B108: 1057 | E108: 6543 | F108: ROR R w/Div (spring) | G108: WAT | I108: Hydro | J108: 0.56 | L108: 0.3 | M108: 0.31 | T108: 0.52 | W108: Operating | Y108: 1983 | AA108: Box Canyon Spr. | AB108: Twin Falls | AC108: ID | AD108: Y | AE108: Columbia | AF108: WECC | AG108: Clear Springs Trout Co. | AH108: Independent | AI108: Idaho Power Co. (QF thru Feb 2019) | AQ108: 1 | AR108: 1 | BY108: Exemption granted November 1982. | CB108: 2020-03-22T20:44:17 | CC108: =IF(OR(I108="Wind",I108="Solar",I108="Hydro"),J108,IF(ISNUMBER(L108),L108,IF(ISNUMBER(O108), O108, IF(ISNUMBER(Q108),Q108,J108)))) -> 0.56 | CD108: 0.3 | CE108: 0.9285714286 | CF108: =IF(ISNUMBER(T108),T108,AVERAGE(CC108,CD108)*CE108) -> 0.52 | CH108: Y | CI108: Not accounted for in HydInd file | CK108: PNW East | CL108: HY_East | CM108: n/a | CN108: 1 | CP108: 1 | CR108: 1 | CT108: Y | CV108: Box Canyon | CW108: PNW East | CX108: Thr | CY108: Hyd | CZ108: 0.3 | DA108: Dec-1983 | DB108: Jan-2051 | DC108: n/a | DD108: Water | DE108: 0 | DF108: 24 | DG108: FALSE | DH108: Cf HY East | DI108: Zero | DJ108: Expense | DK108: Default | DL108: 50 | DM108: Flat | DN108: 0 | DO108: 0 | DP108: FALSE | DQ108: TRUE | DR108: FALSE | DS108: FALSE | DT108: 0 | DU108: 0 | DV108: 0 | DZ108: Box Canyon | EB108: Box Canyon | EC108: 0.09803108218 | ED108: 0.1287083087 | EE108: 0.1144528242 | EF108: 0.1453926465 | EG108: 0.1672830878 | EH108: 0.1291076953 | EI108: 0.1502533144 | EJ108: 0.1623229976 | EK108: 0.2131918598 | EL108: 0.198146468 | EM108: 0.1984940756 | EN108: 0.1793416558 | EO108: 0.09803108218 | EP108: 0.1287083087 | EQ108: 0.1144528242 | ER108: 0.1453926465 | ES108: 0.1672830878 | ET108: 0.1291076953 | EU108: 0.1502533144 | EV108: 0.1623229976 | EW108: 0.2131918598 | EX108: 0.198146468 | EY108: 0.1984940756 | EZ108: 0.1793416558
A109: Box Canyon 1 - 4 | B109: 1058 | C109: 3891 | D109: 1,2,3,4 | E109: 2042 | F109: ROR | G109: WAT | I109: Hydro | J109: 90 | K109: 90 | M109: 75.3 | N109: 76.8 | O109: 76.8 | P109: 90 | Q109: 90 | T109: 52 | V109: 43 | W109: Operating | X109: Jun | Y109: 1955 | AA109: Pend Oreille R. | AB109: Pend Oreille | AC109: WA | AD109: Y | AE109: Columbia | AF109: WECC | AG109: Pend Oreille Co. PUD | AH109: PUD | AI109: Pend Oreille Co. PUD | AL109: Upgrade of 4 units completed in 2015 | AQ109: 1 | AR109: 1 | BC109: Avista | BD109: 45.6 | BE109: 49.7 | BF109: 53.6 | BG109: 53.68652968 | BH109: 55.4847032 | BI109: 51.9 | BJ109: 48.22 | BK109: 50.1 | BL109: 44.8 | BM109: 46.09 | BN109: 42.9 | BO109: 47.39 | BP109: 49.66 | BQ109: 57.9 | BR109: 55.6 | BS109: 40.3 | BT109: 50.4 | BU109: 52.6 | BV109: 51.22 | BW109: 54.24 | BX109: 51.392 | BY109: Box Canyon Dam & reservoir and Calispell Ck diversion pumphouse, diversion, forebay channel and powerhouse w/4 Kaplan turbines. Original license Feb 1952 - Jan 2002. 50- yr relicensed granted July 2005. Critical energy from PNUCC 2005 NRF. Licensed upgrade to 90 MW + 2.4 additional aMW energy completed in Feb 2015. | BZ109: 48.781215 | CA109: -117.412244 | CB109: 2020-04-06T21:45:57 | CC109: 90 | CD109: 76.8 | CE109: 0.5777777778 | CF109: 52 | CG109: Regulated | CH109: N | CI109: Reg hydro
A110: Box Canyon 1 & 2 | B110: 1059 | C110: 50179 | D110: GEN1,GEN2 | G110: WAT | I110: Hydro | J110: 5 | K110: 5 | N110: 0.26 | O110: 0.34 | P110: 5 | Q110: 5 | W110: Operating | X110: Jun | Y110: 1986 | AA110: Mt. Shasta | AB110: Siskiyou | AC110: CA | AD110: N | AE110: Unknown | AF110: WECC | AG110: Synergics, Inc. | AH110: Independent | AI110: PacifiCorp (PPA thru 2020) | AP110: 2020 | AQ110: 0.38 | AR110: 0.38 | AW110: SPP | BC110: PACW | BR110: 2.73 | BS110: 2.88 | BT110: 1 | BU110: 2.4 | BV110: 0.89 | BZ110: 41.2792 | CA110: -122.3292 | CB110: 2017-12-04T15:08:27 | CC110: 5 | CD110: 0.26 | CE110: 0.427 | CF110: 1.12301 | CH110: Y | CI110: Not accounted for in HydInd file | CK110: Capt Jack | CL110: HY_East | CM110: n/a | CN110: 1 | CP110: 1 | CR110: 1 | CV110: Box Canyon 1 & 2 | CW110: Capt Jack | CX110: Thr | CY110: Hyd | CZ110: 0.34 | DA110: Jun-1986 | DB110: Jan-2051 | DC110: n/a | DD110: Water | DE110: 0 | DF110: 24 | DG110: FALSE | DH110: Cf HY East | DI110: Zero | DJ110: Expense | DK110: Default | DL110: 50 | DM110: Flat | DN110: 0 | DO110: 0 | DP110: FALSE | DQ110: TRUE | DR110: FALSE | DS110: FALSE | DT110: 0 | DU110: 0 | DV110: 0 | DZ110: Box Canyon 1 & 2 | EB110: Box Canyon 1 & 2 | EC110: 0.1111018931 | ED110: 0.1458694165 | EE110: 0.1297132008 | EF110: 0.1647783327 | EG110: 0.1895874995 | EH110: 0.1463220547 | EI110: 0.1702870897 | EJ110: 0.1839660639 | EK110: 0.2416174411 | EL110: 0.224565997 | EM110: 0.2249599524 | EN110: 0.2032538766 | EO110: 0.1111018931 | EP110: 0.1458694165 | EQ110: 0.1297132008 | ER110: 0.1647783327 | ES110: 0.1895874995 | ET110: 0.1463220547 | EU110: 0.1702870897 | EV110: 0.1839660639 | EW110: 0.2416174411 | EX110: 0.224565997 | EY110: 0.2249599524 | EZ110: 0.2032538766
A111: BP Cherry Point GTs | B111: 1060 | F111: GT | G111: NG | I111: Natural Gas | J111: 72.8 | W111: Retired | Y111: 2001 | Z111: 2001 | AA111: Blaine (Cherry Point Refinery) | AB111: Whatcom | AC111: WA | AD111: Y | AE111: Puget Sound & Coastal | AF111: WECC | AG111: BP Cherry Point Refinery, Blaine, WA | AH111: Independent | AI111: Retired | AQ111: 0 | AR111: 0 | BG111: n/a | BH111: n/a | BY111: (14) leased 5.2 MW Solar Taurus units. | CB111: 2005-03-30 | CC111: 72.8 | CD111: 72.8 | CE111: 0.91 | CF111: 66.248 | CH111: N | CI111: Retired
A112: Bremerton WWTP | B112: 1061 | F112: ICCG | G112: WG | I112: Biomass | J112: 0.152 | N112: 0.152 | O112: 0.152 | T112: 0.07 | W112: Operating | AA112: Bremerton | AB112: Kitsap | AC112: WA | AD112: Y | AE112: Puget Sound & Coastal | AF112: WECC | AG112: City of Bremerton | AH112: Independent | AI112: Self-generation | AQ112: 1 | AR112: 0.5 | AS112: Bremerton WWTP | AT112: Wastewater treatment | BZ112: 47.550221 | CA112: -122.671981 | CB112: 2014-01-30T08:48:43 | CC112: 0.152 | CD112: 0.152 | CE112: 0.4605263158 | CF112: 0.07 | CH112: N | CI112: <0.5 MW | EC112: =IF($CH112="N","",IF(OR($I112<>"Wind",$I112<>"Solar",$I112<>"Hydro"),($CN112*$CP112*IF(ISBLANK($L112),IF(ISBLANK($O112),$J112,$O112),$L112))*VLOOKUP($DH112,ASeasDist,EC$9,FALSE)*VLOOKUP($DM112,ASeasDist,EC$9),$J112*$CN112*$CP112)) ->  | EO112: =IF($CH112="N","",IF(OR($I112<>"Wind",$I112<>"Solar",$I112<>"Hydro"),$CR112*IF(ISBLANK($L112),IF(ISBLANK($O112),$J112,$O112),$L112),$J112)*(1-$DE112)*VLOOKUP($DH112,ASeasDist,EO$9,FALSE)*VLOOKUP($DM112,ASeasDist,EO$9)) -> 
A113: Briggs | B113: 1062 | E113: 8083 | F113: Diversion | G113: WAT | I113: Hydro | J113: 0.3 | M113: 0.13 | T113: 0.2 | W113: Retired | Y113: 1986 | Z113: 1999 | AA113: Teton Cnl. | AB113: Fremont | AC113: ID | AD113: Y | AE113: Columbia | AF113: WECC | AG113: Briggs Hydroelectric | AH113: Independent | AI113: Retired | AQ113: 0 | AR113: 0 | BG113: n/a | BH113: n/a | BY113: Exemption surrendered June 1999. | CB113: 2020-03-25T22:09:47 | CC113: 0.3 | CD113: 0.3 | CE113: 0.6666666667 | CF113: 0.2 | CH113: N | CI113: Retired
A114: Briggs Creek | B114: 1063 | E114: 4360 | F114: Diversion | G114: WAT | I114: Hydro | J114: 0.75 | L114: 0.6 | M114: 0.59 | N114: 0.41 | O114: 0.41 | V114: 0 | W114: Operating | Y114: 1985 | AA114: Briggs Cr. | AB114: Gooding | AC114: ID | AD114: Y | AE114: Columbia | AF114: WECC | AG114: R. Kaster | AH114: Independent | AI114: Idaho Power Co. (QF thru Oct 2020) | AQ114: 1 | AR114: 1 | BY114: Exemption granted February 1984. Critical energy from PNUCC 2005 NRF | CB114: 2020-03-22T20:44:50 | CC114: 0.75 | CD114: 0.41 | CE114: 0.427 | CF114: 0.24766 | CH114: Y | CI114: Not accounted for in HydInd file | CK114: PNW East | CL114: HY_East | CM114: n/a | CN114: 1 | CP114: 1 | CR114: 1 | CT114: Y | CV114: Briggs Creek | CW114: PNW East | CX114: Thr | CY114: Hyd | CZ114: 0.6 | DA114: Dec-1985 | DB114: Jan-2051 | DC114: n/a | DD114: Water | DE114: 0 | DF114: 24 | DG114: FALSE | DH114: Cf HY East | DI114: Zero | DJ114: Expense | DK114: Default | DL114: 50 | DM114: Flat | DN114: 0 | DO114: 0 | DP114: FALSE | DQ114: TRUE | DR114: FALSE | DS114: FALSE | DT114: 0 | DU114: 0 | DV114: 0 | DZ114: Briggs Creek | EB114: Briggs Creek | EC114: 0.1960621644 | ED114: 0.2574166174 | EE114: 0.2289056484 | EF114: 0.290785293 | EG114: 0.3345661755 | EH114: 0.2582153907 | EI114: 0.3005066289 | EJ114: 0.3246459952 | EK114: 0.4263837196 | EL114: 0.3962929359 | EM114: 0.3969881513 | EN114: 0.3586833116 | EO114: 0.1960621644 | EP114: 0.2574166174 | EQ114: 0.2289056484 | ER114: 0.290785293 | ES114: 0.3345661755 | ET114: 0.2582153907 | EU114: 0.3005066289 | EV114: 0.3246459952 | EW114: 0.4263837196 | EX114: 0.3962929359 | EY114: 0.3969881513 | EZ114: 0.3586833116
A115: Brightwood Solar Project | B115: 2393 | C115: 64830 | D115: OS | F115: PV | G115: SOL | I115: Solar | J115: 10 | K115: 10 | P115: 10 | Q115: 10 | W115: Operating | X115: Dec | Y115: 2021 | AA115: Clackamas Cty | AB115: Clackamas | AC115: OR | AD115: Y | AE115: Columbia | AF115: WECC | AG115: Pine Gate Renewables | AH115: Independent | AI115: PGE QF | AP115: 2041 | BC115: PGE | BW115: 0 | BX115: 1.293 | BZ115: 45.38773 | CA115: -122.08854 | CB115: 2022-04-13T10:36:51 | CC115: 10 | CD115: 10 | CE115: 0.254 | CF115: 2.54 | CZ115: 0 | DA115: Dec-2021 | DB115: Jan-2051 | DC115: 0
A116: Bristol Solar | B116: 2363 | C116: 64009 | D116: BS | F116: PV | G116: SOL | I116: Solar | J116: 3 | K116: 3 | W116: Operating | X116: Jan | Y116: 2021 | AA116: Woodburn | AB116: Marion | AC116: OR | AD116: Y | AE116: Columbia | AF116: WECC | AG116: Bristol Solar, LLC | AH116: Independent | AI116: PGE QF | AP116: 2041 | BC116: PGE | BW116: 0.49 | BX116: 0.489 | BY116: Located on private property; 12 acres of Exclusive Farm Use zone | BZ116: 45.145 | CA116: -122.787 | CB116: 2021-05-19 | CC116: 3 | CD116: 3 | CE116: 0.254 | CF116: 0.762 | CH116: Y | CK116: PNW West | CL116: PV | CN116: 1 | CP116: 0.75 | CR116: 1 | CT116: Y | CV116: Bristol Solar | CW116: PNW West | CX116: Thr | CY116: PV | CZ116: 2.25 | DA116: Jan-2021 | DB116: Jan-2051 | DC116: 0 | DD116: Solar | DE116: 0 | DF116: 0 | DG116: FALSE | DH116: Cf PV | DI116: SolarPV | DJ116: Default | DK116: Default | DL116: 30 | DM116: Flat | DN116: 0 | DO116: 1 | DP116: FALSE | DQ116: TRUE | DR116: FALSE | DS116: FALSE | DT116: 0 | DU116: 0 | DV116: 0 | DZ116: Bristol Solar | EB116: Bristol Solar | EC116: 0.66531425 | ED116: 0.4321318827 | EE116: 0.1998432205 | EF116: 0.1652037382 | EG116: 0.1897561321 | EH116: 0.3206076203 | EI116: 0.5127734062 | EJ116: 0.6079448316 | EK116: 0.7931587637 | EL116: 0.8706415388 | EM116: 0.8983794132 | EN116: 0.8044540492 | EO116: 0.8870856666 | EP116: 0.5761758436 | EQ116: 0.2664576273 | ER116: 0.2202716509 | ES116: 0.2530081762 | ET116: 0.4274768271 | EU116: 0.6836978749 | EV116: 0.8105931089 | EW116: 1.057545018 | EX116: 1.160855385 | EY116: 1.197839218 | EZ116: 1.072605399
A117: Broadwater Toston Dam | B117: 1064 | C117: 54006 | D117: GEN1 | E117: 2853 | F117: ROR | G117: WAT | I117: Hydro | J117: 9.7 | K117: 9.7 | L117: 3.1 | M117: 2.85 | N117: 7.9 | O117: 6.7 | P117: 9.7 | Q117: 9.7 | V117: 6 | W117: Operating | X117: Jun | Y117: 1989 | AA117: Missouri R. | AB117: Broadwater | AC117: MT | AD117: N | AE117: Missouri | AF117: WECC | AG117: State of Montana (owner); Dry Creek, LLC (lessee) | AH117: Independent | AI117: NorthWestern (QF thru Jun 2024) | AP117: 2024 | AQ117: 0.31 | AR117: 0.31 | BC117: NorthWestern | BJ117: 5.26 | BK117: 6.04 | BL117: 6 | BM117: 6.11 | BN117: 6.1 | BO117: 5.15 | BP117: 5.95 | BQ117: 5.4 | BR117: 5.5 | BS117: 6 | BT117: 3.4 | BU117: 6.3 | BV117: 5.98 | BW117: 2.43 | BX117: 4.507 | BY117: License granted April 1984; expires June 2024. Critical energy from PNUCC 2005 NRF | BZ117: 46.119722 | CA117: -111.408333 | CB117: 2020-03-22T20:45:09 | CC117: 9.7 | CD117: 7.9 | CE117: 0.427 | CF117: 3.7576 | CH117: Y | CI117: Not accounted for in HydInd file | CK117: PNW East | CL117: HY_Irr | CM117: n/a | CN117: 0.31 | CO117: NorthWestern | CP117: 1 | CR117: 0.31 | CS117: NorthWestern | CT117: Y | CV117: Broadwater Toston Dam | CW117: PNW East | CX117: Thr | CY117: Hyd | CZ117: 0.961 | DA117: Jun-1989 | DB117: Jan-2051 | DC117: n/a | DD117: Water | DE117: 0 | DF117: 24 | DG117: FALSE | DH117: Cf HY Irr | DI117: Zero | DJ117: Expense | DK117: Default | DL117: 50 | DM117: Flat | DN117: 0 | DO117: 0 | DP117: FALSE | DQ117: TRUE | DR117: FALSE | DS117: FALSE | DT117: 0 | DU117: 0 | DV117: 0 | DZ117: Broadwater Toston Dam | EB117: Broadwater Toston Dam | EC117: 0.961 | ED117: 0 | EE117: 0 | EF117: 0 | EG117: 0 | EH117: 0 | EI117: 0 | EJ117: 0.961 | EK117: 0.961 | EL117: 0.961 | EM117: 0.961 | EN117: 0.961 | EO117: 0.961 | EP117: 0 | EQ117: 0 | ER117: 0 | ES117: 0 | ET117: 0 | EU117: 0 | EV117: 0.961 | EW117: 0.961 | EX117: 0.961 | EY117: 0.961 | EZ117: 0.961
A118: Brownlee 1- 5 | B118: 1065 | C118: 811 | D118: 1,2,3,4,5 | E118: 1971C | F118: ROR R w/Div | G118: WAT | I118: Hydro | J118: 675 | K118: 585.4 | M118: 675 | N118: 675.02 | O118: 491.99 | P118: 744 | Q118: 726.9 | T118: 340 | V118: 231 | W118: Operating | X118: Aug | Y118: 1958 | AA118: Snake R. | AB118: Washington | AC118: ID/OR | AD118: Y | AE118: Columbia | AF118: WECC | AG118: Idaho Power Co. | AH118: IOU | AI118: Idaho Power Co. | AQ118: 1 | AR118: 1 | BC118: IPC | BD118: 209.9 | BE118: 221.9 | BF118: 214.2 | BG118: 223.3747717 | BH118: 333.9915525 | BI118: 208.6 | BJ118: 239.99 | BK118: 274.75 | BL118: 256.28 | BM118: 333.78 | BN118: 262.5 | BO118: 191.26 | BP118: 218.89 | BQ118: 196.22 | BR118: 229.8 | BS118: 273.3 | BT118: 276.1 | BU118: 289.8 | BV118: 235.73 | BW118: 176.15 | BX118: 180.244 | BY118: License granted August 1955; expires July 2005. Critical energy from PNUCC 2005 NRF | BZ118: 44.841 | CA118: -116.896 | CB118: 2020-04-13T10:22:07 | CC118: 675 | CD118: 675.02 | CE118: 0.5037037037 | CF118: 340 | CG118: Regulated | CH118: N | CI118: Reg hydro
A119: Brunswick Creek | B119: 1066 | E119: 6564 | F119: Storage w/Div | G119: WAT | I119: Hydro | J119: 0.0375 | N119: 0.0375 | O119: 0.0375 | T119: 0.025 | W119: Operating | Y119: 1982 | AA119: Brunswick Canyon Cr. | AB119: Washington | AC119: OR | AD119: Y | AE119: Columbia | AF119: WECC | AG119: R.L. Horning | AH119: Independent | AI119: Portland General Electric | AP119: 2039 | AQ119: 1 | AR119: 1 | BC119: IPC | BY119: (1) 37.5 kW unit. Exemption granted September 1982; surrendered April 2004. | CB119: 2014-01-30T08:50:30 | CC119: 0.0375 | CD119: 0.0375 | CE119: 0.6666666667 | CF119: 0.025 | CH119: N | CI119: <0.5 MW
A120: Brush Creek Solar | B120: 2328 | C120: 63464 | D120: PGR19 | F120: PV | G120: SOL | I120: Solar | J120: 2.2 | K120: 2.2 | W120: Operating | X120: May | Y120: 2020 | AB120: Marion | AC120: OR | AD120: Y | AE120: Columbia | AF120: WECC | AG120: Pine Gate Renewables | AH120: Independent | AI120: PGE QF | AQ120: 1 | AR120: 1 | AW120: SPP | BV120: 0.26 | BW120: 0.38 | BX120: 0.384 | BY120: Per EIA, project is under construction, with est COD June 2020. | BZ120: 44.985 | CA120: -122.81284 | CB120: 2020-10-26T18:15:01 | CC120: 2.2 | CD120: 2.2 | CE120: 0.254 | CF120: 0.5588 | CZ120: 0 | DA120: May-2020 | DB120: Jan-2051 | DC120: 0
A121: Brush Solar Center | B121: 2266 | C121: 61844 | D121: BRUSH | F121: PV | G121: SOL | I121: Solar | J121: 2.8 | W121: Operating | X121: Dec | Y121: 2019 | AA121: Unity, OR | AB121: Baker | AC121: OR | AD121: Y | AE121: Columbia | AF121: WECC | AG121: Enerparc | AH121: Independent | AI121: Idaho Power (20yr PPA) | AQ121: 1 | AR121: 1 | AW121: SPP | BV121: 0.69 | BW121: 0.74 | BX121: 0.721 | BZ121: 44.4664 | CA121: -118.20569 | CB121: 2020-01-13 | CC121: 2.8 | CD121: 2.8 | CE121: 0.254 | CF121: 0.7112 | CH121: Y | CK121: PNW East | CL121: PV | CN121: 1 | CP121: 0.75 | CR121: 1 | CT121: Y | CV121: Brush Solar Center | CW121: PNW East | CX121: Thr | CY121: PV | CZ121: 2.1 | DA121: Dec-2019 | DB121: Jan-2051 | DC121: 0 | DD121: Solar | DE121: 0 | DF121: 0 | DG121: FALSE | DH121: Cf PV | DI121: SolarPV | DJ121: Default | DK121: Default | DL121: 30 | DM121: Flat | DN121: 0 | DO121: 1 | DP121: FALSE | DQ121: TRUE | DR121: FALSE | DS121: FALSE | DT121: 0 | DU121: 0 | DV121: 0 | DZ121: Brush Solar Center | EB121: Brush Solar Center | EC121: 0.6209599666 | ED121: 0.4033230905 | EE121: 0.1865203391 | EF121: 0.1541901556 | EG121: 0.1771057233 | EH121: 0.299233779 | EI121: 0.4785885124 | EJ121: 0.5674151762 | EK121: 0.7402815128 | EL121: 0.8125987696 | EM121: 0.8384874523 | EN121: 0.7508237792 | EO121: 0.8279466222 | EP121: 0.5377641206 | EQ121: 0.2486937855 | ER121: 0.2055868742 | ES121: 0.2361409644 | ET121: 0.3989783719 | EU121: 0.6381180166 | EV121: 0.7565535683 | EW121: 0.987042017 | EX121: 1.083465026 | EY121: 1.11798327 | EZ121: 1.001098372
A122: Buffalo River (Pond's Lodge) | B122: 1067 | C122: 7718 | E122: 1413 | F122: Diversion | G122: WAT | I122: Hydro | J122: 0.25 | L122: 0.3 | M122: 0.25 | N122: 0.25 | O122: 0.25 | T122: 0.217 | W122: Operating | Y122: 1936 | AA122: Buffalo R. (Henrys Fk. Snake) | AB122: Fremont | AC122: ID | AD122: Y | AE122: Columbia | AF122: WECC | AG122: Fall River REC | AH122: Coop | AI122: BPA | AL122: no planned upgrades at this time (March 2020) | AQ122: 1 | AR122: 1 | BY122: (1) 250 kW Bouvier Kaplan turbine. Original license granted October 1939; expired June 1951. Relicensed Nov 2004. Low-impact certified to 2011. | CB122: 2020-03-25T14:24:49 | CC122: 0.25 | CD122: 0.25 | CE122: 0.868 | CF122: 0.217 | CH122: N | CI122: <0.5 MW | EC122: =IF($CH122="N","",IF(OR($I122<>"Wind",$I122<>"Solar",$I122<>"Hydro"),($CN122*$CP122*IF(ISBLANK($L122),IF(ISBLANK($O122),$J122,$O122),$L122))*VLOOKUP($DH122,ASeasDist,EC$9,FALSE)*VLOOKUP($DM122,ASeasDist,EC$9),$J122*$CN122*$CP122)) ->  | EO122: =IF($CH122="N","",IF(OR($I122<>"Wind",$I122<>"Solar",$I122<>"Hydro"),$CR122*IF(ISBLANK($L122),IF(ISBLANK($O122),$J122,$O122),$L122),$J122)*(1-$DE122)*VLOOKUP($DH122,ASeasDist,EO$9,FALSE)*VLOOKUP($DM122,ASeasDist,EO$9)) -> 
A123: Bull Run 1 - 4 | B123: 1068 | C123: 3044 | D123: 1,2,3,4 | E123: 477 | F123: ROR R w/Div | G123: WAT | I123: Hydro | J123: 20.8 | O123: 24 | P123: 22 | Q123: 22 | V123: 10 | W123: Retired | X123: Oct | Y123: 1912 | Z123: 2007 | AA123: Sandy R. | AB123: Clackamas | AC123: OR | AD123: Y | AE123: Columbia | AF123: WECC | AG123: Portland General Electric | AH123: IOU | AI123: Retired | AQ123: 0 | AR123: 0 | BC123: PGE | BD123: 10.6 | BE123: 11 | BF123: 13.4 | BG123: 8.881621005 | BH123: 11.40958904 | BI123: 9.2 | BJ123: 2.6 | BY123: Original license granted November 1924; expired November 1974. App. to surrender license for project removal by 2009 approved May 2004. Decomissioning commenced 2007. Critical energy from PNUCC 2005 NRF | BZ123: 45.42901 | CA123: -122.23395 | CB123: 2020-03-25T22:10:30 | CC123: 20.8 | CD123: 22 | CE123: 0.427 | CF123: 9.1378 | CH123: N | CI123: Retired
A124: Bull Run No. 1 (Portland Hydro) | B124: 1069 | C124: 4213 | D124: 1 | E124: 2821A | F124: Storage w/Div | G124: WAT | I124: Hydro | J124: 23.7 | K124: 23.7 | L124: 18 | M124: 18.4 | N124: 24 | O124: 24 | P124: 24 | Q124: 24 | T124: 6.86 | W124: Operating | X124: Feb | Y124: 1982 | AA124: Bull Run R. | AB124: Multnomah/Clackamas | AC124: OR | AD124: Y | AE124: Columbia | AF124: WECC | AG124: City of Portland | AH124: Independent | AI124: PGE (Sep 2017 thru June 2032); replaces old contract which expired Aug 2017 | AP124: 2032 | AQ124: 1 | AR124: 1 | BC124: PGE | BD124: 8.2 | BE124: 9.9 | BF124: 1.9 | BG124: 7.374200913 | BH124: 6.083105023 | BJ124: 0.07 | BK124: 5.67 | BL124: 6.3 | BM124: 6.12 | BN124: 7.4 | BO124: 6 | BP124: 6.45 | BQ124: 4.38 | BR124: 6.1 | BS124: 6.3 | BT124: 5 | BU124: 3.6 | BV124: 6.06 | BX124: 5.636 | BY124: License granted March 1979; expires February 2029. New PSA w/ PGE signed in Sep 2017, thru Jun 2032. Energy NorthWest to be new O&M operator. | BZ124: 45.42901 | CA124: -122.23395 | CB124: 2020-03-22T21:43:15 | CC124: 23.7 | CD124: 24 | CE124: 0.2894514768 | CF124: 6.86 | CH124: Y | CI124: Not accounted for in HydInd file | CK124: PNW West | CL124: HY_West | CM124: n/a | CN124: 1 | CP124: 1 | CR124: 1 | CT124: Y | CV124: Bull Run No. 1 (Portland Hydro) | CW124: PNW West | CX124: Thr | CY124: Hyd | CZ124: 18 | DA124: Feb-1982 | DB124: Jan-2051 | DC124: n/a | DD124: Water | DE124: 0 | DF124: 24 | DG124: FALSE | DH124: Cf HY West | DI124: Zero | DJ124: Expense | DK124: Default | DL124: 50 | DM124: Flat | DN124: 0 | DO124: 0 | DP124: FALSE | DQ124: TRUE | DR124: FALSE | DS124: FALSE | DT124: 0 | DU124: 0 | DV124: 0 | DZ124: Bull Run No. 1 (Portland Hydro) | EB124: Bull Run No. 1 (Portland Hydro) | EC124: 5.910782119 | ED124: 6.554827521 | EE124: 8.936855942 | EF124: 9.754120614 | EG124: 9.43634358 | EH124: 7.063777374 | EI124: 7.43190825 | EJ124: 7.603288038 | EK124: 8.424544264 | EL124: 8.461290019 | EM124: 8.013204353 | EN124: 8.282194761 | EO124: 5.910782119 | EP124: 6.554827521 | EQ124: 8.936855942 | ER124: 9.754120614 | ES124: 9.43634358 | ET124: 7.063777374 | EU124: 7.43190825 | EV124: 7.603288038 | EW124: 8.424544264 | EX124: 8.461290019 | EY124: 8.013204353 | EZ124: 8.282194761
A125: Bull Run No. 2 (Portland Hydro) | B125: 1070 | C125: 4214 | D125: 2 | E125: 2821B | F125: ROR R w/Div | G125: WAT | I125: Hydro | J125: 11.8 | K125: 11.8 | L125: 0 | N125: 13.5 | O125: 13.5 | P125: 13.5 | Q125: 13.5 | T125: 4.58 | W125: Operating | X125: Feb | Y125: 1982 | AA125: Bull Run R. | AB125: Multnomah/Clackamas | AC125: OR | AD125: Y | AE125: Columbia | AF125: WECC | AG125: City of Portland | AH125: Independent | AI125: Portland General Electric (PSA through Aug 2017) | AP125: 2032 | AQ125: 1 | AR125: 1 | BC125: PGE | BD125: 8.7 | BE125: 9.9 | BF125: 9.3 | BG125: 7.66826484 | BH125: 3.615410959 | BI125: 8.5 | BJ125: 5.28 | BK125: 4.08 | BL125: 5 | BM125: 4.52 | BN125: 3.9 | BO125: 0.65 | BP125: 4.1 | BQ125: 3.1 | BR125: 4.2 | BS125: 4.6 | BT125: 3.4 | BU125: 2.4 | BV125: 4.01 | BX125: 4.161 | BY125: License granted March 1979; expires February 2029. New PSA w/ PGE signed in Sep 2017, thru Jun 2032. Energy NorthWest to be new O&M operator. | BZ125: 45.42901 | CA125: -122.23395 | CB125: 2017-12-05T15:11:35 | CC125: 11.8 | CD125: 13.5 | CE125: 0.3881355932 | CF125: 4.58 | CH125: Y | CI125: Not accounted for in HydInd file | CK125: PNW West | CL125: HY_West | CM125: n/a | CN125: 1 | CP125: 1 | CR125: 1 | CT125: Y | CV125: Bull Run No. 2 (Portland Hydro) | CW125: PNW West | CX125: Thr | CY125: Hyd | CZ125: 0 | DA125: Feb-1982 | DB125: Jan-2051 | DC125: n/a | DD125: Water | DE125: 0 | DF125: 24 | DG125: FALSE | DH125: Cf HY West | DI125: Zero | DJ125: Expense | DK125: Default | DL125: 50 | DM125: Flat | DN125: 0 | DO125: 0 | DP125: FALSE | DQ125: TRUE | DR125: FALSE | DS125: FALSE | DT125: 0 | DU125: 0 | DV125: 0 | DZ125: Bull Run No. 2 (Portland Hydro) | EB125: Bull Run No. 2 (Portland Hydro) | EC125: 0 | ED125: 0 | EE125: 0 | EF125: 0 | EG125: 0 | EH125: 0 | EI125: 0 | EJ125: 0 | EK125: 0 | EL125: 0 | EM125: 0 | EN125: 0 | EO125: 0 | EP125: 0 | EQ125: 0 | ER125: 0 | ES125: 0 | ET125: 0 | EU125: 0 | EV125: 0 | EW125: 0 | EX125: 0 | EY125: 0 | EZ125: 0
A126: Burley Butte (Idaho Wind) | B126: 1994 | C126: 56434 | D126: BBWP | F126: WT | G126: WND | I126: Wind | J126: 19.5 | K126: 21.3 | P126: 21.3 | Q126: 21.3 | T126: 5.9 | W126: Operating | X126: Feb | Y126: 2011 | AA126: Burley | AB126: Cassia | AC126: ID | AD126: Y | AE126: Columbia | AF126: WECC | AG126: Idaho Wind Partners | AH126: Independent | AI126: QF PPA w/IPC (Feb 2011-Dec 2030) | AK126: PNW IOU | AP126: 2030 | AQ126: 1 | AR126: 1 | AW126: SPP | AX126: (13) GE 1.5 XLE | AY126: 80 | AZ126: 82.5 | BA126: 2 | BC126: IPC | BM126: 5.21 | BN126: 6.8 | BO126: 6.61 | BP126: 6.99 | BQ126: 5.85 | BR126: 6.4 | BS126: 5.5 | BT126: 7 | BU126: 6.4 | BV126: 7.15 | BW126: 7.34 | BX126: 6.453 | BY126: (13) GE 1.5 MW WTG. FERC ruling May 2011 allows for RECs to be unbundled via 3rd party and sold to CA - power gets sold back to ID. Design wind speed 14.9mph. | BZ126: 42.4644 | CA126: -113.895 | CB126: 2017-10-17T14:15:38 | CC126: 19.5 | CD126: 21.3 | CE126: 0.3025641026 | CF126: 5.9 | CH126: Y | CJ126: 100% PNW PPA | CK126: PNW East | CL126: WN_PNWE | CM126: n/a | CN126: 1 | CP126: 0.05 | CR126: 1 | CT126: Y | CV126: Burley Butte (Idaho Wind) | CW126: PNW East | CX126: Thr | CY126: Wind | CZ126: 19.5 | DA126: Feb-2011 | DB126: Jan-2051 | DC126: n/a | DD126: Wind | DE126: 0 | DF126: 0 | DG126: FALSE | DH126: Cf WN PNWE | DI126: WindB1 | DJ126: Default | DK126: Default | DL126: 20 | DM126: Flat | DN126: 0 | DO126: 1 | DP126: FALSE | DQ126: TRUE | DR126: FALSE | DS126: FALSE | DT126: 0 | DU126: 0 | DV126: 0 | DW126: 100% PNW PPA | DZ126: Burley Butte (Idaho Wind) | EB126: Burley Butte (Idaho Wind) | EC126: 0.27495 | ED126: 0.213525 | EE126: 0.248625 | EF126: 0.2808 | EG126: 0.301275 | EH126: 0.26325 | EI126: 0.312975 | EJ126: 0.312975 | EK126: 0.353925 | EL126: 0.312975 | EM126: 0.324675 | EN126: 0.312975 | EO126: 5.499 | EP126: 4.2705 | EQ126: 4.9725 | ER126: 5.616 | ES126: 6.0255 | ET126: 5.265 | EU126: 6.2595 | EV126: 6.2595 | EW126: 7.0785 | EX126: 6.2595 | EY126: 6.4935 | EZ126: 6.2595
A127: Burnham Creek | B127: 1071 | E127: 9654 | G127: WAT | I127: Hydro | J127: 0 | T127: 0 | W127: Retired | Z127: Unknown | AA127: Burnham Cr. | AC127: WA | AD127: Y | AE127: Unknown | AF127: WECC | AI127: Retired | AQ127: 0 | AR127: 0 | CB127: 2020-03-25T22:11:48 | CC127: 0 | CD127: 0 | CE127: 0.427 | CF127: 0 | CH127: N | CI127: Retired
A128: Burrill Lumber | B128: 1072 | F128: STCG | G128: NG | H128: WW | I128: Natural Gas | J128: 1.5 | K128: 1.5 | P128: 1.4 | Q128: 1.4 | W128: Retired | Y128: 1990 | Z128: 1998 | AA128: White City | AB128: Jackson | AC128: OR | AD128: Y | AE128: Puget Sound & Coastal | AF128: WECC | AG128: Eugene F. Burrill Lumber | AH128: Independent | AI128: Retired | AQ128: 0 | AR128: 0 | AS128: Eugene F. Burrill Lumber | AT128: Lumber & wood products | BG128: 0 | BH128: 0 | BY128: Burrill closed down in 1998. | CB128: 2014-01-23T17:03:42 | CC128: 1.4 | CD128: 1.4 | CE128: 0.8 | CF128: 1.12 | CH128: N | CI128: Retired
A129: Burton Creek | B129: 1073 | E129: 7577 | F129: Diversion | G129: WAT | I129: Hydro | J129: 0.8 | M129: 0 | N129: 0.48 | O129: 0.48 | T129: 0.41 | W129: Operating | Y129: 1996 | AA129: Burton Cr. | AB129: Lewis | AC129: WA | AD129: Y | AE129: Columbia | AF129: WECC | AG129: G. Peters | AH129: Independent | AQ129: 1 | AR129: 1 | BD129: 0.2 | BE129: 0.2 | BF129: 0.2 | BG129: 0.1586757991 | BH129: 0.1885844749 | BI129: 0.2 | BJ129: 0.17 | BY129: Exemption granted September 1985. | CB129: 2020-03-22T20:47:50 | CC129: 0.8 | CD129: =IF(OR(J129="Wind",J129="Solar",J129="Hydro"),J129,IF(ISNUMBER(N129),N129,IF(ISNUMBER(P129), P129, IF(ISNUMBER(L129),L129,J129)))) -> 0.48 | CE129: 0.5125 | CF129: 0.41 | CH129: Y | CI129: Not accounted for in HydInd file | CJ129: IPP Unknown load | CK129: PNW West | CL129: HY_West | CM129: n/a | CN129: 0 | CO129: Assume non-firm | CR129: 0 | CS129: Assume non-firm | CV129: Burton Creek | CW129: PNW West | CX129: Thr | CY129: Hyd | CZ129: 0 | DA129: Dec-1996 | DB129: Jan-2051 | DC129: n/a | DD129: Water | DE129: 0 | DF129: 24 | DG129: FALSE | DH129: Cf HY West | DI129: Zero | DJ129: Expense | DK129: Default | DL129: 50 | DM129: Flat | DN129: 0 | DO129: 0 | DP129: FALSE | DQ129: TRUE | DR129: FALSE | DS129: FALSE | DT129: 0 | DU129: 0 | DV129: 0 | DW129: IPP Unknown load | DZ129: Burton Creek | EB129: Burton Creek | EC129: 0 | ED129: 0 | EE129: 0 | EF129: 0 | EG129: 0 | EH129: 0 | EI129: 0 | EJ129: 0 | EK129: 0 | EL129: 0 | EM129: 0 | EN129: 0 | EO129: 0 | EP129: 0 | EQ129: 0 | ER129: 0 | ES129: 0 | ET129: 0 | EU129: 0 | EV129: 0 | EW129: 0 | EX129: 0 | EY129: 0 | EZ129: 0
A130: Butler Solar | B130: 2342 | C130: 63694 | D130: 13501 | F130: PV | G130: SOL | I130: Solar | J130: 4 | K130: 4 | W130: Operating | X130: Jan | Y130: 2021 | AA130: Sheridan, OR | AB130: Yamhill | AC130: OR | AD130: Y | AE130: Columbia | AF130: WECC | AG130: Pacific Northwest Solar | AH130: Independent | AI130: PGE QF | AW130: SPP | BW130: 0.95 | BX130: 0.919 | BZ130: 45.101804 | CA130: -123.410102 | CB130: 2021-05-19T11:45:18 | CC130: 4 | CD130: 4 | CE130: 0.254 | CF130: 1.016 | CH130: Y | CK130: PNW West | CL130: PV | CN130: 1 | CP130: 0.75 | CR130: 1 | CT130: Y | CV130: Butler Solar | CW130: PNW West | CX130: Thr | CY130: PV | CZ130: 3 | DA130: Jan-2021 | DB130: Jan-2051 | DC130: 0 | DD130: Solar | DE130: 0 | DF130: 0 | DG130: FALSE | DH130: Cf PV | DI130: SolarPV | DJ130: Default | DK130: Default | DL130: 30 | DM130: Flat | DN130: 0 | DO130: 1 | DP130: FALSE | DQ130: TRUE | DR130: FALSE | DS130: FALSE | DT130: 0 | DU130: 0 | DV130: 0 | DZ130: Butler Solar | EB130: Butler Solar | EC130: 0.8870856666 | ED130: 0.5761758436 | EE130: 0.2664576273 | EF130: 0.2202716509 | EG130: 0.2530081762 | EH130: 0.4274768271 | EI130: 0.6836978749 | EJ130: 0.8105931089 | EK130: 1.057545018 | EL130: 1.160855385 | EM130: 1.197839218 | EN130: 1.072605399 | EO130: 1.182780889 | EP130: 0.7682344581 | EQ130: 0.3552768364 | ER130: 0.2936955346 | ES130: 0.3373442349 | ET130: 0.5699691028 | EU130: 0.9115971665 | EV130: 1.080790812 | EW130: 1.410060024 | EX130: 1.54780718 | EY130: 1.597118957 | EZ130: 1.430140532
A131: Butter Creek (Echo Wind Farm) | B131: 1981 | C131: 56967 | D131: 1 | F131: WT | G131: WND | I131: Wind | J131: 4.95 | K131: 5 | P131: 5 | Q131: 5 | W131: Operating | X131: Jul | Y131: 2009 | AA131: Echo vicinity | AB131: Morrow/Umatilla | AC131: OR | AD131: Y | AE131: Columbia | AF131: WECC | AG131: Exelon (John Deere Renwables) | AH131: Independent | AI131: PacifiCorp | AK131: PNW IOU | AQ131: 1 | AR131: 1 | AV131: PacifiCorp Irrigon Substation | AW131: SPP | AX131: (3) Vestas V82-1.65 | AY131: 80 | AZ131: 82 | BA131: 2 | BC131: PACW | BK131: 0.57 | BL131: 1.3 | BM131: 1.57 | BN131: 1.5 | BO131: 1.54 | BP131: 1.51 | BQ131: 1.32 | BR131: 1.3 | BS131: 1.2 | BT131: 1.5 | BU131: 1.3 | BV131: 1.43 | BW131: 1.46 | BX131: 1.185 | BY131: Butter Creek is a part of Echo Wind Farm (1-9). Echo Wind Farm (1-9) is powered by (10) RePower MM92 turbines and (27) Vestas V82 turbines. Echo Wind Farm has a capacity of 64.5 MW. Deisgn wind speed 12.2mph. | BZ131: 45.724 | CA131: -119.436 | CB131: 2017-10-17T14:17:04 | CC131: 4.95 | CD131: 5 | CE131: 0.32 | CF131: 1.592 | CH131: Y | CJ131: 100% PNW PPA | CK131: PNW East | CL131: WN_PNWE | CM131: n/a | CN131: 1 | CP131: 0.05 | CR131: 1 | CT131: Y | CV131: Butter Creek (Echo Wind Farm) | CW131: PNW East | CX131: Thr | CY131: Wind | CZ131: 4.95 | DA131: Jul-2009 | DB131: Jan-2051 | DC131: n/a | DD131: Wind | DE131: 0 | DF131: 0 | DG131: FALSE | DH131: Cf WN PNWE | DI131: WindB1 | DJ131: Default | DK131: Default | DL131: 20 | DM131: Flat | DN131: 0 | DO131: 1 | DP131: FALSE | DQ131: TRUE | DR131: FALSE | DS131: FALSE | DT131: 0 | DU131: 0 | DV131: 0 | DW131: 100% PNW PPA | DZ131: Butter Creek (Echo Wind Farm) | EB131: Butter Creek (Echo Wind Farm) | EC131: 0.069795 | ED131: 0.0542025 | EE131: 0.0631125 | EF131: 0.07128 | EG131: 0.0764775 | EH131: 0.066825 | EI131: 0.0794475 | EJ131: 0.0794475 | EK131: 0.0898425 | EL131: 0.0794475 | EM131: 0.0824175 | EN131: 0.0794475 | EO131: 1.3959 | EP131: 1.08405 | EQ131: 1.26225 | ER131: 1.4256 | ES131: 1.52955 | ET131: 1.3365 | EU131: 1.58895 | EV131: 1.58895 | EW131: 1.79685 | EX131: 1.58895 | EY131: 1.64835 | EZ131: 1.58895
A132: Bypass | B132: 1074 | C132: 50895 | D132: GEN1,GEN2,GEN3 | E132: 9070 | F132: Canal | G132: WAT | I132: Hydro | J132: 9.9 | K132: 9.9 | L132: 0 | M132: 0 | N132: 7.5 | O132: 0 | P132: 9.9 | Q132: 9.9 | V132: 3 | W132: Operating | X132: Mar | Y132: 1987 | AA132: N. Side Main Cnl. | AB132: Jerome | AC132: ID | AD132: Y | AE132: Columbia | AF132: WECC | AG132: Enel SpA | AH132: Independent | AI132: Idaho Power Co. (QF thru Jun 2023) | AQ132: 1 | AR132: 1 | AW132: SPP | BC132: IPC | BJ132: 3 | BK132: 3.03 | BL132: 3.1 | BM132: 3.18 | BN132: 3.3 | BO132: 3.05 | BP132: 3.09 | BQ132: 3.13 | BR132: 3 | BS132: 2.9 | BT132: 3.2 | BU132: 2.9 | BV132: 3.47 | BW132: 3.2 | BX132: 2.917 | BY132: Exemption granted September 1985. Sold to ENEL Spa July 2004. Critical energy from PNUCC 2005 NRF | BZ132: 42.5596337 | CA132: -114.055861 | CB132: 2020-03-22T20:48:03 | CC132: 9.9 | CD132: 7.5 | CE132: 0.427 | CF132: 3.7149 | CH132: Y | CI132: Not accounted for in HydInd file | CK132: PNW East | CL132: HY_Irr | CM132: n/a | CN132: 1 | CP132: 1 | CR132: 1 | CT132: Y | CV132: Bypass | CW132: PNW East | CX132: Thr | CY132: Hyd | CZ132: 0 | DA132: Mar-1987 | DB132: Jan-2051 | DC132: n/a | DD132: Water | DE132: 0 | DF132: 24 | DG132: FALSE | DH132: Cf HY Irr | DI132: Zero | DJ132: Expense | DK132: Default | DL132: 50 | DM132: Flat | DN132: 0 | DO132: 0 | DP132: FALSE | DQ132: TRUE | DR132: FALSE | DS132: FALSE | DT132: 0 | DU132: 0 | DV132: 0 | DZ132: Bypass | EB132: Bypass | EC132: =IF($CH132="N","",IF(OR($I132<>"Wind",$I132<>"Solar",$I132<>"Hydro"),($CN132*$CP132*IF(ISBLANK($L132),IF(ISBLANK($O132),$J132,$O132),$L132))*VLOOKUP($DH132,ASeasDist,EC$9,FALSE)*VLOOKUP($DM132,ASeasDist,EC$9),$J132*$CN132*$CP132)) -> 0 | ED132: 0 | EE132: 0 | EF132: 0 | EG132: 0 | EH132: 0 | EI132: 0 | EJ132: 0 | EK132: 0 | EL132: 0 | EM132: 0 | EN132: 0 | EO132: =IF($CH132="N","",IF(OR($I132<>"Wind",$I132<>"Solar",$I132<>"Hydro"),$CR132*IF(ISBLANK($L132),IF(ISBLANK($O132),$J132,$O132),$L132),$J132)*(1-$DE132)*VLOOKUP($DH132,ASeasDist,EO$9,FALSE)*VLOOKUP($DM132,ASeasDist,EO$9)) -> 0 | EP132: 0 | EQ132: 0 | ER132: 0 | ES132: 0 | ET132: 0 | EU132: 0 | EV132: 0 | EW132: 0 | EX132: 0 | EY132: 0 | EZ132: 0
A133: C.J. Strike 1- 3 | B133: 1075 | C133: 812 | D133: 1,2,3 | E133: 2055 | F133: ROR | G133: WAT | I133: Hydro | J133: 82.8 | K133: 82.8 | M133: 82.8 | N133: 82.8 | O133: 82.8 | P133: 94.2 | Q133: 92 | W133: Operating | X133: May | Y133: 1952 | AA133: Snake R. | AB133: Owyhee | AC133: ID | AD133: Y | AE133: Columbia | AF133: WECC | AG133: Idaho Power Co. | AH133: IOU | AI133: Idaho Power Co. | AQ133: 1 | AR133: 1 | BC133: IPC | BD133: 41.5 | BE133: 40.1 | BF133: 40.5 | BG133: 43.72705479 | BH133: 55.11929224 | BI133: 44.5 | BJ133: 44.11 | BK133: 54.78 | BL133: 48.4 | BM133: 75.07 | BN133: 53 | BO133: 40.94 | BP133: 41.81 | BQ133: 42.93 | BR133: 43 | BS133: 62.8 | BT133: 64.9 | BU133: 56.6 | BV133: 51.09 | BW133: 41.47 | BX133: 39.179 | BY133: Original License granted February 1951; expired November 2000. Relicense granted Aug 2004. | BZ133: 42.946 | CA133: -115.975 | CB133: 2020-03-21T21:14:37 | CC133: 82.8 | CD133: 82.8 | CE133: 0.427 | CF133: 35.3556 | CG133: Independent | CH133: N | CI133: Accounted for in HydInd file
A134: Cabinet Gorge 1 - 4 | B134: 1076 | C134: 833 | D134: 1,2,3,4 | E134: 2058 | F134: ROR R w/Div | G134: WAT | I134: Hydro | J134: 265 | K134: 265.2 | M134: 262 | N134: 287.3 | O134: 287.3 | P134: 254.6 | Q134: 294.8 | T134: 123.6 | V134: 84 | W134: Operating | X134: Sep | Y134: 1952 | AA134: Clark Fork R. | AB134: Bonner | AC134: ID | AD134: Y | AE134: Columbia | AF134: WECC | AG134: Avista | AH134: IOU | AI134: Avista Utilities | AL134: Upgrades 2001-2007, units 2 - removal/replacement of propellor runner w/ modern design mixed-flow runner, units 3-4 runner replacements and generator rewinds. | AQ134: 1 | AR134: 1 | BC134: Avista | BD134: 123.8 | BE134: 111.2 | BF134: 120.9 | BG134: 114.5920091 | BH134: 130.7993151 | BI134: 124.2 | BJ134: 125.16 | BK134: 121.05 | BL134: 107.48 | BM134: 147.53 | BN134: 136.9 | BO134: 119 | BP134: 136.36 | BQ134: 113.57 | BR134: 122.8 | BS134: 121.3 | BT134: 132.3 | BU134: 113.1 | BV134: 114.46 | BW134: 114.49 | BX134: 125.79 | BY134: License granted January 1951; expires February 2001. Critical energy from PNUCC 2005 NRF | BZ134: 48.087 | CA134: -116.057 | CB134: 2020-04-09T21:59:41 | CC134: 265 | CD134: 287.3 | CE134: 0.4664150943 | CF134: 123.6 | CG134: Regulated | CH134: N | CI134: Reg hydro
A135: Calligan Creek | B135: 2128 | C135: 60418 | D135: CC6MW | E135: 13948 | F135: ROR | G135: WAT | I135: Hydro | J135: 6 | K135: 6 | M135: 6 | P135: 6 | Q135: 6 | W135: Operating | X135: Mar | Y135: 2018 | AA135: Calligan Creek, above Snoqualmie Falls; near North Bend | AB135: King | AC135: WA | AD135: Y | AE135: Puget Sound & Coastal | AF135: WECC | AG135: Snohomish Co. PUD | AH135: PUD | AI135: Snohomish PUD | AQ135: 1 | AR135: 1 | BC135: PSE | BT135: 1.3 | BU135: 1.3 | BV135: 2.2 | BW135: 2.22 | BX135: 0.444 | BY135: Final FERC license approved (6/30/15). SnoPUD issued $40M tax exempt bonds to finance construction of Calligan Creek and Hancock Creek projects (9/28/15). | BZ135: 47.6008 | CA135: -121.68861 | CB135: 2020-03-22T20:48:14 | CC135: 6 | CD135: 6 | CE135: 0.427 | CF135: 2.562 | CH135: Y | CK135: PNW West | CL135: HY_West | CM135: n/a | CN135: 1 | CP135: 1 | CR135: 1 | CT135: Y | CV135: Calligan Creek | CW135: PNW West | CX135: Thr | CY135: Hyd | CZ135: 6 | DA135: Mar-2018 | DB135: Jan-2051 | DC135: n/a | DD135: Water | DE135: 0 | DF135: 24 | DG135: FALSE | DH135: Cf HY West | DI135: Zero | DJ135: Expense | DK135: Default | DL135: 50 | DM135: Flat | DN135: 0 | DO135: 0 | DP135: FALSE | DQ135: TRUE | DR135: FALSE | DS135: FALSE | DT135: 0 | DU135: 0 | DV135: 0 | DZ135: Calligan Creek | EB135: Calligan Creek | EC135: 1.970260706 | ED135: 2.184942507 | EE135: 2.978951981 | EF135: 3.251373538 | EG135: 3.14544786 | EH135: 2.354592458 | EI135: 2.47730275 | EJ135: 2.534429346 | EK135: 2.808181421 | EL135: 2.820430006 | EM135: 2.671068118 | EN135: 2.760731587 | EO135: 1.970260706 | EP135: 2.184942507 | EQ135: 2.978951981 | ER135: 3.251373538 | ES135: 3.14544786 | ET135: 2.354592458 | EU135: 2.47730275 | EV135: 2.534429346 | EW135: 2.808181421 | EX135: 2.820430006 | EY135: 2.671068118 | EZ135: 2.760731587
A136: Camas Solar Project (Columbia) | B136: 2229 | C136: 62071/CAMAS | F136: PV | G136: SOL | I136: Solar | J136: 5 | W136: Operating | X136: Jun | Y136: 2022 | AA136: Ellensburg | AB136: Kittitas | AC136: WA | AD136: Y | AF136: WECC | AG136: Greenbacker Renewable Energy | AH136: Independent | AI136: Puget Sound Energy PPA through 2037 | AQ136: 1 | AR136: 1 | BC136: PSE | BX136: 0.147 | BY136: One of five 5MW solar projects known as the Columbia Solar Projects. Tuussoo applied for permit from Washington EFSEC, circumnavigating the Kittitas County morarotium on solar projects. Initial development work began in mid-2016 and commercial operation is in November 2018. Aug 2018, WA EFSEC finalized recommendation to approve, delivered rec to Governor for final approval. From EIA June 2019 - "Regulatory approvals received. Not under construction." Per WA EFSEC, site certificate was suspended for a few months in Fall 2019 due to failure to make outstanding payments. SCA reinstated in November 2019. | BZ136: 46.95609 | CA136: -120.50519 | CB136: 2023-03-27 | CE136: 0.254 | CZ136: 0 | DA136: Jun-2022 | DB136: Jan-2051 | DC136: 0
A137: Camp Reed (Idaho Wind) | B137: 1885 | C137: 57125 | D137: CRWP | F137: WT | G137: WND | I137: Wind | J137: 22.5 | K137: 22.5 | P137: 22.5 | Q137: 22.5 | T137: 6.8 | W137: Operating | X137: Dec | Y137: 2010 | AA137: Hagerman | AB137: Elmore | AC137: ID | AD137: Y | AE137: Columbia | AF137: WECC | AG137: Idaho Wind Partners | AH137: Independent | AI137: QF PPA w/IPC (Feb 2011 - Dec 2030). SCL to purchase environmental attributes (RECs) 2018-2030, for compliance ytars 2019-2031. | AJ137: SCL purchasing RECs 2018-2030 | AK137: PNW IOU | AP137: 2030 | AQ137: 1 | AR137: 1 | AV137: IPC King-Bliss 138kV line | AW137: SPP | AX137: (15) GE 1.5 XLE | AY137: 80 | AZ137: 82.5 | BA137: 2 | BC137: IPC | BL137: 0 | BM137: 6.93 | BN137: 4 | BO137: 7.21 | BP137: 7.63 | BQ137: 6.03 | BR137: 7.9 | BS137: 7 | BT137: 7.6 | BU137: 7.5 | BV137: 7.96 | BW137: 8.11 | BX137: 7.291 | BY137: (15) GE 1.5 MW WTG. FERC ruling May 2011 allows for RECs to be unbundled via 3rd party and sold to CA - power gets sold back to ID. Deseign wind speed 14.4mph. | BZ137: 42.816 | CA137: -115.058 | CB137: 2017-10-17T14:34:26 | CC137: =IF(OR(I137="Wind",I137="Solar",I137="Hydro"),J137,IF(ISNUMBER(L137),L137,IF(ISNUMBER(O137), O137, IF(ISNUMBER(Q137),Q137,J137)))) -> 22.5 | CD137: =IF(OR(J137="Wind",J137="Solar",J137="Hydro"),J137,IF(ISNUMBER(N137),N137,IF(ISNUMBER(P137), P137, IF(ISNUMBER(L137),L137,J137)))) -> 22.5 | CE137: 0.3022222222 | CF137: =IF(ISNUMBER(T137),T137,AVERAGE(CC137,CD137)*CE137) -> 6.8 | CH137: Y | CJ137: 100% PNW PPA | CK137: PNW East | CL137: WN_PNWE | CM137: n/a | CN137: 1 | CP137: 0.05 | CR137: 1 | CT137: Y | CV137: Camp Reed (Idaho Wind) | CW137: PNW East | CX137: Thr | CY137: Wind | CZ137: 22.5 | DA137: Dec-2010 | DB137: Jan-2051 | DC137: n/a | DD137: Wind | DE137: 0 | DF137: 0 | DG137: FALSE | DH137: Cf WN PNWE | DI137: WindB1 | DJ137: Default | DK137: Default | DL137: 20 | DM137: Flat | DN137: 0 | DO137: 1 | DP137: FALSE | DQ137: TRUE | DR137: FALSE | DS137: FALSE | DT137: 0 | DU137: 0 | DV137: 0 | DW137: 100% PNW PPA | DZ137: Camp Reed (Idaho Wind) | EB137: Camp Reed (Idaho Wind) | EC137: 0.31725 | ED137: 0.246375 | EE137: 0.286875 | EF137: 0.324 | EG137: 0.347625 | EH137: 0.30375 | EI137: 0.361125 | EJ137: 0.361125 | EK137: 0.408375 | EL137: 0.361125 | EM137: 0.374625 | EN137: 0.361125 | EO137: 6.345 | EP137: 4.9275 | EQ137: 5.7375 | ER137: 6.48 | ES137: 6.9525 | ET137: 6.075 | EU137: 7.2225 | EV137: 7.2225 | EW137: 8.1675 | EX137: 7.2225 | EY137: 7.4925 | EZ137: 7.2225
A138: Campbell Hill (Three Buttes) | B138: 2017 | C138: 57090 | D138: CHWF | F138: WT | G138: WND | I138: Wind | J138: 99 | K138: 99 | P138: 99 | Q138: 99 | T138: 29.7 | W138: Operating | X138: Dec | Y138: 2009 | AA138: Casper | AB138: Converse | AC138: WY | AD138: N | AE138: Missouri | AF138: WECC | AG138: Duke Energy DEGS Campbell Hill | AH138: Independent | AI138: PPA w/ PacifiCorp for 20 years (Dec 2009 - Dec 2029) | AJ138: PacifiCorp (bundled RECs) | AK138: PNW IOU | AP138: 2029 | AQ138: 1 | AR138: 1 | AX138: (66) GE 1.5 SLE | AY138: 83 | AZ138: 77 | BA138: 2 | BC138: PACE | BO138: 38.54 | BP138: 37.83 | BQ138: 33.51 | BR138: 37.9 | BS138: 35.57 | BT138: 35.2 | BU138: 37 | BV138: 37.53 | BY138: (66) 1.5 MW GE WTG. Assume 25.81% SG factor to Oregon, per PacifiCorp's 2011 OR RPS Compliance Report. Design wind speed 15mph. | BZ138: 42.9989 | CA138: -106.02136 | CB138: 2020-01-29T09:31:20 | CC138: 99 | CD138: 99 | CE138: 0.3 | CF138: 29.7 | CH138: N | CI138: PACE
A139: Canal Creek | B139: 1077 | E139: 5572 | F139: Canal | G139: WAT | I139: Hydro | J139: 1.1 | T139: 0.47 | W139: Retired | Y139: 1984 | Z139: 1997 | AA139: Wallowa Valley Imp. Dist. Cnl. | AB139: Wallowa | AC139: OR | AD139: Y | AE139: Columbia | AF139: WECC | AG139: Joseph Hydro Assoc., Ltd. | AH139: Independent | AI139: Retired | AQ139: 0 | AR139: 0 | BG139: n/a | BH139: n/a | BY139: Dam remains in service. Exemption surrendered March 1982. | CB139: 2020-03-25T22:12:20 | CC139: 1.1 | CD139: 1.1 | CE139: 0.4272727273 | CF139: 0.47 | CH139: N | CI139: Retired
A140: Canyon Creek | B140: 1078 | C140: PLNT_19 | E140: 6414 | F140: Diversion | G140: WAT | I140: Hydro | J140: 0.08 | M140: 0.12 | N140: 0.08 | O140: 0.08 | T140: 0.06 | W140: Operating | Y140: 1985 | AA140: Canyon Cr. | AB140: Clackamas | AC140: OR | AD140: Y | AE140: Columbia | AF140: WECC | AG140: Douglas Water Power Company | AH140: Independent | AQ140: 1 | AR140: 1 | BJ140: 0.05 | BY140: Exemption granted September 1982. | CB140: 2020-03-22T20:48:23 | CC140: 0.08 | CD140: 0.08 | CE140: =IF(OR(ISBLANK(J140),ISBLANK(T140),J140=0),VLOOKUP(IF(G140="WAT","HY",IF(G140="LFG","LFG",F140)),Acapability,3,FALSE),T140/J140) -> 0.75 | CF140: 0.06 | CH140: N | CI140: <0.5 MW | CV140: =IF($CH140="Y",A140,"") ->  | CW140: =IF($CH140="Y",CK140,"") ->  | CX140: =IF(CH140="N","",VLOOKUP($CL140,ATechDat,2,FALSE)) ->  | CY140: =IF(CH140="N","",VLOOKUP($CL140,ATechDat,3,FALSE)) ->  | CZ140: =IF($CH140="N","",IF($I140<>"Wind",($CN140*$CP140*IF(ISBLANK($L140),IF(ISBLANK($O140),$J140,$O140),$L140)),$J140*IF(AND($I140="Wind",SWFullWind="Y"),1,$CN140*$CP140))) ->  | DA140: =IF(CH140="N","",IF(ISBLANK(X140),"Dec",X140)&"-"&IF(ISBLANK(Y140),1980,Y140)) ->  | DB140: =IF(CH140="N","",IF(W140="Retired",Z140,"Jan-2051")) ->  | DC140: =IF(CH140="N","",CM140) ->  | DD140: =IF(CH140="N","",VLOOKUP($CL140,ATechDat,4,FALSE)) ->  | DE140: =IF(CH140="N","",VLOOKUP($CL140,ATechDat,5,FALSE)) ->  | DF140: =IF(CH140="N","",VLOOKUP($CL140,ATechDat,6,FALSE)) ->  | DG140: =IF(CH140="N","",VLOOKUP($CL140,ATechDat,7,FALSE)) ->  | DH140: =IF(CH140="N","",VLOOKUP($CL140,ATechDat,8,FALSE)) ->  | DI140: =IF(CH140="N","",VLOOKUP($CL140,ATechDat,9,FALSE)) ->  | DJ140: =IF(CH140="N","",VLOOKUP($CL140,ATechDat,10,FALSE)) ->  | DK140: =IF(CH140="N","",VLOOKUP($CL140,ATechDat,11,FALSE)) ->  | DL140: =IF(CH140="N","",VLOOKUP($CL140,ATechDat,12,FALSE)) ->  | DM140: =IF(CH140="N","",VLOOKUP($CL140,ATechDat,13,FALSE)) ->  | DN140: =IF(CH140="N","",VLOOKUP($CL140,ATechDat,14,FALSE)) ->  | DO140: =IF(CH140="N","",VLOOKUP($CL140,ATechDat,15,FALSE)) ->  | DP140: =IF(CH140="N","",VLOOKUP($CL140,ATechDat,16,FALSE)) ->  | DQ140: =IF(CH140="N","",VLOOKUP($CL140,ATechDat,17,FALSE)) ->  | DR140: =IF(CH140="N","",VLOOKUP($CL140,ATechDat,18,FALSE)) ->  | DS140: =IF(CH140="N","",VLOOKUP($CL140,ATechDat,19,FALSE)) ->  | DT140: =IF(CH140="N","",VLOOKUP($CL140,ATechDat,20,FALSE)) ->  | DU140: =IF(CH140="N","",VLOOKUP($CL140,ATechDat,21,FALSE)) ->  | DV140: =IF(CH140="N","",VLOOKUP($CL140,ATechDat,22,FALSE)) ->  | DW140: =IF(ISBLANK(CJ140),"",CJ140) ->  | DZ140: =IF(CH140="N","",CV140) ->  | EB140: =CV140 -> 
A141: Canyon Ferry 1- 3 | B141: 1079 | C141: 6400 | D141: 1,2,3 | E141: Federal | F141: Storage | G141: WAT | I141: Hydro | J141: 49.8 | K141: 49.8 | N141: 57.6 | O141: 57.6 | P141: 57.6 | Q141: 57.6 | T141: 46.8 | V141: not reported | W141: Operating | X141: Dec | Y141: 1953 | AA141: Missouri R. | AB141: Lewis & Clark | AC141: MT | AD141: N | AE141: Missouri | AF141: WECC | AG141: USBR | AH141: Federal | AI141: WAPA | AQ141: 0 | AR141: 0 | BC141: NorthWestern | BG141: 34.0652968 | BH141: 37.63812785 | BI141: 32.6 | BJ141: 37.95 | BK141: 44.31 | BL141: 42.11 | BM141: 47.8 | BN141: 37 | BO141: 30.24 | BP141: 41.44 | BQ141: 34.63 | BR141: 35.4 | BS141: 39.6 | BT141: 42.2 | BU141: 42.1 | BV141: 39.14 | BW141: 28.2 | BX141: 26.929 | BZ141: 46.649 | CA141: -111.728 | CB141: 2017-10-17T14:34:58 | CC141: 49.8 | CD141: 57.6 | CE141: 0.9397590361 | CF141: 46.8 | CH141: N | CI141: WAPA load
A142: Cargill Kettle Butte Bio Factory | B142: 2070 | C142: 57345 | D142: 1,2 | F142: BGICCG | G142: AW | I142: Biomass | J142: 1.8 | K142: 1.8 | N142: 1.8 | O142: 1.8 | P142: 1.8 | Q142: 1.8 | W142: Operating | X142: May | Y142: 2011 | AA142: Roberts, ID | AB142: Jefferson | AC142: ID | AD142: Y | AE142: Columbia | AF142: WECC | AG142: Cargill Environmental Finance | AH142: Independent | AI142: PacifiCorp (Rocky Mountain Power) - PPA June 2011 - Feb 2021 | AP142: 2021 | AQ142: 1 | AR142: 1 | AT142: Waste digestor | AW142: SPP | BC142: PACE | BM142: 0.37 | BN142: 1 | BO142: 0.82 | BP142: 0.88 | BQ142: 0.61 | BR142: 0.7 | BS142: 0.9 | BT142: 0.8 | BU142: 0.8 | BV142: 0.16 | BW142: 0 | BX142: 0.131 | BY142: Anaerobic digestor on Kettle Butte Dairy and (2) biogas-fired IC engines. | BZ142: 43.630127 | CA142: -112.28169 | CB142: 2017-10-17T14:37:14 | CC142: 1.8 | CD142: 1.8 | CE142: 0.75 | CF142: 1.35 | CH142: Y | CK142: PNW East | CL142: BGIC | CV142: Cargill Kettle Butte Bio Factory | CW142: PNW East | CX142: Thr | CY142: IC | CZ142: 0 | DA142: May-2011 | DB142: Jan-2051 | DC142: 0 | DD142: Zero-cost Biofuel | DE142: 0.047 | DF142: 56 | DG142: FALSE | DH142: MR 7d Flat | DI142: Landfill | DJ142: Default | DK142: Default | DL142: 20 | DM142: Flat | DN142: 0 | DO142: 1 | DP142: FALSE | DQ142: TRUE | DR142: FALSE | DS142: FALSE | DT142: 0 | DU142: 0 | DV142: 0 | DZ142: Cargill Kettle Butte Bio Factory | EB142: Cargill Kettle Butte Bio Factory | EC142: =IF($CH142="N","",IF(OR($I142<>"Wind",$I142<>"Solar",$I142<>"Hydro"),($CN142*$CP142*IF(ISBLANK($L142),IF(ISBLANK($O142),$J142,$O142),$L142))*VLOOKUP($DH142,ASeasDist,EC$9,FALSE)*VLOOKUP($DM142,ASeasDist,EC$9),$J142*$CN142*$CP142)) -> 0 | ED142: 0 | EE142: 0 | EF142: 0 | EG142: 0 | EH142: 0 | EI142: 0 | EJ142: 0 | EK142: 0 | EL142: 0 | EM142: 0 | EN142: 0 | EO142: =IF($CH142="N","",IF(OR($I142<>"Wind",$I142<>"Solar",$I142<>"Hydro"),$CR142*IF(ISBLANK($L142),IF(ISBLANK($O142),$J142,$O142),$L142),$J142)*(1-$DE142)*VLOOKUP($DH142,ASeasDist,EO$9,FALSE)*VLOOKUP($DM142,ASeasDist,EO$9)) -> 0 | EP142: 0 | EQ142: 0 | ER142: 0 | ES142: 0 | ET142: 0 | EU142: 0 | EV142: 0 | EW142: 0 | EX142: 0 | EY142: 0 | EZ142: 0
A143: Carmen-Smith 1-3 | B143: 1080 | C143: 3067 | D143: 1,2,3 | E143: 2242B | F143: Storage w/Div | G143: WAT | I143: Hydro | J143: 114.3 | K143: 114.3 | M143: 108 | N143: 111.8 | O143: 114.5 | P143: 103.8 | Q143: 106.5 | T143: 22 | V143: 16 | W143: Operating | X143: Aug | Y143: 1963 | AA143: McKenzie R. | AB143: Linn | AC143: OR | AD143: Y | AE143: Columbia | AF143: WECC | AG143: City of Eugene (EWEB) | AH143: Municipal | AI143: EWEB | AQ143: 1 | AR143: 1 | BC143: BPA | BD143: 26.3 | BE143: 26.2 | BF143: 28.6 | BG143: 21.81210046 | BH143: 26.19006849 | BI143: 24.1 | BJ143: 17.78 | BK143: 24.54 | BL143: 25.2 | BM143: 31.73 | BN143: 33.6 | BO143: 28.7 | BP143: 32.01 | BQ143: 22.74 | BR143: 29.8 | BS143: 30.1 | BT143: 18.9 | BU143: 4.8 | BV143: 17.97 | BW143: 17.18 | BX143: 23.206 | BY143: (2) 52.2 MW units, (1) 9.9 MW unit. License granted January 1959; expired November 2008. EWEB negotiating new license - wants to revise 2008 application due to rising costs and lower project economics (Oct 2015). Critical energy from PNUCC 2005 NRF. | BZ143: 44.279 | CA143: -122.049 | CB143: 2020-03-21T21:13:34 | CC143: 114.3 | CD143: 111.8 | CE143: 0.1924759405 | CF143: 22 | CG143: Independent | CH143: N | CI143: Accounted for in HydInd file
A144: Carnes Creek Solar | B144: 2406 | C144: 65745 | G144: SOL | I144: Solar | J144: 2.5 | W144: Operating | AA144: Brooks | AB144: Marion | AC144: OR | AG144: Oregon Shines | BX144: 0.009 | BY144: PGE Community Solar Project | BZ144: 45.07616 | CA144: -122.92796 | CB144: 2023-10-27 | CZ144: 0 | DA144: Dec-1980 | DB144: Jan-2051 | DC144: 0
A145: Carty Generating Station | B145: 1892 | C145: 58503 | D145: GEN1,GEN2 | F145: CC | G145: NG | I145: Natural Gas | J145: 440 | K145: 500 | M145: 430 | P145: 413 | Q145: 467 | R145: 168 | S145: 0.9 | W145: Operating | X145: Jul | Y145: 2016 | AA145: Boardman | AB145: Morrow | AC145: OR | AD145: Y | AE145: Columbia | AF145: WECC | AG145: Portland General Electric | AH145: IOU | AI145: Portland General Electric | AM145: 20.79 | AN145: 1.6 | AO145: 6653 | AQ145: 1 | AR145: 1 | BC145: PGE | BR145: 155.6 | BS145: 273.3 | BT145: 344.8 | BU145: 341.3 | BV145: 341.2 | BW145: 345.48 | BX145: 344.513 | BY145: (1) CC w/duct firing, wet mech draft cooling. Mitsbishi G-class turbine. | BZ145: 45.6964 | CA145: -119.808 | CB145: 2020-07-15T16:27:46 | CC145: =IF(OR(I145="Wind",I145="Solar",I145="Hydro"),J145,IF(ISNUMBER(L145),L145,IF(ISNUMBER(O145), O145, IF(ISNUMBER(Q145),Q145,J145)))) -> 467 | CD145: =IF(OR(J145="Wind",J145="Solar",J145="Hydro"),J145,IF(ISNUMBER(N145),N145,IF(ISNUMBER(P145), P145, IF(ISNUMBER(L145),L145,J145)))) -> 413 | CE145: 0.89 | CF145: =IF(ISNUMBER(T145),T145,AVERAGE(CC145,CD145)*CE145) -> 391.6 | CH145: Y | CK145: PNW East | CL145: NGCC_PNWE | CM145: 6700 | CN145: 1 | CP145: 1 | CR145: 1 | CV145: Carty Generating Station | CW145: PNW East | CX145: Thr | CY145: CCCT | CZ145: 440 | DA145: Jul-2016 | DB145: Jan-2051 | DC145: 6700 | DD145: PNW E. gas | DE145: 0.059 | DF145: 32 | DG145: TRUE | DH145: MR 21d Winter Pk_Hydro | DI145: CCCT - PNW E. | DJ145: Default | DK145: Default | DL145: 30 | DM145: CMS GT PNWE | DN145: 0 | DO145: 0 | DP145: FALSE | DQ145: TRUE | DR145: FALSE | DS145: FALSE | DT145: 0 | DU145: 0 | DV145: 0 | DZ145: Carty Generating Station | EB145: Carty Generating Station | EC145: 405.8088848 | ED145: 419.3813795 | EE145: 431.4090082 | EF145: 439.4714405 | EG145: 440 | EH145: 433.9501748 | EI145: 369.9792779 | EJ145: 308.8206036 | EK145: 301.7970688 | EL145: 295.9291823 | EM145: 394.4594608 | EN145: 395.6922327 | EO145: 381.8661606 | EP145: 394.6378782 | EQ145: 405.9558767 | ER145: 413.5426255 | ES145: 414.04 | ET145: 408.3471145 | EU145: 348.1505005 | EV145: 290.600188 | EW145: 283.9910417 | EX145: 278.4693606 | EY145: 371.1863526 | EZ145: 372.346391
A146: Cascade 1 & 2 | B146: 1081 | C146: 813 | D146: 1,2 | E146: 2848 | F146: Storage w/Div | G146: WAT | I146: Hydro | J146: 12.42 | K146: 12.4 | M146: 8.67 | N146: 12.4 | O146: 1.8 | P146: 14.4 | Q146: 9.2 | T146: 12 | W146: Operating | Y146: 1926 | AA146: Payette R. N. Fk. | AB146: Valley | AC146: ID | AD146: Y | AE146: Columbia | AF146: WECC | AG146: Idaho Power Co. | AH146: IOU | AI146: Idaho Power Co. | AQ146: 1 | AR146: 1 | BC146: IPC | BJ146: 5.4 | BK146: 5.12 | BL146: 4.1 | BM146: 5.81 | BN146: 6 | BO146: 4.56 | BP146: 4.92 | BQ146: 3.6 | BR146: 4.8 | BS146: 5.4 | BT146: 5.4 | BU146: 4.2 | BV146: 4.11 | BW146: 3 | BX146: 3.832 | BY146: License granted February 1981; expires January 2031. | BZ146: 44.7578 | CA146: -115.561 | CB146: 2020-03-21T21:13:48 | CC146: 12.42 | CD146: 12.4 | CE146: 0.9661835749 | CF146: 12 | CG146: Independent | CH146: N | CI146: Accounted for in HydInd file
A147: Cascade Creek | B147: 1082 | E147: 6629 | F147: Diversion | G147: WAT | I147: Hydro | J147: 0.08 | L147: 0 | M147: 0.02 | N147: 0.08 | O147: 0.08 | T147: =67/8760 -> 0.007648401826 | W147: Operating | Y147: 1983 | AA147: Cascade Cr. | AB147: Park | AC147: MT | AD147: N | AE147: Missouri | AF147: WECC | AG147: M Ranch | AH147: Independent | AI147: NorthWestern (QF thru Oct 2019) | AP147: 2019 | AQ147: 0.31 | AR147: 0.31 | BY147: Exemption granted January 1983. Critical energy from PNUCC 2005 NRF | CB147: 2020-03-22T20:49:08 | CC147: 0.08 | CD147: 0.08 | CE147: 0.09560502283 | CF147: 0.007648401826 | CH147: N | CI147: <0.5 MW
A148: Case Creek Solar | B148: 2330 | C148: 63207 | D148: CCPV1 | F148: PV | G148: SOL | I148: Solar | J148: 2.2 | K148: 2.2 | P148: 2.2 | Q148: 2.2 | W148: Operating | X148: Oct | Y148: 2019 | AA148: Marion Cty | AB148: Marion | AC148: OR | AD148: Y | AE148: Columbia | AF148: WECC | AG148: BNRG Renewables | AH148: Independent | AI148: PGE | AW148: SPP | BB148: Fixed tilt | BC148: PGE | BU148: 0.1 | BV148: 0.43 | BW148: 0.44 | BX148: 0.434 | BY148: Crystalline Silicone, 3.2MWdc, Fixed-tilt. 180 azimuth angle, 20 tilt angle | BZ148: 45.172 | CA148: -122.912 | CB148: 2020-10-23T20:28:09 | CC148: 2.2 | CD148: 2.2 | CE148: 0.254 | CF148: 0.5588 | CH148: Y | CJ148: 100% PNW PPA | CK148: PNW West | CL148: PV | CN148: 1 | CP148: 0.75 | CR148: 1 | CT148: Y | CV148: Case Creek Solar | CW148: PNW West | CX148: Thr | CY148: PV | CZ148: 1.65 | DA148: Oct-2019 | DB148: Jan-2051 | DC148: 0 | DD148: Solar | DE148: 0 | DF148: 0 | DG148: FALSE | DH148: Cf PV | DI148: SolarPV | DJ148: Default | DK148: Default | DL148: 30 | DM148: Flat | DN148: 0 | DO148: 1 | DP148: FALSE | DQ148: TRUE | DR148: FALSE | DS148: FALSE | DT148: 0 | DU148: 0 | DV148: 0 | DW148: 100% PNW PPA | DZ148: Case Creek Solar | EB148: Case Creek Solar | EC148: 0.4878971167 | ED148: 0.316896714 | EE148: 0.146551695 | EF148: 0.121149408 | EG148: 0.1391544969 | EH148: 0.2351122549 | EI148: 0.3760338312 | EJ148: 0.4458262099 | EK148: 0.58164976 | EL148: 0.6384704618 | EM148: 0.6588115697 | EN148: 0.5899329694 | EO148: 0.6505294889 | EP148: 0.4225289519 | EQ148: 0.19540226 | ER148: 0.161532544 | ES148: 0.1855393292 | ET148: 0.3134830065 | EU148: 0.5013784416 | EV148: 0.5944349465 | EW148: 0.7755330134 | EX148: 0.8512939491 | EY148: 0.8784154262 | EZ148: 0.7865772925
A149: Cassia | B149: 1902 | C149: 56934 | D149: 1 | F149: WT | G149: WND | I149: Wind | J149: 10.5 | K149: 10.5 | P149: 10.5 | Q149: 10.5 | W149: Operating | X149: Feb | Y149: 2009 | AA149: Hagerman | AB149: Twin Falls | AC149: ID | AD149: Y | AE149: Columbia | AF149: WECC | AG149: Exelon (John Deere Renewables) | AH149: Independent | AI149: Idaho Power Co. (QF Mar 2009 - Mar 2029) | AK149: PNW IOU | AP149: 2029 | AQ149: 1 | AR149: 1 | AV149: IPC Lower Malad/ Mtn Home Jct 138kV | AW149: SPP | AX149: (5) Suzlon S88-2100 | AY149: 80 | AZ149: 88 | BA149: 2 | BC149: IPC | BK149: 2.01 | BL149: 3 | BM149: 2.75 | BN149: 2.7 | BO149: 2.83 | BP149: 3.04 | BQ149: 2.35 | BR149: 2.8 | BS149: 2.5 | BT149: 2.8 | BU149: 2.1 | BV149: 2.17 | BW149: 2.17 | BX149: 2.005 | BY149: (5) Suzlon S88-2.1 MW WTG. Design wind speed 14.7mph. | BZ149: 42.86232 | CA149: -115.02651 | CB149: 2017-10-17T14:41:54 | CC149: 10.5 | CD149: 10.5 | CE149: 0.32 | CF149: 3.36 | CH149: Y | CJ149: 100% PNW PPA | CK149: PNW East | CL149: WN_SID | CM149: n/a | CN149: 1 | CP149: 0.05 | CR149: 1 | CT149: Y | CV149: Cassia | CW149: PNW East | CX149: Thr | CY149: Wind | CZ149: 10.5 | DA149: Feb-2009 | DB149: Jan-2051 | DC149: n/a | DD149: Wind | DE149: 0 | DF149: 0 | DG149: FALSE | DH149: Cf WN IDS | DI149: WindB1 | DJ149: Default | DK149: Default | DL149: 20 | DM149: Flat | DN149: 0 | DO149: 1 | DP149: FALSE | DQ149: TRUE | DR149: FALSE | DS149: FALSE | DT149: 0 | DU149: 0 | DV149: 0 | DW149: 100% PNW PPA | DZ149: Cassia | EB149: Cassia | EC149: 0.10584 | ED149: 0.10878 | EE149: 0.23373 | EF149: 0.21021 | EG149: 0.17493 | EH149: 0.20433 | EI149: 0.15729 | EJ149: 0.15435 | EK149: 0.13818 | EL149: 0.10437 | EM149: 0.08232 | EN149: 0.08967 | EO149: 2.1168 | EP149: 2.1756 | EQ149: 4.6746 | ER149: 4.2042 | ES149: 3.4986 | ET149: 4.0866 | EU149: 3.1458 | EV149: 3.087 | EW149: 2.7636 | EX149: 2.0874 | EY149: 1.6464 | EZ149: 1.7934
A150: Cassia Gulch | B150: 1888 | C150: 56935 | D150: 1 | F150: WT | G150: WND | I150: Wind | J150: 18.9 | K150: 18.9 | P150: 18.9 | Q150: 18.9 | W150: Operating | X150: Feb | Y150: 2009 | AA150: Hagerman | AB150: Twin Falls | AC150: ID | AD150: Y | AE150: Columbia | AF150: WECC | AG150: Exelon (John Deere Renewables) | AH150: Independent | AI150: Idaho Power Co. (QF May 2010 - May 2030) | AK150: PNW IOU | AP150: 2030 | AQ150: 1 | AR150: 1 | AV150: IPC Lower Malad/ Mtn Home Jct 138kV | AW150: SPP | AX150: (9) Suzlon S88-2100 | AY150: 80 | AZ150: 88 | BA150: 2 | BC150: IPC | BK150: 3.57 | BL150: 5.2 | BM150: 5.1 | BN150: 5.1 | BO150: 4.95 | BP150: 5.15 | BQ150: 4.05 | BR150: 4.9 | BS150: 4.4 | BT150: 4.9 | BU150: 4.6 | BV150: 4.79 | BW150: 4.72 | BX150: 4.296 | BY150: (9) Suzlon S88-2.1 MW WTG. Design wind speed 14.7mph. | BZ150: 42.162371 | CA150: -112.380623 | CB150: 2017-10-17T14:41:36 | CC150: 18.9 | CD150: 18.9 | CE150: 0.32 | CF150: 6.048 | CH150: Y | CJ150: 100% PNW PPA | CK150: PNW East | CL150: WN_SID | CM150: n/a | CN150: 1 | CP150: 0.05 | CR150: 1 | CT150: Y | CV150: Cassia Gulch | CW150: PNW East | CX150: Thr | CY150: Wind | CZ150: 18.9 | DA150: Feb-2009 | DB150: Jan-2051 | DC150: n/a | DD150: Wind | DE150: 0 | DF150: 0 | DG150: FALSE | DH150: Cf WN IDS | DI150: WindB1 | DJ150: Default | DK150: Default | DL150: 20 | DM150: Flat | DN150: 0 | DO150: 1 | DP150: FALSE | DQ150: TRUE | DR150: FALSE | DS150: FALSE | DT150: 0 | DU150: 0 | DV150: 0 | DW150: 100% PNW PPA | DZ150: Cassia Gulch | EB150: Cassia Gulch | EC150: 0.190512 | ED150: 0.195804 | EE150: 0.420714 | EF150: 0.378378 | EG150: 0.314874 | EH150: 0.367794 | EI150: 0.283122 | EJ150: 0.27783 | EK150: 0.248724 | EL150: 0.187866 | EM150: 0.148176 | EN150: 0.161406 | EO150: 3.81024 | EP150: 3.91608 | EQ150: 8.41428 | ER150: 7.56756 | ES150: 6.29748 | ET150: 7.35588 | EU150: 5.66244 | EV150: 5.5566 | EW150: 4.97448 | EX150: 3.75732 | EY150: 2.96352 | EZ150: 3.22812
A151: C-Drop Hydro | B151: 2100 | C151: 58470 | D151: GEN1 | F151: Canal | G151: WAT | I151: Hydro | J151: 1.1 | K151: 1.1 | M151: 0 | P151: 1.1 | W151: Operating | X151: May | Y151: 2012 | AB151: Klamath | AC151: OR | AD151: Y | AE151: Klamath | AF151: WECC | AG151: C-Drop Hydro, LLC/Klamath Irrigation District | AH151: Municipal | AQ151: 1 | AR151: 1 | AW151: SPP | BC151: PACW | BO151: 0.22 | BP151: 0.25 | BQ151: 0.26 | BR151: 0.3 | BS151: 0.3 | BT151: 0.2 | BU151: 0.3 | BV151: 0.03 | BW151: 0 | BX151: 0 | BY151: Granted LOPP by Bur Rec instead of FERC license in Nov 2011. | BZ151: 42.165833 | CA151: -121.685 | CB151: 2020-03-22T20:50:13 | CC151: 1.1 | CD151: 1.1 | CE151: 0.427 | CF151: 0.4697 | CH151: Y | CI151: Not accounted for in HydInd file | CK151: PNW West | CL151: HY_West | CM151: n/a | CN151: 1 | CP151: 1 | CR151: 1 | CV151: C-Drop Hydro | CW151: PNW West | CX151: Thr | CY151: Hyd | CZ151: 1.1 | DA151: May-2012 | DB151: Jan-2051 | DC151: n/a | DD151: Water | DE151: 0 | DF151: 24 | DG151: FALSE | DH151: Cf HY West | DI151: Zero | DJ151: Expense | DK151: Default | DL151: 50 | DM151: Flat | DN151: 0 | DO151: 0 | DP151: FALSE | DQ151: TRUE | DR151: FALSE | DS151: FALSE | DT151: 0 | DU151: 0 | DV151: 0 | DZ151: C-Drop Hydro | EB151: C-Drop Hydro | EC151: 0.3612144628 | ED151: 0.400572793 | EE151: 0.5461411964 | EF151: 0.5960851487 | EG151: 0.576665441 | EH151: 0.4316752839 | EI151: 0.4541721708 | EJ151: 0.4646453801 | EK151: 0.5148332606 | EL151: 0.5170788345 | EM151: 0.4896958216 | EN151: 0.5061341243 | EO151: 0.3612144628 | EP151: 0.400572793 | EQ151: 0.5461411964 | ER151: 0.5960851487 | ES151: 0.576665441 | ET151: 0.4316752839 | EU151: 0.4541721708 | EV151: 0.4646453801 | EW151: 0.5148332606 | EX151: 0.5170788345 | EY151: 0.4896958216 | EZ151: 0.5061341243
A152: Cedar Draw Creek (Crystal Springs) | B152: 1083 | C152: 10806 | D152: GEN1 | E152: 8278 | F152: Diversion | G152: WAT | I152: Hydro | J152: 2.3 | K152: 2.3 | L152: 0.8 | M152: 1.16 | N152: 1.08 | O152: 0.46 | P152: 2 | Q152: 2 | V152: 0 | W152: Operating | X152: Jan | Y152: 1988 | AA152: Cedar Draw Cr. | AB152: Twin Falls | AC152: ID | AD152: Y | AE152: Columbia | AF152: WECC | AG152: Crystal Springs Hydroelectric, LP | AH152: Independent | AI152: Idaho Power Co. (QF thru May 2019) | AQ152: 1 | AR152: 1 | AW152: SPP | BC152: IPC | BL152: 1.2 | BM152: 1.3 | BN152: 1.3 | BO152: 1.12 | BP152: 1.2 | BQ152: 1.11 | BR152: 1.3 | BS152: 1.4 | BT152: 1.3 | BU152: 1.4 | BV152: 1.29 | BW152: 1.08 | BX152: 0.847 | BY152: License granted May 1985; expires April 2035. Critical energy from PNUCC 2005 NRF | BZ152: 42.622513 | CA152: -114.50093 | CB152: 2020-03-22T20:50:36 | CC152: 2.3 | CD152: 1.08 | CE152: 0.427 | CF152: 0.72163 | CH152: Y | CI152: Not accounted for in HydInd file | CK152: PNW East | CL152: HY_East | CM152: n/a | CN152: 1 | CP152: 1 | CR152: 1 | CT152: Y | CV152: Cedar Draw Creek (Crystal Springs) | CW152: PNW East | CX152: Thr | CY152: Hyd | CZ152: 0.8 | DA152: Jan-1988 | DB152: Jan-2051 | DC152: n/a | DD152: Water | DE152: 0 | DF152: 24 | DG152: FALSE | DH152: Cf HY East | DI152: Zero | DJ152: Expense | DK152: Default | DL152: 50 | DM152: Flat | DN152: 0 | DO152: 0 | DP152: FALSE | DQ152: TRUE | DR152: FALSE | DS152: FALSE | DT152: 0 | DU152: 0 | DV152: 0 | DZ152: Cedar Draw Creek (Crystal Springs) | EB152: Cedar Draw Creek (Crystal Springs) | EC152: =IF($CH152="N","",IF(OR($I152<>"Wind",$I152<>"Solar",$I152<>"Hydro"),($CN152*$CP152*IF(ISBLANK($L152),IF(ISBLANK($O152),$J152,$O152),$L152))*VLOOKUP($DH152,ASeasDist,EC$9,FALSE)*VLOOKUP($DM152,ASeasDist,EC$9),$J152*$CN152*$CP152)) -> 0.2614162191 | ED152: 0.3432221565 | EE152: 0.3052075312 | EF152: 0.387713724 | EG152: 0.446088234 | EH152: 0.3442871876 | EI152: 0.4006755052 | EJ152: 0.4328613269 | EK152: 0.5685116261 | EL152: 0.5283905812 | EM152: 0.529317535 | EN152: 0.4782444155 | EO152: =IF($CH152="N","",IF(OR($I152<>"Wind",$I152<>"Solar",$I152<>"Hydro"),$CR152*IF(ISBLANK($L152),IF(ISBLANK($O152),$J152,$O152),$L152),$J152)*(1-$DE152)*VLOOKUP($DH152,ASeasDist,EO$9,FALSE)*VLOOKUP($DM152,ASeasDist,EO$9)) -> 0.2614162191 | EP152: 0.3432221565 | EQ152: 0.3052075312 | ER152: 0.387713724 | ES152: 0.446088234 | ET152: 0.3442871876 | EU152: 0.4006755052 | EV152: 0.4328613269 | EW152: 0.5685116261 | EX152: 0.5283905812 | EY152: 0.529317535 | EZ152: 0.4782444155
A153: Cedar Falls (Masonry Dam) 1 & 2 | B153: 1084 | C153: 6430 | D153: 5,6 | E153: 10647 | F153: Storage w/Div | G153: WAT | I153: Hydro | J153: 20 | K153: 30 | M153: 9.25 | N153: 30 | O153: 30 | P153: 30 | Q153: 30 | T153: 9 | V153: 12 | W153: Operating | Y153: 1905 | AA153: Cedar R. | AB153: King | AC153: WA | AD153: Y | AE153: Puget Sound & Coastal | AF153: WECC | AG153: City of Seattle | AH153: Municipal | AI153: City of Seattle | AQ153: 1 | AR153: 1 | BC153: SCE | BD153: 9 | BE153: 7.2 | BF153: 6.9 | BG153: 3.452853881 | BH153: 6.048630137 | BI153: 5.6 | BJ153: 7.45 | BK153: 8.69 | BL153: 7.4 | BM153: 12.52 | BN153: 13.9 | BO153: 8.87 | BP153: 7.44 | BQ153: 5.37 | BR153: 7.8 | BS153: 9.5 | BT153: 9.9 | BU153: 4.7 | BV153: 9.2 | BW153: 9.47 | BX153: 9.484 | BY153: Critical energy from PNUCC 2005 NRF | BZ153: 47.419 | CA153: -121.781 | CB153: 2020-03-21T21:14:01 | CC153: 20 | CD153: 30 | CE153: 0.45 | CF153: 9 | CG153: Independent | CH153: N | CI153: Accounted for in HydInd file
A154: Cedar Springs I | B154: 2319 | F154: WT | G154: WND | I154: Wind | J154: 200 | W154: Operating | X154: Dec | Y154: 2020 | AA154: Douglas | AB154: Converse | AC154: WY | AD154: N | AE154: Missouri | AF154: WECC | AG154: PacifiCorp | AH154: IOU | AI154: PacifiCorp | AJ154: PacifiCorp | AK154: PNW IOU | BC154: PACE | BZ154: 42.95556 | CA154: -105.29565 | CB154: 2021-09-09T10:22:52 | CC154: 200 | CD154: 200 | CE154: 0.32 | CF154: 64 | CH154: N | CI154: PACE
A155: Cedar Springs II | B155: 2320 | F155: WT | G155: WND | I155: Wind | J155: 200 | W155: Operating | X155: Dec | Y155: 2020 | AA155: Douglas | AB155: Converse | AC155: WY | AD155: N | AE155: Missouri | AF155: WECC | AG155: PacifiCorp | AH155: IOU | AI155: PacifiCorp | AJ155: PacifiCorp | AK155: PNW IOU | BC155: PACE | BZ155: 42.96453 | CA155: -105.36369 | CB155: 2021-09-09T10:22:55 | CC155: 200 | CD155: 200 | CE155: 0.32 | CF155: 64 | CH155: N | CI155: PACE
A156: Cedar Springs III | B156: 2321 | F156: WT | G156: WND | I156: Wind | J156: 133 | W156: Operating | X156: Dec | Y156: 2020 | AA156: Douglas | AB156: Converse | AC156: WY | AD156: N | AE156: Missouri | AF156: WECC | AG156: NextEra | AH156: IPP | AI156: PacifiCorp (long-term PPA) | AJ156: PacifiCorp | AK156: PNW IOU | BC156: PACE | BZ156: 43.07572 | CA156: -105.58173 | CB156: 2021-09-09T10:22:55 | CC156: 133 | CD156: 133 | CE156: 0.32 | CF156: 42.56 | CH156: N | CI156: PACE
A157: Central Energy Cogen Plant (Brigham Young Univ) | B157: 2183 | C157: 59496 | D157: ST601 | F157: STCG | G157: NG | I157: Natural Gas | J157: 5.6 | K157: 5.6 | P157: 4.6 | Q157: 5.2 | R157: 0.3 | S157: 0.99 | W157: Operating | X157: Jun | Y157: 2016 | AA157: BYU-Idaho in Rexburg | AB157: Madison | AC157: ID | AD157: Y | AE157: Columbia | AF157: WECC | AG157: Brigham Young University-Idaho | AH157: Independent | AI157: Self-gen, PPA w/ PAC for excess | AM157: 5.14 | AN157: 1.49 | AQ157: 1 | AR157: 0.5 | AW157: cogen | BC157: PACE | BR157: 4.5 | BS157: 4.5 | BT157: 4.5 | BU157: 4.5 | BV157: 4.55 | BW157: 4.41 | BX157: 4.41 | BY157: Construction begain in 2013 to replace coal-fired boilers w/ NG fired boilers. New plant utilizes cogen thru a HRSG. | BZ157: 43.8181 | CA157: -111.7828 | CB157: 2020-07-15T16:28:52 | CC157: 5.2 | CD157: 4.6 | CE157: 0.8 | CF157: 3.92 | CH157: N | CI157: Self gen | CK157: PNW East
A158: Central Oregon Siphon | B158: 1085 | C158: 50980 | D158: GEN1,GEN2 | E158: 3571 | F158: Diversion | G158: WAT | I158: Hydro | J158: 5.4 | K158: 5.4 | L158: 0 | M158: 4.35 | N158: 5.4 | O158: 5.4 | P158: 5.4 | Q158: 5.4 | W158: Operating | X158: Aug | Y158: 1989 | AA158: Deschutes R. | AB158: Deschutes | AC158: OR | AD158: Y | AE158: Columbia | AF158: WECC | AG158: Central Oregon Irrigation District | AH158: Independent | AI158: PacifiCorp (QF thru Dec 2020) | AP158: 2020 | AQ158: 1 | AR158: 1 | AW158: SPP | BC158: PACW | BH158: 0.8182648402 | BI158: 0.9 | BJ158: 0.69 | BK158: 3.25 | BL158: 2.5 | BM158: 3.27 | BN158: 4.4 | BO158: 2.97 | BP158: 2.92 | BQ158: 2.9 | BR158: 2.5 | BS158: 3 | BT158: 2.5 | BU158: 1.9 | BV158: 1.98 | BW158: 1.72 | BX158: 1.518 | BY158: License granted September 1987; expires August 2037. | BZ158: 44.065925 | CA158: -121.311962 | CB158: 2020-03-22T20:50:50 | CC158: 5.4 | CD158: 5.4 | CE158: 0.427 | CF158: 2.3058 | CH158: Y | CI158: Not accounted for in HydInd file | CK158: PNW East | CL158: HY_Irr | CM158: n/a | CN158: 1 | CP158: 1 | CR158: 1 | CT158: Y | CV158: Central Oregon Siphon | CW158: PNW East | CX158: Thr | CY158: Hyd | CZ158: 0 | DA158: Aug-1989 | DB158: Jan-2051 | DC158: n/a | DD158: Water | DE158: 0 | DF158: 24 | DG158: FALSE | DH158: Cf HY Irr | DI158: Zero | DJ158: Expense | DK158: Default | DL158: 50 | DM158: Flat | DN158: 0 | DO158: 0 | DP158: FALSE | DQ158: TRUE | DR158: FALSE | DS158: FALSE | DT158: 0 | DU158: 0 | DV158: 0 | DZ158: Central Oregon Siphon | EB158: Central Oregon Siphon | EC158: 0 | ED158: 0 | EE158: 0 | EF158: 0 | EG158: 0 | EH158: 0 | EI158: 0 | EJ158: 0 | EK158: 0 | EL158: 0 | EM158: 0 | EN158: 0 | EO158: 0 | EP158: 0 | EQ158: 0 | ER158: 0 | ES158: 0 | ET158: 0 | EU158: 0 | EV158: 0 | EW158: 0 | EX158: 0 | EY158: 0 | EZ158: 0
A159: Centralia 1 | B159: 1086 | C159: 3845 | D159: 1 | F159: ST | G159: COL | I159: Coal | J159: 729.99 | K159: 729.9 | L159: 670 | M159: 1340 | N159: 688 | O159: 688 | P159: 670 | Q159: 670 | R159: 235 | S159: 0.94 | W159: Retired | X159: Dec | Y159: 1972 | Z159: 2020 | AA159: Centralia | AB159: Lewis | AC159: WA | AD159: Y | AE159: Puget Sound & Coastal | AF159: WECC | AG159: TransAlta | AH159: Independent | AI159: 100 MW contract w/PGE through 2015 (Centralia 1 & 2) . 11 yr Transition agreement w/ PSE - 180MW in 2014, 300MW in 2015, 380MW 2016-2024, 300MW in 2025. | AM159: 28.09 | AN159: 3.54 | AO159: 10924 | AQ159: 0 | AR159: 0 | BC159: BPA | BD159: 1058.7 | BE159: 1151.5 | BF159: 1188.8 | BG159: 1196.7 | BH159: 642.4 | BI159: 973.4 | BJ159: 997.38 | BK159: 850.5 | BL159: 968.8 | BM159: 594.65 | BN159: 425.6 | BO159: 766.14 | BP159: 762.97 | BQ159: 573.4 | BR159: 522.5 | BS159: 624.6 | BT159: 612.7 | BU159: 816.8 | BV159: 587.79 | BW159: 355.52 | BX159: 405.826 | BY159: One 729.999 MW STG. TransAlta considering future of Centralia site - currently evaluating option to convert boiled to natual gas production. Decision not likely until 2021. (March 2018). | BZ159: 46.756 | CA159: -122.857 | CB159: 2021-01-05T21:53:02 | CC159: 670 | CD159: 688 | CE159: 0.86 | CF159: 583.94 | CH159: Y | CJ159: 85% uncommitted IPP through 2015 | CK159: PNW West | CL159: CLST_PNWW | CM159: 10240 | CN159: 1 | CP159: 1 | CQ159: 0.85 | CR159: 1 | CV159: Centralia 1 | CW159: PNW West | CX159: Thr | CY159: Coal | CZ159: 670 | DA159: Dec-1972 | DB159: 2020 | DC159: 10240 | DD159: PNW W. coal | DE159: 0.067 | DF159: 40 | DG159: TRUE | DH159: MR 35d Winter Pk_Hydro | DI159: Bdmn | DJ159: Default | DK159: Default | DL159: 30 | DM159: Flat | DN159: 0 | DO159: 0 | DP159: FALSE | DQ159: TRUE | DR159: FALSE | DS159: FALSE | DT159: 0 | DU159: 0 | DV159: 0 | DW159: 85% uncommitted IPP through 2015 | DZ159: Centralia 1 | EB159: Centralia 1 | EC159: 670 | ED159: 641.9651308 | EE159: 641.9651308 | EF159: 670 | EG159: 670 | EH159: 670 | EI159: 655.9825654 | EJ159: 641.9651308 | EK159: 641.9651308 | EL159: 641.9651308 | EM159: 670 | EN159: 670 | EO159: 625.11 | EP159: 598.953467 | EQ159: 598.953467 | ER159: 625.11 | ES159: 625.11 | ET159: 625.11 | EU159: 612.0317335 | EV159: 598.953467 | EW159: 598.953467 | EX159: 598.953467 | EY159: 625.11 | EZ159: 625.11
A160: Centralia 2 | B160: 1087 | C160: 3845 | D160: 2 | F160: ST | G160: COL | I160: Coal | J160: 729.99 | K160: 729.9 | L160: 670 | N160: 688 | O160: 688 | P160: 670 | Q160: 670 | R160: 250 | S160: 0.94 | W160: Operating | X160: Jul | Y160: 1973 | Z160: 2025 | AA160: Centralia | AB160: Lewis | AC160: WA | AD160: Y | AE160: Puget Sound & Coastal | AF160: WECC | AG160: TransAlta | AH160: Independent | AI160: PPA w/ PSE for 380 MW Dec 2016 - Dec 2024, then down to 300 MW Dec 2024- Dec 2025. | AM160: 28.09 | AN160: 3.54 | AO160: 10942 | AQ160: 0.46 | AR160: 1 | BC160: BPA | BY160: One 729.999 MW STG | BZ160: 46.756 | CA160: -122.857 | CB160: 2020-07-16T17:49:51 | CC160: 670 | CD160: 688 | CE160: 0.86 | CF160: 583.94 | CH160: Y | CJ160: 100% Uncommitted IPP | CK160: PNW West | CL160: CLST_PNWW | CM160: 10240 | CN160: 1 | CP160: 1 | CQ160: 1 | CR160: 1 | CV160: Centralia 2 | CW160: PNW West | CX160: Thr | CY160: Coal | CZ160: 670 | DA160: Jul-1973 | DB160: Jan-2051 | DC160: 10240 | DD160: PNW W. coal | DE160: 0.067 | DF160: 40 | DG160: TRUE | DH160: MR 35d Winter Pk_Hydro | DI160: Bdmn | DJ160: Default | DK160: Default | DL160: 30 | DM160: Flat | DN160: 0 | DO160: 0 | DP160: FALSE | DQ160: TRUE | DR160: FALSE | DS160: FALSE | DT160: 0 | DU160: 0 | DV160: 0 | DW160: 100% Uncommitted IPP | DZ160: Centralia 2 | EB160: Centralia 2 | EC160: 670 | ED160: 641.9651308 | EE160: 641.9651308 | EF160: 670 | EG160: 670 | EH160: 670 | EI160: 655.9825654 | EJ160: 641.9651308 | EK160: 641.9651308 | EL160: 641.9651308 | EM160: 670 | EN160: 670 | EO160: 625.11 | EP160: 598.953467 | EQ160: 598.953467 | ER160: 625.11 | ES160: 625.11 | ET160: 625.11 | EU160: 612.0317335 | EV160: 598.953467 | EW160: 598.953467 | EX160: 598.953467 | EY160: 625.11 | EZ160: 625.11
A161: Chandler 1 - 2 | B161: 1088 | C161: 6406 | D161: 1,2 | E161: FCRPS | F161: ROR R w/Div | G161: WAT | I161: Hydro | J161: 12 | K161: 12 | M161: 5.51 | N161: 12 | O161: 12 | P161: 12 | Q161: 12 | T161: 5 | V161: 9 | W161: Operating | X161: Feb | Y161: 1956 | AA161: Yakima R. (Off-stream) | AB161: Benton | AC161: WA | AD161: Y | AE161: Columbia | AF161: WECC | AG161: USBR | AH161: Federal | AI161: BPA | AL161: Rewound units | AQ161: 1 | AR161: 1 | BC161: BPA | BD161: 6.6 | BE161: 5.3 | BF161: 4.9 | BG161: 1.419063927 | BH161: 3.443378995 | BI161: 3 | BJ161: 2.47 | BK161: 5.42 | BL161: 6.9 | BM161: 5.81 | BN161: 7.5 | BO161: 4.7 | BP161: 5.06 | BQ161: 3.32 | BR161: 6.1 | BS161: 6.3 | BT161: 6.5 | BU161: 4.8 | BV161: 5.16 | BW161: 5.66 | BX161: 6.593 | BY161: (2) 6.0 MW units. Critical energy from PNUCC 2005 NRF | BZ161: 46.212742 | CA161: -119.77222 | CB161: 2020-03-29T22:23:34 | CC161: 12 | CD161: 12 | CE161: 0.4166666667 | CF161: 5 | CG161: Independent | CH161: N | CI161: Accounted for in HydInd file
A162: Chehalis Generating Facility | B162: 1089 | C162: 55662 | D162: CA,CT1,CT2 | F162: CC | G162: NG | H162: FO | I162: Natural Gas | J162: 698 | K162: 698 | L162: 514 | M162: 514 | N162: 427 | O162: 453 | P162: 477 | Q162: 507 | R162: 300 | S162: 0.85 | W162: Operating | X162: Aug | Y162: 2003 | AA162: Chehalis | AB162: Lewis | AC162: WA | AD162: Y | AE162: Puget Sound & Coastal | AF162: WECC | AG162: PacifiCorp - purchased from SUEZ in 2008. Originally operated by TNA Merchant Projects, a subsidiary of SUEZ. | AH162: IOU | AI162: PacifiCorp | AM162: 6.29 | AN162: 1.82 | AO162: 7534 | AQ162: 1 | AR162: 1 | AU162: Williams Northwest | AV162: BPA Napavine | BC162: BPA | BF162: 306.1 | BG162: 255.8065068 | BH162: 150.2271689 | BI162: 215.5 | BJ162: 243 | BK162: 199.46 | BL162: 147.06 | BM162: 75.91 | BN162: 97 | BO162: 191.12 | BP162: 290.39 | BQ162: 124.77 | BR162: 162.1 | BS162: 200.8 | BT162: 198.9 | BU162: 277.6 | BV162: 274.81 | BW162: 256.65 | BX162: 247.945 | BY162: (2) 175MW GE 7FA GT x (1) 170 MW ST. Dry cooling. Purchased by PacifiCorp from SUEZ closed Sep 2008. | BZ162: 46.622 | CA162: -122.917 | CB162: 2020-07-15T16:31:04 | CC162: 514 | CD162: 427 | CE162: 0.89 | CF162: 418.745 | CH162: Y | CK162: PNW West | CL162: NGCC_PNWW | CM162: 7000 | CN162: 1 | CP162: 1 | CR162: 1 | CV162: Chehalis Generating Facility | CW162: PNW West | CX162: Thr | CY162: CCCT | CZ162: 514 | DA162: Aug-2003 | DB162: Jan-2051 | DC162: 7000 | DD162: PNW W. gas | DE162: 0.059 | DF162: 32 | DG162: TRUE | DH162: MR 21d Winter Pk_Hydro | DI162: CCCT - PNW W. | DJ162: Default | DK162: Default | DL162: 30 | DM162: CMS GT PNWW | DN162: 0 | DO162: 0 | DP162: FALSE | DQ162: TRUE | DR162: FALSE | DS162: FALSE | DT162: 0 | DU162: 0 | DV162: 0 | DZ162: Chehalis Generating Facility | EB162: Chehalis Generating Facility | EC162: =IF($CH162="N","",IF(OR($I162<>"Wind",$I162<>"Solar",$I162<>"Hydro"),($CN162*$CP162*IF(ISBLANK($L162),IF(ISBLANK($O162),$J162,$O162),$L162))*VLOOKUP($DH162,ASeasDist,EC$9,FALSE)*VLOOKUP($DM162,ASeasDist,EC$9),$J162*$CN162*$CP162)) -> 483.7406661 | ED162: 495.6378467 | EE162: 506.7350855 | EF162: 513.3826174 | EG162: 514 | EH162: 509.4051941 | EI162: 438.0529008 | EJ162: 367.6053862 | EK162: 361.4093843 | EL162: 355.999677 | EM162: 477.4762717 | EN162: 476.6749072 | EO162: =IF($CH162="N","",IF(OR($I162<>"Wind",$I162<>"Solar",$I162<>"Hydro"),$CR162*IF(ISBLANK($L162),IF(ISBLANK($O162),$J162,$O162),$L162),$J162)*(1-$DE162)*VLOOKUP($DH162,ASeasDist,EO$9,FALSE)*VLOOKUP($DM162,ASeasDist,EO$9)) -> 455.1999668 | EP162: 466.3952138 | EQ162: 476.8377154 | ER162: 483.093043 | ES162: 483.674 | ET162: 479.3502876 | EU162: 412.2077797 | EV162: 345.9166685 | EW162: 340.0862306 | EX162: 334.995696 | EY162: 449.3051717 | EZ162: 448.5510877
A163: Chelan A1 & A2 | B163: 1090 | C163: 6424 | D163: A-1,A-2 | E163: 637 | F163: Storage w/Div | G163: WAT | I163: Hydro | J163: 48 | K163: 59.2 | M163: 65.4 | N163: 62 | O163: 62 | P163: 62.1 | Q163: 62.1 | T163: 44 | V163: 38 | W163: Operating | X163: Sep | Y163: 1927 | AA163: Chelan R. | AB163: Chelan | AC163: WA | AD163: Y | AE163: Columbia | AF163: WECC | AG163: Chelan Co. PUD | AH163: PUD | AI163: Chelan Co. PUD (and long-term PPAs) | AL163: Rehabilitated units in 2009-2010 resulting in efficiency upgrades. | AQ163: 1 | AR163: 1 | BC163: Chelan Co. PUD | BD163: 47.9 | BE163: 42.1 | BF163: 6.3 | BG163: 5.735273973 | BH163: 7.441666667 | BI163: 5.9 | BJ163: 16.65 | BK163: 35.23 | BL163: 44.2 | BM163: 51.76 | BN163: 45.4 | BO163: 47.46 | BP163: 45.45 | BQ163: 47.086 | BR163: 50.5 | BS163: 49.5 | BT163: 39.2 | BU163: 37.3 | BV163: 43.09 | BW163: 46.3 | BX163: 47.914 | BY163: Original license granted May 1926; expired May 1976. Critical energy from PNUCC 2005 NRF | BZ163: 47.808 | CA163: -119.985 | CB163: 2020-03-20T22:00:30 | CC163: 48 | CD163: 62 | CE163: 0.9166666667 | CF163: 44 | CG163: Regulated | CH163: N | CI163: Reg hydro
A164: Chester Diversion 1-3 | B164: 1706 | C164: 56893 | D164: 1,2,3 | E164: 11879 | F164: ROR | G164: WAT | I164: Hydro | J164: 3.3 | K164: 3.6 | M164: 0.53 | N164: 3.6 | O164: 3.6 | P164: 3.6 | Q164: 3.6 | T164: 1.386 | W164: Operating | X164: Mar | Y164: 2014 | AA164: Henrys Fk. | AB164: Fremont | AC164: ID | AD164: Y | AE164: Columbia | AF164: WECC | AG164: Fall River REC | AH164: Coop | AI164: BPA | AL164: no planned upgrades at this time (March 2020) | AQ164: 1 | AR164: 1 | BC164: BPA | BP164: 0.47 | BQ164: 0.423 | BR164: 0.8 | BS164: 0.9 | BT164: 0.6 | BU164: 0.9 | BV164: 0.68 | BW164: 0.71 | BX164: 0.643 | BY164: (3) turbine-generators. Existing run-of-river dam w/diversion (Chester Dam). Lice gtd Jul 2008. | BZ164: 44.018333 | CA164: -111.583611 | CB164: 2020-03-22T20:52:18 | CC164: 3.3 | CD164: 3.6 | CE164: 0.42 | CF164: 1.386 | CH164: Y | CI164: Not accounted for in HydInd file | CK164: PNW East | CL164: HY_East | CM164: n/a | CN164: 1 | CP164: 1 | CR164: 1 | CT164: Y | CV164: Chester Diversion 1-3 | CW164: PNW East | CX164: Thr | CY164: Hyd | CZ164: 3.6 | DA164: Mar-2014 | DB164: Jan-2051 | DC164: n/a | DD164: Water | DE164: 0 | DF164: 24 | DG164: FALSE | DH164: Cf HY East | DI164: Zero | DJ164: Expense | DK164: Default | DL164: 50 | DM164: Flat | DN164: 0 | DO164: 0 | DP164: FALSE | DQ164: TRUE | DR164: FALSE | DS164: FALSE | DT164: 0 | DU164: 0 | DV164: 0 | DZ164: Chester Diversion 1-3 | EB164: Chester Diversion 1-3 | EC164: 1.176372986 | ED164: 1.544499704 | EE164: 1.37343389 | EF164: 1.744711758 | EG164: 2.007397053 | EH164: 1.549292344 | EI164: 1.803039773 | EJ164: 1.947875971 | EK164: 2.558302318 | EL164: 2.377757615 | EM164: 2.381928908 | EN164: 2.15209987 | EO164: 1.176372986 | EP164: 1.544499704 | EQ164: 1.37343389 | ER164: 1.744711758 | ES164: 2.007397053 | ET164: 1.549292344 | EU164: 1.803039773 | EV164: 1.947875971 | EW164: 2.558302318 | EX164: 2.377757615 | EY164: 2.381928908 | EZ164: 2.15209987
A165: Chevron Casper Wind Farm | B165: 2018 | C165: 57093 | D165: CWGT | F165: WT | G165: WND | I165: Wind | J165: 17 | K165: 17 | P165: 17 | Q165: 17 | W165: Operating | X165: Dec | Y165: 2009 | AA165: Casper | AB165: Natrona | AC165: WY | AD165: N | AE165: Missouri | AF165: WECC | AG165: Chevron Global Power Company | AH165: Independent | AI165: Unknown. (Short-term PPA w/ PacifiCorp for 100% of facility's output. PPA terminated June 30, 2018 per PAC's OR RPS compliance report for 2018 (and filed May 2019).) | AJ165: Unknown. Formerly bundled RECs to PAC; PPA terminated June 2018. | AK165: OOR - Unknown | AQ165: 0 | AR165: 0 | AW165: SPP | AX165: (11) GE 1.5 SLE | AY165: 80 | AZ165: 77 | BA165: 2 | BC165: PACE | BO165: 5.02 | BP165: 4.84 | BQ165: 4.22 | BR165: 4.8 | BS165: 4.7 | BT165: 3.4 | BU165: 1.3 | BV165: 2.93 | BY165: (11) 1.5 MW GE WTG. Assume 25.81% SG factor to Oregon, per PacifiCorp's 2011 OR RPS Compliance Report. Design wind speed 20mph. | BZ165: 43.01578 | CA165: -105.993723 | CB165: 2021-07-14T11:29:38 | CC165: 17 | CD165: 17 | CE165: 0.32 | CF165: 5.44 | CH165: N | CI165: PACE
A166: Chief Joseph 1 - 27 | B166: 1091 | C166: 3921 | D166: 1,2,3,4,5,6,7,8,9,10,11,12,13,14,15,16,17,18,19,20,21,22,23,24,25,26,27 | E166: FCRPS | F166: ROR | G166: WAT | I166: Hydro | J166: 2457.8 | K166: 2456.2 | M166: 2221 | N166: 2456.2 | O166: 2456.2 | P166: 2456.2 | Q166: 2456.2 | T166: 1321 | V166: 996 | W166: Operating | X166: Sep | Y166: 1955 | AA166: Columbia R. | AB166: Douglas | AC166: WA | AD166: Y | AE166: Columbia | AF166: WECC | AG166: USCE | AH166: Federal | AI166: BPA | AQ166: 1 | AR166: 1 | BC166: BPA | BD166: 1321.2 | BE166: 1157.2 | BF166: 1172.5 | BG166: 1240.730137 | BH166: 1318.673174 | BI166: 1319.8 | BJ166: 1213.74 | BK166: 1116.44 | BL166: 1040.59 | BM166: 1427.29 | BN166: 1424.7 | BO166: 1391.29 | BP166: 1329.17 | BQ166: 1308.48 | BR166: 1328.6 | BS166: 1303.9 | BT166: 1410.1 | BU166: 1124.9 | BV166: 1354.25 | BW166: 1253.57 | BX166: 1424.312 | BY166: Critical energy from PNUCC 2005 NRF | BZ166: 47.999 | CA166: -119.634 | CB166: 2020-03-29T22:23:04 | CC166: 2457.8 | CD166: 2456.2 | CE166: 0.5374725364 | CF166: 1321 | CG166: Regulated | CH166: N | CI166: Reg hydro
A167: Chiloquin Solar | B167: 2134 | C167: 61631 | F167: PV | G167: SOL | I167: Solar | J167: 9.9 | K167: 9.9 | P167: 9.9 | Q167: 9.9 | W167: Operating | X167: Feb | Y167: 2018 | AA167: Chiloquin, Klamath Falls | AB167: Klamath | AC167: OR | AD167: Y | AE167: Klamath | AF167: WECC | AG167: Saturn Power | AH167: Independent | AI167: PacifiCorp (20yr QF thru 2038) | AP167: 2038 | AQ167: 1 | AR167: 1 | AW167: SPP | BB167: Fixed tilt | BC167: PACW | BT167: 2.3 | BU167: 2.2 | BV167: 2.36 | BW167: 2.21 | BX167: 2.329 | BY167: Crystalline silicone. 14MWdc, Azimuth angle 180, tile 28. Solar Flex Rack fixed tilt racking systems w/ Seraphim 320-325W polycrystalline modules and Sungrow 60kW string inverters. 14MW DC/9.9 MW AC. 70 acres. RECs to PAC. | BZ167: 42.596 | CA167: -121.857 | CB167: 2018-02-28T15:41:41 | CC167: 9.9 | CD167: 9.9 | CE167: 0.254 | CF167: 2.5146 | CH167: Y | CI167: PAC PURPA PPA | CJ167: 100% PNW PPA | CK167: PNW West | CL167: PV | CN167: 1 | CP167: 0.75 | CR167: 1 | CT167: Y | CV167: Chiloquin Solar | CW167: PNW West | CX167: Thr | CY167: PV | CZ167: 7.425 | DA167: Feb-2018 | DB167: Jan-2051 | DC167: 0 | DD167: Solar | DE167: 0 | DF167: 0 | DG167: FALSE | DH167: Cf PV | DI167: SolarPV | DJ167: Default | DK167: Default | DL167: 30 | DM167: Flat | DN167: 0 | DO167: 1 | DP167: FALSE | DQ167: TRUE | DR167: FALSE | DS167: FALSE | DT167: 0 | DU167: 0 | DV167: 0 | DW167: 100% PNW PPA | DZ167: Chiloquin Solar | EB167: Chiloquin Solar | EC167: 2.195537025 | ED167: 1.426035213 | EE167: 0.6594826275 | EF167: 0.545172336 | EG167: 0.626195236 | EH167: 1.058005147 | EI167: 1.69215224 | EJ167: 2.006217944 | EK167: 2.61742392 | EL167: 2.873117078 | EM167: 2.964652063 | EN167: 2.654698362 | EO167: 2.9273827 | EP167: 1.901380284 | EQ167: 0.87931017 | ER167: 0.726896448 | ES167: 0.8349269813 | ET167: 1.410673529 | EU167: 2.256202987 | EV167: 2.674957259 | EW167: 3.48989856 | EX167: 3.830822771 | EY167: 3.952869418 | EZ167: 3.539597816
A168: Chopin Wind Project | B168: 1992 | C168: 59076 | D168: WT1 | F168: WT | G168: WND | I168: Wind | J168: 10 | K168: 10 | P168: 10 | Q168: 10 | W168: Operating | X168: Sep | Y168: 2016 | AA168: Umapine and Athena, OR | AB168: Umatilla | AC168: OR | AD168: Y | AE168: Columbia | AF168: WECC | AG168: BayWa r.e. | AH168: Independent | AI168: PacifiCorp (PPA) | AK168: PNW IOU | AQ168: 1 | AR168: 1 | AW168: SPP | AX168: (6) GE 1.7-103 | AY168: 80 | AZ168: 103 | BA168: 3 | BC168: PACW | BR168: 1.1 | BS168: 3 | BT168: 3.6 | BU168: 2.9 | BV168: 4.06 | BW168: 3.62 | BX168: 3.157 | BY168: (6) GE 1.7MW-103 WTG, 80m hub height, 103m rotor diameter. According to PPA, PAC waives claim to ownership of RECs. Agreement signed on 4/17/18 betw. Moda Center and PAC for RECs (Clearing Up) equal to about 1/3 of the average energy (PBJ, 4/18/18). | BZ168: 45.891814 | CA168: -118.4719197 | CB168: 2018-04-24 | CC168: 10 | CD168: 10 | CE168: 0.32 | CF168: 3.2 | CH168: Y | CK168: PNW East | CL168: WN_PNWE | CN168: 1 | CP168: 0.05 | CR168: 1 | CT168: Y | CV168: Chopin Wind Project | CW168: PNW East | CX168: Thr | CY168: Wind | CZ168: 10 | DA168: Sep-2016 | DB168: Jan-2051 | DC168: 0 | DD168: Wind | DE168: 0 | DF168: 0 | DG168: FALSE | DH168: Cf WN PNWE | DI168: WindB1 | DJ168: Default | DK168: Default | DL168: 20 | DM168: Flat | DN168: 0 | DO168: 1 | DP168: FALSE | DQ168: TRUE | DR168: FALSE | DS168: FALSE | DT168: 0 | DU168: 0 | DV168: 0 | DZ168: Chopin Wind Project | EB168: Chopin Wind Project | EC168: 0.141 | ED168: 0.1095 | EE168: 0.1275 | EF168: 0.144 | EG168: 0.1545 | EH168: 0.135 | EI168: 0.1605 | EJ168: 0.1605 | EK168: 0.1815 | EL168: 0.1605 | EM168: 0.1665 | EN168: 0.1605 | EO168: 2.82 | EP168: 2.19 | EQ168: 2.55 | ER168: 2.88 | ES168: 3.09 | ET168: 2.7 | EU168: 3.21 | EV168: 3.21 | EW168: 3.63 | EX168: 3.21 | EY168: 3.33 | EZ168: 3.21
A169: City of Albany (Vine Street WTP) | B169: 1092 | E169: 11509 | F169: Canal | G169: WAT | I169: Hydro | J169: 0.5 | L169: 0.8 | T169: 0.3196347032 | W169: Operating | X169: Feb | Y169: 2009 | AA169: Santiam - Albany Canal | AB169: Linn | AC169: OR | AD169: Y | AE169: Columbia | AF169: WECC | AG169: City of Albany | AH169: Municipal | AI169: PacifiCorp (PPA) | AQ169: 1 | AR169: 1 | BG169: 0 | BH169: 0 | BY169: (1) 500kW turbine-generator. Original 1888 project retired in 1991. License to refurbish granted October 1998, expires September 2048. Renovation partly funded to the Oregon Energy Trust. | CB169: 2018-03-02 | CC169: 0.5 | CD169: 0.8 | CE169: 0.6392694064 | CF169: 0.3196347032 | CH169: Y | CI169: Not accounted for in HydInd file | CK169: PNW West | CL169: HY_West | CM169: n/a | CN169: 1 | CP169: 1 | CR169: 1 | CT169: Y | CV169: City of Albany (Vine Street WTP) | CW169: PNW West | CX169: Thr | CY169: Hyd | CZ169: 0.8 | DA169: Feb-2009 | DB169: Jan-2051 | DC169: n/a | DD169: Water | DE169: 0 | DF169: 24 | DG169: FALSE | DH169: Cf HY West | DI169: Zero | DJ169: Expense | DK169: Default | DL169: 50 | DM169: Flat | DN169: 0 | DO169: 0 | DP169: FALSE | DQ169: TRUE | DR169: FALSE | DS169: FALSE | DT169: 0 | DU169: 0 | DV169: 0 | DZ169: City of Albany (Vine Street WTP) | EB169: City of Albany (Vine Street WTP) | EC169: 0.2627014275 | ED169: 0.2913256676 | EE169: 0.3971935974 | EF169: 0.4335164717 | EG169: 0.419393048 | EH169: 0.313945661 | EI169: 0.3303070333 | EJ169: 0.3379239128 | EK169: 0.3744241895 | EL169: 0.3760573342 | EM169: 0.3561424157 | EN169: 0.3680975449 | EO169: 0.2627014275 | EP169: 0.2913256676 | EQ169: 0.3971935974 | ER169: 0.4335164717 | ES169: 0.419393048 | ET169: 0.313945661 | EU169: 0.3303070333 | EV169: 0.3379239128 | EW169: 0.3744241895 | EX169: 0.3760573342 | EY169: 0.3561424157 | EZ169: 0.3680975449
A170: City of Anacortes | B170: 1093 | F170: IC | G170: FO2 | I170: Petroleum | J170: 1.75 | N170: 1.75 | O170: 1.75 | W170: Operating | AA170: Anacortes | AB170: Skagit | AC170: WA | AD170: Y | AE170: Puget Sound & Coastal | AF170: WECC | AG170: City of Anacortes | AH170: Municipal | AI170: Self-generation | AQ170: 1 | AR170: 0 | BY170: 1.75 MW IC unit at waste water treatment plant. | CB170: 2018-03-03 | CC170: 1.75 | CD170: 1.75 | CE170: 0.93 | CF170: 1.6275 | CH170: N | CI170: 100% Self-gen
A171: City of Great Falls WWTP | B171: 1094 | F171: ICCG | G171: WG | I171: Biomass | J171: 0.5 | N171: 0.5 | O171: 0.5 | W171: Operating | Y171: 2005 | AA171: Great Falls | AB171: Cascade | AC171: MT | AD171: N | AE171: Missouri | AF171: WECC | AG171: City of Great Falls | AH171: Independent | AQ171: 0 | AR171: 0 | AS171: City of Great Falls WWTP | AT171: Wastewater treatment | BY171: http://www.eea-inc.com/chpdata/States/MT.html. | BZ171: 47.490047 | CA171: -111.3138 | CB171: 2020-04-02T15:41:13 | CC171: 0.5 | CD171: 0.5 | CE171: 0.8 | CF171: 0.4 | CH171: N | CI171: WWTP w/o contract
A172: City of Gresham WWTP | B172: 1095 | F172: ICCG | G172: WG | I172: Biomass | J172: 0.395 | N172: 0.395 | O172: 0.395 | W172: Operating | Y172: 2000 | AA172: Gresham | AB172: Multnomah | AC172: OR | AD172: Y | AE172: Columbia | AF172: WECC | AG172: City of Gresham | AH172: Independent | AQ172: 1 | AR172: 0.5 | AS172: City of Gresham WWTP | AT172: Wastewater treatment | BY172: 395 kW GE reciprocating engine | BZ172: 45.546652 | CA172: -122.45893 | CB172: 2020-04-02T15:43:49 | CC172: 0.395 | CD172: 0.395 | CE172: 0.8 | CF172: 0.316 | CH172: N | CI172: <0.5 MW | EC172: =IF($CH172="N","",IF(OR($I172<>"Wind",$I172<>"Solar",$I172<>"Hydro"),($CN172*$CP172*IF(ISBLANK($L172),IF(ISBLANK($O172),$J172,$O172),$L172))*VLOOKUP($DH172,ASeasDist,EC$9,FALSE)*VLOOKUP($DM172,ASeasDist,EC$9),$J172*$CN172*$CP172)) ->  | EO172: =IF($CH172="N","",IF(OR($I172<>"Wind",$I172<>"Solar",$I172<>"Hydro"),$CR172*IF(ISBLANK($L172),IF(ISBLANK($O172),$J172,$O172),$L172),$J172)*(1-$DE172)*VLOOKUP($DH172,ASeasDist,EO$9,FALSE)*VLOOKUP($DM172,ASeasDist,EO$9)) -> 
A173: City of Helena WWTP | B173: 1096 | F173: ICCG | G173: WG | I173: Biomass | J173: 0.043 | N173: 0 | O173: 0 | W173: Operating | Y173: 1984 | AA173: Helena | AB173: Lewis & Clark | AC173: MT | AD173: Y | AE173: Missouri | AF173: WECC | AG173: City of Helena | AH173: Independent | AI173: NorthWestern | AQ173: 0.31 | AR173: 0.31 | AS173: City of Helena WWTP | AT173: Wastewater treatment | BC173: NorthWestern | BY173: Repowered 2009 with 43 kW Stirling reciprocating unit. | BZ173: 46.620298 | CA173: -112.002433 | CB173: 2020-04-02T15:54:57 | CC173: 0 | CD173: 0 | CE173: 0.8 | CF173: 0 | CH173: N | CI173: <0.5 MW
A174: City of Medford WWTP | B174: 1097 | F174: ICCG | G174: WG | I174: Biomass | J174: 0.73 | W174: Operating | Y174: 1999 | AA174: Medford | AB174: Jackson | AC174: OR | AD174: Y | AE174: Puget Sound & Coastal | AF174: WECC | AG174: City of Medford | AH174: Independent | AQ174: 1 | AR174: 0.5 | AS174: City of Medford WWTP | AT174: Wastewater treatment | BZ174: 42.435993 | CA174: -122.904072 | CB174: 2020-04-02T15:55:23 | CC174: 0.73 | CD174: 0.73 | CE174: 0.8 | CF174: 0.584 | CH174: N | CI174: WWTP w/o contract
A175: Clear Lake | B175: 1098 | C175: 814 | D175: 1 | E175: None | F175: Diversion | G175: WAT | I175: Hydro | J175: 2.5 | K175: 2.5 | M175: 1.75 | N175: 2.8 | O175: 2.8 | P175: 2.1 | Q175: 2.2 | W175: Operating | X175: Dec | Y175: 1937 | AA175: Snake R. (Off-stream) | AB175: Gooding | AC175: ID | AD175: Y | AE175: Columbia | AF175: WECC | AG175: Idaho Power Co. | AH175: IOU | AI175: Idaho Power Co. | AQ175: 1 | AR175: 1 | BC175: IPC | BJ175: 1.85 | BK175: 1.86 | BL175: 1.8 | BM175: 1.88 | BN175: 1.9 | BO175: 1.41 | BP175: 1.94 | BQ175: 1.79 | BR175: 1.9 | BS175: 1.9 | BT175: 2 | BU175: 2 | BV175: 1.99 | BW175: 1.94 | BX175: 1.868 | BY175: IPC Springs | BZ175: 42.66701 | CA175: -114.78012 | CB175: 2020-03-21T21:14:50 | CC175: 2.5 | CD175: 2.8 | CE175: 0.427 | CF175: 1.13155 | CG175: Independent | CH175: N | CI175: Accounted for in HydInd file
A176: Clearwater 1 | B176: 1099 | C176: 3020 | D176: 1 | E176: 1927F | F176: Storage w/Div | G176: WAT | I176: Hydro | J176: 15 | K176: 15 | N176: 17.9 | O176: 17.9 | P176: 17.9 | Q176: 17.9 | T176: 6.95 | W176: Operating | X176: Jun | Y176: 1953 | AA176: Clearwater R. | AB176: Douglas | AC176: OR | AD176: Y | AE176: Puget Sound & Coastal | AF176: WECC | AG176: PacifiCorp | AH176: IOU | AI176: PacifiCorp | AQ176: 1 | AR176: 1 | BC176: PACW | BD176: 5.5 | BE176: 5.6 | BF176: 2.1 | BG176: 1.72260274 | BH176: 1.540182648 | BI176: 1.3 | BJ176: 1.43 | BK176: 4.08 | BL176: 3.6 | BM176: 4.97 | BN176: 5.8 | BO176: 4.31 | BP176: 4.71 | BQ176: 3.6 | BR176: 4.6 | BS176: 5.6 | BT176: 4.6 | BU176: 3 | BV176: 2.69 | BW176: 2.05 | BX176: 2.715 | BY176: (1) 15 MW vertical Francis turbine-generator. PacifiCorp North Umpqua project. Original license gtd Jan 1947; exp Jan 1997. Relicensed Nov 2003. | BZ176: 43.335612 | CA176: -122.783589 | CB176: 2018-03-09 | CC176: 15 | CD176: 17.9 | CE176: 0.4633333333 | CF176: 6.95 | CG176: Independent | CH176: N | CI176: Accounted for in HydInd file
A177: Clearwater 2 | B177: 1100 | C177: 3021 | D177: 1 | E177: 1927E | F177: Storage w/Div | G177: WAT | I177: Hydro | J177: 26 | K177: 26 | N177: 31 | O177: 31 | P177: 31 | Q177: 31 | T177: 7.54 | W177: Operating | X177: Nov | Y177: 1953 | AA177: Clearwater R. | AB177: Douglas | AC177: OR | AD177: Y | AE177: Puget Sound & Coastal | AF177: WECC | AG177: PacifiCorp | AH177: IOU | AI177: PacifiCorp | AQ177: 1 | AR177: 1 | BC177: PACW | BD177: 5.3 | BE177: 5.7 | BF177: 35.1 | BG177: 1.753538813 | BH177: 1.564611872 | BI177: 1.6 | BJ177: 1.46 | BK177: 4.79 | BL177: 3.4 | BM177: 6.43 | BN177: 6.2 | BO177: 4.5 | BP177: 5.12 | BQ177: 3.67 | BR177: 5.2 | BS177: 7.7 | BT177: 4.2 | BU177: 4.1 | BV177: 2.53 | BW177: 1.75 | BX177: 2.277 | BY177: (1) 26 MW vertical Francis turbine-generator. PacifiCorp North Umpqua project. Original license gtd Jan 1947; exp Jan 1997. Relicensed Nov 2003. | BZ177: 43.267 | CA177: -122.409 | CB177: 2018-03-10 | CC177: 26 | CD177: 31 | CE177: 0.29 | CF177: 7.54 | CG177: Independent | CH177: N | CI177: Accounted for in HydInd file
A178: Clearwater Energy Resources | B178: 2188 | C178: 65577 | F178: WT | G178: WND | I178: Wind | J178: 444 | W178: Operating | X178: Nov | Y178: 2022 | AA178: Angela | AB178: Rosebud | AC178: MT | AD178: Y | AF178: WECC | AG178: NextEra | AH178: Independent | AI178: Puget Sound Energy | AQ178: 1 | AR178: 1 | BC178: Northwestern | BX178: 24.22 | BY178: 88 WT 20 yr PPA w/ PSE for 350 MW Contract with PGE for 103 additional MW (311 planned) | BZ178: 46.81616 | CA178: -106.23287 | CB178: 2023-10-27 | CE178: 0.32 | CZ178: 444 | DA178: Nov-2022 | DB178: Jan-2051 | DC178: 0
A179: Clearwater Hatchery (Dworshak) | B179: 1101 | E179: 10819 | F179: HY | G179: WAT | I179: Hydro | J179: 2.9 | L179: 3 | M179: 3 | N179: 3 | O179: 3 | T179: 1.81 | W179: Operating | Y179: 2000 | AA179: N.Fk. Clearwater R. | AB179: Clearwater | AC179: ID | AD179: Y | AE179: Columbia | AF179: WECC | AG179: ID Dept of Water Resources | AH179: Independent | AI179: BPA | AQ179: 1 | AR179: 1 | BC179: BPA | BD179: 2 | BF179: 2 | BG179: 0.2042237443 | BY179: 2.5 MW turbine & a 0.4 MW turbine. License granted August 1998; expires July 2048. | CB179: 2020-03-22T20:59:18 | CC179: =IF(OR(I179="Wind",I179="Solar",I179="Hydro"),J179,IF(ISNUMBER(L179),L179,IF(ISNUMBER(O179), O179, IF(ISNUMBER(Q179),Q179,J179)))) -> 2.9 | CD179: =IF(OR(J179="Wind",J179="Solar",J179="Hydro"),J179,IF(ISNUMBER(N179),N179,IF(ISNUMBER(P179), P179, IF(ISNUMBER(L179),L179,J179)))) -> 3 | CE179: 0.624137931 | CF179: =IF(ISNUMBER(T179),T179,AVERAGE(CC179,CD179)*CE179) -> 1.81 | CH179: Y | CI179: Not accounted for in HydInd file | CK179: PNW East | CL179: HY_East | CM179: n/a | CN179: 1 | CP179: 1 | CR179: 1 | CV179: Clearwater Hatchery (Dworshak) | CW179: PNW East | CX179: Thr | CY179: Hyd | CZ179: 3 | DA179: Dec-2000 | DB179: Jan-2051 | DC179: n/a | DD179: Water | DE179: 0 | DF179: 24 | DG179: FALSE | DH179: Cf HY East | DI179: Zero | DJ179: Expense | DK179: Default | DL179: 50 | DM179: Flat | DN179: 0 | DO179: 0 | DP179: FALSE | DQ179: TRUE | DR179: FALSE | DS179: FALSE | DT179: 0 | DU179: 0 | DV179: 0 | DZ179: Clearwater Hatchery (Dworshak) | EB179: Clearwater Hatchery (Dworshak) | EC179: 0.9803108218 | ED179: 1.287083087 | EE179: 1.144528242 | EF179: 1.453926465 | EG179: 1.672830878 | EH179: 1.291076953 | EI179: 1.502533144 | EJ179: 1.623229976 | EK179: 2.131918598 | EL179: 1.98146468 | EM179: 1.984940756 | EN179: 1.793416558 | EO179: 0.9803108218 | EP179: 1.287083087 | EQ179: 1.144528242 | ER179: 1.453926465 | ES179: 1.672830878 | ET179: 1.291076953 | EU179: 1.502533144 | EV179: 1.623229976 | EW179: 2.131918598 | EX179: 1.98146468 | EY179: 1.984940756 | EZ179: 1.793416558
A180: Clearwater Paper 1 - 4 (Potlatch Lewiston) | B180: 1449 | C180: 50637 | D180: GEN1,GEN2,GEN3,GEN4 | F180: RB/STCG | G180: BL | H180: WW/NG | I180: Biomass | J180: 93.8 | K180: 113.8 | L180: 75 | N180: 55 | O180: 55 | P180: 54.5 | Q180: 68.1 | W180: Operating | X180: Jan | Y180: 1950 | AA180: Lewiston | AB180: Nez Pierce | AC180: ID | AD180: Y | AE180: Columbia | AF180: WECC | AG180: Clearwater Paper | AH180: Independent | AI180: Avista Utilities (5 yr QF through December 2023) | AP180: 2023 | AQ180: 1 | AR180: 1 | AS180: Idaho Pulp & Paperboard Div. | AT180: Kraft pulp and paper mill | AW180: cogen | BC180: Avista | BD180: 36.2 | BE180: 49.7 | BF180: 58.5 | BG180: 57.16232877 | BH180: 54.63515982 | BI180: 51 | BJ180: 47.91 | BK180: 51.34 | BL180: 49.76 | BM180: 50.67 | BN180: 48.1 | BO180: 47.88 | BP180: 43.36 | BQ180: 46.22 | BR180: 47.6 | BS180: 39.6 | BT180: 42.1 | BU180: 47.1 | BV180: 47.92 | BW180: 45.51 | BX180: 44.776 | BY180: Unit 1 (1950) - 10 MW, Unit 2 (1977) - 9.2 MW, Unit 3 (1981) - 28.8 MW, Unit 4 (1991) - 65 MW. Formerly Potlatch Lewiston. Unit 1 and 2 out-of-service, per WECC. | BZ180: 46.426 | CA180: -116.958 | CB180: 2020-04-02T16:36:53 | CC180: 75 | CD180: 55 | CE180: 0.8 | CF180: 52 | CH180: Y | CK180: PNW East | CL180: WWSTCG | CM180: 8000 | CN180: 1 | CP180: 1 | CR180: 1 | CT180: Y | CV180: Clearwater Paper 1 - 4 (Potlatch Lewiston) | CW180: PNW East | CX180: Thr | CY180: STCG | CZ180: 75 | DA180: Jan-1950 | DB180: Jan-2051 | DC180: 8000 | DD180: Mill Residue | DE180: 0.07 | DF180: 56 | DG180: FALSE | DH180: MR 28d Flat | DI180: Bio1 | DJ180: Default | DK180: Default | DL180: 30 | DM180: Flat | DN180: 0 | DO180: 1 | DP180: FALSE | DQ180: TRUE | DR180: FALSE | DS180: FALSE | DT180: 0 | DU180: 0 | DV180: 0 | DZ180: Clearwater Paper 1 - 4 (Potlatch Lewiston) | EB180: Clearwater Paper 1 - 4 (Potlatch Lewiston) | EC180: 67.80821918 | ED180: 67.80821918 | EE180: 67.80821918 | EF180: 67.80821918 | EG180: 67.80821918 | EH180: 67.80821918 | EI180: 67.80821918 | EJ180: 67.80821918 | EK180: 67.80821918 | EL180: 67.80821918 | EM180: 67.80821918 | EN180: 67.80821918 | EO180: 63.06164384 | EP180: 63.06164384 | EQ180: 63.06164384 | ER180: 63.06164384 | ES180: 63.06164384 | ET180: 63.06164384 | EU180: 63.06164384 | EV180: 63.06164384 | EW180: 63.06164384 | EX180: 63.06164384 | EY180: 63.06164384 | EZ180: 63.06164384
A181: Clif Bar Bakery of Twin Falls Solar Project | B181: 2291 | C181: 62151 | D181: PV1 | F181: PV | G181: SOL | I181: Solar | J181: 2 | K181: 2 | W181: Operating | X181: Jun | Y181: 2019 | AA181: Twin Falls, ID | AB181: Twin Falls | AC181: ID | AD181: Y | AE181: Columbia | AF181: WECC | AG181: Clif Bar, Borrego Solar | AH181: Independent | AI181: 30% self-generation | AQ181: 1 | AR181: 0.7 | BB181: Fixed tilt | BC181: IPC | BU181: 0.2 | BV181: 0.34 | BW181: 0.3 | BX181: 0.339 | BY181: Crystalline silicone. 2MWdc. Azimuth angle 180, tilt angle 25. | BZ181: 42.53913 | CA181: -114.41131 | CB181: 2019-09-09T16:19:51 | CC181: 2 | CD181: 2 | CE181: 0.254 | CF181: 0.508 | CH181: Y | CI181: 30% self-gen | CK181: PNW East | CL181: PV | CN181: 1 | CP181: 0.75 | CR181: 1 | CT181: Y | CV181: Clif Bar Bakery of Twin Falls Solar Project | CW181: PNW East | CX181: Thr | CY181: PV | CZ181: 1.5 | DA181: Jun-2019 | DB181: Jan-2051 | DC181: 0 | DD181: Solar | DE181: 0 | DF181: 0 | DG181: FALSE | DH181: Cf PV | DI181: SolarPV | DJ181: Default | DK181: Default | DL181: 30 | DM181: Flat | DN181: 0 | DO181: 1 | DP181: FALSE | DQ181: TRUE | DR181: FALSE | DS181: FALSE | DT181: 0 | DU181: 0 | DV181: 0 | DZ181: Clif Bar Bakery of Twin Falls Solar Project | EB181: Clif Bar Bakery of Twin Falls Solar Project | EC181: 0.4435428333 | ED181: 0.2880879218 | EE181: 0.1332288136 | EF181: 0.1101358255 | EG181: 0.1265040881 | EH181: 0.2137384135 | EI181: 0.3418489374 | EJ181: 0.4052965544 | EK181: 0.5287725091 | EL181: 0.5804276925 | EM181: 0.5989196088 | EN181: 0.5363026994 | EO181: 0.5913904444 | EP181: 0.384117229 | EQ181: 0.1776384182 | ER181: 0.1468477673 | ES181: 0.1686721174 | ET181: 0.2849845514 | EU181: 0.4557985833 | EV181: 0.5403954059 | EW181: 0.7050300122 | EX181: 0.77390359 | EY181: 0.7985594784 | EZ181: 0.7150702659
A182: Cline Falls | B182: 1102 | C182: 6482 | D182: 1 | E182: None | F182: Diversion | G182: WAT | I182: Hydro | J182: 1 | K182: 1 | N182: 1 | O182: 1 | P182: 1.1 | Q182: 1.1 | W182: Retired | X182: May | Y182: 1943 | Z182: 2013 | AA182: Deschutes R. | AB182: Deschutes | AC182: OR | AD182: Y | AE182: Columbia | AF182: WECC | AG182: PacifiCorp | AH182: IOU | AI182: Retired (formerly PacifiCorp) | AQ182: 0 | AR182: 0 | BC182: PACW | BD182: 0.2 | BE182: 0.2 | BF182: 0.1 | BG182: 0.04589041096 | BH182: 0.04817351598 | BJ182: 0 | BK182: 0 | BL182: 0 | BM182: 0 | BN182: 0 | BO182: 0 | BP182: 0 | BY182: PAC minor | BZ182: 44.2778 | CA182: -121.2564 | CB182: 2020-03-25T22:26:07 | CC182: 1 | CD182: 1 | CE182: 0.427 | CF182: 0.427 | CH182: N | CI182: Retired as of 2013 | EC182: =IF($CH182="N","",IF(OR($I182<>"Wind",$I182<>"Solar",$I182<>"Hydro"),($CN182*$CP182*IF(ISBLANK($L182),IF(ISBLANK($O182),$J182,$O182),$L182))*VLOOKUP($DH182,ASeasDist,EC$9,FALSE)*VLOOKUP($DM182,ASeasDist,EC$9),$J182*$CN182*$CP182)) ->  | EO182: =IF($CH182="N","",IF(OR($I182<>"Wind",$I182<>"Solar",$I182<>"Hydro"),$CR182*IF(ISBLANK($L182),IF(ISBLANK($O182),$J182,$O182),$L182),$J182)*(1-$DE182)*VLOOKUP($DH182,ASeasDist,EO$9,FALSE)*VLOOKUP($DM182,ASeasDist,EO$9)) -> 
A183: Coastal Energy | B183: 1917 | C183: 57756 | D183: 1 | F183: WT | G183: WND | I183: Wind | J183: 6 | K183: 6 | P183: 6 | Q183: 6 | T183: 1.386 | W183: Operating | X183: Jun | Y183: 2010 | AA183: Grayland | AB183: Grays Harbor | AC183: WA | AD183: Y | AE183: Puget Sound & Coastal | AF183: WECC | AG183: Coastal Community Action Program | AH183: Independent | AI183: Grays Harbor PUD (June 2010 - June 2030) | AK183: PNW Public | AP183: 2030 | AQ183: 1 | AR183: 1 | AX183: (4) GE 1.5 SLE | AY183: 81 | AZ183: 77 | BA183: 2 | BC183: BPA | BM183: 1.38 | BN183: 1.7 | BO183: 1.36 | BP183: 1.86 | BQ183: 1.47 | BR183: 1.6 | BT183: 1.5 | BU183: 1.4 | BV183: 1.57 | BW183: 1.59 | BX183: 1.123 | BY183: (4) GE 1.5 MW WTG. | BZ183: 46.793272 | CA183: -124.065341 | CB183: 2018-03-14 | CC183: 6 | CD183: 6 | CE183: 0.231 | CF183: 1.386 | CH183: Y | CJ183: 100% PNW PPA | CK183: PNW West | CL183: WN_PNWW | CM183: n/a | CN183: 1 | CP183: 0.05 | CR183: 1 | CT183: Y | CV183: Coastal Energy | CW183: PNW West | CX183: Thr | CY183: Wind | CZ183: 6 | DA183: Jun-2010 | DB183: Jan-2051 | DC183: n/a | DD183: Wind | DE183: 0 | DF183: 0 | DG183: FALSE | DH183: Cf WN PNWE | DI183: WindB1 | DJ183: Default | DK183: Default | DL183: 20 | DM183: Flat | DN183: 0 | DO183: 1 | DP183: FALSE | DQ183: TRUE | DR183: FALSE | DS183: FALSE | DT183: 0 | DU183: 0 | DV183: 0 | DW183: 100% PNW PPA | DZ183: Coastal Energy | EB183: Coastal Energy | EC183: 0.0846 | ED183: 0.0657 | EE183: 0.0765 | EF183: 0.0864 | EG183: 0.0927 | EH183: 0.081 | EI183: 0.0963 | EJ183: 0.0963 | EK183: 0.1089 | EL183: 0.0963 | EM183: 0.0999 | EN183: 0.0963 | EO183: 1.692 | EP183: 1.314 | EQ183: 1.53 | ER183: 1.728 | ES183: 1.854 | ET183: 1.62 | EU183: 1.926 | EV183: 1.926 | EW183: 2.178 | EX183: 1.926 | EY183: 1.998 | EZ183: 1.926
A184: Cochrane 1 & 2 | B184: 1103 | C184: 2182 | D184: COC1,COC2 | E184: 2188C | F184: ROR | G184: WAT | I184: Hydro | J184: 59 | K184: 60.4 | N184: 64 | O184: 64 | P184: 64 | Q184: 64 | T184: 33.879 | W184: Operating | X184: Jul | Y184: 1958 | AA184: Missouri R. | AB184: Cascade | AC184: MT | AD184: N | AE184: Missouri | AF184: WECC | AG184: Northwestern Energy purchased from PPL Montana, finalized Nov. 2014. | AH184: IOU | AI184: Northwestern Energy | AQ184: 0.31 | AR184: 0.31 | BC184: NorthWestern | BJ184: 30.9 | BK184: 34.06 | BL184: 33.9 | BM184: 32.53 | BN184: 26 | BO184: 26.17 | BP184: 27.91 | BQ184: 29.75 | BR184: 26.7 | BS184: 32.9 | BT184: 37.2 | BU184: 37.2 | BV184: 34.51 | BW184: 25.28 | BX184: 25.184 | BY184: Original License granted April 1956; expired November 1994. | BZ184: 47.554 | CA184: -111.148 | CB184: 2020-03-25T12:16:37 | CC184: 59 | CD184: 64 | CE184: 0.574220339 | CF184: 33.879 | CH184: Y | CI184: Not accounted for in HydInd file | CJ184: 100% PNW Utility Owner | CK184: PNW East | CL184: HY_Missouri | CM184: n/a | CN184: 0.31 | CO184: NorthWestern | CP184: 1 | CR184: 0.31 | CS184: NorthWestern | CV184: Cochrane 1 & 2 | CW184: PNW East | CX184: Thr | CY184: Hyd | CZ184: 19.84 | DA184: Jul-1958 | DB184: Jan-2051 | DC184: n/a | DD184: Water | DE184: 0 | DF184: 24 | DG184: FALSE | DH184: Cf HY Missouri | DI184: Zero | DJ184: Expense | DK184: Default | DL184: 50 | DM184: Flat | DN184: 0 | DO184: 0 | DP184: FALSE | DQ184: TRUE | DR184: FALSE | DS184: FALSE | DT184: 0 | DU184: 0 | DV184: 0 | DW184: 100% PNW Utility Owner | DZ184: Cochrane 1 & 2 | EB184: Cochrane 1 & 2 | EC184: 10.29999794 | ED184: 10.97792061 | EE184: 11.81288683 | EF184: 12.49475151 | EG184: 12.52474287 | EH184: 12.2000968 | EI184: 12.33227402 | EJ184: 13.37254173 | EK184: 15.5525811 | EL184: 21.38212294 | EM184: 15.56135804 | EN184: 11.06161357 | EO184: 10.29999794 | EP184: 10.97792061 | EQ184: 11.81288683 | ER184: 12.49475151 | ES184: 12.52474287 | ET184: 12.2000968 | EU184: 12.33227402 | EV184: 13.37254173 | EW184: 15.5525811 | EX184: 21.38212294 | EY184: 15.56135804 | EZ184: 11.06161357
A185: Coffin Butte 1 - 5 | B185: 1104 | C185: 7725 | D185: 1,2,3,4,5 | F185: IC | G185: LFG | I185: Biomass | J185: 5.2 | K185: 5.6 | L185: 5.3 | M185: 5.6 | N185: 5.4 | O185: 5.4 | P185: 5.4 | Q185: 5.4 | W185: Operating | X185: May | Y185: 1995 | AA185: Coffin Butte Landfill | AB185: Benton | AC185: OR | AD185: Y | AE185: Columbia | AF185: WECC | AG185: Power Resources Cooperative | AH185: Coop | AI185: Portland General Electric (15 yr PURPA agreement beg October 2012) | AP185: 2027 | AQ185: 1 | AR185: 1 | BC185: BPA | BI185: 2.3 | BJ185: 5.11 | BK185: 4.9 | BL185: 4.8 | BM185: 5.15 | BN185: 5 | BO185: 4.84 | BP185: 4.83 | BQ185: 5 | BR185: 5.1 | BS185: 5 | BT185: 4.8 | BU185: 4.7 | BV185: 4.88 | BW185: 4.85 | BX185: 4.508 | BY185: Units 1 - 3 Caterpillar 3516 engines. Units 4 & 5 1.6 MW Caterpillar 3520 engines (Oct 2007 service). | BZ185: 44.697279 | CA185: -123.223496 | CB185: 2020-03-23T13:36:37 | CC185: 5.3 | CD185: 5.4 | CE185: 0.75 | CF185: 4.0125 | CH185: Y | CK185: PNW West | CL185: BGIC | CM185: 11900 | CN185: 1 | CP185: 1 | CR185: 1 | CT185: Y | CV185: Coffin Butte 1 - 5 | CW185: PNW West | CX185: Thr | CY185: IC | CZ185: 5.3 | DA185: May-1995 | DB185: Jan-2051 | DC185: 11900 | DD185: Zero-cost Biofuel | DE185: 0.047 | DF185: 56 | DG185: FALSE | DH185: MR 7d Flat | DI185: Landfill | DJ185: Default | DK185: Default | DL185: 20 | DM185: Flat | DN185: 0 | DO185: 1 | DP185: FALSE | DQ185: TRUE | DR185: FALSE | DS185: FALSE | DT185: 0 | DU185: 0 | DV185: 0 | DZ185: Coffin Butte 1 - 5 | EB185: Coffin Butte 1 - 5 | EC185: 5.096712329 | ED185: 5.096712329 | EE185: 5.096712329 | EF185: 5.096712329 | EG185: 5.096712329 | EH185: 5.096712329 | EI185: 5.096712329 | EJ185: 5.096712329 | EK185: 5.096712329 | EL185: 5.096712329 | EM185: 5.096712329 | EN185: 5.096712329 | EO185: 4.857166849 | EP185: 4.857166849 | EQ185: 4.857166849 | ER185: 4.857166849 | ES185: 4.857166849 | ET185: 4.857166849 | EU185: 4.857166849 | EV185: 4.857166849 | EW185: 4.857166849 | EX185: 4.857166849 | EY185: 4.857166849 | EZ185: 4.857166849
A186: Cogen II (D.R. Johnson) 1 & 2 | B186: 1105 | C186: 50993 | D186: GEN1 | F186: STCG | G186: NG | H186: WW | I186: Natural Gas | J186: 7.5 | K186: 7.5 | L186: 7.5 | N186: 7.5 | O186: 7.5 | P186: 7.8 | Q186: 7.3 | W186: Operating | X186: Oct | Y186: 1987 | AA186: Riddle | AB186: Douglas | AC186: OR | AD186: Y | AE186: Puget Sound & Coastal | AF186: WECC | AG186: Cogen II, LLC | AH186: Independent | AI186: PacifiCorp (QF) | AM186: 76.73 | AN186: 4.3 | AQ186: 1 | AR186: 1 | AS186: D. R. Johnson Lumber Co. - Riddle | AT186: Lumber & wood products | AU186: Williams Northwest | AW186: cogen | BC186: PACW | BH186: 2.410958904 | BI186: 2.3 | BJ186: 7.52 | BK186: 6.48 | BL186: 0 | BM186: 0 | BN186: 0 | BO186: 0 | BP186: 0 | BQ186: 0 | BR186: 0 | BS186: 0 | BT186: 0 | BU186: 0 | BV186: 0 | BW186: 0 | BX186: 0 | BZ186: 42.961126 | CA186: -123.359138 | CB186: 2020-04-21T14:46:29 | CC186: 7.5 | CD186: 7.5 | CE186: 0.8 | CF186: 6 | CH186: Y | CK186: PNW West | CL186: NGSTCG_PNWW | CM186: 8000 | CN186: 1 | CP186: 1 | CR186: 1 | CT186: Y | CV186: Cogen II (D.R. Johnson) 1 & 2 | CW186: PNW West | CX186: Thr | CY186: STCG | CZ186: 7.5 | DA186: Oct-1987 | DB186: Jan-2051 | DC186: 8000 | DD186: PNW W. gas | DE186: 0.07 | DF186: 56 | DG186: FALSE | DH186: MR 28d Flat | DI186: Cogen1 | DJ186: Default | DK186: Default | DL186: 30 | DM186: Flat | DN186: 0 | DO186: 1 | DP186: FALSE | DQ186: TRUE | DR186: FALSE | DS186: FALSE | DT186: 0 | DU186: 0 | DV186: 0 | DZ186: Cogen II (D.R. Johnson) 1 & 2 | EB186: Cogen II (D.R. Johnson) 1 & 2 | EC186: 6.780821918 | ED186: 6.780821918 | EE186: 6.780821918 | EF186: 6.780821918 | EG186: 6.780821918 | EH186: 6.780821918 | EI186: 6.780821918 | EJ186: 6.780821918 | EK186: 6.780821918 | EL186: 6.780821918 | EM186: 6.780821918 | EN186: 6.780821918 | EO186: 6.306164384 | EP186: 6.306164384 | EQ186: 6.306164384 | ER186: 6.306164384 | ES186: 6.306164384 | ET186: 6.306164384 | EU186: 6.306164384 | EV186: 6.306164384 | EW186: 6.306164384 | EX186: 6.306164384 | EY186: 6.306164384 | EZ186: 6.306164384
A187: Cold Springs (Mountain Air Wind Park) | B187: 2044 | C187: 57431 | D187: 1 | F187: WT | G187: WND | I187: Wind | J187: 23 | K187: 23 | P187: 23 | Q187: 23 | W187: Operating | X187: Dec | Y187: 2012 | AA187: Mountain Home | AB187: Elmore | AC187: ID | AD187: Y | AE187: Columbia | AF187: WECC | AG187: Terna Energy | AH187: Independent | AI187: QF PPA to IPC (Dec 2012 - Dec 2032) | AK187: PNW IOU | AP187: 2032 | AQ187: 1 | AR187: 1 | AW187: SPP | AX187: (10) Siemens SWT-2.3 101 | AY187: 80 | AZ187: 101 | BA187: 2 | BC187: IPC | BN187: 1.4 | BO187: 5.59 | BP187: 6.14 | BQ187: 5.06 | BR187: 6.1 | BS187: 5.3 | BT187: 5.5 | BU187: 5.7 | BV187: 5.81 | BW187: 6.02 | BX187: 5.633 | BY187: (10) Siemens SWT 2.3-101 MW. Mtn Air Wind Park (six projects for total 138 MW) started testing operation in September 2012. | BZ187: 43.026 | CA187: -115.395 | CB187: 2018-07-23T11:29:55 | CC187: 23 | CD187: 23 | CE187: 0.32 | CF187: 7.36 | CH187: Y | CJ187: 100% PNW PPA | CK187: PNW East | CL187: WN_PNWE | CM187: n/a | CN187: 1 | CP187: 0.05 | CR187: 1 | CT187: Y | CV187: Cold Springs (Mountain Air Wind Park) | CW187: PNW East | CX187: Thr | CY187: Wind | CZ187: 23 | DA187: Dec-2012 | DB187: Jan-2051 | DC187: n/a | DD187: Wind | DE187: 0 | DF187: 0 | DG187: FALSE | DH187: Cf WN PNWE | DI187: WindB1 | DJ187: Default | DK187: Default | DL187: 20 | DM187: Flat | DN187: 0 | DO187: 1 | DP187: FALSE | DQ187: TRUE | DR187: FALSE | DS187: FALSE | DT187: 0 | DU187: 0 | DV187: 0 | DW187: 100% PNW PPA | DZ187: Cold Springs (Mountain Air Wind Park) | EB187: Cold Springs (Mountain Air Wind Park) | EC187: 0.3243 | ED187: 0.25185 | EE187: 0.29325 | EF187: 0.3312 | EG187: 0.35535 | EH187: 0.3105 | EI187: 0.36915 | EJ187: 0.36915 | EK187: 0.41745 | EL187: 0.36915 | EM187: 0.38295 | EN187: 0.36915 | EO187: 6.486 | EP187: 5.037 | EQ187: 5.865 | ER187: 6.624 | ES187: 7.107 | ET187: 6.21 | EU187: 7.383 | EV187: 7.383 | EW187: 8.349 | EX187: 7.383 | EY187: 7.659 | EZ187: 7.383
A188: Collier Solar | B188: 2177 | C188: 60976 | D188: PV1 | F188: PV | G188: SOL | I188: Solar | J188: 9.9 | K188: 9.9 | P188: 9.9 | Q188: 9.9 | W188: Operating | X188: Dec | Y188: 2016 | AA188: Bend | AB188: Deschutes | AC188: OR | AD188: Y | AE188: Columbia | AF188: WECC | AG188: Pine Gate Renewables | AH188: Independent | AI188: PPA w/ PacifiCorp for 20 years | AP188: 2036 | AQ188: 1 | AR188: 1 | AW188: SPP | BB188: Single-axis | BC188: PACE | BS188: 2.3 | BT188: 2.4 | BU188: 2.4 | BV188: 2.72 | BX188: 2.578 | BY188: Crystalline silicone. 9.9MWdc. Azimuth angle 90, tilt angle 60. http://edocs.puc.state.or.us/efdocs/RPA/re142rpa114740.pdf | BZ188: 44.0607 | CA188: -121.2278 | CB188: 2018-03-19 | CC188: 9.9 | CD188: 9.9 | CE188: 0.254 | CF188: 2.5146 | CH188: Y | CJ188: 100% PNW PPA | CK188: PNW East | CL188: PV | CN188: 1 | CP188: 0.75 | CR188: 1 | CT188: Y | CV188: Collier Solar | CW188: PNW East | CX188: Thr | CY188: PV | CZ188: 7.425 | DA188: Dec-2016 | DB188: Jan-2051 | DC188: 0 | DD188: Solar | DE188: 0 | DF188: 0 | DG188: FALSE | DH188: Cf PV | DI188: SolarPV | DJ188: Default | DK188: Default | DL188: 30 | DM188: Flat | DN188: 0 | DO188: 1 | DP188: FALSE | DQ188: TRUE | DR188: FALSE | DS188: FALSE | DT188: 0 | DU188: 0 | DV188: 0 | DW188: 100% PNW PPA | DZ188: Collier Solar | EB188: Collier Solar | EC188: 2.195537025 | ED188: 1.426035213 | EE188: 0.6594826275 | EF188: 0.545172336 | EG188: 0.626195236 | EH188: 1.058005147 | EI188: 1.69215224 | EJ188: 2.006217944 | EK188: 2.61742392 | EL188: 2.873117078 | EM188: 2.964652063 | EN188: 2.654698362 | EO188: 2.9273827 | EP188: 1.901380284 | EQ188: 0.87931017 | ER188: 0.726896448 | ES188: 0.8349269813 | ET188: 1.410673529 | EU188: 2.256202987 | EV188: 2.674957259 | EW188: 3.48989856 | EX188: 3.830822771 | EY188: 3.952869418 | EZ188: 3.539597816
A189: Collins Wood Products | B189: 1106 | F189: STCG | G189: WW | I189: Biomass | J189: 7.5 | W189: Idle | AA189: Klamath Falls | AB189: Klamath | AC189: OR | AD189: Y | AE189: Puget Sound & Coastal | AF189: WECC | AG189: Collins Wood Products | AH189: Independent | AI189: Idle | AQ189: 0 | AR189: 0 | AS189: Collins Wood Products | AT189: Defibrated wood and board mills | BG189: 0 | BH189: 0 | BY189: Steam load by Klamath Cogen 6/2001 | CB189: 2020-03-31T17:04:16 | CC189: 7.5 | CD189: 7.5 | CE189: 0.8 | CF189: 6 | CH189: N | CI189: Idle
A190: Colstrip 1 | B190: 1107 | C190: 6076 | D190: 1 | F190: ST | G190: COL | I190: Coal | J190: 358.4 | K190: 358 | L190: 308 | M190: 1565 | N190: 307 | O190: 307 | P190: 307 | Q190: 307 | R190: 90 | S190: 0.95 | W190: Retired | X190: Nov | Y190: 1975 | Z190: 2020 | AA190: Colstrip | AB190: Rosebud | AC190: MT | AD190: N | AE190: Missouri | AF190: WECC | AG190: Talen Energy Corp (formerly PPL Montana) (50%); PSE (50%) | AH190: IOU/Independent | AI190: Retired (Formerly Puget Sound Energy (50%), Talen Energy system sales (50%)) | AM190: 28.95 | AN190: 2.9 | AO190: 10855 | AP190: n/a | AQ190: 0 | AR190: 0 | BC190: NorthWestern (Talen Energy share), PSE (share) | BD190: 1585.3 | BE190: 1707.3 | BF190: 1772.7 | BG190: 1853.970662 | BH190: 1685.47363 | BI190: 1808.2 | BJ190: 1836.39 | BK190: 1501.7 | BL190: 1850.67 | BM190: 1486.9 | BN190: 1398.5 | BO190: 1454.09 | BP190: 1567.34 | BQ190: 1694.55 | BR190: 1525 | BS190: 1522.6 | BT190: 1444.8 | BU190: 1530.6 | BV190: 905.4 | BW190: 1142.73 | BX190: 1240.36 | BY190: One 358.4 MW STG. Ownership per P. Cartwright 4/6/01. Talen and PSE announced effective December 31, 2019, Colstrip 1 and 2 will permanently retire - earlier than the previously scheduled 2022. | BZ190: 45.884204 | CA190: -106.612002 | CB190: 2020-07-15T16:32:54 | CC190: 308 | CD190: 307 | CE190: 0.86 | CF190: 264.45 | CH190: Y | CJ190: 50% PPL MT system sales | CK190: PNW East | CL190: CLST_EMT | CM190: 11170 | CN190: 0.5 | CO190: PPLMT Sys sales | CP190: 1 | CR190: 0.5 | CS190: PPLMT Sys sales | CV190: Colstrip 1 | CW190: PNW East | CX190: Thr | CY190: Coal | CZ190: 154 | DA190: Nov-1975 | DB190: 2020 | DC190: 11170 | DD190: MT coal | DE190: 0.067 | DF190: 40 | DG190: TRUE | DH190: MR 35d Winter Pk_Hydro | DI190: Col1 | DJ190: Default | DK190: Default | DL190: 30 | DM190: Flat | DN190: 0 | DO190: 0 | DP190: FALSE | DQ190: TRUE | DR190: FALSE | DS190: FALSE | DT190: 0 | DU190: 0 | DV190: 0 | DW190: 50% PPL MT system sales | DZ190: Colstrip 1 | EB190: Colstrip 1 | EC190: 154 | ED190: 147.5561644 | EE190: 147.5561644 | EF190: 154 | EG190: 154 | EH190: 154 | EI190: 150.7780822 | EJ190: 147.5561644 | EK190: 147.5561644 | EL190: 147.5561644 | EM190: 154 | EN190: 154 | EO190: 143.682 | EP190: 137.6699014 | EQ190: 137.6699014 | ER190: 143.682 | ES190: 143.682 | ET190: 143.682 | EU190: 140.6759507 | EV190: 137.6699014 | EW190: 137.6699014 | EX190: 137.6699014 | EY190: 143.682 | EZ190: 143.682
A191: Colstrip 2 | B191: 1108 | C191: 6076 | D191: 2 | F191: ST | G191: COL | I191: Coal | J191: 358.4 | K191: 358 | L191: 308 | N191: 307 | O191: 307 | P191: 307 | Q191: 307 | R191: 90 | S191: 0.95 | W191: Retired | X191: Aug | Y191: 1976 | Z191: 2020 | AA191: Colstrip | AB191: Rosebud | AC191: MT | AD191: N | AE191: Missouri | AF191: WECC | AG191: Talen Energy Corp (formerly PPL Montana) (50%); PSE (50%) | AH191: IOU/Independent | AI191: Retired (Formerly Puget Sound Energy (50%), Talen Energy system sales (50%) | AM191: 28.95 | AN191: 2.9 | AO191: 11020 | AP191: n/a | AQ191: 0 | AR191: 0 | BC191: NorthWestern (Talen Energy share), PSE (share) | BY191: One 358.4 MW STG. Ownership per P. Cartwright 4/6/01. Talen and PSE announced effective December 31, 2019, Colstrip 1 and 2 will permanently retire - earlier than the previously scheduled 2022. | BZ191: 45.884204 | CA191: -106.612002 | CB191: 2020-07-15T16:33:30 | CC191: 308 | CD191: 307 | CE191: 0.86 | CF191: 264.45 | CH191: Y | CJ191: 50% PPL MT system sales | CK191: PNW East | CL191: CLST_EMT | CM191: 11170 | CN191: 0.5 | CO191: PPLMT Sys sales | CP191: 1 | CR191: 0.5 | CS191: PPLMT Sys sales | CV191: Colstrip 2 | CW191: PNW East | CX191: Thr | CY191: Coal | CZ191: 154 | DA191: Aug-1976 | DB191: 2020 | DC191: 11170 | DD191: MT coal | DE191: 0.067 | DF191: 40 | DG191: TRUE | DH191: MR 35d Winter Pk_Hydro | DI191: Col1 | DJ191: Default | DK191: Default | DL191: 30 | DM191: Flat | DN191: 0 | DO191: 0 | DP191: FALSE | DQ191: TRUE | DR191: FALSE | DS191: FALSE | DT191: 0 | DU191: 0 | DV191: 0 | DW191: 50% PPL MT system sales | DZ191: Colstrip 2 | EB191: Colstrip 2 | EC191: 154 | ED191: 147.5561644 | EE191: 147.5561644 | EF191: 154 | EG191: 154 | EH191: 154 | EI191: 150.7780822 | EJ191: 147.5561644 | EK191: 147.5561644 | EL191: 147.5561644 | EM191: 154 | EN191: 154 | EO191: 143.682 | EP191: 137.6699014 | EQ191: 137.6699014 | ER191: 143.682 | ES191: 143.682 | ET191: 143.682 | EU191: 140.6759507 | EV191: 137.6699014 | EW191: 137.6699014 | EX191: 137.6699014 | EY191: 143.682 | EZ191: 143.682
A192: Colstrip 3 | B192: 1109 | C192: 6076 | D192: 3 | F192: ST | G192: COL | I192: Coal | J192: 778 | K192: 823.7 | L192: 740 | N192: 740 | O192: 740 | P192: 740 | Q192: 740 | R192: 200 | S192: 0.95 | W192: Operating | X192: Jan | Y192: 1984 | Z192: 2027 | AA192: Colstrip | AB192: Rosebud | AC192: MT | AD192: N | AE192: Missouri | AF192: WECC | AG192: Talen Energy Corp (formerly PPL Montana) (30%); PSE (25%); PGE (20%), Avista (15%); PacifiCorp (10%) | AH192: IOU/Independent | AI192: Puget Sound Energy (25%), Portland General Electric (20%), Avista (15%), PacifiCorp (10%), Talen Energy system sales (30%) | AM192: 31.16 | AN192: 3.48 | AO192: 10858 | AP192: n/a | AQ192: 0.7 | AR192: 1 | BC192: Avista, NorthWestern (Talen Energy share), PACW (share), PGE (share), PSE (share) | BY192: One 778.0 MW STG. Ownership per P. Cartwright 4/6/01. | BZ192: 45.884204 | CA192: -106.612002 | CB192: 2020-07-15T16:34:23 | CC192: 740 | CD192: 740 | CE192: 0.86 | CF192: 636.4 | CH192: Y | CJ192: 30% PPL MT system sales | CK192: PNW East | CL192: CLST_EMT | CM192: 10870 | CN192: 0.7 | CO192: PPLMT Sys sales | CP192: 1 | CR192: 0.7 | CS192: PPLMT Sys sales | CV192: Colstrip 3 | CW192: PNW East | CX192: Thr | CY192: Coal | CZ192: 518 | DA192: Jan-1984 | DB192: Jan-2051 | DC192: 10870 | DD192: MT coal | DE192: 0.067 | DF192: 40 | DG192: TRUE | DH192: MR 35d Winter Pk_Hydro | DI192: Col1 | DJ192: Default | DK192: Default | DL192: 30 | DM192: Flat | DN192: 0 | DO192: 0 | DP192: FALSE | DQ192: TRUE | DR192: FALSE | DS192: FALSE | DT192: 0 | DU192: 0 | DV192: 0 | DW192: 30% PPL MT system sales | DZ192: Colstrip 3 | EB192: Colstrip 3 | EC192: =IF($CH192="N","",IF(OR($I192<>"Wind",$I192<>"Solar",$I192<>"Hydro"),($CN192*$CP192*IF(ISBLANK($L192),IF(ISBLANK($O192),$J192,$O192),$L192))*VLOOKUP($DH192,ASeasDist,EC$9,FALSE)*VLOOKUP($DM192,ASeasDist,EC$9),$J192*$CN192*$CP192)) -> 518 | ED192: 496.3252802 | EE192: 496.3252802 | EF192: 518 | EG192: 518 | EH192: 518 | EI192: 507.1626401 | EJ192: 496.3252802 | EK192: 496.3252802 | EL192: 496.3252802 | EM192: 518 | EN192: 518 | EO192: =IF($CH192="N","",IF(OR($I192<>"Wind",$I192<>"Solar",$I192<>"Hydro"),$CR192*IF(ISBLANK($L192),IF(ISBLANK($O192),$J192,$O192),$L192),$J192)*(1-$DE192)*VLOOKUP($DH192,ASeasDist,EO$9,FALSE)*VLOOKUP($DM192,ASeasDist,EO$9)) -> 483.294 | EP192: 463.0714864 | EQ192: 463.0714864 | ER192: 483.294 | ES192: 483.294 | ET192: 483.294 | EU192: 473.1827432 | EV192: 463.0714864 | EW192: 463.0714864 | EX192: 463.0714864 | EY192: 483.294 | EZ192: 483.294
A193: Colstrip 4 | B193: 1110 | C193: 6076 | D193: 4 | F193: ST | G193: COL | I193: Coal | J193: 778 | K193: 823.7 | L193: 740 | N193: 740 | O193: 740 | P193: 740 | Q193: 740 | R193: 200 | S193: 0.95 | W193: Operating | X193: Apr | Y193: 1986 | Z193: 2027 | AA193: Colstrip | AB193: Rosebud | AC193: MT | AD193: N | AE193: Missouri | AF193: WECC | AG193: NorthWestern (30%); PSE (25%); PGE (20%), Avista (15%); PacifiCorp (10%) | AH193: IOU/Independent | AI193: Puget Sound Energy (25%), Portland General Electric (20%), Avista (15%), PacifiCorp (10%), NorthWestern (90 MW through 2018; 21 MW through July 2014) NWE balance to 3rd parties. All NW Corp 30% to NWE ratebase Jan 2011. | AM193: 31.16 | AN193: 3.48 | AO193: 10787 | AQ193: 0.793 | AR193: 0.793 | BC193: Avista, NorthWestern, PACW, PGE, PSE | BY193: One 778.0 MW STG. | BZ193: 45.884204 | CA193: -106.612002 | CB193: 2020-07-15T16:35:39 | CC193: 740 | CD193: 740 | CE193: 0.86 | CF193: 636.4 | CH193: Y | CK193: PNW East | CL193: CLST_EMT | CM193: 10870 | CN193: 0.92 | CO193: NorthWestern | CP193: 1 | CR193: 0.92 | CS193: NorthWestern | CV193: Colstrip 4 | CW193: PNW East | CX193: Thr | CY193: Coal | CZ193: 680.8 | DA193: Apr-1986 | DB193: Jan-2051 | DC193: 10870 | DD193: MT coal | DE193: 0.067 | DF193: 40 | DG193: TRUE | DH193: MR 35d Winter Pk_Hydro | DI193: Col1 | DJ193: Default | DK193: Default | DL193: 30 | DM193: Flat | DN193: 0 | DO193: 0 | DP193: FALSE | DQ193: TRUE | DR193: FALSE | DS193: FALSE | DT193: 0 | DU193: 0 | DV193: 0 | DZ193: Colstrip 4 | EB193: Colstrip 4 | EC193: 680.8 | ED193: 652.3132254 | EE193: 652.3132254 | EF193: 680.8 | EG193: 680.8 | EH193: 680.8 | EI193: 666.5566127 | EJ193: 652.3132254 | EK193: 652.3132254 | EL193: 652.3132254 | EM193: 680.8 | EN193: 680.8 | EO193: 635.1864 | EP193: 608.6082393 | EQ193: 608.6082393 | ER193: 635.1864 | ES193: 635.1864 | ET193: 635.1864 | EU193: 621.8973197 | EV193: 608.6082393 | EW193: 608.6082393 | EX193: 608.6082393 | EY193: 635.1864 | EZ193: 635.1864
A194: Colton (SP Solar 6) | B194: 2278 | C194: 61831 | D194: PGRC2 | F194: PV | G194: SOL | I194: Solar | J194: 2.2 | K194: 2.2 | P194: 2.2 | Q194: 2.2 | W194: Operating | X194: Dec | Y194: 2017 | AA194: N of Hwy 211, W of Colton | AB194: Clackamas | AC194: OR | AD194: Y | AE194: Columbia | AF194: WECC | AG194: Pine Gate Renewables | AH194: Independent | AI194: Portland General Electric (20yr PURPA PPA) | AP194: 2038 | AQ194: 1 | AR194: 1 | AW194: SPP | BB194: Fixed tilt | BC194: PGE | BS194: 0 | BT194: 0.2 | BU194: 0.4 | BV194: 0.42 | BW194: 0.41 | BX194: 0.397 | BY194: Crystalline silicone. 3.1MWdc. Azimuth angle 180, tilt angle 15. | BZ194: 45.169808 | CA194: -122.472036 | CB194: 2018-10-22T12:11:30 | CC194: 2.2 | CD194: 2.2 | CE194: 0.254 | CF194: 0.5588 | CH194: Y | CJ194: 100% PNW PPA | CK194: PNW West | CL194: PV | CN194: 1 | CP194: 0.75 | CR194: 1 | CT194: Y | CV194: Colton (SP Solar 6) | CW194: PNW West | CX194: Thr | CY194: PV | CZ194: 1.65 | DA194: Dec-2017 | DB194: Jan-2051 | DC194: 0 | DD194: Solar | DE194: 0 | DF194: 0 | DG194: FALSE | DH194: Cf PV | DI194: SolarPV | DJ194: Default | DK194: Default | DL194: 30 | DM194: Flat | DN194: 0 | DO194: 1 | DP194: FALSE | DQ194: TRUE | DR194: FALSE | DS194: FALSE | DT194: 0 | DU194: 0 | DV194: 0 | DW194: 100% PNW PPA | DZ194: Colton (SP Solar 6) | EB194: Colton (SP Solar 6) | EC194: 0.4878971167 | ED194: 0.316896714 | EE194: 0.146551695 | EF194: 0.121149408 | EG194: 0.1391544969 | EH194: 0.2351122549 | EI194: 0.3760338312 | EJ194: 0.4458262099 | EK194: 0.58164976 | EL194: 0.6384704618 | EM194: 0.6588115697 | EN194: 0.5899329694 | EO194: 0.6505294889 | EP194: 0.4225289519 | EQ194: 0.19540226 | ER194: 0.161532544 | ES194: 0.1855393292 | ET194: 0.3134830065 | EU194: 0.5013784416 | EV194: 0.5944349465 | EW194: 0.7755330134 | EX194: 0.8512939491 | EY194: 0.8784154262 | EZ194: 0.7865772925
A195: Columbia Blvd Wastewater Treatment Plant | B195: 1111 | F195: ICCG | G195: WG | I195: Biomass | J195: 1.7 | L195: 1.7 | N195: 1.7 | O195: 1.7 | W195: Operating | X195: Jun | Y195: 2008 | AA195: Portland | AB195: Multnomah | AC195: OR | AD195: Y | AE195: Columbia | AF195: WECC | AG195: City of Portland | AH195: Independent | AI195: Listed NUG per 2009 White Book | AQ195: 1 | AR195: 1 | AS195: Columbia Blvd WWTP | AT195: WWTP digestors | BY195: (2) 850 kW reciprocating engines. Also, (4) 30kW microturbines installed in 2001. | BZ195: 45.596391 | CA195: -122.720041 | CB195: 2018-03-25 | CC195: 1.7 | CD195: 1.7 | CE195: 0.8 | CF195: 1.36 | CH195: Y | CK195: PNWW | CL195: BGIC | CM195: 9700 | CN195: 1 | CP195: 1 | CR195: 1 | CV195: Columbia Blvd Wastewater Treatment Plant | CW195: PNWW | CX195: Thr | CY195: IC | CZ195: 1.7 | DA195: Jun-2008 | DB195: Jan-2051 | DC195: 9700 | DD195: Zero-cost Biofuel | DE195: 0.047 | DF195: 56 | DG195: FALSE | DH195: MR 7d Flat | DI195: Landfill | DJ195: Default | DK195: Default | DL195: 20 | DM195: Flat | DN195: 0 | DO195: 1 | DP195: FALSE | DQ195: TRUE | DR195: FALSE | DS195: FALSE | DT195: 0 | DU195: 0 | DV195: 0 | DZ195: Columbia Blvd Wastewater Treatment Plant | EB195: Columbia Blvd Wastewater Treatment Plant | EC195: 1.634794521 | ED195: 1.634794521 | EE195: 1.634794521 | EF195: 1.634794521 | EG195: 1.634794521 | EH195: 1.634794521 | EI195: 1.634794521 | EJ195: 1.634794521 | EK195: 1.634794521 | EL195: 1.634794521 | EM195: 1.634794521 | EN195: 1.634794521 | EO195: 1.557959178 | EP195: 1.557959178 | EQ195: 1.557959178 | ER195: 1.557959178 | ES195: 1.557959178 | ET195: 1.557959178 | EU195: 1.557959178 | EV195: 1.557959178 | EW195: 1.557959178 | EX195: 1.557959178 | EY195: 1.557959178 | EZ195: 1.557959178
A196: Columbia Generating Station | B196: 1112 | C196: 371 | D196: 2 | F196: NB | G196: UR | I196: Uranium | J196: 1200 | K196: 1200 | L196: 1150 | M196: 1169 | N196: 1130 | O196: 1145 | P196: 1160 | Q196: 1169 | W196: Operating | X196: Dec | Y196: 1984 | AA196: Hanford | AB196: Benton | AC196: WA | AD196: Y | AE196: Columbia | AF196: WECC | AG196: Energy Northwest | AH196: JOA | AI196: BPA | AM196: 327.19 | AN196: 0.88 | AO196: 10400 | AQ196: 1 | AR196: 1 | BC196: BPA | BD196: 1032.9 | BE196: 869.3 | BF196: 1022.5 | BG196: 940.8987443 | BH196: 1064.871804 | BI196: 925.6 | BJ196: 1056.2 | BK196: 757.31 | BL196: 1054.92 | BM196: 548.66 | BN196: 1065.5 | BO196: 965.86 | BP196: 1084.17 | BQ196: 931.61 | BR196: 1098.8 | BS196: 927.9 | BT196: 1108.3 | BU196: 1012.2 | BV196: 1076.15 | BW196: 971.61 | BX196: 1124.6 | BY196: One 1200 MW STG. | BZ196: 46.469 | CA196: -119.32 | CB196: 2020-03-23T14:01:00 | CC196: 1150 | CD196: 1130 | CE196: 0.9 | CF196: 1026 | CH196: Y | CK196: PNW East | CL196: CGS | CM196: 10060 | CN196: 1 | CP196: 1 | CR196: 1 | CV196: Columbia Generating Station | CW196: PNW East | CX196: Thr | CY196: Nuclear | CZ196: 1150 | DA196: Dec-1984 | DB196: Jan-2051 | DC196: 10060 | DD196: WNP-2 nuclear fuel | DE196: 0.096 | DF196: 112 | DG196: TRUE | DH196: MR 28d Winter Pk_Hydro | DI196: Wnp2 | DJ196: Default | DK196: Default | DL196: 30 | DM196: Flat | DN196: 0 | DO196: 0 | DP196: FALSE | DQ196: TRUE | DR196: FALSE | DS196: FALSE | DT196: 0 | DU196: 0 | DV196: 0 | DZ196: Columbia Generating Station | EB196: Columbia Generating Station | EC196: 1150 | ED196: 1150 | EE196: 1150 | EF196: 1150 | EG196: 1150 | EH196: 1150 | EI196: 960.9589041 | EJ196: 771.9178082 | EK196: 771.9178082 | EL196: 771.9178082 | EM196: 1150 | EN196: 1150 | EO196: 1039.6 | EP196: 1039.6 | EQ196: 1039.6 | ER196: 1039.6 | ES196: 1039.6 | ET196: 1039.6 | EU196: 868.7068493 | EV196: 697.8136986 | EW196: 697.8136986 | EX196: 697.8136986 | EY196: 1039.6 | EZ196: 1039.6
A197: Columbia Ridge Landfill | B197: 1716 | C197: 57015 | D197: GEN1,GEN2,GEN3,GEN4,GEN5,GEN6,GEN7,GEN8 | F197: IC | G197: LFG | I197: Biomass | J197: 6.4 | K197: 6.4 | M197: 12.8 | N197: 6.4 | O197: 6.4 | P197: 6.4 | Q197: 6.4 | T197: 5.8 | W197: Operating | X197: Dec | Y197: 2009 | AA197: Arlington | AB197: Gilliam | AC197: OR | AD197: Y | AE197: Columbia | AF197: WECC | AG197: Waste Management, Inc. | AH197: Independent | AI197: Seattle City Light (Dec 2009 - Dec 2029) | AP197: 2029 | AQ197: 1 | AR197: 1 | BC197: BPA | BK197: 0.18 | BL197: 5.9 | BM197: 5.76 | BN197: 5.7 | BO197: 5.95 | BP197: 7.97 | BR197: 11.4 | BS197: 11 | BT197: 11.8 | BU197: 11.7 | BV197: 11.59 | BW197: 10.69 | BX197: 9.976 | BY197: (8) 0.8 MW reciprocating engines. | BZ197: 45.616193 | CA197: -120.243065 | CB197: 2020-03-23T13:36:51 | CC197: 6.4 | CD197: 6.4 | CE197: 0.90625 | CF197: 5.8 | CH197: Y | CK197: PNW East | CL197: BGIC | CM197: 11700 | CN197: 1 | CP197: 1 | CR197: 1 | CT197: Y | CV197: Columbia Ridge Landfill | CW197: PNW East | CX197: Thr | CY197: IC | CZ197: 6.4 | DA197: Dec-2009 | DB197: Jan-2051 | DC197: 11700 | DD197: Zero-cost Biofuel | DE197: 0.047 | DF197: 56 | DG197: FALSE | DH197: MR 7d Flat | DI197: Landfill | DJ197: Default | DK197: Default | DL197: 20 | DM197: Flat | DN197: 0 | DO197: 1 | DP197: FALSE | DQ197: TRUE | DR197: FALSE | DS197: FALSE | DT197: 0 | DU197: 0 | DV197: 0 | DZ197: Columbia Ridge Landfill | EB197: Columbia Ridge Landfill | EC197: 6.154520548 | ED197: 6.154520548 | EE197: 6.154520548 | EF197: 6.154520548 | EG197: 6.154520548 | EH197: 6.154520548 | EI197: 6.154520548 | EJ197: 6.154520548 | EK197: 6.154520548 | EL197: 6.154520548 | EM197: 6.154520548 | EN197: 6.154520548 | EO197: 5.865258082 | EP197: 5.865258082 | EQ197: 5.865258082 | ER197: 5.865258082 | ES197: 5.865258082 | ET197: 5.865258082 | EU197: 5.865258082 | EV197: 5.865258082 | EW197: 5.865258082 | EX197: 5.865258082 | EY197: 5.865258082 | EZ197: 5.865258082
A198: Columbia Ridge Landfill Expansion | B198: 2039 | C198: 57015 | D198: GEN9,GEN10,GEN11,GEN12 | F198: IC | G198: LFG | I198: Biomass | J198: 6.4 | K198: 6.4 | P198: 6.4 | Q198: 6.4 | T198: 5.8 | W198: Operating | X198: Aug | Y198: 2014 | AB198: Gilliam | AC198: OR | AD198: Y | AF198: WECC | AG198: Waste Management, Inc. | AH198: Independent | AI198: Seattle City Light | AP198: 2034 | AQ198: 1 | AR198: 1 | BC198: BPA | BY198: (4) 1.6 MW reciprocating engines. | BZ198: 45.616193 | CA198: -120.243065 | CB198: 2018-03-28 | CC198: 6.4 | CD198: 6.4 | CE198: 0.90625 | CF198: 5.8 | CH198: Y | CK198: PNW East | CL198: BGIC | CM198: 11700 | CN198: 1 | CP198: 1 | CR198: 1 | CT198: Y | CV198: Columbia Ridge Landfill Expansion | CW198: PNW East | CX198: Thr | CY198: IC | CZ198: 6.4 | DA198: Aug-2014 | DB198: Jan-2051 | DC198: 11700 | DD198: Zero-cost Biofuel | DE198: 0.047 | DF198: 56 | DG198: FALSE | DH198: MR 7d Flat | DI198: Landfill | DJ198: Default | DK198: Default | DL198: 20 | DM198: Flat | DN198: 0 | DO198: 1 | DP198: FALSE | DQ198: TRUE | DR198: FALSE | DS198: FALSE | DT198: 0 | DU198: 0 | DV198: 0 | DZ198: Columbia Ridge Landfill Expansion | EB198: Columbia Ridge Landfill Expansion | EC198: 6.154520548 | ED198: 6.154520548 | EE198: 6.154520548 | EF198: 6.154520548 | EG198: 6.154520548 | EH198: 6.154520548 | EI198: 6.154520548 | EJ198: 6.154520548 | EK198: 6.154520548 | EL198: 6.154520548 | EM198: 6.154520548 | EN198: 6.154520548 | EO198: 5.865258082 | EP198: 5.865258082 | EQ198: 5.865258082 | ER198: 5.865258082 | ES198: 5.865258082 | ET198: 5.865258082 | EU198: 5.865258082 | EV198: 5.865258082 | EW198: 5.865258082 | EX198: 5.865258082 | EY198: 5.865258082 | EZ198: 5.865258082
A199: Colville Indian Power & Veneer 1 & 2 | B199: 1113 | C199: 56191 | D199: GEN1,GEN2 | F199: STCG | G199: WW | I199: Biomass | J199: 12.5 | K199: 15.7 | L199: 0.9 | N199: 12.5 | O199: 14 | P199: 12.5 | Q199: 14 | W199: Retired | X199: Nov | Y199: 2002 | Z199: 2013 | AA199: Omak | AB199: Okanogan | AC199: WA | AD199: Y | AE199: Columbia | AF199: WECC | AG199: Colville Tribal Enterprise Corporation | AH199: Tribal | AI199: Retired | AQ199: 0 | AR199: 0 | AS199: Colville Indian Precision Pine | AT199: Timber products | BN199: 0 | BO199: 0 | BY199: (2) boilers, Unit 1 STG 5 MW, Unit 2 STG 7.5 MW. | BZ199: 48.400525 | CA199: -119.517086 | CB199: 2020-04-13T14:02:31 | CC199: 0.9 | CD199: 12.5 | CE199: 0.8 | CF199: 5.36 | CH199: Y | CI199: Assume WB is firm net of self-gen | CK199: PNW East | CL199: WWSTCG | CM199: 5000 | CN199: 1 | CP199: 1 | CR199: 1 | CT199: Y | CV199: Colville Indian Power & Veneer 1 & 2 | CW199: PNW East | CX199: Thr | CY199: STCG | CZ199: 0.9 | DA199: Nov-2002 | DB199: 2013 | DC199: 5000 | DD199: Mill Residue | DE199: 0.07 | DF199: 56 | DG199: FALSE | DH199: MR 28d Flat | DI199: Bio1 | DJ199: Default | DK199: Default | DL199: 30 | DM199: Flat | DN199: 0 | DO199: 1 | DP199: FALSE | DQ199: TRUE | DR199: FALSE | DS199: FALSE | DT199: 0 | DU199: 0 | DV199: 0 | DZ199: Colville Indian Power & Veneer 1 & 2 | EB199: Colville Indian Power & Veneer 1 & 2 | EC199: 0.8136986301 | ED199: 0.8136986301 | EE199: 0.8136986301 | EF199: 0.8136986301 | EG199: 0.8136986301 | EH199: 0.8136986301 | EI199: 0.8136986301 | EJ199: 0.8136986301 | EK199: 0.8136986301 | EL199: 0.8136986301 | EM199: 0.8136986301 | EN199: 0.8136986301 | EO199: 0.756739726 | EP199: 0.756739726 | EQ199: 0.756739726 | ER199: 0.756739726 | ES199: 0.756739726 | ET199: 0.756739726 | EU199: 0.756739726 | EV199: 0.756739726 | EW199: 0.756739726 | EX199: 0.756739726 | EY199: 0.756739726 | EZ199: 0.756739726
A200: Combine Hills I | B200: 1115 | C200: 56195 | D200: 001 | F200: WT | G200: WND | I200: Wind | J200: 41 | K200: 41 | N200: 8 | O200: 8 | P200: 41 | Q200: 41 | T200: 14 | W200: Operating | X200: Dec | Y200: 2003 | AA200: Helix area | AB200: Umatilla | AC200: OR | AD200: Y | AE200: Columbia | AF200: WECC | AG200: Eurus Energy America, Inc. | AH200: Independent | AI200: PacifiCorp (Dec 2003 - Dec 2027) | AJ200: PacifiCorp (bundled RECs) | AK200: PNW IOU | AP200: 2027 | AQ200: 1 | AR200: 1 | AX200: (41) Mitsubishi MWT-1000A | AY200: 55 | AZ200: 61.4 | BA200: 2 | BC200: PACW | BG200: 8.05239726 | BH200: 17.9 | BI200: 14.9 | BJ200: 16.84 | BK200: 11.94 | BL200: 11.9 | BM200: 13.56 | BN200: 12.5 | BO200: 11.71 | BP200: 12.28 | BQ200: 10.39 | BR200: 13.3 | BS200: 10.7 | BT200: 13 | BU200: 10 | BV200: 13.83 | BW200: 11.83 | BX200: 8.881 | BY200: (41) Mitsubishi MWT 1000-A WTG. | BZ200: 45.942 | CA200: -118.498 | CB200: 2020-01-29T09:56:27 | CC200: 41 | CD200: 8 | CE200: 0.3414634146 | CF200: 14 | CH200: Y | CJ200: 100% PNW PPA | CK200: PNW East | CL200: WN_PNWE | CM200: n/a | CN200: 1 | CP200: 0.05 | CR200: 1 | CT200: Y | CV200: Combine Hills I | CW200: PNW East | CX200: Thr | CY200: Wind | CZ200: 41 | DA200: Dec-2003 | DB200: Jan-2051 | DC200: n/a | DD200: Wind | DE200: 0 | DF200: 0 | DG200: FALSE | DH200: Cf WN PNWE | DI200: WindB1 | DJ200: Default | DK200: Default | DL200: 20 | DM200: Flat | DN200: 0 | DO200: 1 | DP200: FALSE | DQ200: TRUE | DR200: FALSE | DS200: FALSE | DT200: 0 | DU200: 0 | DV200: 0 | DW200: 100% PNW PPA | DZ200: Combine Hills I | EB200: Combine Hills I | EC200: 0.1128 | ED200: 0.0876 | EE200: 0.102 | EF200: 0.1152 | EG200: 0.1236 | EH200: 0.108 | EI200: 0.1284 | EJ200: 0.1284 | EK200: 0.1452 | EL200: 0.1284 | EM200: 0.1332 | EN200: 0.1284 | EO200: 2.256 | EP200: 1.752 | EQ200: 2.04 | ER200: 2.304 | ES200: 2.472 | ET200: 2.16 | EU200: 2.568 | EV200: 2.568 | EW200: 2.904 | EX200: 2.568 | EY200: 2.664 | EZ200: 2.568
... 362 more rows

Sheet Charts
A1: Builds | K1: Retirements | Y1: Cumulative Resource Additions
A2: CSTAT | B2: Operating | K2: CSTAT | L2: (All) | Y2: CSTAT | Z2: Operating
EL3: CSTAT | EM3: Operating
A4: Sum of NCap | B4: Column Labels | K4: Sum of NCap | L4: Column Labels | Y4: Sum of NCap | Z4: Column Labels
A5: Row Labels | B5: 2018 | C5: 2019 | D5: 2020 | E5: 2021 | F5: 2022 | G5: 2023 | K5: Row Labels | L5: 2018 | M5: 2019 | N5: 2020 | O5: 2021 | P5: 2022 | Q5: 2023 | R5: 2024 | S5: 2025 | T5: 2027 | U5: 2028 | V5: 2035 | Y5: Row Labels | Z5: 1995 | AA5: 1996 | AB5: 1997 | AC5: 1998 | AD5: 1999 | AE5: 2000 | AF5: 2001 | AG5: 2002 | AH5: 2003 | AI5: 2004 | AJ5: 2005 | AK5: 2006 | AL5: 2007 | AM5: 2008 | AN5: 2009 | AO5: 2010 | AP5: 2011 | AQ5: 2012 | AR5: 2013 | AS5: 2014 | AT5: 2015 | AU5: 2016 | AV5: 2017 | AW5: 2018 | AX5: 2019 | AY5: 2020 | AZ5: 2021 | BA5: 2022 | BB5: 2023 | BC5: Grand Total | EL5: Sum of NCap | EM5: Column Labels
A6: Biomass | B6: 2.5 | C6: 1.6 | K6: Biomass | L6: 52 | M6: 4.5 | Y6: Biomass | Z6: 5.2 | AA6: 36 | AD6: 1.555 | AE6: 2.035 | AG6: 5 | AH6: 18 | AI6: 2.7 | AJ6: 10.8 | AK6: 10.7 | AL6: 53.2 | AM6: 4.4 | AN6: 69.1 | AO6: 5.085 | AP6: 23.8 | AQ6: 14.4 | AR6: 30.95 | AS6: 8 | AT6: 1.7 | AW6: 2.5 | AX6: 1.6 | BC6: 306.725 | EL6: Row Labels | EM6: 2018 | EN6: 2019 | EO6: 2020 | EP6: 2021 | EQ6: 2022 | ER6: 2023
A7: Energy Storage | G7: 80 | K7: Coal | N7: 2047.79 | O7: 327.2 | R7: 1225.3 | S7: 1019.79 | T7: 1556 | U7: 1216.6 | Y7: Coal | AK7: 115.7 | BC7: 115.7 | EL7: Biomass | EM7: 2.5 | EN7: 1.6
A8: Hydro | B8: 13.2 | E8: 2.3 | K8: Energy Storage | L8: 1.2 | Y8: Energy Storage | AR8: 5 | AT8: 2 | AU8: 2 | AV8: 2.2 | BB8: 80 | BC8: 91.2 | EL8: ID | EM8: 2.5 | EN8: 1.6
A9: Solar | B9: 130.2 | C9: 105.2 | D9: 217.96 | E9: 120.2 | F9: 293.7 | G9: 364.9 | K9: Hydro | L9: 1.41 | O9: 2.1 | Q9: 27 | R9: 136.7 | Y9: Geothermal | AL9: 14.1 | AM9: 21 | AQ9: 28.5 | AS9: 1.75 | AT9: 3.1 | BC9: 68.45 | EL9: Bannock County LFG to Energy 2 | EN9: 1.6
A10: Solar + Storage | D10: 3.2 | E10: 0.5 | F10: 50 | K10: Natural Gas | P10: 5 | V10: 61.2 | Y10: Hydro | Z10: 26.36 | AA10: 1.3 | AB10: 10 | AE10: 3.16 | AH10: 0.3 | AI10: 7.5 | AJ10: 0.625 | AK10: 15.8 | AL10: 2.3 | AN10: 0.79 | AO10: 23.75 | AP10: 21.6 | AQ10: 1.1 | AR10: 65.87 | AS10: 41.2 | AT10: 6.6 | AU10: 1.3 | AW10: 13.2 | AZ10: 2.3 | BC10: 245.055 | EL10: Milner Butte Landfill Project | EM10: 2.5
A11: Wind | B11: 105 | C11: 202 | D11: 1499.9 | E11: 743.2 | F11: 645.3 | K11: Grand Total | L11: 54.61 | M11: 4.5 | N11: 2047.79 | O11: 329.3 | P11: 5 | Q11: 27 | R11: 1362 | S11: 1019.79 | T11: 1556 | U11: 1216.6 | V11: 61.2 | Y11: Natural Gas | Z11: 266.8 | AA11: 474 | AB11: 251.6 | AD11: 24.5 | AF11: 1032.6 | AG11: 1111.8 | AH11: 1028.3 | AI11: 284.3 | AJ11: 176.75 | AK11: 54.9 | AL11: 483 | AM11: 1195.9 | AN11: 13 | AO11: 91 | AP11: 203.1 | AQ11: 318.5 | AS11: 225.6 | AU11: 445.6 | BC11: 7681.25 | EL11: Energy Storage | ER11: 80
A12: Grand Total | B12: 250.9 | C12: 308.8 | D12: 1721.06 | E12: 866.2 | F12: 989 | G12: 444.9 | Y12: Petroleum | Z12: 65 | AD12: 0.5 | AE12: 1.2 | AF12: 18 | AJ12: 1.8 | AN12: 1 | BC12: 87.5 | EL12: ID | ER12: 80
Y13: Solar | AL13: 0.5 | AO13: 14.3 | AP13: 2.4 | AQ13: 8.5 | AS13: 3.2 | AT13: 50 | AU13: 339 | AV13: 241.9 | AW13: 130.2 | AX13: 105.2 | AY13: 217.96 | AZ13: 120.2 | BA13: 293.7 | BB13: 364.9 | BC13: 1891.96 | EL13: Hemmingway BESS | ER13: 80
Y14: Solar + Storage | AY14: 3.2 | AZ14: 0.5 | BA14: 50 | BC14: 53.7 | EL14: Hydro | EM14: 13.2 | EP14: 2.3
B15: Operating | C15: Retired | D15: Operating | E15: Retired | F15: Operating | G15: Retired | H15: Operating | I15: Retired | J15: Operating | K15: Retired | L15: Operating | M15: Retired | Y15: Wind | AC15: 25 | AD15: 67.4 | AE15: 16.8 | AF15: 424.085 | AG15: 95.9 | AH15: 41 | AI15: 3.22 | AJ15: 441.6 | AK15: 582.6 | AL15: 794.8 | AM15: 970.6 | AN15: 1340.35 | AO15: 1522.3 | AP15: 531.1 | AQ15: 1906.3 | AR15: 4.3 | AS15: 286.72 | AU15: 177.1 | AV15: 50 | AW15: 105 | AX15: 202 | AY15: 1499.9 | AZ15: 743.2 | BA15: 645.3 | BC15: 12476.575 | EL15: ID | EP15: 2.3
B16: 2018 | D16: 2019 | F16: 2020 | H16: 2021 | J16: 2022 | L16: 2023 | Y16: Grand Total | Z16: 363.36 | AA16: 511.3 | AB16: 261.6 | AC16: 25 | AD16: 93.955 | AE16: 23.195 | AF16: 1474.685 | AG16: 1212.7 | AH16: 1087.6 | AI16: 297.72 | AJ16: 631.575 | AK16: 779.7 | AL16: 1347.9 | AM16: 2191.9 | AN16: 1424.24 | AO16: 1656.435 | AP16: 782 | AQ16: 2277.3 | AR16: 106.12 | AS16: 566.47 | AT16: 63.4 | AU16: 965 | AV16: 294.1 | AW16: 250.9 | AX16: 308.8 | AY16: 1721.06 | AZ16: 866.2 | BA16: 989 | BB16: 444.9 | BC16: 23018.115 | EL16: MC6 Hydro Facility | EP16: 2.3
A17: Biomass | B17: 2.5 | C17: -52 | D17: 1.6 | E17: -4.5 | EL17: OR | EM17: 1.2
A18: Coal | G18: -2047.49 | I18: -327.2 | EL18: Timothy Lake Powerhouse | EM18: 1.2
A19: Energy Storage | C19: -1.2 | L19: 80 | EL19: WA | EM19: 12
A20: Hydro | B20: 13.2 | C20: -1.41 | H20: 2.3 | M20: -27 | Z20: 1890 | AA20: 1894 | AB20: 1895 | AC20: 1898 | AD20: 1901 | AE20: 1904 | AF20: 1905 | AG20: 1906 | AH20: 1907 | AI20: 1908 | AJ20: 1910 | AK20: 1911 | AL20: 1912 | AM20: 1913 | AN20: 1914 | AO20: 1915 | AP20: 1916 | AQ20: 1917 | AR20: 1918 | AS20: 1920 | AT20: 1921 | AU20: 1922 | AV20: 1923 | AW20: 1924 | AX20: 1925 | AY20: 1926 | AZ20: 1927 | BA20: 1930 | BB20: 1931 | BC20: 1932 | BD20: 1935 | BE20: 1936 | BF20: 1937 | BG20: 1938 | BH20: 1940 | BI20: 1941 | BJ20: 1942 | BK20: 1943 | BL20: 1944 | BM20: 1945 | BN20: 1947 | BO20: 1948 | BP20: 1949 | BQ20: 1950 | BR20: 1951 | BS20: 1952 | BT20: 1953 | BU20: 1954 | BV20: 1955 | BW20: 1956 | BX20: 1957 | BY20: 1958 | BZ20: 1959 | CA20: 1960 | CB20: 1961 | CC20: 1962 | CD20: 1963 | CE20: 1964 | CF20: 1966 | CG20: 1967 | CH20: 1968 | CI20: 1969 | CJ20: 1970 | CK20: 1972 | CL20: 1973 | CM20: 1974 | CN20: 1975 | CO20: 1976 | CP20: 1977 | CQ20: 1978 | CR20: 1979 | CS20: 1980 | CT20: 1981 | CU20: 1982 | CV20: 1983 | CW20: 1984 | CX20: 1985 | CY20: 1986 | CZ20: 1987 | DA20: 1988 | DB20: 1989 | DC20: 1990 | DD20: 1991 | DE20: 1992 | DF20: 1993 | DG20: 1994 | DH20: 1995 | DI20: 1996 | DJ20: 1997 | DK20: 1998 | DL20: 1999 | DM20: 2000 | DN20: 2001 | DO20: 2002 | DP20: 2003 | DQ20: 2004 | DR20: 2005 | DS20: 2006 | DT20: 2007 | DU20: 2008 | DV20: 2009 | DW20: 2010 | DX20: 2011 | DY20: 2012 | DZ20: 2013 | EA20: 2014 | EB20: 2015 | EC20: 2016 | ED20: 2017 | EE20: 2018 | EF20: 2019 | EG20: 2020 | EH20: 2021 | EI20: 2022 | EJ20: 2023 | EL20: Calligan Creek | EM20: 6
A21: Natural Gas | K21: -5 | Y21: Biomass | BE21: 45 | BG21: 1.5 | BO21: 10 | BQ21: 93.8 | BU21: 48 | BV21: 51.5 | BX21: 15 | CO21: 40 | CU21: 5.8 | CV21: 56.9 | CW21: 0.043 | CX21: 35.14 | CY21: 20.6 | DD21: 22.88 | DE21: 3.2 | DF21: 0.75 | DH21: 5.2 | DI21: 36 | DL21: 1.555 | DM21: 2.035 | DO21: 5 | DP21: 18 | DQ21: 2.7 | DR21: 10.8 | DS21: 10.7 | DT21: 53.2 | DU21: 4.4 | DV21: 69.1 | DW21: 5.085 | DX21: 23.8 | DY21: 14.4 | DZ21: 30.95 | EA21: 8 | EB21: 1.7 | EE21: 2.5 | EF21: 1.6 | EL21: Hancock Creek | EM21: 6
A22: Solar | B22: 130.2 | D22: 105.2 | F22: 217.96 | H22: 120.2 | J22: 293.7 | L22: 364.9 | Y22: Coal | BO22: 10.2 | BR22: 4 | CL22: 729.99 | CM22: 608.3 | CN22: 617 | CO22: 639.7 | CR22: 608.3 | CT22: 277.2 | CW22: 778 | CX22: 289.8 | CY22: 778 | DC22: 46.1 | DS22: 115.7 | EL22: Solar | EM22: 130.2 | EN22: 105.2 | EO22: 217.96 | EP22: 120.2 | EQ22: 293.7 | ER22: 364.9
A23: Solar + Storage | F23: 3.2 | H23: 0.5 | J23: 50 | Y23: Energy Storage | BI23: 314.4 | DZ23: 5 | EB23: 2 | EC23: 2 | ED23: 2.2 | EJ23: 80 | EL23: ID | EN23: 2 | EQ23: 120 | ER23: 40
A24: Wind | B24: 105 | D24: 202 | F24: 1499.9 | H24: 743.2 | J24: 645.3 | Y24: Geothermal | DT24: 14.1 | DU24: 21 | DY24: 28.5 | EA24: 1.75 | EB24: 3.1 | EL24: Black Mesa | ER24: 40
Y25: Hydro | Z25: 14.8 | AA25: 17.6 | AB25: 15.4 | AC25: 12.8 | AD25: 27.2 | AE25: 22.8 | AF25: 320 | AG25: 25.3 | AH25: 49.1 | AI25: 38.2 | AJ25: 147.38 | AK25: 58.2 | AL25: 78.95 | AM25: 1.11 | AN25: 33 | AO25: 248.3 | AP25: 0.4 | AQ25: 7.7 | AR25: 58.4 | AS25: 36.3 | AT25: 3.675 | AU25: 10 | AV25: 0.24 | AW25: 276 | AX25: 119.8 | AY25: 55.62 | AZ25: 126.5 | BA25: 153 | BB25: 629.43 | BC25: 144.8 | BD25: 52.7 | BE25: 153.05 | BF25: 20.5 | BG25: 1258 | BH25: 3 | BI25: 6495 | BJ25: 5.96 | BK25: 61.8 | BL25: 1 | BM25: 50 | BN25: 16.5 | BO25: 8.3 | BP25: 121.1 | BQ25: 40 | BR25: 143 | BS25: 1136.425 | BT25: 1341.3 | BU25: 18.5 | BV25: 2777.7 | BW25: 61.8 | BX25: 2096 | BY25: 1202.4 | BZ25: 1542.6 | CA25: 17.3 | CB25: 1489.6 | CC25: 655.5 | CD25: 1506.3 | CE25: 356 | CF25: 250 | CG25: 2297.6 | CH25: 2180 | CI25: 810 | CJ25: 810 | CL25: 400 | CN25: 1335.37 | CP25: 49 | CQ25: 92.3 | CR25: 0.12 | CS25: 0.1 | CT25: 26.45 | CU25: 69.3455 | CV25: 11.011 | CW25: 230.32 | CX25: 32.725 | CY25: 73.43 | CZ25: 22.86 | DA25: 138.147 | DB25: 48.027 | DC25: 80.352 | DD25: 6.5 | DE25: 60.1 | DF25: 34.6 | DG25: 104.7 | DH25: 26.36 | DI25: 1.3 | DJ25: 10 | DM25: 3.16 | DP25: 0.3 | DQ25: 7.5 | DR25: 0.625 | DS25: 15.8 | DT25: 2.3 | DV25: 0.79 | DW25: 23.75 | DX25: 21.6 | DY25: 1.1 | DZ25: 65.87 | EA25: 41.2 | EB25: 6.6 | EC25: 1.3 | EE25: 13.2 | EH25: 2.3 | EL25: Clif Bar Bakery of Twin Falls Solar Project | EN25: 2
Y26: Natural Gas | BO26: 8.2 | BS26: 5.06 | CK26: 23.3 | CM26: 586.2 | CQ26: 61.2 | CR26: 40.7 | CT26: 347 | CW26: 258.2 | CY26: 15.9 | CZ26: 7.5 | DD26: 140.95 | DF26: 301.9 | DG26: 452 | DH26: 266.8 | DI26: 474 | DJ26: 251.6 | DL26: 24.5 | DN26: 1032.6 | DO26: 1111.8 | DP26: 1028.3 | DQ26: 284.3 | DR26: 176.75 | DS26: 54.9 | DT26: 483 | DU26: 1195.9 | DV26: 13 | DW26: 91 | DX26: 203.1 | DY26: 318.5 | EA26: 225.6 | EC26: 445.6 | EL26: Jackpot Solar | EQ26: 120
Y27: Petroleum | CG27: 5 | CI27: 2.7 | DD27: 6.4 | DE27: 2.8 | DH27: 65 | DL27: 0.5 | DM27: 1.2 | DN27: 18 | DR27: 1.8 | DV27: 1 | EL27: MT | ER27: 160
Y28: Solar | DT28: 0.5 | DW28: 14.3 | DX28: 2.4 | DY28: 8.5 | EA28: 3.2 | EB28: 50 | EC28: 339 | ED28: 241.9 | EE28: 130.2 | EF28: 105.2 | EG28: 217.96 | EH28: 120.2 | EI28: 293.7 | EJ28: 364.9 | EL28: Apex Solar | ER28: 80
Y29: Solar + Storage | EG29: 3.2 | EH29: 0.5 | EI29: 50 | EL29: MT Sun Solar Farm | ER29: 80
Y30: Uranium | CW30: 1200 | EL30: OR | EM30: 110.2 | EN30: 103.2 | EO30: 159.96 | EP30: 120.2 | EQ30: 8.7 | ER30: 164.9
Y31: Wind | DK31: 25 | DL31: 67.4 | DM31: 16.8 | DN31: 424.085 | DO31: 95.9 | DP31: 41 | DQ31: 3.22 | DR31: 441.6 | DS31: 582.6 | DT31: 794.8 | DU31: 970.6 | DV31: 1340.35 | DW31: 1522.3 | DX31: 531.1 | DY31: 1906.3 | DZ31: 4.3 | EA31: 286.72 | EC31: 177.1 | ED31: 50 | EE31: 105 | EF31: 202 | EG31: 1499.9 | EH31: 743.2 | EI31: 645.3 | EL31: Adams Solar Center | EM31: 10
Z32: 1890 | AA32: 1894 | AB32: 1895 | AC32: 1898 | AD32: 1901 | AE32: 1904 | AF32: 1905 | AG32: 1906 | AH32: 1907 | AI32: 1908 | AJ32: 1910 | AK32: 1911 | AL32: 1912 | AM32: 1913 | AN32: 1914 | AO32: 1915 | AP32: 1916 | AQ32: 1917 | AR32: 1918 | AS32: 1920 | AT32: 1921 | AU32: 1922 | AV32: 1923 | AW32: 1924 | AX32: 1925 | AY32: 1926 | AZ32: 1927 | BA32: 1930 | BB32: 1931 | BC32: 1932 | BD32: 1935 | BE32: 1936 | BF32: 1937 | BG32: 1938 | BH32: 1940 | BI32: 1941 | BJ32: 1942 | BK32: 1943 | BL32: 1944 | BM32: 1945 | BN32: 1947 | BO32: 1948 | BP32: 1949 | BQ32: 1950 | BR32: 1951 | BS32: 1952 | BT32: 1953 | BU32: 1954 | BV32: 1955 | BW32: 1956 | BX32: 1957 | BY32: 1958 | BZ32: 1959 | CA32: 1960 | CB32: 1961 | CC32: 1962 | CD32: 1963 | CE32: 1964 | CF32: 1966 | CG32: 1967 | CH32: 1968 | CI32: 1969 | CJ32: 1970 | CK32: 1972 | CL32: 1973 | CM32: 1974 | CN32: 1975 | CO32: 1976 | CP32: 1977 | CQ32: 1978 | CR32: 1979 | CS32: 1980 | CT32: 1981 | CU32: 1982 | CV32: 1983 | CW32: 1984 | CX32: 1985 | CY32: 1986 | CZ32: 1987 | DA32: 1988 | DB32: 1989 | DC32: 1990 | DD32: 1991 | DE32: 1992 | DF32: 1993 | DG32: 1994 | DH32: 1995 | DI32: 1996 | DJ32: 1997 | DK32: 1998 | DL32: 1999 | DM32: 2000 | DN32: 2001 | DO32: 2002 | DP32: 2003 | DQ32: 2004 | DR32: 2005 | DS32: 2006 | DT32: 2007 | DU32: 2008 | DV32: 2009 | DW32: 2010 | DX32: 2011 | DY32: 2012 | DZ32: 2013 | EA32: 2014 | EB32: 2015 | EC32: 2016 | ED32: 2017 | EE32: 2018 | EF32: 2019 | EG32: 2020 | EH32: 2021 | EI32: 2022 | EJ32: 2023 | EL32: Agate Bay Solar (OR Solar 2) | EO32: 10
Y33: Biomass | Z33: =SUM($Z$21:Z21) -> 0 | AA33: =SUM($Z$21:AA21) -> 0 | AB33: =SUM($Z$21:AB21) -> 0 | AC33: =SUM($Z$21:AC21) -> 0 | AD33: =SUM($Z$21:AD21) -> 0 | AE33: =SUM($Z$21:AE21) -> 0 | AF33: =SUM($Z$21:AF21) -> 0 | AG33: =SUM($Z$21:AG21) -> 0 | AH33: =SUM($Z$21:AH21) -> 0 | AI33: =SUM($Z$21:AI21) -> 0 | AJ33: =SUM($Z$21:AJ21) -> 0 | AK33: =SUM($Z$21:AK21) -> 0 | AL33: =SUM($Z$21:AL21) -> 0 | AM33: =SUM($Z$21:AM21) -> 0 | AN33: =SUM($Z$21:AN21) -> 0 | AO33: =SUM($Z$21:AO21) -> 0 | AP33: =SUM($Z$21:AP21) -> 0 | AQ33: =SUM($Z$21:AQ21) -> 0 | AR33: =SUM($Z$21:AR21) -> 0 | AS33: =SUM($Z$21:AS21) -> 0 | AT33: =SUM($Z$21:AT21) -> 0 | AU33: =SUM($Z$21:AU21) -> 0 | AV33: =SUM($Z$21:AV21) -> 0 | AW33: =SUM($Z$21:AW21) -> 0 | AX33: =SUM($Z$21:AX21) -> 0 | AY33: =SUM($Z$21:AY21) -> 0 | AZ33: =SUM($Z$21:AZ21) -> 0 | BA33: =SUM($Z$21:BA21) -> 0 | BB33: =SUM($Z$21:BB21) -> 0 | BC33: =SUM($Z$21:BC21) -> 0 | BD33: =SUM($Z$21:BD21) -> 0 | BE33: =SUM($Z$21:BE21) -> 45 | BF33: =SUM($Z$21:BF21) -> 45 | BG33: =SUM($Z$21:BG21) -> 46.5 | BH33: =SUM($Z$21:BH21) -> 46.5 | BI33: =SUM($Z$21:BI21) -> 46.5 | BJ33: =SUM($Z$21:BJ21) -> 46.5 | BK33: =SUM($Z$21:BK21) -> 46.5 | BL33: =SUM($Z$21:BL21) -> 46.5 | BM33: =SUM($Z$21:BM21) -> 46.5 | BN33: =SUM($Z$21:BN21) -> 46.5 | BO33: =SUM($Z$21:BO21) -> 56.5 | BP33: =SUM($Z$21:BP21) -> 56.5 | BQ33: =SUM($Z$21:BQ21) -> 150.3 | BR33: =SUM($Z$21:BR21) -> 150.3 | BS33: =SUM($Z$21:BS21) -> 150.3 | BT33: =SUM($Z$21:BT21) -> 150.3 | BU33: =SUM($Z$21:BU21) -> 198.3 | BV33: =SUM($Z$21:BV21) -> 249.8 | BW33: =SUM($Z$21:BW21) -> 249.8 | BX33: =SUM($Z$21:BX21) -> 264.8 | BY33: =SUM($Z$21:BY21) -> 264.8 | BZ33: =SUM($Z$21:BZ21) -> 264.8 | CA33: =SUM($Z$21:CA21) -> 264.8 | CB33: =SUM($Z$21:CB21) -> 264.8 | CC33: =SUM($Z$21:CC21) -> 264.8 | CD33: =SUM($Z$21:CD21) -> 264.8 | CE33: =SUM($Z$21:CE21) -> 264.8 | CF33: =SUM($Z$21:CF21) -> 264.8 | CG33: =SUM($Z$21:CG21) -> 264.8 | CH33: =SUM($Z$21:CH21) -> 264.8 | CI33: =SUM($Z$21:CI21) -> 264.8 | CJ33: =SUM($Z$21:CJ21) -> 264.8 | CK33: =SUM($Z$21:CK21) -> 264.8 | CL33: =SUM($Z$21:CL21) -> 264.8 | CM33: =SUM($Z$21:CM21) -> 264.8 | CN33: =SUM($Z$21:CN21) -> 264.8 | CO33: =SUM($Z$21:CO21) -> 304.8 | CP33: =SUM($Z$21:CP21) -> 304.8 | CQ33: =SUM($Z$21:CQ21) -> 304.8 | CR33: =SUM($Z$21:CR21) -> 304.8 | CS33: =SUM($Z$21:CS21) -> 304.8 | CT33: =SUM($Z$21:CT21) -> 304.8 | CU33: =SUM($Z$21:CU21) -> 310.6 | CV33: =SUM($Z$21:CV21) -> 367.5 | CW33: =SUM($Z$21:CW21) -> 367.543 | CX33: =SUM($Z$21:CX21) -> 402.683 | CY33: =SUM($Z$21:CY21) -> 423.283 | CZ33: =SUM($Z$21:CZ21) -> 423.283 | DA33: =SUM($Z$21:DA21) -> 423.283 | DB33: =SUM($Z$21:DB21) -> 423.283 | DC33: =SUM($Z$21:DC21) -> 423.283 | DD33: =SUM($Z$21:DD21) -> 446.163 | DE33: =SUM($Z$21:DE21) -> 449.363 | DF33: =SUM($Z$21:DF21) -> 450.113 | DG33: =SUM($Z$21:DG21) -> 450.113 | DH33: =SUM($Z$21:DH21) -> 455.313 | DI33: =SUM($Z$21:DI21) -> 491.313 | DJ33: =SUM($Z$21:DJ21) -> 491.313 | DK33: =SUM($Z$21:DK21) -> 491.313 | DL33: =SUM($Z$21:DL21) -> 492.868 | DM33: =SUM($Z$21:DM21) -> 494.903 | DN33: =SUM($Z$21:DN21) -> 494.903 | DO33: =SUM($Z$21:DO21) -> 499.903 | DP33: =SUM($Z$21:DP21) -> 517.903 | DQ33: =SUM($Z$21:DQ21) -> 520.603 | DR33: =SUM($Z$21:DR21) -> 531.403 | DS33: =SUM($Z$21:DS21) -> 542.103 | DT33: =SUM($Z$21:DT21) -> 595.303 | DU33: =SUM($Z$21:DU21) -> 599.703 | DV33: =SUM($Z$21:DV21) -> 668.803 | DW33: =SUM($Z$21:DW21) -> 673.888 | DX33: =SUM($Z$21:DX21) -> 697.688 | DY33: =SUM($Z$21:DY21) -> 712.088 | DZ33: =SUM($Z$21:DZ21) -> 743.038 | EA33: =SUM($Z$21:EA21) -> 751.038 | EB33: =SUM($Z$21:EB21) -> 752.738 | EC33: =SUM($Z$21:EC21) -> 752.738 | ED33: =SUM($Z$21:ED21) -> 752.738 | EE33: =SUM($Z$21:EE21) -> 755.238 | EF33: =SUM($Z$21:EF21) -> 756.838 | EG33: =SUM($Z$21:EG21) -> 756.838 | EH33: =SUM($Z$21:EH21) -> 756.838 | EI33: =SUM($Z$21:EI21) -> 756.838 | EJ33: =SUM($Z$21:EJ21) -> 756.838 | EL33: Airport Solar Project | EN33: 47.3
